Workbook

Sheet M&A
A1: Avoided Cost Data Set | C1: Options
A2: AESC 2021 | C2: AESC 2021 | D2: AESC 2018
A4: Net or Gross
A5: Gross | C5: Net | D5: Gross
A7: Include Incentives to Freeriders as Cost
A8: No | C8: Yes | D8: No
A10: Year 1
A11: 2023 | C11: >=2018
A13: Default Discount Rate | C13: PUC | D13: AESC | E13: 10 yr + 2% - inflation
A14: 2.8 | C14: 6.5 | D14: 2.43 | E14: 2.8
A15: Avoided Costs are in Real Dollars. Discount Rates must be enter as real discount rate.
A16: RGGI Discount Rate
A17: 2.8
A18: Avoided Costs are in Real Dollars. Discount Rates must be enter as real discount rate.
A20: Include Non-Embeded Cost of Carbon
A21: 1 | C21: 1 to include, 0 to exclude
A25: Emissions Factors
A26: Fuel | B26: LB CO2/MMBtu or LB CO2/kWh
A27: NG | B27: 116.977
A28: Kerosene | B28: 159.416
A29: Propane | B29: 139.046
A30: Oil | B30: 161.268
A31: Electric | B31: 0.655

Sheet Measures
BC1: =$AF1 -> 0 | BE1: =$AG1 -> 0 | BR1: AF<row> | BS1: AG<row> | DU1: 1 | DV1: 2 | DW1: 3 | DX1: 4 | DY1: 5 | DZ1: 6 | EA1: 7 | EB1: 8 | EC1: 9 | ED1: 10 | EG1: 1 | EH1: 2 | EI1: 3 | EJ1: 4 | EK1: 5 | EL1: 6 | EM1: 7 | EN1: 8 | EO1: 9 | EP1: 10 | EQ1: 1 | ER1: 2 | ES1: 3 | ET1: 4 | EU1: 5 | EV1: 6 | EW1: 7 | EX1: 8 | EY1: 9 | EZ1: 10 | FA1: 1 | FB1: 2 | FC1: 3 | FD1: 4 | FE1: 5 | FF1: 6 | FG1: 7 | FH1: 8 | FI1: 9 | FJ1: 10 | FK1: 1 | FL1: 2 | FM1: 3 | FN1: 4 | FO1: 5 | FP1: 6 | FQ1: 7 | FR1: 8 | FS1: 9 | FT1: 10 | FU1: 1 | FV1: 2 | FW1: 3 | FX1: 4 | FY1: 5 | FZ1: 6 | GA1: 7 | GB1: 8 | GC1: 9 | GD1: 10 | GE1: 1 | GF1: 2 | GG1: 3 | GH1: 4 | GI1: 5 | GJ1: 6 | GK1: 7 | GL1: 8 | GM1: 9 | GN1: 10 | GO1: 1 | GP1: 2 | GQ1: 3 | GR1: 4 | GS1: 5 | GT1: 6 | GU1: 7 | GV1: 8 | GW1: 9 | GX1: 10 | GY1: 1 | GZ1: 2 | HA1: 3 | HB1: 4 | HC1: 5 | HD1: 6 | HE1: 7 | HF1: 8 | HG1: 9 | HH1: 10 | HI1: 1 | HJ1: 2 | HK1: 3 | HL1: 4 | HM1: 5 | HN1: 6 | HO1: 7 | HP1: 8 | HQ1: 9 | HR1: 10 | HS1: 1 | HT1: 2 | HU1: 3 | HV1: 4 | HW1: 5 | HX1: 6 | HY1: 7 | HZ1: 8 | IA1: 9 | IB1: 10 | IC1: 1 | ID1: 2 | IE1: 3 | IF1: 4 | IG1: 5 | IH1: 6 | II1: 7 | IJ1: 8 | IK1: 9 | IL1: 10 | IM1: 1 | IN1: 2 | IO1: 3 | IP1: 4 | IQ1: 5 | IR1: 6 | IS1: 7 | IT1: 8 | IU1: 9 | IV1: 10
F2: Formula | AC2: Factors | AR2: Representative Parameters | BL2: Representative Savings | CA2: Avoided Cost | CC2: Respresentative Benefits and Costs (adjusted gross) | CS2: NTG | CT2: Measure Screening | CV2: Incentive Budgets | DS2: AF | DT2: AG | DU2: AS | DV2: AU | DW2: AW | DX2: AY | DY2: BA | DZ2: BC | EA2: BE | EB2: BG | EC2: BI | ED2: BK
A3: Program Name | B3: Measure Name | C3: Measure Code | D3: Pricing Effective Date | E3: Pricing Effective End Date | F3: Measure Cost Method | G3: Measure Cost | H3: Measure Cost Cap | I3: Incentive Method | J3: Incentive | K3: Incentive Cap | L3: Savings Effective Date | M3: Savings Effective End Date | N3: Savings Method | O3: kWh | P3: kWh Min | Q3: kWh Max | R3: kW | S3: kW Min | T3: kW Max | U3: Winter kW | V3: Summer kW | W3: Therms | X3: Propane | Y3: Heating Oil | Z3: Kerosene | AA3: Wood | AB3: Water | AC3: Factor Effective Date | AD3: Factor Effective End Date | AE3: Useful Life | AF3: Winter CF | AG3: Summer CF | AH3: EPF Winter Peak | AI3: EPF Winter Off Peak | AJ3: EPF Summer Peak | AK3: EPF Summer Off Peak | AL3: ISR | AM3: RRe | AN3: RRd | AO3: FR | AP3: SO | AR3: Name | AS3: Value | AT3: Name | AU3: Value | AV3: Name | AW3: Value | AX3: Name | AY3: Value | AZ3: Name | BA3: Value | BB3: Name | BC3: Value | BD3: Name | BE3: Value | BF3: Name | BG3: Value | BH3: Name | BI3: Value | BJ3: Name | BK3: Value | BL3: kWh | BO3: kW | BR3: Winter kW | BS3: Summer kW | BT3: Therms | BU3: Propane | BV3: Heating Oil | BW3: Kerosene | BX3: Wood | BY3: Water | BZ3: Gasoline | CA3: Customer Type (Res/Com) | CB3: Discount Rate | CC3: Electric Energy Benefit | CD3: Electric Demand Benefit | CE3: NG Benefit | CF3: Oil Benefit | CG3: Kerosene Benefit | CH3: Propane Benefit | CI3: Wood Benefit | CJ3: Water Benefit | CK3: Gasoline | CL3: Energy & Water Benefits | CM3: Fuel Costs | CN3: Non-energy Benefits | CO3: Measure Cost | CP3: Discounted Future O&M (decreased future O&M entered as a negative value) | CQ3: Discounted future replacement costs (decreased future replacement cost entered as a negative value) | CR3: Fuel + Measure Cost | CS3: NTG = 1 if Gross, NTG = 1-FR+SO if Net | CT3: =IF(NetOrGross="Gross","BCR_Gross","BCR_Net") -> BCR_Gross | CU3: Include (1 - yes, 0 - no) | CV3: Incentive Per Unit | CW3: % (if applicable) | CX3: Funding | CY3: effRT measure? | DA3: Measure Cost | DB3: Incentive | DC3: kWh | DF3: kW | DI3: Winter kW | DJ3: Summer kW | DK3: Therms | DL3: Propane | DM3: Heating Oil | DN3: Kerosene | DO3: Wood | DP3: Water | IX3: =MAX(IX5:IX347) -> 0
A4: AAA | B4: Reference Calcs | AE4: 10 | AF4: 1 | AG4: 1 | AH4: 0.25 | AI4: 0.25 | AJ4: 0.25 | AK4: 0.25 | AL4: 1 | AM4: 1 | AN4: 1 | AO4: 0 | AP4: 0 | AR4: =DU4 ->  | AT4: =DV4 ->  | AV4: =DW4 ->  | AX4: =DX4 ->  | AZ4: =DY4 ->  | BB4: =DZ4 ->  | BD4: =EA4 ->  | BF4: =EB4 ->  | BH4: =EC4 ->  | BJ4: =ED4 ->  | BL4: 100 | BM4: 0 | BN4: 0 | BO4: 0 | BP4: 0 | BQ4: 0 | BR4: 0 | BS4: 0 | BT4: 0 | BU4: 0 | BV4: 0 | BW4: 0 | BX4: 0 | BY4: 0 | CA4: Res | CB4: Default DR | CC4: =Benefits(BL4,BR4,BS4,BT4,BU4,BV4,BW4,BX4,BY4,BZ4,AE4,AH4,AI4,AJ4,AK4,AL4,AM4,AN4,AO4,AP4,CA4,CB4) -> 94.49492784 | CD4: 0 | CE4: 0 | CF4: 0 | CG4: 0 | CH4: 0 | CI4: 0 | CJ4: 0 | CK4: 0 | CL4: =(--(CC4>0))*CC4+(--(CD4>0))*CD4+(--(CE4>0))*CE4+(--(CF4>0))*CF4+(--(CG4>0))*CG4+(--(CH4>0))*CH4+(--(CI4>0))*CI4+(--(CJ4>0))*CJ4 -> 94.49492784 | CM4: =(--(CC4<0))*-CC4+(--(CD4<0))*-CD4+(--(CE4<0))*-CE4+(--(CF4<0))*-CF4+(--(CG4<0))*-CG4+(--(CH4<0))*-CH4+(--(CI4<0))*-CI4+(--(CJ4<0))*-CJ4 -> 0 | CO4: 10 | CR4: =CM4+CO4 -> 10 | CS4: =IF(NetOrGross="Net",(1-AO4+AP4),1) -> 1 | CT4: =(SUMPRODUCT(CC4:CJ4,--(CC4:CJ4>0))+CN4)*CS4/((-SUMPRODUCT(CC4:CJ4,--(CC4:CJ4<0))+MAX(CO4,CV4)+CP4+CQ4)*CS4+IF(FRIncentives="Yes",CV4*(1-CS4),0)) -> 9.449492784 | CV4: =CO4*CW4 -> 0 | CY4: y | DA4: =IF(F4="Manual Entry","Manual",IF(G4="",0,"X="&SUBSTITUTE(SUBSTITUTE(SUBSTITUTE(SUBSTITUTE(SUBSTITUTE(SUBSTITUTE(SUBSTITUTE(SUBSTITUTE(SUBSTITUTE(SUBSTITUTE(SUBSTITUTE(SUBSTITUTE(G4,$ED4,$ED$2&ROW($ED4)),$EC4,$EC$2&ROW($EC4)),$EB4,$EB$2&ROW($EB4)),$EA4,$EA$2&ROW($EA4)),$DZ4,$DZ$2&ROW($DZ4)),$DY4,$DY$2&ROW($DY4)),$DX4,$DX$2&ROW($DX4)),$DW4,$DW$2&ROW($DW4)),$DV4,$DV$2&ROW($DV4)),$DU4,$DU$2&ROW($DU4)),$DT4,$DT$2&ROW($DT4)),$DS4,$DS$2&ROW($DS4)))) -> 0 | DB4: 0 | DC4: =IF(O4="",0,"X="&SUBSTITUTE(SUBSTITUTE(SUBSTITUTE(SUBSTITUTE(SUBSTITUTE(SUBSTITUTE(SUBSTITUTE(SUBSTITUTE(SUBSTITUTE(SUBSTITUTE(SUBSTITUTE(SUBSTITUTE(O4,$ED4,$ED$2&ROW($ED4)),$EC4,$EC$2&ROW($EC4)),$EB4,$EB$2&ROW($EB4)),$EA4,$EA$2&ROW($EA4)),$DZ4,$DZ$2&ROW($DZ4)),$DY4,$DY$2&ROW($DY4)),$DX4,$DX$2&ROW($DX4)),$DW4,$DW$2&ROW($DW4)),$DV4,$DV$2&ROW($DV4)),$DU4,$DU$2&ROW($DU4)),$DT4,$DT$2&ROW($DT4)),$DS4,$DS$2&ROW($DS4))) -> 0 | DD4: 0 | DE4: 0 | DF4: 0 | DG4: 0 | DH4: 0 | DI4: 0 | DJ4: 0 | DK4: 0 | DL4: 0 | DM4: 0 | DN4: 0 | DO4: 0 | DP4: 0 | DQ4: =SUBSTITUTE(AB4,$EA4,$EA$2&ROW($EA4)) ->  | DU4: =IFERROR(INDEX($EG4:$IT4,MATCH(0,COUNTIF($DR4:DT4,$EG4:$IT4),0)),"") ->  | DV4: =IFERROR(INDEX($EG4:$IT4,MATCH(0,COUNTIF($DR4:DU4,$EG4:$IT4),0)),"") ->  | DW4: =IFERROR(INDEX($EG4:$IT4,MATCH(0,COUNTIF($DR4:DV4,$EG4:$IT4),0)),"") ->  | DX4: =IFERROR(INDEX($EG4:$IT4,MATCH(0,COUNTIF($DR4:DW4,$EG4:$IT4),0)),"") ->  | DY4: =IFERROR(INDEX($EG4:$IT4,MATCH(0,COUNTIF($DR4:DX4,$EG4:$IT4),0)),"") ->  | DZ4: =IFERROR(INDEX($EG4:$IT4,MATCH(0,COUNTIF($DR4:DY4,$EG4:$IT4),0)),"") ->  | EA4: =IFERROR(INDEX($EG4:$IT4,MATCH(0,COUNTIF($DR4:DZ4,$EG4:$IT4),0)),"") ->  | EB4: =IFERROR(INDEX($EG4:$IT4,MATCH(0,COUNTIF($DR4:EA4,$EG4:$IT4),0)),"") ->  | EC4: =IFERROR(INDEX($EG4:$IT4,MATCH(0,COUNTIF($DR4:EB4,$EG4:$IT4),0)),"") ->  | ED4: =IFERROR(INDEX($EG4:$IT4,MATCH(0,COUNTIF($DR4:EC4,$EG4:$IT4),0)),"") ->  | EG4: =IFERROR(MID($G4,FIND(CHAR(160),SUBSTITUTE($G4,"{",CHAR(160),EG$1)),FIND(CHAR(160),SUBSTITUTE($G4,"}",CHAR(160),EG$1))-FIND(CHAR(160),SUBSTITUTE($G4,"{",CHAR(160),EG$1))+1),"") ->  | EQ4: =IFERROR(MID($J4,FIND(CHAR(160),SUBSTITUTE($J4,"{",CHAR(160),EQ$1)),FIND(CHAR(160),SUBSTITUTE($J4,"}",CHAR(160),EQ$1))-FIND(CHAR(160),SUBSTITUTE($J4,"{",CHAR(160),EQ$1))+1),"") ->  | FA4: =IFERROR(MID($O4,FIND(CHAR(160),SUBSTITUTE($O4,"{",CHAR(160),FA$1)),FIND(CHAR(160),SUBSTITUTE($O4,"}",CHAR(160),FA$1))-FIND(CHAR(160),SUBSTITUTE($O4,"{",CHAR(160),FA$1))+1),"") ->  | FK4: =IFERROR(MID($R4,FIND(CHAR(160),SUBSTITUTE($R4,"{",CHAR(160),FK$1)),FIND(CHAR(160),SUBSTITUTE($R4,"}",CHAR(160),FK$1))-FIND(CHAR(160),SUBSTITUTE($R4,"{",CHAR(160),FK$1))+1),"") ->  | FU4: =IFERROR(MID($U4,FIND(CHAR(160),SUBSTITUTE($U4,"{",CHAR(160),FU$1)),FIND(CHAR(160),SUBSTITUTE($U4,"}",CHAR(160),FU$1))-FIND(CHAR(160),SUBSTITUTE($U4,"{",CHAR(160),FU$1))+1),"") ->  | GE4: =IFERROR(MID($V4,FIND(CHAR(160),SUBSTITUTE($V4,"{",CHAR(160),GE$1)),FIND(CHAR(160),SUBSTITUTE($V4,"}",CHAR(160),GE$1))-FIND(CHAR(160),SUBSTITUTE($V4,"{",CHAR(160),GE$1))+1),"") ->  | GO4: =IFERROR(MID($W4,FIND(CHAR(160),SUBSTITUTE($W4,"{",CHAR(160),GO$1)),FIND(CHAR(160),SUBSTITUTE($W4,"}",CHAR(160),GO$1))-FIND(CHAR(160),SUBSTITUTE($W4,"{",CHAR(160),GO$1))+1),"") ->  | GY4: =IFERROR(MID($X4,FIND(CHAR(160),SUBSTITUTE($X4,"{",CHAR(160),GY$1)),FIND(CHAR(160),SUBSTITUTE($X4,"}",CHAR(160),GY$1))-FIND(CHAR(160),SUBSTITUTE($X4,"{",CHAR(160),GY$1))+1),"") ->  | HI4: =IFERROR(MID($Y4,FIND(CHAR(160),SUBSTITUTE($Y4,"{",CHAR(160),HI$1)),FIND(CHAR(160),SUBSTITUTE($Y4,"}",CHAR(160),HI$1))-FIND(CHAR(160),SUBSTITUTE($Y4,"{",CHAR(160),HI$1))+1),"") ->  | HS4: =IFERROR(MID($Z4,FIND(CHAR(160),SUBSTITUTE($Z4,"{",CHAR(160),HS$1)),FIND(CHAR(160),SUBSTITUTE($Z4,"}",CHAR(160),HS$1))-FIND(CHAR(160),SUBSTITUTE($Z4,"{",CHAR(160),HS$1))+1),"") ->  | IC4: =IFERROR(MID($AA4,FIND(CHAR(160),SUBSTITUTE($AA4,"{",CHAR(160),IC$1)),FIND(CHAR(160),SUBSTITUTE($AA4,"}",CHAR(160),IC$1))-FIND(CHAR(160),SUBSTITUTE($AA4,"{",CHAR(160),IC$1))+1),"") ->  | IM4: =IFERROR(MID($AB4,FIND(CHAR(160),SUBSTITUTE($AB4,"{",CHAR(160),IM$1)),FIND(CHAR(160),SUBSTITUTE($AB4,"}",CHAR(160),IM$1))-FIND(CHAR(160),SUBSTITUTE($AB4,"{",CHAR(160),IM$1))+1),"") ->  | IX4: =10-COUNTIF(DU4:ED4,"") -> 0
A5: Affordable Heat Initiative - Heat Pumps | B5: MiniSplit HP Property Assessed | C5: LCHA | D5: 2021-07-01 | E5: 2022-06-30 | F5: Calculated | G5: {Cost}*{Measure:Quantity} | H5: 0 | I5: Calculated | J5: 2000.00*{Measure:Quantity} | K5: 2000 | L5: 2021-07-01 | M5: 2022-06-30 | N5: Calculated | O5: if({Primary heating type}=6,5379,-2744)+if({Primary heating type}=0,186,0) | U5: if({Primary heating type}=6,1.053,-0.623) | V5: 0.065 | W5: 10*if({Primary heating type}=1,1,if({Primary heating type}=0,0,0))*31.72 | X5: if({Primary heating type}=2,1,if({Primary heating type}=0,0.06,0))*31.72 | Y5: if({Primary heating type}=3,1,if({Primary heating type}=0,0.79,0))*31.72 | Z5: if({Primary heating type}=4,1,if({Primary heating type}=0,0.06,0))*31.72 | AA5: if({Primary heating type}=5,1,if({Primary heating type}=0,0.07,0))*31.72 | AB5: 0 | AC5: 2019-07-01 | AD5: 2022-06-30 | AE5: 18 | AF5: 1 | AG5: 1 | AH5: 0.373 | AI5: 0.528 | AJ5: 0.053 | AK5: 0.046 | AL5: 1 | AM5: 1 | AN5: 1 | AO5: 0 | AP5: 0 | AR5: =DU5 -> {Cost} | AS5: 2500 | AT5: =DV5 -> {Measure:Quantity} | AU5: 1 | AV5: =DW5 -> {Primary heating type} | AW5: 0 | AX5: =DX5 ->  | AZ5: =DY5 ->  | BB5: =DZ5 ->  | BD5: =EA5 ->  | BF5: =EB5 ->  | BH5: =EC5 ->  | BJ5: =ED5 ->  | BL5: =IF(AW5=6,5379,-2744)+IF(AW5=0,186,0) -> -2558 | BM5: 0 | BN5: 0 | BO5: 0 | BP5: 0 | BQ5: 0 | BR5: =IF(AW5=6,1.053,-0.623) -> -0.623 | BS5: =0.065 -> 0.065 | BT5: =10*IF(AW5=1,1,IF(AW5=0,0,0))*31.72 -> 0 | BU5: =IF(AW5=2,1,IF(AW5=0,0.06,0))*31.72 -> 1.9032 | BV5: =IF(AW5=3,1,IF(AW5=0,0.79,0))*31.72 -> 25.0588 | BW5: =IF(AW5=4,1,IF(AW5=0,0.06,0))*31.72 -> 1.9032 | BX5: =IF(AW5=5,1,IF(AW5=0,0.07,0))*31.72 -> 2.2204 | BY5: =0 -> 0 | CA5: Res | CB5: Default DR | CC5: =Benefits(BL5,BR5,BS5,BT5,BU5,BV5,BW5,BX5,BY5,BZ5,AE5,AH5,AI5,AJ5,AK5,AL5,AM5,AN5,AO5,AP5,CA5,CB5) -> -3960.677368 | CD5: -2566.108232 | CE5: 0 | CF5: 12102.4832 | CG5: 1075.534035 | CH5: 1291.247228 | CI5: 698.6568675 | CJ5: 0 | CK5: 0 | CL5: =SUMPRODUCT(CC5:CK5,--(CC5:CK5>0)) -> 15167.92133 | CM5: =-SUMPRODUCT(CC5:CK5,--(CC5:CK5<0)) -> 6526.7856 | CO5: =AS5*AU5 -> 2500 | CR5: =CM5+CO5 -> 9026.7856 | CS5: =IF(NetOrGross="Net",(1-AO5+AP5),1) -> 1 | CT5: =(SUMPRODUCT(CC5:CJ5,--(CC5:CJ5>0))+CN5)*CS5/((-SUMPRODUCT(CC5:CJ5,--(CC5:CJ5<0))+MAX(CO5,CV5)+CP5+CQ5)*CS5+IF(FRIncentives="Yes",CV5*(1-CS5),0)) -> 1.680323651 | CU5: 1 | CV5: =2000*AU5 -> 2000 | CX5: Electric | CY5: y | DA5: =IF(F5="Manual Entry","Manual",IF(G5="",0,"X="&SUBSTITUTE(SUBSTITUTE(SUBSTITUTE(SUBSTITUTE(SUBSTITUTE(SUBSTITUTE(SUBSTITUTE(SUBSTITUTE(SUBSTITUTE(SUBSTITUTE(SUBSTITUTE(SUBSTITUTE(G5,$ED5,$ED$2&ROW($ED5)),$EC5,$EC$2&ROW($EC5)),$EB5,$EB$2&ROW($EB5)),$EA5,$EA$2&ROW($EA5)),$DZ5,$DZ$2&ROW($DZ5)),$DY5,$DY$2&ROW($DY5)),$DX5,$DX$2&ROW($DX5)),$DW5,$DW$2&ROW($DW5)),$DV5,$DV$2&ROW($DV5)),$DU5,$DU$2&ROW($DU5)),$DT5,$DT$2&ROW($DT5)),$DS5,$DS$2&ROW($DS5)))) -> X=AS5*AU5 | DB5: =IF(I5="Manual Entry","Manual",IF(J5="",0,"X="&SUBSTITUTE(SUBSTITUTE(SUBSTITUTE(SUBSTITUTE(SUBSTITUTE(SUBSTITUTE(SUBSTITUTE(SUBSTITUTE(SUBSTITUTE(SUBSTITUTE(SUBSTITUTE(SUBSTITUTE(J5,$ED5,$ED$2&ROW($ED5)),$EC5,$EC$2&ROW($EC5)),$EB5,$EB$2&ROW($EB5)),$EA5,$EA$2&ROW($EA5)),$DZ5,$DZ$2&ROW($DZ5)),$DY5,$DY$2&ROW($DY5)),$DX5,$DX$2&ROW($DX5)),$DW5,$DW$2&ROW($DW5)),$DV5,$DV$2&ROW($DV5)),$DU5,$DU$2&ROW($DU5)),$DT5,$DT$2&ROW($DT5)),$DS5,$DS$2&ROW($DS5)))) -> X=2000.00*AU5 | DC5: X=if(AW5=6,5379,-2744)+if(AW5=0,186,0) | DD5: 0 | DE5: 0 | DF5: 0 | DG5: 0 | DH5: 0 | DI5: X=if(AW5=6,1.053,-0.623) | DJ5: X=0.065 | DK5: X=10*if(AW5=1,1,if(AW5=0,0,0))*31.72 | DL5: X=if(AW5=2,1,if(AW5=0,0.06,0))*31.72 | DM5: X=if(AW5=3,1,if(AW5=0,0.79,0))*31.72 | DN5: X=if(AW5=4,1,if(AW5=0,0.06,0))*31.72 | DO5: X=if(AW5=5,1,if(AW5=0,0.07,0))*31.72 | DP5: X=0 | DS5: {Factor:WinterCF} | DT5: {Factor:SummerCF} | DU5: =IFERROR(INDEX($EG5:$IV5,MATCH(0,COUNTIF($DR5:DT5,$EG5:$IV5),0)),"") -> {Cost} | DV5: =IFERROR(INDEX($EG5:$IV5,MATCH(0,COUNTIF($DR5:DU5,$EG5:$IV5),0)),"") -> {Measure:Quantity} | DW5: =IFERROR(INDEX($EG5:$IV5,MATCH(0,COUNTIF($DR5:DV5,$EG5:$IV5),0)),"") -> {Primary heating type} | DX5: =IFERROR(INDEX($EG5:$IV5,MATCH(0,COUNTIF($DR5:DW5,$EG5:$IV5),0)),"") ->  | DY5: =IFERROR(INDEX($EG5:$IV5,MATCH(0,COUNTIF($DR5:DX5,$EG5:$IV5),0)),"") ->  | DZ5: =IFERROR(INDEX($EG5:$IV5,MATCH(0,COUNTIF($DR5:DY5,$EG5:$IV5),0)),"") ->  | EA5: =IFERROR(INDEX($EG5:$IV5,MATCH(0,COUNTIF($DR5:DZ5,$EG5:$IV5),0)),"") ->  | EB5: =IFERROR(INDEX($EG5:$IV5,MATCH(0,COUNTIF($DR5:EA5,$EG5:$IV5),0)),"") ->  | EC5: =IFERROR(INDEX($EG5:$IV5,MATCH(0,COUNTIF($DR5:EB5,$EG5:$IV5),0)),"") ->  | ED5: =IFERROR(INDEX($EG5:$IV5,MATCH(0,COUNTIF($DR5:EC5,$EG5:$IV5),0)),"") ->  | EG5: {Cost} | EH5: {Measure:Quantity} | EQ5: {Measure:Quantity} | FA5: =IFERROR(MID($J5,FIND(CHAR(160),SUBSTITUTE($J5,"{",CHAR(160),FA$1)),FIND(CHAR(160),SUBSTITUTE($J5,"}",CHAR(160),FA$1))-FIND(CHAR(160),SUBSTITUTE($J5,"{",CHAR(160),FA$1))+1),"") -> {Measure:Quantity} | FC5: =IFERROR(MID($O5,FIND(CHAR(160),SUBSTITUTE($O5,"{",CHAR(160),FC$1)),FIND(CHAR(160),SUBSTITUTE($O5,"}",CHAR(160),FC$1))-FIND(CHAR(160),SUBSTITUTE($O5,"{",CHAR(160),FC$1))+1),"") ->  | FK5: {Primary heating type} | FL5: {Primary heating type} | FM5: =IFERROR(MID($R5,FIND(CHAR(160),SUBSTITUTE($R5,"{",CHAR(160),FM$1)),FIND(CHAR(160),SUBSTITUTE($R5,"}",CHAR(160),FM$1))-FIND(CHAR(160),SUBSTITUTE($R5,"{",CHAR(160),FM$1))+1),"") ->  | FW5: =IFERROR(MID($U5,FIND(CHAR(160),SUBSTITUTE($U5,"{",CHAR(160),FW$1)),FIND(CHAR(160),SUBSTITUTE($U5,"}",CHAR(160),FW$1))-FIND(CHAR(160),SUBSTITUTE($U5,"{",CHAR(160),FW$1))+1),"") ->  | GE5: {Primary heating type} | GG5: =IFERROR(MID($V5,FIND(CHAR(160),SUBSTITUTE($V5,"{",CHAR(160),GG$1)),FIND(CHAR(160),SUBSTITUTE($V5,"}",CHAR(160),GG$1))-FIND(CHAR(160),SUBSTITUTE($V5,"{",CHAR(160),GG$1))+1),"") ->  | GQ5: =IFERROR(MID($W5,FIND(CHAR(160),SUBSTITUTE($W5,"{",CHAR(160),GQ$1)),FIND(CHAR(160),SUBSTITUTE($W5,"}",CHAR(160),GQ$1))-FIND(CHAR(160),SUBSTITUTE($W5,"{",CHAR(160),GQ$1))+1),"") ->  | GY5: {Primary heating type} | GZ5: {Primary heating type} | HA5: =IFERROR(MID($X5,FIND(CHAR(160),SUBSTITUTE($X5,"{",CHAR(160),HA$1)),FIND(CHAR(160),SUBSTITUTE($X5,"}",CHAR(160),HA$1))-FIND(CHAR(160),SUBSTITUTE($X5,"{",CHAR(160),HA$1))+1),"") ->  | HI5: {Primary heating type} | HJ5: {Primary heating type} | HK5: =IFERROR(MID($Y5,FIND(CHAR(160),SUBSTITUTE($Y5,"{",CHAR(160),HK$1)),FIND(CHAR(160),SUBSTITUTE($Y5,"}",CHAR(160),HK$1))-FIND(CHAR(160),SUBSTITUTE($Y5,"{",CHAR(160),HK$1))+1),"") ->  | HS5: {Primary heating type} | HT5: {Primary heating type} | HU5: =IFERROR(MID($Z5,FIND(CHAR(160),SUBSTITUTE($Z5,"{",CHAR(160),HU$1)),FIND(CHAR(160),SUBSTITUTE($Z5,"}",CHAR(160),HU$1))-FIND(CHAR(160),SUBSTITUTE($Z5,"{",CHAR(160),HU$1))+1),"") ->  | IC5: {Primary heating type} | ID5: {Primary heating type} | IE5: =IFERROR(MID($AA5,FIND(CHAR(160),SUBSTITUTE($AA5,"{",CHAR(160),IE$1)),FIND(CHAR(160),SUBSTITUTE($AA5,"}",CHAR(160),IE$1))-FIND(CHAR(160),SUBSTITUTE($AA5,"{",CHAR(160),IE$1))+1),"") ->  | IM5: {Primary heating type} | IN5: {Primary heating type} | IO5: =IFERROR(MID($AB5,FIND(CHAR(160),SUBSTITUTE($AB5,"{",CHAR(160),IO$1)),FIND(CHAR(160),SUBSTITUTE($AB5,"}",CHAR(160),IO$1))-FIND(CHAR(160),SUBSTITUTE($AB5,"{",CHAR(160),IO$1))+1),"") ->  | IZ5: =10-COUNTIF(DU5:ED5,"") -> 3
A6: Affordable Heat Initiative - Heat Pumps | B6: MiniSplit HP LIHEAP | C6: LCHL | D6: 2021-07-01 | E6: 2022-06-30 | F6: Calculated | G6: {Cost}*{Measure:Quantity} | H6: 0 | I6: Calculated | J6: 2000.00*{Measure:Quantity} | K6: 2000 | L6: 2021-07-01 | M6: 2022-06-30 | N6: Calculated | O6: if({Primary heating type}=6,5379,-2744)+if({Primary heating type}=0,186,0) | U6: if({Primary heating type}=6,1.053,-0.623) | V6: 0.065 | W6: 10*if({Primary heating type}=1,1,if({Primary heating type}=0,0,0))*31.72 | X6: if({Primary heating type}=2,1,if({Primary heating type}=0,0.06,0))*31.72 | Y6: if({Primary heating type}=3,1,if({Primary heating type}=0,0.79,0))*31.72 | Z6: if({Primary heating type}=4,1,if({Primary heating type}=0,0.06,0))*31.72 | AA6: if({Primary heating type}=5,1,if({Primary heating type}=0,0.07,0))*31.72 | AB6: 0 | AC6: 2019-07-01 | AD6: 2022-06-30 | AE6: 18 | AF6: 1 | AG6: 1 | AH6: 0.373 | AI6: 0.528 | AJ6: 0.053 | AK6: 0.046 | AL6: 1 | AM6: 1 | AN6: 1 | AO6: 0 | AP6: 0 | AR6: =DU6 -> {Cost} | AS6: 2500 | AT6: =DV6 -> {Measure:Quantity} | AU6: 1 | AV6: =DW6 -> {Primary heating type} | AW6: 0 | AX6: =DX6 ->  | AZ6: =DY6 ->  | BB6: =DZ6 ->  | BD6: =EA6 ->  | BF6: =EB6 ->  | BH6: =EC6 ->  | BJ6: =ED6 ->  | BL6: =IF(AW6=6,5379,-2744)+IF(AW6=0,186,0) -> -2558 | BM6: 0 | BN6: 0 | BO6: 0 | BP6: 0 | BQ6: 0 | BR6: =IF(AW6=6,1.053,-0.623) -> -0.623 | BS6: =0.065 -> 0.065 | BT6: =10*IF(AW6=1,1,IF(AW6=0,0,0))*31.72 -> 0 | BU6: =IF(AW6=2,1,IF(AW6=0,0.06,0))*31.72 -> 1.9032 | BV6: =IF(AW6=3,1,IF(AW6=0,0.79,0))*31.72 -> 25.0588 | BW6: =IF(AW6=4,1,IF(AW6=0,0.06,0))*31.72 -> 1.9032 | BX6: =IF(AW6=5,1,IF(AW6=0,0.07,0))*31.72 -> 2.2204 | BY6: =0 -> 0 | CA6: Res | CB6: Default DR | CC6: =Benefits(BL6,BR6,BS6,BT6,BU6,BV6,BW6,BX6,BY6,BZ6,AE6,AH6,AI6,AJ6,AK6,AL6,AM6,AN6,AO6,AP6,CA6,CB6) -> -3960.677368 | CD6: -2566.108232 | CE6: 0 | CF6: 12102.4832 | CG6: 1075.534035 | CH6: 1291.247228 | CI6: 698.6568675 | CJ6: 0 | CK6: 0 | CL6: =SUMPRODUCT(CC6:CK6,--(CC6:CK6>0)) -> 15167.92133 | CM6: =-SUMPRODUCT(CC6:CK6,--(CC6:CK6<0)) -> 6526.7856 | CO6: =AS6*AU6 -> 2500 | CR6: =CM6+CO6 -> 9026.7856 | CS6: =IF(NetOrGross="Net",(1-AO6+AP6),1) -> 1 | CT6: =(SUMPRODUCT(CC6:CJ6,--(CC6:CJ6>0))+CN6)*CS6/((-SUMPRODUCT(CC6:CJ6,--(CC6:CJ6<0))+MAX(CO6,CV6)+CP6+CQ6)*CS6+IF(FRIncentives="Yes",CV6*(1-CS6),0)) -> 1.680323651 | CU6: 1 | CV6: =2000*AU6 -> 2000 | CX6: Electric | CY6: y | DA6: =IF(F6="Manual Entry","Manual",IF(G6="",0,"X="&SUBSTITUTE(SUBSTITUTE(SUBSTITUTE(SUBSTITUTE(SUBSTITUTE(SUBSTITUTE(SUBSTITUTE(SUBSTITUTE(SUBSTITUTE(SUBSTITUTE(SUBSTITUTE(SUBSTITUTE(G6,$ED6,$ED$2&ROW($ED6)),$EC6,$EC$2&ROW($EC6)),$EB6,$EB$2&ROW($EB6)),$EA6,$EA$2&ROW($EA6)),$DZ6,$DZ$2&ROW($DZ6)),$DY6,$DY$2&ROW($DY6)),$DX6,$DX$2&ROW($DX6)),$DW6,$DW$2&ROW($DW6)),$DV6,$DV$2&ROW($DV6)),$DU6,$DU$2&ROW($DU6)),$DT6,$DT$2&ROW($DT6)),$DS6,$DS$2&ROW($DS6)))) -> X=AS6*AU6 | DB6: =IF(I6="Manual Entry","Manual",IF(J6="",0,"X="&SUBSTITUTE(SUBSTITUTE(SUBSTITUTE(SUBSTITUTE(SUBSTITUTE(SUBSTITUTE(SUBSTITUTE(SUBSTITUTE(SUBSTITUTE(SUBSTITUTE(SUBSTITUTE(SUBSTITUTE(J6,$ED6,$ED$2&ROW($ED6)),$EC6,$EC$2&ROW($EC6)),$EB6,$EB$2&ROW($EB6)),$EA6,$EA$2&ROW($EA6)),$DZ6,$DZ$2&ROW($DZ6)),$DY6,$DY$2&ROW($DY6)),$DX6,$DX$2&ROW($DX6)),$DW6,$DW$2&ROW($DW6)),$DV6,$DV$2&ROW($DV6)),$DU6,$DU$2&ROW($DU6)),$DT6,$DT$2&ROW($DT6)),$DS6,$DS$2&ROW($DS6)))) -> X=2000.00*AU6 | DC6: X=if(AW6=6,5379,-2744)+if(AW6=0,186,0) | DD6: 0 | DE6: 0 | DF6: 0 | DG6: 0 | DH6: 0 | DI6: X=if(AW6=6,1.053,-0.623) | DJ6: X=0.065 | DK6: X=10*if(AW6=1,1,if(AW6=0,0,0))*31.72 | DL6: X=if(AW6=2,1,if(AW6=0,0.06,0))*31.72 | DM6: X=if(AW6=3,1,if(AW6=0,0.79,0))*31.72 | DN6: X=if(AW6=4,1,if(AW6=0,0.06,0))*31.72 | DO6: X=if(AW6=5,1,if(AW6=0,0.07,0))*31.72 | DP6: X=0 | DS6: {Factor:WinterCF} | DT6: {Factor:SummerCF} | DU6: =IFERROR(INDEX($EG6:$IV6,MATCH(0,COUNTIF($DR6:DT6,$EG6:$IV6),0)),"") -> {Cost} | DV6: =IFERROR(INDEX($EG6:$IV6,MATCH(0,COUNTIF($DR6:DU6,$EG6:$IV6),0)),"") -> {Measure:Quantity} | DW6: =IFERROR(INDEX($EG6:$IV6,MATCH(0,COUNTIF($DR6:DV6,$EG6:$IV6),0)),"") -> {Primary heating type} | DX6: =IFERROR(INDEX($EG6:$IV6,MATCH(0,COUNTIF($DR6:DW6,$EG6:$IV6),0)),"") ->  | DY6: =IFERROR(INDEX($EG6:$IV6,MATCH(0,COUNTIF($DR6:DX6,$EG6:$IV6),0)),"") ->  | DZ6: =IFERROR(INDEX($EG6:$IV6,MATCH(0,COUNTIF($DR6:DY6,$EG6:$IV6),0)),"") ->  | EA6: =IFERROR(INDEX($EG6:$IV6,MATCH(0,COUNTIF($DR6:DZ6,$EG6:$IV6),0)),"") ->  | EB6: =IFERROR(INDEX($EG6:$IV6,MATCH(0,COUNTIF($DR6:EA6,$EG6:$IV6),0)),"") ->  | EC6: =IFERROR(INDEX($EG6:$IV6,MATCH(0,COUNTIF($DR6:EB6,$EG6:$IV6),0)),"") ->  | ED6: =IFERROR(INDEX($EG6:$IV6,MATCH(0,COUNTIF($DR6:EC6,$EG6:$IV6),0)),"") ->  | EG6: {Cost} | EH6: {Measure:Quantity} | EQ6: {Measure:Quantity} | FA6: {Measure:Quantity} | FK6: {Primary heating type} | FL6: {Primary heating type} | GE6: {Primary heating type} | GY6: {Primary heating type} | GZ6: {Primary heating type} | HI6: {Primary heating type} | HJ6: {Primary heating type} | HS6: {Primary heating type} | HT6: {Primary heating type} | IC6: {Primary heating type} | ID6: {Primary heating type} | IM6: {Primary heating type} | IN6: {Primary heating type} | IZ6: =10-COUNTIF(DU6:ED6,"") -> 3
A7: Affordable Heat Initiative - NECEC Funds | B7: MiniSplit HP Property Assessed | C7: LCHA | D7: 2021-07-01 | E7: 2022-06-30 | F7: Calculated | G7: {Cost}*{Measure:Quantity} | H7: 0 | I7: Calculated | J7: if({Primary heating type}=2,2000,0)*{Measure:Quantity} | K7: 2000 | L7: 2020-07-01 | M7: 2022-06-30 | N7: Calculated | O7: if({Primary heating type}=6,5379,-2744)+if({Primary heating type}=0,186,0) | U7: if({Primary heating type}=6,1.053,-0.623) | V7: 0.065 | W7: 10*if({Primary heating type}=1,1,if({Primary heating type}=0,0,0))*31.72 | X7: if({Primary heating type}=2,1,if({Primary heating type}=0,0.06,0))*31.72 | Y7: if({Primary heating type}=3,1,if({Primary heating type}=0,0.79,0))*31.72 | Z7: if({Primary heating type}=4,1,if({Primary heating type}=0,0.06,0))*31.72 | AA7: if({Primary heating type}=5,1,if({Primary heating type}=0,0.07,0))*31.72 | AB7: 0 | AC7: 2019-07-01 | AD7: 2022-06-30 | AE7: 18 | AF7: 1 | AG7: 1 | AH7: 0.373 | AI7: 0.528 | AJ7: 0.053 | AK7: 0.046 | AL7: 1 | AM7: 1 | AN7: 1 | AO7: 0 | AP7: 0 | AR7: =DU7 -> {Cost} | AS7: 2500 | AT7: =DV7 -> {Measure:Quantity} | AU7: 1 | AV7: =DW7 -> {Primary heating type} | AW7: 2 | AX7: =DX7 ->  | AZ7: =DY7 ->  | BB7: =DZ7 ->  | BD7: =EA7 ->  | BF7: =EB7 ->  | BH7: =EC7 ->  | BJ7: =ED7 ->  | BL7: =IF(AW7=6,5379,-2744)+IF(AW7=0,186,0) -> -2744 | BM7: 0 | BN7: 0 | BO7: 0 | BP7: 0 | BQ7: 0 | BR7: =IF(AW7=6,1.053,-0.623) -> -0.623 | BS7: =0.065 -> 0.065 | BT7: =10*IF(AW7=1,1,IF(AW7=0,0,0))*31.72 -> 0 | BU7: =IF(AW7=2,1,IF(AW7=0,0.06,0))*31.72 -> 31.72 | BV7: =IF(AW7=3,1,IF(AW7=0,0.79,0))*31.72 -> 0 | BW7: =IF(AW7=4,1,IF(AW7=0,0.06,0))*31.72 -> 0 | BX7: =IF(AW7=5,1,IF(AW7=0,0.07,0))*31.72 -> 0 | BY7: =0 -> 0 | CA7: Res | CB7: Default DR | CC7: =Benefits(BL7,BR7,BS7,BT7,BU7,BV7,BW7,BX7,BY7,BZ7,AE7,AH7,AI7,AJ7,AK7,AL7,AM7,AN7,AO7,AP7,CA7,CB7) -> -4248.670327 | CD7: -2566.108232 | CE7: 0 | CF7: 0 | CG7: 0 | CH7: 21520.78713 | CI7: 0 | CJ7: 0 | CK7: 0 | CL7: =SUMPRODUCT(CC7:CK7,--(CC7:CK7>0)) -> 21520.78713 | CM7: =-SUMPRODUCT(CC7:CK7,--(CC7:CK7<0)) -> 6814.778559 | CO7: =AS7*AU7 -> 2500 | CR7: =CM7+CO7 -> 9314.778559 | CS7: =IF(NetOrGross="Net",(1-AO7+AP7),1) -> 1 | CT7: =(SUMPRODUCT(CC7:CJ7,--(CC7:CJ7>0))+CN7)*CS7/((-SUMPRODUCT(CC7:CJ7,--(CC7:CJ7<0))+MAX(CO7,CV7)+CP7+CQ7)*CS7+IF(FRIncentives="Yes",CV7*(1-CS7),0)) -> 2.310391706 | CU7: 1 | CV7: =IF(AW7=2,2000,0)*AU7 -> 2000 | CX7: Electric | CY7: y | DA7: =IF(F7="Manual Entry","Manual",IF(G7="",0,"X="&SUBSTITUTE(SUBSTITUTE(SUBSTITUTE(SUBSTITUTE(SUBSTITUTE(SUBSTITUTE(SUBSTITUTE(SUBSTITUTE(SUBSTITUTE(SUBSTITUTE(SUBSTITUTE(SUBSTITUTE(G7,$ED7,$ED$2&ROW($ED7)),$EC7,$EC$2&ROW($EC7)),$EB7,$EB$2&ROW($EB7)),$EA7,$EA$2&ROW($EA7)),$DZ7,$DZ$2&ROW($DZ7)),$DY7,$DY$2&ROW($DY7)),$DX7,$DX$2&ROW($DX7)),$DW7,$DW$2&ROW($DW7)),$DV7,$DV$2&ROW($DV7)),$DU7,$DU$2&ROW($DU7)),$DT7,$DT$2&ROW($DT7)),$DS7,$DS$2&ROW($DS7)))) -> X=AS7*AU7 | DB7: =IF(I7="Manual Entry","Manual",IF(J7="",0,"X="&SUBSTITUTE(SUBSTITUTE(SUBSTITUTE(SUBSTITUTE(SUBSTITUTE(SUBSTITUTE(SUBSTITUTE(SUBSTITUTE(SUBSTITUTE(SUBSTITUTE(SUBSTITUTE(SUBSTITUTE(J7,$ED7,$ED$2&ROW($ED7)),$EC7,$EC$2&ROW($EC7)),$EB7,$EB$2&ROW($EB7)),$EA7,$EA$2&ROW($EA7)),$DZ7,$DZ$2&ROW($DZ7)),$DY7,$DY$2&ROW($DY7)),$DX7,$DX$2&ROW($DX7)),$DW7,$DW$2&ROW($DW7)),$DV7,$DV$2&ROW($DV7)),$DU7,$DU$2&ROW($DU7)),$DT7,$DT$2&ROW($DT7)),$DS7,$DS$2&ROW($DS7)))) -> X=if(AW7=2,2000,0)*AU7 | DC7: X=if(AW7=6,5379,-2744)+if(AW7=0,186,0) | DD7: 0 | DE7: 0 | DF7: 0 | DG7: 0 | DH7: 0 | DI7: X=if(AW7=6,1.053,-0.623) | DJ7: X=0.065 | DK7: X=10*if(AW7=1,1,if(AW7=0,0,0))*31.72 | DL7: X=if(AW7=2,1,if(AW7=0,0.06,0))*31.72 | DM7: X=if(AW7=3,1,if(AW7=0,0.79,0))*31.72 | DN7: X=if(AW7=4,1,if(AW7=0,0.06,0))*31.72 | DO7: X=if(AW7=5,1,if(AW7=0,0.07,0))*31.72 | DP7: X=0 | DS7: {Factor:WinterCF} | DT7: {Factor:SummerCF} | DU7: =IFERROR(INDEX($EG7:$IV7,MATCH(0,COUNTIF($DR7:DT7,$EG7:$IV7),0)),"") -> {Cost} | DV7: =IFERROR(INDEX($EG7:$IV7,MATCH(0,COUNTIF($DR7:DU7,$EG7:$IV7),0)),"") -> {Measure:Quantity} | DW7: =IFERROR(INDEX($EG7:$IV7,MATCH(0,COUNTIF($DR7:DV7,$EG7:$IV7),0)),"") -> {Primary heating type} | DX7: =IFERROR(INDEX($EG7:$IV7,MATCH(0,COUNTIF($DR7:DW7,$EG7:$IV7),0)),"") ->  | DY7: =IFERROR(INDEX($EG7:$IV7,MATCH(0,COUNTIF($DR7:DX7,$EG7:$IV7),0)),"") ->  | DZ7: =IFERROR(INDEX($EG7:$IV7,MATCH(0,COUNTIF($DR7:DY7,$EG7:$IV7),0)),"") ->  | EA7: =IFERROR(INDEX($EG7:$IV7,MATCH(0,COUNTIF($DR7:DZ7,$EG7:$IV7),0)),"") ->  | EB7: =IFERROR(INDEX($EG7:$IV7,MATCH(0,COUNTIF($DR7:EA7,$EG7:$IV7),0)),"") ->  | EC7: =IFERROR(INDEX($EG7:$IV7,MATCH(0,COUNTIF($DR7:EB7,$EG7:$IV7),0)),"") ->  | ED7: =IFERROR(INDEX($EG7:$IV7,MATCH(0,COUNTIF($DR7:EC7,$EG7:$IV7),0)),"") ->  | EG7: {Cost} | EH7: {Measure:Quantity} | EQ7: {Primary heating type} | ER7: {Measure:Quantity} | FA7: {Primary heating type} | FB7: {Measure:Quantity} | FK7: {Primary heating type} | FL7: {Primary heating type} | GE7: {Primary heating type} | GY7: {Primary heating type} | GZ7: {Primary heating type} | HI7: {Primary heating type} | HJ7: {Primary heating type} | HS7: {Primary heating type} | HT7: {Primary heating type} | IC7: {Primary heating type} | ID7: {Primary heating type} | IM7: {Primary heating type} | IN7: {Primary heating type} | IZ7: =10-COUNTIF(DU7:ED7,"") -> 3
A8: Affordable Heat Initiative - NECEC Funds | B8: MiniSplit HP LIHEAP | C8: LCHL | D8: 2021-07-01 | E8: 2022-06-30 | F8: Calculated | G8: {Cost}*{Measure:Quantity} | H8: 0 | I8: Calculated | J8: if({Primary heating type}=2,2000,0)*{Measure:Quantity} | K8: 2000 | L8: 2020-07-01 | M8: 2022-06-30 | N8: Calculated | O8: if({Primary heating type}=6,5379,-2744)+if({Primary heating type}=0,186,0) | U8: if({Primary heating type}=6,1.053,-0.623) | V8: 0.065 | W8: 10*if({Primary heating type}=1,1,if({Primary heating type}=0,0,0))*31.72 | X8: if({Primary heating type}=2,1,if({Primary heating type}=0,0.06,0))*31.72 | Y8: if({Primary heating type}=3,1,if({Primary heating type}=0,0.79,0))*31.72 | Z8: if({Primary heating type}=4,1,if({Primary heating type}=0,0.06,0))*31.72 | AA8: if({Primary heating type}=5,1,if({Primary heating type}=0,0.07,0))*31.72 | AB8: 0 | AC8: 2019-07-01 | AD8: 2022-06-30 | AE8: 18 | AF8: 1 | AG8: 1 | AH8: 0.373 | AI8: 0.528 | AJ8: 0.053 | AK8: 0.046 | AL8: 1 | AM8: 1 | AN8: 1 | AO8: 0 | AP8: 0 | AR8: {Cost} | AS8: 2500 | AT8: {Primary heating type} | AU8: 2 | BL8: =IF(AU456=6,5379,-2744) -> -2744 | BM8: 0 | BN8: 0 | BO8: 0 | BP8: 0 | BQ8: 0 | BR8: =IF(AU456=6,1.053,-0.623) -> -0.623 | BS8: =0.065 -> 0.065 | BT8: =10*IF(AU456=1,1,IF(AU456=0,0,0))*31.72 -> 0 | BU8: =IF(AU456=2,1,IF(AU456=0,0.185,0))*31.72 -> 5.8682 | BV8: =IF(AU456=3,1,IF(AU456=0,0.746,0))*31.72 -> 23.66312 | BW8: =IF(AU456=4,1,IF(AU456=0,0.012,0))*31.72 -> 0.38064 | BX8: =IF(AU456=5,1,IF(AU456=0,0.057,0))*31.72 -> 1.80804 | BY8: =0 -> 0 | CA8: Res | CB8: Default DR | CC8: =Benefits(BL8,BR8,BS8,BT8,BU8,BV8,BW8,BX8,BY8,BZ8,AE8,AH8,AI8,AJ8,AK8,AL8,AM8,AN8,AO8,AP8,CA8,CB8) -> -4248.670327 | CD8: -2566.108232 | CE8: 0 | CF8: 11428.42085 | CG8: 215.106807 | CH8: 3981.345618 | CI8: 568.9063064 | CJ8: 0 | CK8: 0 | CL8: =SUMPRODUCT(CC8:CK8,--(CC8:CK8>0)) -> 16193.77958 | CM8: =-SUMPRODUCT(CC8:CK8,--(CC8:CK8<0)) -> 6814.778559 | CO8: =AS232 -> 1 | CR8: 6090.924039 | CS8: 1 | CT8: 2.506169517 | CU8: 1 | CV8: =2000 -> 2000 | CX8: Electric | CY8: y | DA8: X=AS456 | DB8: X=2000 | DC8: X=if(AU456=6,5379,-2744) | DD8: 0 | DE8: 0 | DF8: 0 | DG8: 0 | DH8: 0 | DI8: X=if(AU456=6,1.053,-0.623) | DJ8: X=0.065 | DK8: X=10*if(AU456=1,1,if(AU456=0,0,0))*31.72 | DL8: X=if(AU456=2,1,if(AU456=0,0.185,0))*31.72 | DM8: X=if(AU456=3,1,if(AU456=0,0.746,0))*31.72 | DN8: X=if(AU456=4,1,if(AU456=0,0.012,0))*31.72 | DO8: X=if(AU456=5,1,if(AU456=0,0.057,0))*31.72 | DP8: X=0 | DS8: {Factor:WinterCF} | DT8: {Factor:SummerCF} | DU8: {Cost} | DV8: {Primary heating type} | EG8: {Cost} | FC8: {Primary heating type} | FW8: {Primary heating type} | GQ8: {Primary heating type} | GR8: {Primary heating type} | HA8: {Primary heating type} | HB8: {Primary heating type} | HK8: {Primary heating type} | HL8: {Primary heating type} | HU8: {Primary heating type} | HV8: {Primary heating type} | IE8: {Primary heating type} | IF8: {Primary heating type} | IZ8: 2
A9: Affordable Heat Initiative - Other Fuels | B9: Air Sealing LIHESP | C9: LAA | D9: 2021-07-01 | E9: 2022-06-30 | F9: Calculated | G9: {Cost}*{Measure:Quantity} | H9: 0 | I9: Calculated | J9: $600.00*{Measure:Quantity} | K9: 600 | L9: 2020-07-01 | M9: 2022-06-30 | N9: Calculated | O9: if({Primary heating type}=6,1514,if({Primary heating type}=0,67,10)) | R9: if({Primary heating type}=6,0.026,if({Primary heating type}=0,0.026,0.026)) | U9: if({Primary heating type}=6,0.331,if({Primary heating type}=0,0.013,0)) | V9: if({Primary heating type}=6,0.026,if({Primary heating type}=0,0.026,0.026)) | W9: if({Primary heating type}=1,6.184,if({Primary heating type}=0,0.557,0))*10 | X9: if({Primary heating type}=2,6.184,if({Primary heating type} = 0,0.810,0)) | Y9: if({Primary heating type}=3,6.184,if({Primary heating type} = 0,4.230,0)) | Z9: if({Primary heating type}=4,6.184,if({Primary heating type} = 0,0.087,0)) | AA9: if({Primary heating type}=5,6.184,if({Primary heating type} = 0,0.266,0)) | AB9: 0 | AC9: 2019-07-01 | AD9: 2022-06-30 | AE9: 15 | AF9: 1 | AG9: 1 | AH9: 0 | AI9: 0 | AJ9: 0.666 | AK9: 0.301 | AL9: 1 | AM9: 1 | AN9: 1 | AO9: 0 | AP9: 0 | AR9: =DU9 -> {Cost} | AS9: 622 | AT9: =DV9 -> {Measure:Quantity} | AU9: 1 | AV9: =DW9 -> {Primary heating type} | AW9: 0 | AX9: =DX9 ->  | AZ9: =DY9 ->  | BB9: =DZ9 ->  | BD9: =EA9 ->  | BF9: =EB9 ->  | BH9: =EC9 ->  | BJ9: =ED9 ->  | BL9: =IF(AW9=6,1514,IF(AW9=0,67,10)) -> 67 | BM9: 0 | BN9: 0 | BO9: =IF(AW9=6,0.026,IF(AW9=0,0.026,0.026)) -> 0.026 | BP9: 0 | BQ9: 0 | BR9: =IF(AW9=6,0.331,IF(AW9=0,0.013,0)) -> 0.013 | BS9: =IF(AW9=6,0.026,IF(AW9=0,0.026,0.026)) -> 0.026 | BT9: =IF(AW9=1,6.184,IF(AW9=0,0.557,0))*10 -> 5.57 | BU9: =IF(AW9=2,6.184,IF(AW9 = 0,0.81,0)) -> 0.81 | BV9: =IF(AW9=3,6.184,IF(AW9 = 0,4.23,0)) -> 4.23 | BW9: =IF(AW9=4,6.184,IF(AW9 = 0,0.087,0)) -> 0.087 | BX9: =IF(AW9=5,6.184,IF(AW9 = 0,0.266,0)) -> 0.266 | BY9: =0 -> 0 | CA9: Res | CB9: RGGI DR | CC9: =Benefits(BL9,BR9,BS9,BT9,BU9,BV9,BW9,BX9,BY9,BZ9,AE9,AH9,AI9,AJ9,AK9,AL9,AM9,AN9,AO9,AP9,CA9,CB9) -> 75.92910774 | CD9: 97.70533844 | CE9: 107.592651 | CF9: 1785.828188 | CG9: 42.83474272 | CH9: 478.2296168 | CI9: 71.60318226 | CJ9: 0 | CK9: 0 | CL9: =SUMPRODUCT(CC9:CK9,--(CC9:CK9>0)) -> 2659.722827 | CM9: =-SUMPRODUCT(CC9:CK9,--(CC9:CK9<0)) -> 0 | CO9: =AS9*AU9 -> 622 | CR9: =CM9+CO9 -> 622 | CS9: =IF(NetOrGross="Net",(1-AO9+AP9),1) -> 1 | CT9: =(SUMPRODUCT(CC9:CJ9,--(CC9:CJ9>0))+CN9)*CS9/((-SUMPRODUCT(CC9:CJ9,--(CC9:CJ9<0))+MAX(CO9,CV9)+CP9+CQ9)*CS9+IF(FRIncentives="Yes",CV9*(1-CS9),0)) -> 4.276081715 | CU9: 1 | CV9: =600*AU9 -> 600 | CX9: RGGI | CY9: y | DA9: =IF(F9="Manual Entry","Manual",IF(G9="",0,"X="&SUBSTITUTE(SUBSTITUTE(SUBSTITUTE(SUBSTITUTE(SUBSTITUTE(SUBSTITUTE(SUBSTITUTE(SUBSTITUTE(SUBSTITUTE(SUBSTITUTE(SUBSTITUTE(SUBSTITUTE(G9,$ED9,$ED$2&ROW($ED9)),$EC9,$EC$2&ROW($EC9)),$EB9,$EB$2&ROW($EB9)),$EA9,$EA$2&ROW($EA9)),$DZ9,$DZ$2&ROW($DZ9)),$DY9,$DY$2&ROW($DY9)),$DX9,$DX$2&ROW($DX9)),$DW9,$DW$2&ROW($DW9)),$DV9,$DV$2&ROW($DV9)),$DU9,$DU$2&ROW($DU9)),$DT9,$DT$2&ROW($DT9)),$DS9,$DS$2&ROW($DS9)))) -> X=AS9*AU9 | DB9: =IF(I9="Manual Entry","Manual",IF(J9="",0,"X="&SUBSTITUTE(SUBSTITUTE(SUBSTITUTE(SUBSTITUTE(SUBSTITUTE(SUBSTITUTE(SUBSTITUTE(SUBSTITUTE(SUBSTITUTE(SUBSTITUTE(SUBSTITUTE(SUBSTITUTE(J9,$ED9,$ED$2&ROW($ED9)),$EC9,$EC$2&ROW($EC9)),$EB9,$EB$2&ROW($EB9)),$EA9,$EA$2&ROW($EA9)),$DZ9,$DZ$2&ROW($DZ9)),$DY9,$DY$2&ROW($DY9)),$DX9,$DX$2&ROW($DX9)),$DW9,$DW$2&ROW($DW9)),$DV9,$DV$2&ROW($DV9)),$DU9,$DU$2&ROW($DU9)),$DT9,$DT$2&ROW($DT9)),$DS9,$DS$2&ROW($DS9)))) -> X=$600.00*AU9 | DC9: =IF(O9="",0,"X="&SUBSTITUTE(SUBSTITUTE(SUBSTITUTE(SUBSTITUTE(SUBSTITUTE(SUBSTITUTE(SUBSTITUTE(SUBSTITUTE(SUBSTITUTE(SUBSTITUTE(SUBSTITUTE(SUBSTITUTE(O9,$ED9,$ED$2&ROW($ED9)),$EC9,$EC$2&ROW($EC9)),$EB9,$EB$2&ROW($EB9)),$EA9,$EA$2&ROW($EA9)),$DZ9,$DZ$2&ROW($DZ9)),$DY9,$DY$2&ROW($DY9)),$DX9,$DX$2&ROW($DX9)),$DW9,$DW$2&ROW($DW9)),$DV9,$DV$2&ROW($DV9)),$DU9,$DU$2&ROW($DU9)),$DT9,$DT$2&ROW($DT9)),$DS9,$DS$2&ROW($DS9))) -> X=if(AW9=6,1514,if(AW9=0,67,10)) | DD9: =IF(P9="",0,"X="&SUBSTITUTE(SUBSTITUTE(SUBSTITUTE(SUBSTITUTE(SUBSTITUTE(SUBSTITUTE(SUBSTITUTE(SUBSTITUTE(SUBSTITUTE(SUBSTITUTE(SUBSTITUTE(SUBSTITUTE(P9,$ED9,$ED$2&ROW($ED9)),$EC9,$EC$2&ROW($EC9)),$EB9,$EB$2&ROW($EB9)),$EA9,$EA$2&ROW($EA9)),$DZ9,$DZ$2&ROW($DZ9)),$DY9,$DY$2&ROW($DY9)),$DX9,$DX$2&ROW($DX9)),$DW9,$DW$2&ROW($DW9)),$DV9,$DV$2&ROW($DV9)),$DU9,$DU$2&ROW($DU9)),$DT9,$DT$2&ROW($DT9)),$DS9,$DS$2&ROW($DS9))) -> 0 | DE9: =IF(Q9="",0,"X="&SUBSTITUTE(SUBSTITUTE(SUBSTITUTE(SUBSTITUTE(SUBSTITUTE(SUBSTITUTE(SUBSTITUTE(SUBSTITUTE(SUBSTITUTE(SUBSTITUTE(SUBSTITUTE(SUBSTITUTE(Q9,$ED9,$ED$2&ROW($ED9)),$EC9,$EC$2&ROW($EC9)),$EB9,$EB$2&ROW($EB9)),$EA9,$EA$2&ROW($EA9)),$DZ9,$DZ$2&ROW($DZ9)),$DY9,$DY$2&ROW($DY9)),$DX9,$DX$2&ROW($DX9)),$DW9,$DW$2&ROW($DW9)),$DV9,$DV$2&ROW($DV9)),$DU9,$DU$2&ROW($DU9)),$DT9,$DT$2&ROW($DT9)),$DS9,$DS$2&ROW($DS9))) -> 0 | DF9: =IF(R9="",0,"X="&SUBSTITUTE(SUBSTITUTE(SUBSTITUTE(SUBSTITUTE(SUBSTITUTE(SUBSTITUTE(SUBSTITUTE(SUBSTITUTE(SUBSTITUTE(SUBSTITUTE(SUBSTITUTE(SUBSTITUTE(R9,$ED9,$ED$2&ROW($ED9)),$EC9,$EC$2&ROW($EC9)),$EB9,$EB$2&ROW($EB9)),$EA9,$EA$2&ROW($EA9)),$DZ9,$DZ$2&ROW($DZ9)),$DY9,$DY$2&ROW($DY9)),$DX9,$DX$2&ROW($DX9)),$DW9,$DW$2&ROW($DW9)),$DV9,$DV$2&ROW($DV9)),$DU9,$DU$2&ROW($DU9)),$DT9,$DT$2&ROW($DT9)),$DS9,$DS$2&ROW($DS9))) -> X=if(AW9=6,0.026,if(AW9=0,0.026,0.026)) | DG9: =IF(S9="",0,"X="&SUBSTITUTE(SUBSTITUTE(SUBSTITUTE(SUBSTITUTE(SUBSTITUTE(SUBSTITUTE(SUBSTITUTE(SUBSTITUTE(SUBSTITUTE(SUBSTITUTE(SUBSTITUTE(SUBSTITUTE(S9,$ED9,$ED$2&ROW($ED9)),$EC9,$EC$2&ROW($EC9)),$EB9,$EB$2&ROW($EB9)),$EA9,$EA$2&ROW($EA9)),$DZ9,$DZ$2&ROW($DZ9)),$DY9,$DY$2&ROW($DY9)),$DX9,$DX$2&ROW($DX9)),$DW9,$DW$2&ROW($DW9)),$DV9,$DV$2&ROW($DV9)),$DU9,$DU$2&ROW($DU9)),$DT9,$DT$2&ROW($DT9)),$DS9,$DS$2&ROW($DS9))) -> 0 | DH9: =IF(T9="",0,"X="&SUBSTITUTE(SUBSTITUTE(SUBSTITUTE(SUBSTITUTE(SUBSTITUTE(SUBSTITUTE(SUBSTITUTE(SUBSTITUTE(SUBSTITUTE(SUBSTITUTE(SUBSTITUTE(SUBSTITUTE(T9,$ED9,$ED$2&ROW($ED9)),$EC9,$EC$2&ROW($EC9)),$EB9,$EB$2&ROW($EB9)),$EA9,$EA$2&ROW($EA9)),$DZ9,$DZ$2&ROW($DZ9)),$DY9,$DY$2&ROW($DY9)),$DX9,$DX$2&ROW($DX9)),$DW9,$DW$2&ROW($DW9)),$DV9,$DV$2&ROW($DV9)),$DU9,$DU$2&ROW($DU9)),$DT9,$DT$2&ROW($DT9)),$DS9,$DS$2&ROW($DS9))) -> 0 | DI9: =IF(U9="",0,"X="&SUBSTITUTE(SUBSTITUTE(SUBSTITUTE(SUBSTITUTE(SUBSTITUTE(SUBSTITUTE(SUBSTITUTE(SUBSTITUTE(SUBSTITUTE(SUBSTITUTE(SUBSTITUTE(SUBSTITUTE(U9,$ED9,$ED$2&ROW($ED9)),$EC9,$EC$2&ROW($EC9)),$EB9,$EB$2&ROW($EB9)),$EA9,$EA$2&ROW($EA9)),$DZ9,$DZ$2&ROW($DZ9)),$DY9,$DY$2&ROW($DY9)),$DX9,$DX$2&ROW($DX9)),$DW9,$DW$2&ROW($DW9)),$DV9,$DV$2&ROW($DV9)),$DU9,$DU$2&ROW($DU9)),$DT9,$DT$2&ROW($DT9)),$DS9,$DS$2&ROW($DS9))) -> X=if(AW9=6,0.331,if(AW9=0,0.013,0)) | DJ9: =IF(V9="",0,"X="&SUBSTITUTE(SUBSTITUTE(SUBSTITUTE(SUBSTITUTE(SUBSTITUTE(SUBSTITUTE(SUBSTITUTE(SUBSTITUTE(SUBSTITUTE(SUBSTITUTE(SUBSTITUTE(SUBSTITUTE(V9,$ED9,$ED$2&ROW($ED9)),$EC9,$EC$2&ROW($EC9)),$EB9,$EB$2&ROW($EB9)),$EA9,$EA$2&ROW($EA9)),$DZ9,$DZ$2&ROW($DZ9)),$DY9,$DY$2&ROW($DY9)),$DX9,$DX$2&ROW($DX9)),$DW9,$DW$2&ROW($DW9)),$DV9,$DV$2&ROW($DV9)),$DU9,$DU$2&ROW($DU9)),$DT9,$DT$2&ROW($DT9)),$DS9,$DS$2&ROW($DS9))) -> X=if(AW9=6,0.026,if(AW9=0,0.026,0.026)) | DK9: =IF(W9="",0,"X="&SUBSTITUTE(SUBSTITUTE(SUBSTITUTE(SUBSTITUTE(SUBSTITUTE(SUBSTITUTE(SUBSTITUTE(SUBSTITUTE(SUBSTITUTE(SUBSTITUTE(SUBSTITUTE(SUBSTITUTE(W9,$ED9,$ED$2&ROW($ED9)),$EC9,$EC$2&ROW($EC9)),$EB9,$EB$2&ROW($EB9)),$EA9,$EA$2&ROW($EA9)),$DZ9,$DZ$2&ROW($DZ9)),$DY9,$DY$2&ROW($DY9)),$DX9,$DX$2&ROW($DX9)),$DW9,$DW$2&ROW($DW9)),$DV9,$DV$2&ROW($DV9)),$DU9,$DU$2&ROW($DU9)),$DT9,$DT$2&ROW($DT9)),$DS9,$DS$2&ROW($DS9))) -> X=if(AW9=1,6.184,if(AW9=0,0.557,0))*10 | DL9: =IF(X9="",0,"X="&SUBSTITUTE(SUBSTITUTE(SUBSTITUTE(SUBSTITUTE(SUBSTITUTE(SUBSTITUTE(SUBSTITUTE(SUBSTITUTE(SUBSTITUTE(SUBSTITUTE(SUBSTITUTE(SUBSTITUTE(X9,$ED9,$ED$2&ROW($ED9)),$EC9,$EC$2&ROW($EC9)),$EB9,$EB$2&ROW($EB9)),$EA9,$EA$2&ROW($EA9)),$DZ9,$DZ$2&ROW($DZ9)),$DY9,$DY$2&ROW($DY9)),$DX9,$DX$2&ROW($DX9)),$DW9,$DW$2&ROW($DW9)),$DV9,$DV$2&ROW($DV9)),$DU9,$DU$2&ROW($DU9)),$DT9,$DT$2&ROW($DT9)),$DS9,$DS$2&ROW($DS9))) -> X=if(AW9=2,6.184,if(AW9 = 0,0.810,0)) | DM9: =IF(Y9="",0,"X="&SUBSTITUTE(SUBSTITUTE(SUBSTITUTE(SUBSTITUTE(SUBSTITUTE(SUBSTITUTE(SUBSTITUTE(SUBSTITUTE(SUBSTITUTE(SUBSTITUTE(SUBSTITUTE(SUBSTITUTE(Y9,$ED9,$ED$2&ROW($ED9)),$EC9,$EC$2&ROW($EC9)),$EB9,$EB$2&ROW($EB9)),$EA9,$EA$2&ROW($EA9)),$DZ9,$DZ$2&ROW($DZ9)),$DY9,$DY$2&ROW($DY9)),$DX9,$DX$2&ROW($DX9)),$DW9,$DW$2&ROW($DW9)),$DV9,$DV$2&ROW($DV9)),$DU9,$DU$2&ROW($DU9)),$DT9,$DT$2&ROW($DT9)),$DS9,$DS$2&ROW($DS9))) -> X=if(AW9=3,6.184,if(AW9 = 0,4.230,0)) | DN9: =IF(Z9="",0,"X="&SUBSTITUTE(SUBSTITUTE(SUBSTITUTE(SUBSTITUTE(SUBSTITUTE(SUBSTITUTE(SUBSTITUTE(SUBSTITUTE(SUBSTITUTE(SUBSTITUTE(SUBSTITUTE(SUBSTITUTE(Z9,$ED9,$ED$2&ROW($ED9)),$EC9,$EC$2&ROW($EC9)),$EB9,$EB$2&ROW($EB9)),$EA9,$EA$2&ROW($EA9)),$DZ9,$DZ$2&ROW($DZ9)),$DY9,$DY$2&ROW($DY9)),$DX9,$DX$2&ROW($DX9)),$DW9,$DW$2&ROW($DW9)),$DV9,$DV$2&ROW($DV9)),$DU9,$DU$2&ROW($DU9)),$DT9,$DT$2&ROW($DT9)),$DS9,$DS$2&ROW($DS9))) -> X=if(AW9=4,6.184,if(AW9 = 0,0.087,0)) | DO9: =IF(AA9="",0,"X="&SUBSTITUTE(SUBSTITUTE(SUBSTITUTE(SUBSTITUTE(SUBSTITUTE(SUBSTITUTE(SUBSTITUTE(SUBSTITUTE(SUBSTITUTE(SUBSTITUTE(SUBSTITUTE(SUBSTITUTE(AA9,$ED9,$ED$2&ROW($ED9)),$EC9,$EC$2&ROW($EC9)),$EB9,$EB$2&ROW($EB9)),$EA9,$EA$2&ROW($EA9)),$DZ9,$DZ$2&ROW($DZ9)),$DY9,$DY$2&ROW($DY9)),$DX9,$DX$2&ROW($DX9)),$DW9,$DW$2&ROW($DW9)),$DV9,$DV$2&ROW($DV9)),$DU9,$DU$2&ROW($DU9)),$DT9,$DT$2&ROW($DT9)),$DS9,$DS$2&ROW($DS9))) -> X=if(AW9=5,6.184,if(AW9 = 0,0.266,0)) | DP9: =IF(AB9="",0,"X="&SUBSTITUTE(SUBSTITUTE(SUBSTITUTE(SUBSTITUTE(SUBSTITUTE(SUBSTITUTE(SUBSTITUTE(SUBSTITUTE(SUBSTITUTE(SUBSTITUTE(SUBSTITUTE(SUBSTITUTE(AB9,$ED9,$ED$2&ROW($ED9)),$EC9,$EC$2&ROW($EC9)),$EB9,$EB$2&ROW($EB9)),$EA9,$EA$2&ROW($EA9)),$DZ9,$DZ$2&ROW($DZ9)),$DY9,$DY$2&ROW($DY9)),$DX9,$DX$2&ROW($DX9)),$DW9,$DW$2&ROW($DW9)),$DV9,$DV$2&ROW($DV9)),$DU9,$DU$2&ROW($DU9)),$DT9,$DT$2&ROW($DT9)),$DS9,$DS$2&ROW($DS9))) -> X=0 | DS9: {Factor:WinterCF} | DT9: {Factor:SummerCF} | DU9: =IFERROR(INDEX($EG9:$IV9,MATCH(0,COUNTIF($DR9:DT9,$EG9:$IV9),0)),"") -> {Cost} | DV9: =IFERROR(INDEX($EG9:$IV9,MATCH(0,COUNTIF($DR9:DU9,$EG9:$IV9),0)),"") -> {Measure:Quantity} | DW9: =IFERROR(INDEX($EG9:$IV9,MATCH(0,COUNTIF($DR9:DV9,$EG9:$IV9),0)),"") -> {Primary heating type} | DX9: =IFERROR(INDEX($EG9:$IV9,MATCH(0,COUNTIF($DR9:DW9,$EG9:$IV9),0)),"") ->  | DY9: =IFERROR(INDEX($EG9:$IV9,MATCH(0,COUNTIF($DR9:DX9,$EG9:$IV9),0)),"") ->  | DZ9: =IFERROR(INDEX($EG9:$IV9,MATCH(0,COUNTIF($DR9:DY9,$EG9:$IV9),0)),"") ->  | EA9: =IFERROR(INDEX($EG9:$IV9,MATCH(0,COUNTIF($DR9:DZ9,$EG9:$IV9),0)),"") ->  | EB9: =IFERROR(INDEX($EG9:$IV9,MATCH(0,COUNTIF($DR9:EA9,$EG9:$IV9),0)),"") ->  | EC9: =IFERROR(INDEX($EG9:$IV9,MATCH(0,COUNTIF($DR9:EB9,$EG9:$IV9),0)),"") ->  | ED9: =IFERROR(INDEX($EG9:$IV9,MATCH(0,COUNTIF($DR9:EC9,$EG9:$IV9),0)),"") ->  | EG9: =IFERROR(MID($G9,FIND(CHAR(160),SUBSTITUTE($G9,"{",CHAR(160),EG$1)),FIND(CHAR(160),SUBSTITUTE($G9,"}",CHAR(160),EG$1))-FIND(CHAR(160),SUBSTITUTE($G9,"{",CHAR(160),EG$1))+1),"") -> {Cost} | EH9: {Measure:Quantity} | EQ9: =IFERROR(MID($J9,FIND(CHAR(160),SUBSTITUTE($J9,"{",CHAR(160),EQ$1)),FIND(CHAR(160),SUBSTITUTE($J9,"}",CHAR(160),EQ$1))-FIND(CHAR(160),SUBSTITUTE($J9,"{",CHAR(160),EQ$1))+1),"") -> {Measure:Quantity} | FA9: {Measure:Quantity} | FC9: =IFERROR(MID($O9,FIND(CHAR(160),SUBSTITUTE($O9,"{",CHAR(160),FC$1)),FIND(CHAR(160),SUBSTITUTE($O9,"}",CHAR(160),FC$1))-FIND(CHAR(160),SUBSTITUTE($O9,"{",CHAR(160),FC$1))+1),"") ->  | FK9: {Primary heating type} | FL9: {Primary heating type} | FM9: =IFERROR(MID($R9,FIND(CHAR(160),SUBSTITUTE($R9,"{",CHAR(160),FM$1)),FIND(CHAR(160),SUBSTITUTE($R9,"}",CHAR(160),FM$1))-FIND(CHAR(160),SUBSTITUTE($R9,"{",CHAR(160),FM$1))+1),"") ->  | FU9: {Primary heating type} | FV9: {Primary heating type} | FW9: =IFERROR(MID($U9,FIND(CHAR(160),SUBSTITUTE($U9,"{",CHAR(160),FW$1)),FIND(CHAR(160),SUBSTITUTE($U9,"}",CHAR(160),FW$1))-FIND(CHAR(160),SUBSTITUTE($U9,"{",CHAR(160),FW$1))+1),"") ->  | GE9: {Primary heating type} | GF9: {Primary heating type} | GG9: =IFERROR(MID($V9,FIND(CHAR(160),SUBSTITUTE($V9,"{",CHAR(160),GG$1)),FIND(CHAR(160),SUBSTITUTE($V9,"}",CHAR(160),GG$1))-FIND(CHAR(160),SUBSTITUTE($V9,"{",CHAR(160),GG$1))+1),"") ->  | GO9: {Primary heating type} | GP9: {Primary heating type} | GQ9: =IFERROR(MID($W9,FIND(CHAR(160),SUBSTITUTE($W9,"{",CHAR(160),GQ$1)),FIND(CHAR(160),SUBSTITUTE($W9,"}",CHAR(160),GQ$1))-FIND(CHAR(160),SUBSTITUTE($W9,"{",CHAR(160),GQ$1))+1),"") ->  | GY9: {Primary heating type} | GZ9: {Primary heating type} | HA9: =IFERROR(MID($X9,FIND(CHAR(160),SUBSTITUTE($X9,"{",CHAR(160),HA$1)),FIND(CHAR(160),SUBSTITUTE($X9,"}",CHAR(160),HA$1))-FIND(CHAR(160),SUBSTITUTE($X9,"{",CHAR(160),HA$1))+1),"") ->  | HI9: {Primary heating type} | HJ9: {Primary heating type} | HK9: =IFERROR(MID($Y9,FIND(CHAR(160),SUBSTITUTE($Y9,"{",CHAR(160),HK$1)),FIND(CHAR(160),SUBSTITUTE($Y9,"}",CHAR(160),HK$1))-FIND(CHAR(160),SUBSTITUTE($Y9,"{",CHAR(160),HK$1))+1),"") ->  | HS9: {Primary heating type} | HT9: {Primary heating type} | HU9: =IFERROR(MID($Z9,FIND(CHAR(160),SUBSTITUTE($Z9,"{",CHAR(160),HU$1)),FIND(CHAR(160),SUBSTITUTE($Z9,"}",CHAR(160),HU$1))-FIND(CHAR(160),SUBSTITUTE($Z9,"{",CHAR(160),HU$1))+1),"") ->  | IC9: {Primary heating type} | ID9: {Primary heating type} | IE9: =IFERROR(MID($AA9,FIND(CHAR(160),SUBSTITUTE($AA9,"{",CHAR(160),IE$1)),FIND(CHAR(160),SUBSTITUTE($AA9,"}",CHAR(160),IE$1))-FIND(CHAR(160),SUBSTITUTE($AA9,"{",CHAR(160),IE$1))+1),"") ->  | IM9: {Primary heating type} | IN9: {Primary heating type} | IO9: =IFERROR(MID($AB9,FIND(CHAR(160),SUBSTITUTE($AB9,"{",CHAR(160),IO$1)),FIND(CHAR(160),SUBSTITUTE($AB9,"}",CHAR(160),IO$1))-FIND(CHAR(160),SUBSTITUTE($AB9,"{",CHAR(160),IO$1))+1),"") ->  | IZ9: =10-COUNTIF(DU9:ED9,"") -> 3
A10: Affordable Heat Initiative - Other Fuels | B10: Attic Insulation LIHESP | C10: LBA | D10: 2021-07-01 | E10: 2022-06-30 | F10: Calculated | G10: {Cost}*{Measure:Quantity} | H10: 0 | I10: Calculated | J10: if({Cost}*0.80>2000,2000,Round({Cost}*0.80,2))*{Measure:Quantity} | K10: 0 | L10: 2020-07-01 | M10: 2022-06-30 | N10: Calculated | O10: if({Primary heating type}=6,3101,if({Primary heating type}=0,117,20)) | R10: if({Primary heating type}=6,0.053,if({Primary heating type}=0,0.053,0.053)) | U10: if({Primary heating type}=6,0.678,if({Primary heating type}=0,0.026,0)) | V10: if({Primary heating type}=6,0.053,if({Primary heating type}=0,0.053,0.053)) | W10: if({Primary heating type}=1,12.663,if({Primary heating type}=0,1.140,0))*10 | X10: if({Primary heating type}=2,12.663,if({Primary heating type}=0,1.659,0)) | Y10: if({Primary heating type}=3,12.663,if({Primary heating type} = 0,8.661,0)) | Z10: if({Primary heating type}=4,12.663,if({Primary heating type} = 0,0.177,0)) | AA10: if({Primary heating type}=5,12.663,if({Primary heating type} = 0,0.545,0)) | AB10: 0 | AC10: 2019-07-01 | AD10: 2022-06-30 | AE10: 25 | AF10: 1 | AG10: 1 | AH10: 0 | AI10: 0 | AJ10: 0.666 | AK10: 0.301 | AL10: 1 | AM10: 1 | AN10: 1 | AO10: 0 | AP10: 0 | AR10: {Cost} | AS10: 1962 | AT10: {Measure:Quantity} | AU10: 1 | AV10: {Primary heating type} | AW10: 0 | BL10: =IF(AW10=6,3101,IF(AW10=0,117,20)) -> 117 | BM10: 0 | BN10: 0 | BO10: =IF(AW10=6,0.053,IF(AW10=0,0.053,0.053)) -> 0.053 | BP10: 0 | BQ10: 0 | BR10: =IF(AW10=6,0.678,IF(AW10=0,0.026,0)) -> 0.026 | BS10: =IF(AW10=6,0.053,IF(AW10=0,0.053,0.053)) -> 0.053 | BT10: =IF(AW10=1,12.663,IF(AW10=0,1.14,0))*10 -> 11.4 | BU10: =IF(AW10=2,12.663,IF(AW10=0,1.659,0)) -> 1.659 | BV10: =IF(AW10=3,12.663,IF(AW10 = 0,8.661,0)) -> 8.661 | BW10: =IF(AW10=4,12.663,IF(AW10 = 0,0.177,0)) -> 0.177 | BX10: =IF(AW10=5,12.663,IF(AW10 = 0,0.545,0)) -> 0.545 | BY10: =0 -> 0 | CA10: Res | CB10: RGGI DR | CC10: =Benefits(BL10,BR10,BS10,BT10,BU10,BV10,BW10,BX10,BY10,BZ10,AE10,AH10,AI10,AJ10,AK10,AL10,AM10,AN10,AO10,AP10,CA10,CB10) -> 188.5900211 | CD10: 291.6670112 | CE10: 298.5474045 | CF10: 5233.747602 | CG10: 125.9697454 | CH10: 1420.113649 | CI10: 223.5347927 | CJ10: 0 | CK10: 0 | CL10: =SUMPRODUCT(CC10:CK10,--(CC10:CK10>0)) -> 7782.170226 | CM10: =-SUMPRODUCT(CC10:CK10,--(CC10:CK10<0)) -> 0 | CO10: =AS10*AU10 -> 1962 | CR10: 1962 | CS10: 1 | CT10: 3.966447618 | CU10: 1 | CV10: =IF(AS10*0.8>2000,2000,ROUND(AS10*0.8,2))*AU10 -> 1569.6 | CX10: RGGI | CY10: y | DA10: X=AS10*AU10 | DB10: X=if(AS10*0.80>2000,2000,Round(AS10*0.80,2))*AU10 | DC10: X=if(AW10=6,3101,if(AW10=0,117,20)) | DD10: 0 | DE10: 0 | DF10: X=if(AW10=6,0.053,if(AW10=0,0.053,0.053)) | DG10: 0 | DH10: 0 | DI10: X=if(AW10=6,0.678,if(AW10=0,0.026,0)) | DJ10: X=if(AW10=6,0.053,if(AW10=0,0.053,0.053)) | DK10: X=if(AW10=1,12.663,if(AW10=0,1.140,0))*10 | DL10: X=if(AW10=2,12.663,if(AW10=0,1.659,0)) | DM10: X=if(AW10=3,12.663,if(AW10 = 0,8.661,0)) | DN10: X=if(AW10=4,12.663,if(AW10 = 0,0.177,0)) | DO10: X=if(AW10=5,12.663,if(AW10 = 0,0.545,0)) | DP10: X=0 | DS10: {Factor:WinterCF} | DT10: {Factor:SummerCF} | DU10: =IFERROR(INDEX($EG10:$IV10,MATCH(0,COUNTIF($DR10:DT10,$EG10:$IV10),0)),"") -> {Cost} | DV10: =IFERROR(INDEX($EG10:$IV10,MATCH(0,COUNTIF($DR10:DU10,$EG10:$IV10),0)),"") -> {Measure:Quantity} | DW10: =IFERROR(INDEX($EG10:$IV10,MATCH(0,COUNTIF($DR10:DV10,$EG10:$IV10),0)),"") -> {Primary heating type} | DX10: =IFERROR(INDEX($EG10:$IV10,MATCH(0,COUNTIF($DR10:DW10,$EG10:$IV10),0)),"") ->  | DY10: =IFERROR(INDEX($EG10:$IV10,MATCH(0,COUNTIF($DR10:DX10,$EG10:$IV10),0)),"") ->  | DZ10: =IFERROR(INDEX($EG10:$IV10,MATCH(0,COUNTIF($DR10:DY10,$EG10:$IV10),0)),"") ->  | EA10: =IFERROR(INDEX($EG10:$IV10,MATCH(0,COUNTIF($DR10:DZ10,$EG10:$IV10),0)),"") ->  | EB10: =IFERROR(INDEX($EG10:$IV10,MATCH(0,COUNTIF($DR10:EA10,$EG10:$IV10),0)),"") ->  | EC10: =IFERROR(INDEX($EG10:$IV10,MATCH(0,COUNTIF($DR10:EB10,$EG10:$IV10),0)),"") ->  | ED10: =IFERROR(INDEX($EG10:$IV10,MATCH(0,COUNTIF($DR10:EC10,$EG10:$IV10),0)),"") ->  | EG10: {Cost} | EH10: {Measure:Quantity} | EQ10: {Cost} | ER10: {Cost} | ES10: {Measure:Quantity} | FA10: {Cost} | FB10: {Cost} | FK10: {Primary heating type} | FL10: {Primary heating type} | FU10: {Primary heating type} | FV10: {Primary heating type} | GE10: {Primary heating type} | GF10: {Primary heating type} | GO10: {Primary heating type} | GP10: {Primary heating type} | GY10: {Primary heating type} | GZ10: {Primary heating type} | HI10: {Primary heating type} | HJ10: {Primary heating type} | HS10: {Primary heating type} | HT10: {Primary heating type} | IC10: {Primary heating type} | ID10: {Primary heating type} | IM10: {Primary heating type} | IN10: {Primary heating type} | IZ10: 3
A11: Affordable Heat Initiative - Other Fuels | B11: Basement Insulation LIHESP | C11: LBB | D11: 2021-07-01 | E11: 2022-06-30 | F11: Calculated | G11: {Cost}*{Measure:Quantity} | H11: 0 | I11: Calculated | J11: if({Cost}*0.80>2000,2000,Round({Cost}*0.80,2))*{Measure:Quantity} | K11: 0 | L11: 2020-07-01 | M11: 2022-06-30 | N11: Calculated | O11: if({Primary heating type}=6,2672,if({Primary heating type}=0,102,0)) | R11: 0 | U11: if({Primary heating type}=6,0.663,if({Primary heating type}=0,0.025,0)) | V11: 0 | W11: if({Primary heating type}=1,10.986,if({Primary heating type}=0,0.989,0))*10 | X11: if({Primary heating type}=2,10.986,if({Primary heating type} = 0,1.439,0)) | Y11: if({Primary heating type}=3,10.986,if({Primary heating type} = 0,7.514,0)) | Z11: if({Primary heating type}=4,10.986,if({Primary heating type} = 0,0.154,0)) | AA11: if({Primary heating type}=5,10.986,if({Primary heating type} = 0,0.472,0)) | AB11: 0 | AC11: 2019-07-01 | AD11: 2022-06-30 | AE11: 25 | AF11: 1 | AG11: 1 | AH11: 0 | AI11: 0 | AJ11: 0 | AK11: 0 | AL11: 1 | AM11: 1 | AN11: 1 | AO11: 0 | AP11: 0 | AR11: {Cost} | AS11: 2326 | AT11: {Measure:Quantity} | AU11: 1 | AV11: {Primary heating type} | AW11: 0 | BL11: =IF(AW11=6,2672,IF(AW11=0,102,0)) -> 102 | BM11: 0 | BN11: 0 | BO11: =0 -> 0 | BP11: 0 | BQ11: 0 | BR11: =IF(AW11=6,0.663,IF(AW11=0,0.025,0)) -> 0.025 | BS11: =0 -> 0 | BT11: =IF(AW11=1,10.986,IF(AW11=0,0.989,0))*10 -> 9.89 | BU11: =IF(AW11=2,10.986,IF(AW11 = 0,1.439,0)) -> 1.439 | BV11: =IF(AW11=3,10.986,IF(AW11 = 0,7.514,0)) -> 7.514 | BW11: =IF(AW11=4,10.986,IF(AW11 = 0,0.154,0)) -> 0.154 | BX11: =IF(AW11=5,10.986,IF(AW11 = 0,0.472,0)) -> 0.472 | BY11: =0 -> 0 | CA11: Res | CB11: RGGI DR | CC11: =Benefits(BL11,BR11,BS11,BT11,BU11,BV11,BW11,BX11,BY11,BZ11,AE11,AH11,AI11,AJ11,AK11,AL11,AM11,AN11,AO11,AP11,CA11,CB11) -> 0 | CD11: 138.889053 | CE11: 259.0029676 | CF11: 4540.628043 | CG11: 109.6007955 | CH11: 1231.79237 | CI11: 193.5934352 | CJ11: 0 | CK11: 0 | CL11: =SUMPRODUCT(CC11:CK11,--(CC11:CK11>0)) -> 6473.506664 | CM11: =-SUMPRODUCT(CC11:CK11,--(CC11:CK11<0)) -> 0 | CO11: =AS11*AU11 -> 2326 | CR11: 2326 | CS11: 1 | CT11: 2.783106906 | CU11: 1 | CV11: =IF(AS11*0.8>2000,2000,ROUND(AS11*0.8,2))*AU11 -> 1860.8 | CX11: RGGI | CY11: y | DA11: X=AS11*AU11 | DB11: X=if(AS11*0.80>2000,2000,Round(AS11*0.80,2))*AU11 | DC11: X=if(AW11=6,2672,if(AW11=0,102,0)) | DD11: 0 | DE11: 0 | DF11: X=0 | DG11: 0 | DH11: 0 | DI11: X=if(AW11=6,0.663,if(AW11=0,0.025,0)) | DJ11: X=0 | DK11: X=if(AW11=1,10.986,if(AW11=0,0.989,0))*10 | DL11: X=if(AW11=2,10.986,if(AW11 = 0,1.439,0)) | DM11: X=if(AW11=3,10.986,if(AW11 = 0,7.514,0)) | DN11: X=if(AW11=4,10.986,if(AW11 = 0,0.154,0)) | DO11: X=if(AW11=5,10.986,if(AW11 = 0,0.472,0)) | DP11: X=0 | DS11: {Factor:WinterCF} | DT11: {Factor:SummerCF} | DU11: =IFERROR(INDEX($EG11:$IV11,MATCH(0,COUNTIF($DR11:DT11,$EG11:$IV11),0)),"") -> {Cost} | DV11: =IFERROR(INDEX($EG11:$IV11,MATCH(0,COUNTIF($DR11:DU11,$EG11:$IV11),0)),"") -> {Measure:Quantity} | DW11: =IFERROR(INDEX($EG11:$IV11,MATCH(0,COUNTIF($DR11:DV11,$EG11:$IV11),0)),"") -> {Primary heating type} | DX11: =IFERROR(INDEX($EG11:$IV11,MATCH(0,COUNTIF($DR11:DW11,$EG11:$IV11),0)),"") ->  | DY11: =IFERROR(INDEX($EG11:$IV11,MATCH(0,COUNTIF($DR11:DX11,$EG11:$IV11),0)),"") ->  | DZ11: =IFERROR(INDEX($EG11:$IV11,MATCH(0,COUNTIF($DR11:DY11,$EG11:$IV11),0)),"") ->  | EA11: =IFERROR(INDEX($EG11:$IV11,MATCH(0,COUNTIF($DR11:DZ11,$EG11:$IV11),0)),"") ->  | EB11: =IFERROR(INDEX($EG11:$IV11,MATCH(0,COUNTIF($DR11:EA11,$EG11:$IV11),0)),"") ->  | EC11: =IFERROR(INDEX($EG11:$IV11,MATCH(0,COUNTIF($DR11:EB11,$EG11:$IV11),0)),"") ->  | ED11: =IFERROR(INDEX($EG11:$IV11,MATCH(0,COUNTIF($DR11:EC11,$EG11:$IV11),0)),"") ->  | EG11: {Cost} | EH11: {Measure:Quantity} | EQ11: {Cost} | ER11: {Cost} | ES11: {Measure:Quantity} | FA11: {Cost} | FB11: {Cost} | FK11: {Primary heating type} | FL11: {Primary heating type} | GE11: {Primary heating type} | GF11: {Primary heating type} | GY11: {Primary heating type} | GZ11: {Primary heating type} | HI11: {Primary heating type} | HJ11: {Primary heating type} | HS11: {Primary heating type} | HT11: {Primary heating type} | IC11: {Primary heating type} | ID11: {Primary heating type} | IM11: {Primary heating type} | IN11: {Primary heating type} | IZ11: 3
A12: Affordable Heat Initiative - Other Fuels | B12: Wall Insulation LIHESP | C12: LBW | D12: 2021-07-01 | E12: 2022-06-30 | F12: Calculated | G12: {Cost}*{Measure:Quantity} | H12: 0 | I12: Calculated | J12: if({Cost}*0.80>2000,2000,Round({Cost}*0.80,2))*{Measure:Quantity} | K12: 0 | L12: 2020-07-01 | M12: 2022-06-30 | N12: Calculated | O12: if({Primary heating type}=6,4879,if({Primary heating type}=0,216,32)) | R12: if({Primary heating type}=6,0.068,if({Primary heating type}=0,0.068,0.068)) | U12: if({Primary heating type}=6,1.202,if({Primary heating type}=0,0.046,0)) | V12: if({Primary heating type}=6,0.068,if({Primary heating type}=0,0.068,0.068)) | W12: if({Primary heating type}=1,20.034,if({Primary heating type}=0,1.793,0))*10 | X12: if({Primary heating type}=2,20.034,if({Primary heating type} = 0,2.610,0)) | Y12: if({Primary heating type}=3,20.034,if({Primary heating type} = 0,13.628,0)) | Z12: if({Primary heating type}=4,20.034,if({Primary heating type} = 0,0.279,0)) | AA12: if({Primary heating type}=5,20.034,if({Primary heating type} = 0,0.857,0)) | AB12: 0 | AC12: 2019-07-01 | AD12: 2022-06-30 | AE12: 25 | AF12: 1 | AG12: 1 | AH12: 0 | AI12: 0 | AJ12: 0.666 | AK12: 0.301 | AL12: 1 | AM12: 1 | AN12: 1 | AO12: 0 | AP12: 0 | AR12: {Cost} | AS12: 2574 | AT12: {Measure:Quantity} | AU12: 1 | AV12: {Primary heating type} | AW12: 0 | BL12: =IF(AW12=6,4879,IF(AW12=0,216,32)) -> 216 | BM12: 0 | BN12: 0 | BO12: =IF(AW12=6,0.068,IF(AW12=0,0.068,0.068)) -> 0.068 | BP12: 0 | BQ12: 0 | BR12: =IF(AW12=6,1.202,IF(AW12=0,0.046,0)) -> 0.046 | BS12: =IF(AW12=6,0.068,IF(AW12=0,0.068,0.068)) -> 0.068 | BT12: =IF(AW12=1,20.034,IF(AW12=0,1.793,0))*10 -> 17.93 | BU12: =IF(AW12=2,20.034,IF(AW12 = 0,2.61,0)) -> 2.61 | BV12: =IF(AW12=3,20.034,IF(AW12 = 0,13.628,0)) -> 13.628 | BW12: =IF(AW12=4,20.034,IF(AW12 = 0,0.279,0)) -> 0.279 | BX12: =IF(AW12=5,20.034,IF(AW12 = 0,0.857,0)) -> 0.857 | BY12: =0 -> 0 | CA12: Res | CB12: RGGI DR | CC12: =Benefits(BL12,BR12,BS12,BT12,BU12,BV12,BW12,BX12,BY12,BZ12,AE12,AH12,AI12,AJ12,AK12,AL12,AM12,AN12,AO12,AP12,CA12,CB12) -> 348.1661928 | CD12: 444.4449695 | CE12: 469.5574529 | CF12: 8235.251394 | CG12: 198.5624801 | CH12: 2234.175181 | CI12: 351.5033346 | CJ12: 0 | CK12: 0 | CL12: =SUMPRODUCT(CC12:CK12,--(CC12:CK12>0)) -> 12281.661 | CM12: =-SUMPRODUCT(CC12:CK12,--(CC12:CK12<0)) -> 0 | CO12: =AS12*AU12 -> 2574 | CR12: 2574 | CS12: 1 | CT12: 4.771430072 | CU12: 1 | CV12: =IF(AS12*0.8>2000,2000,ROUND(AS12*0.8,2))*AU12 -> 2000 | CX12: RGGI | CY12: y | DA12: X=AS12*AU12 | DB12: X=if(AS12*0.80>2000,2000,Round(AS12*0.80,2))*AU12 | DC12: X=if(AW12=6,4879,if(AW12=0,216,32)) | DD12: 0 | DE12: 0 | DF12: X=if(AW12=6,0.068,if(AW12=0,0.068,0.068)) | DG12: 0 | DH12: 0 | DI12: X=if(AW12=6,1.202,if(AW12=0,0.046,0)) | DJ12: X=if(AW12=6,0.068,if(AW12=0,0.068,0.068)) | DK12: X=if(AW12=1,20.034,if(AW12=0,1.793,0))*10 | DL12: X=if(AW12=2,20.034,if(AW12 = 0,2.610,0)) | DM12: X=if(AW12=3,20.034,if(AW12 = 0,13.628,0)) | DN12: X=if(AW12=4,20.034,if(AW12 = 0,0.279,0)) | DO12: X=if(AW12=5,20.034,if(AW12 = 0,0.857,0)) | DP12: X=0 | DS12: {Factor:WinterCF} | DT12: {Factor:SummerCF} | DU12: =IFERROR(INDEX($EG12:$IV12,MATCH(0,COUNTIF($DR12:DT12,$EG12:$IV12),0)),"") -> {Cost} | DV12: =IFERROR(INDEX($EG12:$IV12,MATCH(0,COUNTIF($DR12:DU12,$EG12:$IV12),0)),"") -> {Measure:Quantity} | DW12: =IFERROR(INDEX($EG12:$IV12,MATCH(0,COUNTIF($DR12:DV12,$EG12:$IV12),0)),"") -> {Primary heating type} | DX12: =IFERROR(INDEX($EG12:$IV12,MATCH(0,COUNTIF($DR12:DW12,$EG12:$IV12),0)),"") ->  | DY12: =IFERROR(INDEX($EG12:$IV12,MATCH(0,COUNTIF($DR12:DX12,$EG12:$IV12),0)),"") ->  | DZ12: =IFERROR(INDEX($EG12:$IV12,MATCH(0,COUNTIF($DR12:DY12,$EG12:$IV12),0)),"") ->  | EA12: =IFERROR(INDEX($EG12:$IV12,MATCH(0,COUNTIF($DR12:DZ12,$EG12:$IV12),0)),"") ->  | EB12: =IFERROR(INDEX($EG12:$IV12,MATCH(0,COUNTIF($DR12:EA12,$EG12:$IV12),0)),"") ->  | EC12: =IFERROR(INDEX($EG12:$IV12,MATCH(0,COUNTIF($DR12:EB12,$EG12:$IV12),0)),"") ->  | ED12: =IFERROR(INDEX($EG12:$IV12,MATCH(0,COUNTIF($DR12:EC12,$EG12:$IV12),0)),"") ->  | EG12: {Cost} | EH12: {Measure:Quantity} | EQ12: {Cost} | ER12: {Cost} | ES12: {Measure:Quantity} | FA12: {Cost} | FB12: {Cost} | FK12: {Primary heating type} | FL12: {Primary heating type} | FU12: {Primary heating type} | FV12: {Primary heating type} | GE12: {Primary heating type} | GF12: {Primary heating type} | GO12: {Primary heating type} | GP12: {Primary heating type} | GY12: {Primary heating type} | GZ12: {Primary heating type} | HI12: {Primary heating type} | HJ12: {Primary heating type} | HS12: {Primary heating type} | HT12: {Primary heating type} | IC12: {Primary heating type} | ID12: {Primary heating type} | IM12: {Primary heating type} | IN12: {Primary heating type} | IZ12: 3
A13: Appliance Rebate | B13: Clothes Washer | C13: CW | D13: 2021-07-01 | E13: 2022-06-30 | F13: Per Measure | G13: 92 | H13: 0 | I13: Calculated | J13: {Measure:Quantity}*if({Retail Price}<50,{Retail Price},50) | K13: 50 | L13: 2021-07-01 | M13: 2022-06-30 | N13: Calculated | O13: {Measure:Quantity} * 183 | R13: {Measure:Quantity} * 0.57 | U13: {Measure:Quantity} * 0.57 * {Factor:WinterCF} | V13: {Measure:Quantity} * 0.57 * {Factor:SummerCF} | W13: {Measure:Quantity} * 0.114 * 10 | X13: {Measure:Quantity} * 0.074 | Y13: {Measure:Quantity} * 0.338 | AB13: {Measure:Quantity} * 3438 | AC13: 2020-07-01 | AD13: 2022-06-30 | AE13: 11 | AF13: 0.063 | AG13: 0.048 | AH13: 0.4 | AI13: 0.266 | AJ13: 0.201 | AK13: 0.133 | AL13: 1 | AM13: 1 | AN13: 1 | AO13: 0.567 | AP13: 0.033 | AR13: {Measure:Quantity} | AS13: 1 | AT13: {Retail Price} | AU13: 750 | BL13: =AS13 * 183 -> 183 | BM13: 0 | BN13: 0 | BO13: =AS13 * 0.57 -> 0.57 | BP13: 0 | BQ13: 0 | BR13: =AS13 * 0.57 * AF13 -> 0.03591 | BS13: =AS13 * 0.57 * AG13 -> 0.02736 | BT13: =AS13 * 0.114 * 10 -> 1.14 | BU13: =AS13 * 0.074 -> 0.074 | BV13: =AS13 * 0.338 -> 0.338 | BW13: 0 | BX13: 0 | BY13: =AS13 * 3438 -> 3438 | CA13: Res | CB13: Default DR | CC13: =Benefits(BL13,BR13,BS13,BT13,BU13,BV13,BW13,BX13,BY13,BZ13,AE13,AH13,AI13,AJ13,AK13,AL13,AM13,AN13,AO13,AP13,CA13,CB13) -> 190.1533929 | CD13: 143.3816938 | CE13: 17.68584948 | CF13: 111.5579726 | CG13: 0 | CH13: 33.95246568 | CI13: 0 | CJ13: 227.8602572 | CK13: 0 | CL13: =SUMPRODUCT(CC13:CK13,--(CC13:CK13>0)) -> 724.5916316 | CM13: =-SUMPRODUCT(CC13:CK13,--(CC13:CK13<0)) -> 0 | CO13: =92 -> 92 | CR13: 92 | CS13: 1 | CT13: 7.875995995 | CU13: 1 | CV13: =AS13*IF(AU13<50,AU13,50) -> 50 | CX13: Electric | CY13: y | CZ13: =CL13-CR13 -> 632.5916316 | DA13: X=92 | DB13: X=AS13*if(AU13<50,AU13,50) | DC13: X=AS13 * 183 | DD13: 0 | DE13: 0 | DF13: X=AS13 * 0.57 | DG13: 0 | DH13: 0 | DI13: X=AS13 * 0.57 * AF13 | DJ13: X=AS13 * 0.57 * AG13 | DK13: X=AS13 * 0.114 * 10 | DL13: X=AS13 * 0.074 | DM13: X=AS13 * 0.338 | DN13: 0 | DO13: 0 | DP13: X=AS13 * 3438 | DS13: {Factor:WinterCF} | DT13: {Factor:SummerCF} | DU13: =IFERROR(INDEX($EG13:$IV13,MATCH(0,COUNTIF($DR13:DT13,$EG13:$IV13),0)),"") -> {Measure:Quantity} | DV13: =IFERROR(INDEX($EG13:$IV13,MATCH(0,COUNTIF($DR13:DU13,$EG13:$IV13),0)),"") -> {Retail Price} | DW13: =IFERROR(INDEX($EG13:$IV13,MATCH(0,COUNTIF($DR13:DV13,$EG13:$IV13),0)),"") ->  | DX13: =IFERROR(INDEX($EG13:$IV13,MATCH(0,COUNTIF($DR13:DW13,$EG13:$IV13),0)),"") ->  | DY13: =IFERROR(INDEX($EG13:$IV13,MATCH(0,COUNTIF($DR13:DX13,$EG13:$IV13),0)),"") ->  | DZ13: =IFERROR(INDEX($EG13:$IV13,MATCH(0,COUNTIF($DR13:DY13,$EG13:$IV13),0)),"") ->  | EA13: =IFERROR(INDEX($EG13:$IV13,MATCH(0,COUNTIF($DR13:DZ13,$EG13:$IV13),0)),"") ->  | EB13: =IFERROR(INDEX($EG13:$IV13,MATCH(0,COUNTIF($DR13:EA13,$EG13:$IV13),0)),"") ->  | EC13: =IFERROR(INDEX($EG13:$IV13,MATCH(0,COUNTIF($DR13:EB13,$EG13:$IV13),0)),"") ->  | ED13: =IFERROR(INDEX($EG13:$IV13,MATCH(0,COUNTIF($DR13:EC13,$EG13:$IV13),0)),"") ->  | EQ13: {Measure:Quantity} | ER13: {Retail Price} | ES13: {Retail Price} | FA13: {Measure:Quantity} | FB13: {Retail Price} | FK13: {Measure:Quantity} | FU13: {Measure:Quantity} | GE13: {Measure:Quantity} | GF13: {Factor:WinterCF} | GO13: {Measure:Quantity} | GP13: {Factor:SummerCF} | GY13: {Measure:Quantity} | HI13: {Measure:Quantity} | HS13: {Measure:Quantity} | IZ13: 2
A14: Appliance Rebate | B14: Heat Pump Water Heater | C14: HPWHI | D14: 2021-07-01 | E14: 2022-06-30 | F14: Per Measure | G14: 1021 | H14: 0 | I14: Calculated | J14: {Measure:Quantity}*({Rebate Amount}+{Bonus Amount}) | K14: 0 | L14: 2021-07-01 | M14: 2022-06-30 | N14: Calculated | O14: {Measure:Quantity} * 738 | U14: ({Measure:Quantity} * .129) | V14: ({Measure:Quantity} * .080) | W14: ({Measure:Quantity} * 0.26 * 10) | X14: ({Measure:Quantity} * 0.9) | Y14: ({Measure:Quantity} * 4.34) | Z14: ({Measure:Quantity} *0.13) | AC14: 2020-07-01 | AD14: 2022-06-30 | AE14: 13 | AF14: 1 | AG14: 1 | AH14: 0.358 | AI14: 0.308 | AJ14: 0.179 | AK14: 0.155 | AL14: 1 | AM14: 1 | AN14: 1 | AO14: 0.08 | AP14: 0 | AR14: {Measure:Quantity} | AS14: 1 | AT14: {Rebate Amount} | AU14: 750 | AV14: {Bonus Amount} | AW14: 0 | BL14: =AS14 * 738 -> 738 | BM14: 0 | BN14: 0 | BO14: 0 | BP14: 0 | BQ14: 0 | BR14: =(AS14 * 0.129) -> 0.129 | BS14: =(AS14 * 0.08) -> 0.08 | BT14: =(AS14 * 0.26 * 10) -> 2.6 | BU14: =(AS14 * 0.9) -> 0.9 | BV14: =(AS14 * 4.34) -> 4.34 | BW14: =(AS14 *0.13) -> 0.13 | BX14: 0 | BY14: 0 | CA14: Res | CB14: Default DR | CC14: =Benefits(BL14,BR14,BS14,BT14,BU14,BV14,BW14,BX14,BY14,BZ14,AE14,AH14,AI14,AJ14,AK14,AL14,AM14,AN14,AO14,AP14,CA14,CB14) -> 871.3045172 | CD14: 564.528965 | CE14: 45.55071804 | CF14: 1640.177793 | CG14: 57.15961191 | CH14: 474.17284 | CI14: 0 | CJ14: 0 | CK14: 0 | CL14: =SUMPRODUCT(CC14:CK14,--(CC14:CK14>0)) -> 3652.894445 | CM14: =-SUMPRODUCT(CC14:CK14,--(CC14:CK14<0)) -> 0 | CO14: =1021 -> 1021 | CR14: 1021 | CS14: 1 | CT14: 3.577761454 | CU14: 1 | CV14: =AS14*(AU14+AW14) -> 750 | CX14: Electric | CY14: y | CZ14: =CL14-CR14 -> 2631.894445 | DA14: X=1021 | DB14: X=AS14*(AU14+AW14) | DC14: X=AS14 * 738 | DD14: 0 | DE14: 0 | DF14: 0 | DG14: 0 | DH14: 0 | DI14: X=(AS14 * .129) | DJ14: X=(AS14 * .080) | DK14: X=(AS14 * 0.26 * 10) | DL14: X=(AS14 * 0.9) | DM14: X=(AS14 * 4.34) | DN14: X=(AS14 *0.13) | DO14: 0 | DP14: 0 | DS14: {Factor:WinterCF} | DT14: {Factor:SummerCF} | DU14: =IFERROR(INDEX($EG14:$IV14,MATCH(0,COUNTIF($DR14:DT14,$EG14:$IV14),0)),"") -> {Measure:Quantity} | DV14: =IFERROR(INDEX($EG14:$IV14,MATCH(0,COUNTIF($DR14:DU14,$EG14:$IV14),0)),"") -> {Rebate Amount} | DW14: =IFERROR(INDEX($EG14:$IV14,MATCH(0,COUNTIF($DR14:DV14,$EG14:$IV14),0)),"") -> {Bonus Amount} | DX14: =IFERROR(INDEX($EG14:$IV14,MATCH(0,COUNTIF($DR14:DW14,$EG14:$IV14),0)),"") ->  | DY14: =IFERROR(INDEX($EG14:$IV14,MATCH(0,COUNTIF($DR14:DX14,$EG14:$IV14),0)),"") ->  | DZ14: =IFERROR(INDEX($EG14:$IV14,MATCH(0,COUNTIF($DR14:DY14,$EG14:$IV14),0)),"") ->  | EA14: =IFERROR(INDEX($EG14:$IV14,MATCH(0,COUNTIF($DR14:DZ14,$EG14:$IV14),0)),"") ->  | EB14: =IFERROR(INDEX($EG14:$IV14,MATCH(0,COUNTIF($DR14:EA14,$EG14:$IV14),0)),"") ->  | EC14: =IFERROR(INDEX($EG14:$IV14,MATCH(0,COUNTIF($DR14:EB14,$EG14:$IV14),0)),"") ->  | ED14: =IFERROR(INDEX($EG14:$IV14,MATCH(0,COUNTIF($DR14:EC14,$EG14:$IV14),0)),"") ->  | EQ14: {Measure:Quantity} | ER14: {Rebate Amount} | ES14: {Bonus Amount} | FA14: {Measure:Quantity} | FB14: {Rebate Amount} | FK14: {Measure:Quantity} | GE14: {Measure:Quantity} | GO14: {Measure:Quantity} | GY14: {Measure:Quantity} | HI14: {Measure:Quantity} | HS14: {Measure:Quantity} | IC14: {Measure:Quantity} | IZ14: 3
A15: Appliance Rebate | B15: Heat Pump Water Heater - Mail-In | C15: HPWHM | D15: 2021-07-01 | E15: 2022-06-30 | F15: Per Measure | G15: 1021 | H15: 0 | I15: Calculated | J15: {Measure:Quantity}*if({Retail Price}<{Rebate Level},{Retail Price},{Rebate Level}) | K15: 850 | L15: 2021-07-01 | M15: 2022-06-30 | N15: Calculated | O15: {Measure:Quantity} * 738 | U15: ({Measure:Quantity} * .129) | V15: ({Measure:Quantity} * .080) | W15: ({Measure:Quantity} * 0.26 * 10) | X15: ({Measure:Quantity} * 0.9) | Y15: ({Measure:Quantity} * 4.34) | Z15: ({Measure:Quantity} *0.13) | AC15: 2020-07-01 | AD15: 2022-06-30 | AE15: 13 | AF15: 1 | AG15: 1 | AH15: 0.358 | AI15: 0.308 | AJ15: 0.179 | AK15: 0.155 | AL15: 1 | AM15: 1 | AN15: 1 | AO15: 0.08 | AP15: 0 | AR15: {Measure:Quantity} | AS15: 1 | AT15: {Retail Price} | AU15: 1300 | AV15: {Rebate Level} | AW15: 1 | BL15: =AS15 * 738 -> 738 | BM15: 0 | BN15: 0 | BO15: 0 | BP15: 0 | BQ15: 0 | BR15: =(AS15 * 0.129) -> 0.129 | BS15: =(AS15 * 0.08) -> 0.08 | BT15: =(AS15 * 0.26 * 10) -> 2.6 | BU15: =(AS15 * 0.9) -> 0.9 | BV15: =(AS15 * 4.34) -> 4.34 | BW15: =(AS15 *0.13) -> 0.13 | BX15: 0 | BY15: 0 | CA15: Res | CB15: Default DR | CC15: =Benefits(BL15,BR15,BS15,BT15,BU15,BV15,BW15,BX15,BY15,BZ15,AE15,AH15,AI15,AJ15,AK15,AL15,AM15,AN15,AO15,AP15,CA15,CB15) -> 871.3045172 | CD15: 564.528965 | CE15: 45.55071804 | CF15: 1640.177793 | CG15: 57.15961191 | CH15: 474.17284 | CI15: 0 | CJ15: 0 | CK15: 0 | CL15: =SUMPRODUCT(CC15:CK15,--(CC15:CK15>0)) -> 3652.894445 | CM15: =-SUMPRODUCT(CC15:CK15,--(CC15:CK15<0)) -> 0 | CO15: =1021 -> 1021 | CR15: 1021 | CS15: 1 | CT15: 3.577761454 | CU15: 1 | CV15: =AS15*IF(AU15<AW15,AU15,AW15) -> 1 | CX15: RGGI | CY15: y | DA15: X=1021 | DB15: X=AS15*if(AU15<AW15,AU15,AW15) | DC15: X=AS15 * 738 | DD15: 0 | DE15: 0 | DF15: 0 | DG15: 0 | DH15: 0 | DI15: X=(AS15 * .129) | DJ15: X=(AS15 * .080) | DK15: X=(AS15 * 0.26 * 10) | DL15: X=(AS15 * 0.9) | DM15: X=(AS15 * 4.34) | DN15: X=(AS15 *0.13) | DO15: 0 | DP15: 0 | DS15: {Factor:WinterCF} | DT15: {Factor:SummerCF} | DU15: =IFERROR(INDEX($EG15:$IV15,MATCH(0,COUNTIF($DR15:DT15,$EG15:$IV15),0)),"") -> {Measure:Quantity} | DV15: =IFERROR(INDEX($EG15:$IV15,MATCH(0,COUNTIF($DR15:DU15,$EG15:$IV15),0)),"") -> {Retail Price} | DW15: =IFERROR(INDEX($EG15:$IV15,MATCH(0,COUNTIF($DR15:DV15,$EG15:$IV15),0)),"") -> {Rebate Level} | DX15: =IFERROR(INDEX($EG15:$IV15,MATCH(0,COUNTIF($DR15:DW15,$EG15:$IV15),0)),"") ->  | DY15: =IFERROR(INDEX($EG15:$IV15,MATCH(0,COUNTIF($DR15:DX15,$EG15:$IV15),0)),"") ->  | DZ15: =IFERROR(INDEX($EG15:$IV15,MATCH(0,COUNTIF($DR15:DY15,$EG15:$IV15),0)),"") ->  | EA15: =IFERROR(INDEX($EG15:$IV15,MATCH(0,COUNTIF($DR15:DZ15,$EG15:$IV15),0)),"") ->  | EB15: =IFERROR(INDEX($EG15:$IV15,MATCH(0,COUNTIF($DR15:EA15,$EG15:$IV15),0)),"") ->  | EC15: =IFERROR(INDEX($EG15:$IV15,MATCH(0,COUNTIF($DR15:EB15,$EG15:$IV15),0)),"") ->  | ED15: =IFERROR(INDEX($EG15:$IV15,MATCH(0,COUNTIF($DR15:EC15,$EG15:$IV15),0)),"") ->  | EQ15: {Measure:Quantity} | ER15: {Retail Price} | ES15: {Rebate Level} | ET15: {Retail Price} | EU15: {Rebate Level} | FA15: {Measure:Quantity} | FB15: {Retail Price} | FK15: {Measure:Quantity} | GE15: {Measure:Quantity} | GO15: {Measure:Quantity} | GY15: {Measure:Quantity} | HI15: {Measure:Quantity} | HS15: {Measure:Quantity} | IC15: {Measure:Quantity} | IZ15: 3
A16: Appliance Rebate | B16: Room Air Purifier | C16: RAP | D16: 2021-07-01 | E16: 2022-06-30 | F16: Per Measure | G16: 24.82 | H16: 0 | I16: Calculated | J16: {Measure:Quantity}*if({Retail Price}<{Rebate Amount},{Retail Price},{Rebate Amount}) | K16: 50 | L16: 2021-07-01 | M16: 2022-06-30 | N16: Calculated | O16: {Measure:Quantity} * 63 | R16: {Measure:Quantity} * .011 | U16: {Measure:Quantity} * .011 * {Factor:WinterCF} | V16: {Measure:Quantity} * .011 * {Factor:SummerCF} | AC16: 2020-07-01 | AD16: 2022-06-30 | AE16: 9 | AF16: 0.667 | AG16: 0.667 | AH16: 0.304 | AI16: 0.362 | AJ16: 0.156 | AK16: 0.179 | AL16: 1 | AM16: 1 | AN16: 1 | AO16: 0.655 | AP16: 0.033 | AR16: {Measure:Quantity} | AS16: 1 | AT16: {Retail Price} | AU16: 60 | AV16: {Rebate Amount} | AW16: 50 | BL16: =AS16 * 63 -> 63 | BM16: 0 | BN16: 0 | BO16: =AS16 * 0.011 -> 0.011 | BP16: 0 | BQ16: 0 | BR16: =AS16 * 0.011 * AF16 -> 0.007337 | BS16: =AS16 * 0.011 * AG16 -> 0.007337 | BT16: 0 | BU16: 0 | BV16: 0 | BW16: 0 | BX16: 0 | BY16: 0 | CA16: Res | CB16: Default DR | CC16: =Benefits(BL16,BR16,BS16,BT16,BU16,BV16,BW16,BX16,BY16,BZ16,AE16,AH16,AI16,AJ16,AK16,AL16,AM16,AN16,AO16,AP16,CA16,CB16) -> 56.35856037 | CD16: 26.66593408 | CE16: 0 | CF16: 0 | CG16: 0 | CH16: 0 | CI16: 0 | CJ16: 0 | CK16: 0 | CL16: =SUMPRODUCT(CC16:CK16,--(CC16:CK16>0)) -> 83.02449445 | CM16: =-SUMPRODUCT(CC16:CK16,--(CC16:CK16<0)) -> 0 | CO16: =24.82 -> 24.82 | CR16: 24.82 | CS16: 1 | CT16: 1.660489889 | CU16: 1 | CV16: =AS16*IF(AU16<AW16,AU16,AW16) -> 50 | CX16: Electric | CY16: y | CZ16: =CL16-CR16 -> 58.20449445 | DA16: X=24.82 | DB16: X=AS16*if(AU16<AW16,AU16,AW16) | DC16: X=AS16 * 63 | DD16: 0 | DE16: 0 | DF16: X=AS16 * .011 | DG16: 0 | DH16: 0 | DI16: X=AS16 * .011 * AF16 | DJ16: X=AS16 * .011 * AG16 | DK16: 0 | DL16: 0 | DM16: 0 | DN16: 0 | DO16: 0 | DP16: 0 | DS16: {Factor:WinterCF} | DT16: {Factor:SummerCF} | DU16: =IFERROR(INDEX($EG16:$IV16,MATCH(0,COUNTIF($DR16:DT16,$EG16:$IV16),0)),"") -> {Measure:Quantity} | DV16: =IFERROR(INDEX($EG16:$IV16,MATCH(0,COUNTIF($DR16:DU16,$EG16:$IV16),0)),"") -> {Retail Price} | DW16: =IFERROR(INDEX($EG16:$IV16,MATCH(0,COUNTIF($DR16:DV16,$EG16:$IV16),0)),"") -> {Rebate Amount} | DX16: =IFERROR(INDEX($EG16:$IV16,MATCH(0,COUNTIF($DR16:DW16,$EG16:$IV16),0)),"") ->  | DY16: =IFERROR(INDEX($EG16:$IV16,MATCH(0,COUNTIF($DR16:DX16,$EG16:$IV16),0)),"") ->  | DZ16: =IFERROR(INDEX($EG16:$IV16,MATCH(0,COUNTIF($DR16:DY16,$EG16:$IV16),0)),"") ->  | EA16: =IFERROR(INDEX($EG16:$IV16,MATCH(0,COUNTIF($DR16:DZ16,$EG16:$IV16),0)),"") ->  | EB16: =IFERROR(INDEX($EG16:$IV16,MATCH(0,COUNTIF($DR16:EA16,$EG16:$IV16),0)),"") ->  | EC16: =IFERROR(INDEX($EG16:$IV16,MATCH(0,COUNTIF($DR16:EB16,$EG16:$IV16),0)),"") ->  | ED16: =IFERROR(INDEX($EG16:$IV16,MATCH(0,COUNTIF($DR16:EC16,$EG16:$IV16),0)),"") ->  | EQ16: {Measure:Quantity} | ER16: {Retail Price} | ES16: {Rebate Amount} | ET16: {Retail Price} | EU16: {Rebate Amount} | FA16: {Measure:Quantity} | FB16: {Retail Price} | FK16: {Measure:Quantity} | FU16: {Measure:Quantity} | GE16: {Measure:Quantity} | GF16: {Factor:WinterCF} | GO16: {Measure:Quantity} | GP16: {Factor:SummerCF} | IZ16: 3
A17: Arrearage Management Program | B17: LED Low Income Specialty Bulb Short Life | C17: LILEDSPECS | D17: 2021-07-01 | E17: 2022-06-30 | F17: Per Measure | G17: 2.95 | H17: 0 | I17: Per Measure | J17: 2.95 | K17: 0 | L17: 2021-07-01 | M17: 2022-06-30 | N17: Calculated | O17: {Measure:Quantity}*41 | R17: {Measure:Quantity}*0.057 | U17: {Measure:Quantity}*0.009 | V17: {Measure:Quantity}*0.004 | W17: {Measure:Quantity}*-0.005 | X17: {Measure:Quantity}*-0.004 | Y17: {Measure:Quantity}*-0.035 | Z17: {Measure:Quantity}*-0.001 | AA17: {Measure:Quantity}*-0.007 | AC17: 2021-07-01 | AD17: 2022-06-30 | AE17: 4 | AF17: 0.172 | AG17: 0.073 | AH17: 0.349 | AI17: 0.335 | AJ17: 0.155 | AK17: 0.161 | AL17: 0.77 | AM17: 1 | AN17: 1 | AO17: 0 | AP17: 0 | AR17: {Measure:Quantity} | AS17: 1 | BL17: =AS17*41 -> 41 | BM17: 0 | BN17: 0 | BO17: =AS17*0.057 -> 0.057 | BP17: 0 | BQ17: 0 | BR17: =AS17*0.009 -> 0.009 | BS17: =AS17*0.004 -> 0.004 | BT17: =AS17*-0.005 -> -0.005 | BU17: =AS17*-0.004 -> -0.004 | BV17: =AS17*-0.035 -> -0.035 | BW17: =AS17*-0.001 -> -0.001 | BX17: =AS17*-0.007 -> -0.007 | BY17: 0 | CA17: Res | CB17: Default DR | CC17: =Benefits(BL17,BR17,BS17,BT17,BU17,BV17,BW17,BX17,BY17,BZ17,AE17,AH17,AI17,AJ17,AK17,AL17,AM17,AN17,AO17,AP17,CA17,CB17) -> 14.04861532 | CD17: 9.666712924 | CE17: -0.02507814788 | CF17: -3.511183241 | CG17: -0.1154869951 | CH17: -0.5576610675 | CI17: -0.4100874035 | CJ17: 0 | CK17: 0 | CL17: =SUMPRODUCT(CC17:CK17,--(CC17:CK17>0)) -> 23.71532825 | CM17: =-SUMPRODUCT(CC17:CK17,--(CC17:CK17<0)) -> 4.619496855 | CO17: =2.95 -> 2.95 | CR17: 7.569496855 | CS17: 1 | CT17: 3.133012498 | CU17: 1 | CV17: =2.95 -> 2.95 | CX17: Electric | CY17: y | DA17: X=2.95 | DB17: X=2.95 | DC17: X=AS17*41 | DD17: 0 | DE17: 0 | DF17: X=AS17*0.057 | DG17: 0 | DH17: 0 | DI17: X=AS17*0.009 | DJ17: X=AS17*0.004 | DK17: X=AS17*-0.005 | DL17: X=AS17*-0.004 | DM17: X=AS17*-0.035 | DN17: X=AS17*-0.001 | DO17: X=AS17*-0.007 | DP17: 0 | DS17: {Factor:WinterCF} | DT17: {Factor:SummerCF} | DU17: =IFERROR(INDEX($EG17:$IV17,MATCH(0,COUNTIF($DR17:DT17,$EG17:$IV17),0)),"") -> {Measure:Quantity} | DV17: =IFERROR(INDEX($EG17:$IV17,MATCH(0,COUNTIF($DR17:DU17,$EG17:$IV17),0)),"") ->  | DW17: =IFERROR(INDEX($EG17:$IV17,MATCH(0,COUNTIF($DR17:DV17,$EG17:$IV17),0)),"") ->  | DX17: =IFERROR(INDEX($EG17:$IV17,MATCH(0,COUNTIF($DR17:DW17,$EG17:$IV17),0)),"") ->  | DY17: =IFERROR(INDEX($EG17:$IV17,MATCH(0,COUNTIF($DR17:DX17,$EG17:$IV17),0)),"") ->  | DZ17: =IFERROR(INDEX($EG17:$IV17,MATCH(0,COUNTIF($DR17:DY17,$EG17:$IV17),0)),"") ->  | EA17: =IFERROR(INDEX($EG17:$IV17,MATCH(0,COUNTIF($DR17:DZ17,$EG17:$IV17),0)),"") ->  | EB17: =IFERROR(INDEX($EG17:$IV17,MATCH(0,COUNTIF($DR17:EA17,$EG17:$IV17),0)),"") ->  | EC17: =IFERROR(INDEX($EG17:$IV17,MATCH(0,COUNTIF($DR17:EB17,$EG17:$IV17),0)),"") ->  | ED17: =IFERROR(INDEX($EG17:$IV17,MATCH(0,COUNTIF($DR17:EC17,$EG17:$IV17),0)),"") ->  | FK17: {Measure:Quantity} | FU17: {Measure:Quantity} | GE17: {Measure:Quantity} | GO17: {Measure:Quantity} | GY17: {Measure:Quantity} | HI17: {Measure:Quantity} | HS17: {Measure:Quantity} | IC17: {Measure:Quantity} | IM17: {Measure:Quantity} | IZ17: 1
A18: Arrearage Management Program | B18: LED Low Income Standard Bulb Short Life | C18: LILEDSTANS | D18: 2021-07-01 | E18: 2022-06-30 | F18: Per Measure | G18: 2.5 | H18: 0 | I18: Per Measure | J18: 2.5 | K18: 0 | L18: 2021-07-01 | M18: 2022-06-30 | N18: Calculated | O18: {Measure:Quantity}*if({Wattage}>13,42,26) | R18: {Measure:Quantity}*if({Wattage}>13,0.058,0.036) | U18: {Measure:Quantity}*if({Wattage}>13,0.009,0.006) | V18: {Measure:Quantity}*if({Wattage}>13,0.004,0.003) | W18: {Measure:Quantity}*if({Wattage}>13,-0.005,-0.003) | X18: {Measure:Quantity}*if({Wattage}>13,-0.004,-0.003) | Y18: {Measure:Quantity}*if({Wattage}>13,-0.035,-0.022) | Z18: {Measure:Quantity}*if({Wattage}>13,-0.001,-0.001) | AA18: {Measure:Quantity}*if({Wattage}>13,-0.007,-0.005) | AC18: 2021-07-01 | AD18: 2022-06-30 | AE18: 3 | AF18: 0.172 | AG18: 0.073 | AH18: 0.349 | AI18: 0.335 | AJ18: 0.155 | AK18: 0.161 | AL18: 0.77 | AM18: 1 | AN18: 1 | AO18: 0 | AP18: 0 | AR18: {Measure:Quantity} | AS18: 1 | AT18: {Wattage} | AU18: 9 | BL18: =AS18*IF(AU18>13,42,26) -> 26 | BM18: 0 | BN18: 0 | BO18: =AS18*IF(AU18>13,0.058,0.036) -> 0.036 | BP18: 0 | BQ18: 0 | BR18: =AS18*IF(AU18>13,0.009,0.006) -> 0.006 | BS18: =AS18*IF(AU18>13,0.004,0.003) -> 0.003 | BT18: =AS18*IF(AU18>13,-0.005,-0.003) -> -0.003 | BU18: =AS18*IF(AU18>13,-0.004,-0.003) -> -0.003 | BV18: =AS18*IF(AU18>13,-0.035,-0.022) -> -0.022 | BW18: =AS18*IF(AU18>13,-0.001,-0.001) -> -0.001 | BX18: =AS18*IF(AU18>13,-0.007,-0.005) -> -0.005 | BY18: 0 | CA18: Res | CB18: Default DR | CC18: =Benefits(BL18,BR18,BS18,BT18,BU18,BV18,BW18,BX18,BY18,BZ18,AE18,AH18,AI18,AJ18,AK18,AL18,AM18,AN18,AO18,AP18,CA18,CB18) -> 6.86750541 | CD18: 5.021519668 | CE18: -0.01158860731 | CF18: -1.671530814 | CG18: -0.08727053894 | CH18: -0.3168149344 | CI18: -0.2183601832 | CJ18: 0 | CK18: 0 | CL18: =SUMPRODUCT(CC18:CK18,--(CC18:CK18>0)) -> 11.88902508 | CM18: =-SUMPRODUCT(CC18:CK18,--(CC18:CK18<0)) -> 2.305565078 | CO18: =2.5 -> 2.5 | CR18: 4.805565078 | CS18: 1 | CT18: 2.474011877 | CU18: 1 | CV18: =2.5 -> 2.5 | CX18: Electric | CY18: y | DA18: X=2.5 | DB18: X=2.5 | DC18: X=AS18*if(AU18>13,42,26) | DD18: 0 | DE18: 0 | DF18: X=AS18*if(AU18>13,0.058,0.036) | DG18: 0 | DH18: 0 | DI18: X=AS18*if(AU18>13,0.009,0.006) | DJ18: X=AS18*if(AU18>13,0.004,0.003) | DK18: X=AS18*if(AU18>13,-0.005,-0.003) | DL18: X=AS18*if(AU18>13,-0.004,-0.003) | DM18: X=AS18*if(AU18>13,-0.035,-0.022) | DN18: X=AS18*if(AU18>13,-0.001,-0.001) | DO18: X=AS18*if(AU18>13,-0.007,-0.005) | DP18: 0 | DS18: {Factor:WinterCF} | DT18: {Factor:SummerCF} | DU18: =IFERROR(INDEX($EG18:$IV18,MATCH(0,COUNTIF($DR18:DT18,$EG18:$IV18),0)),"") -> {Measure:Quantity} | DV18: =IFERROR(INDEX($EG18:$IV18,MATCH(0,COUNTIF($DR18:DU18,$EG18:$IV18),0)),"") -> {Wattage} | DW18: =IFERROR(INDEX($EG18:$IV18,MATCH(0,COUNTIF($DR18:DV18,$EG18:$IV18),0)),"") ->  | DX18: =IFERROR(INDEX($EG18:$IV18,MATCH(0,COUNTIF($DR18:DW18,$EG18:$IV18),0)),"") ->  | DY18: =IFERROR(INDEX($EG18:$IV18,MATCH(0,COUNTIF($DR18:DX18,$EG18:$IV18),0)),"") ->  | DZ18: =IFERROR(INDEX($EG18:$IV18,MATCH(0,COUNTIF($DR18:DY18,$EG18:$IV18),0)),"") ->  | EA18: =IFERROR(INDEX($EG18:$IV18,MATCH(0,COUNTIF($DR18:DZ18,$EG18:$IV18),0)),"") ->  | EB18: =IFERROR(INDEX($EG18:$IV18,MATCH(0,COUNTIF($DR18:EA18,$EG18:$IV18),0)),"") ->  | EC18: =IFERROR(INDEX($EG18:$IV18,MATCH(0,COUNTIF($DR18:EB18,$EG18:$IV18),0)),"") ->  | ED18: =IFERROR(INDEX($EG18:$IV18,MATCH(0,COUNTIF($DR18:EC18,$EG18:$IV18),0)),"") ->  | FK18: {Measure:Quantity} | FL18: {Wattage} | FU18: {Measure:Quantity} | FV18: {Wattage} | GE18: {Measure:Quantity} | GF18: {Wattage} | GO18: {Measure:Quantity} | GP18: {Wattage} | GY18: {Measure:Quantity} | GZ18: {Wattage} | HI18: {Measure:Quantity} | HJ18: {Wattage} | HS18: {Measure:Quantity} | HT18: {Wattage} | IC18: {Measure:Quantity} | ID18: {Wattage} | IM18: {Measure:Quantity} | IN18: {Wattage} | IZ18: 2
A19: Arrearage Management Program | B19: Low Flow Bathroom Aerator Direct Install | C19: LILFBA | D19: 2021-07-01 | E19: 2022-06-30 | F19: Per Measure | G19: 0.49 | H19: 0 | I19: Per Measure | J19: 0.49 | K19: 0 | L19: 2021-07-01 | M19: 2022-06-30 | N19: Calculated | O19: {Measure:Quantity}*if({Measure:Quantity}=0,0,29) | U19: {Measure:Quantity}*if({Measure:Quantity}=0,0,0.0044) | V19: {Measure:Quantity}*if({Measure:Quantity}=0,0,0.0035) | AB19: if({Measure:Quantity}=0,0,{Measure:Quantity}*333) | AC19: 2021-07-01 | AD19: 2022-06-30 | AE19: 10 | AF19: 0.004 | AG19: 0.003 | AH19: 0.397 | AI19: 0.268 | AJ19: 0.203 | AK19: 0.131 | AL19: 0.77 | AM19: 1 | AN19: 1 | AO19: 0 | AP19: 0 | AR19: {Measure:Quantity} | AS19: 1 | BL19: =AS19*IF(AS19=0,0,29) -> 29 | BM19: 0 | BN19: 0 | BO19: 0 | BP19: 0 | BQ19: 0 | BR19: =AS19*IF(AS19=0,0,0.0044) -> 0.0044 | BS19: =AS19*IF(AS19=0,0,0.0035) -> 0.0035 | BT19: 0 | BU19: 0 | BV19: 0 | BW19: 0 | BX19: 0 | BY19: =IF(AS19=0,0,AS19*333) -> 333 | CA19: Res | CB19: Default DR | CC19: =Benefits(BL19,BR19,BS19,BT19,BU19,BV19,BW19,BX19,BY19,BZ19,AE19,AH19,AI19,AJ19,AK19,AL19,AM19,AN19,AO19,AP19,CA19,CB19) -> 21.57044989 | CD19: 12.59944238 | CE19: 0 | CF19: 0 | CG19: 0 | CH19: 0 | CI19: 0 | CJ19: 20.15012181 | CK19: 0 | CL19: =SUMPRODUCT(CC19:CK19,--(CC19:CK19>0)) -> 54.32001408 | CM19: =-SUMPRODUCT(CC19:CK19,--(CC19:CK19<0)) -> 0 | CO19: =0.49 -> 0.49 | CR19: 0.49 | CS19: 1 | CT19: 110.8571716 | CU19: 1 | CV19: =0.49 -> 0.49 | CX19: Electric | CY19: y | DA19: X=0.49 | DB19: X=0.49 | DC19: X=AS19*if(AS19=0,0,29) | DD19: 0 | DE19: 0 | DF19: 0 | DG19: 0 | DH19: 0 | DI19: X=AS19*if(AS19=0,0,0.0044) | DJ19: X=AS19*if(AS19=0,0,0.0035) | DK19: 0 | DL19: 0 | DM19: 0 | DN19: 0 | DO19: 0 | DP19: X=if(AS19=0,0,AS19*333) | DS19: {Factor:WinterCF} | DT19: {Factor:SummerCF} | DU19: =IFERROR(INDEX($EG19:$IV19,MATCH(0,COUNTIF($DR19:DT19,$EG19:$IV19),0)),"") -> {Measure:Quantity} | DV19: =IFERROR(INDEX($EG19:$IV19,MATCH(0,COUNTIF($DR19:DU19,$EG19:$IV19),0)),"") ->  | DW19: =IFERROR(INDEX($EG19:$IV19,MATCH(0,COUNTIF($DR19:DV19,$EG19:$IV19),0)),"") ->  | DX19: =IFERROR(INDEX($EG19:$IV19,MATCH(0,COUNTIF($DR19:DW19,$EG19:$IV19),0)),"") ->  | DY19: =IFERROR(INDEX($EG19:$IV19,MATCH(0,COUNTIF($DR19:DX19,$EG19:$IV19),0)),"") ->  | DZ19: =IFERROR(INDEX($EG19:$IV19,MATCH(0,COUNTIF($DR19:DY19,$EG19:$IV19),0)),"") ->  | EA19: =IFERROR(INDEX($EG19:$IV19,MATCH(0,COUNTIF($DR19:DZ19,$EG19:$IV19),0)),"") ->  | EB19: =IFERROR(INDEX($EG19:$IV19,MATCH(0,COUNTIF($DR19:EA19,$EG19:$IV19),0)),"") ->  | EC19: =IFERROR(INDEX($EG19:$IV19,MATCH(0,COUNTIF($DR19:EB19,$EG19:$IV19),0)),"") ->  | ED19: =IFERROR(INDEX($EG19:$IV19,MATCH(0,COUNTIF($DR19:EC19,$EG19:$IV19),0)),"") ->  | EG19: =IFERROR(MID($G19,FIND(CHAR(160),SUBSTITUTE($G19,"{",CHAR(160),EG$1)),FIND(CHAR(160),SUBSTITUTE($G19,"}",CHAR(160),EG$1))-FIND(CHAR(160),SUBSTITUTE($G19,"{",CHAR(160),EG$1))+1),"") ->  | EQ19: =IFERROR(MID($J19,FIND(CHAR(160),SUBSTITUTE($J19,"{",CHAR(160),EQ$1)),FIND(CHAR(160),SUBSTITUTE($J19,"}",CHAR(160),EQ$1))-FIND(CHAR(160),SUBSTITUTE($J19,"{",CHAR(160),EQ$1))+1),"") ->  | FC19: =IFERROR(MID($O19,FIND(CHAR(160),SUBSTITUTE($O19,"{",CHAR(160),FC$1)),FIND(CHAR(160),SUBSTITUTE($O19,"}",CHAR(160),FC$1))-FIND(CHAR(160),SUBSTITUTE($O19,"{",CHAR(160),FC$1))+1),"") ->  | FK19: {Measure:Quantity} | FL19: {Measure:Quantity} | FM19: =IFERROR(MID($R19,FIND(CHAR(160),SUBSTITUTE($R19,"{",CHAR(160),FM$1)),FIND(CHAR(160),SUBSTITUTE($R19,"}",CHAR(160),FM$1))-FIND(CHAR(160),SUBSTITUTE($R19,"{",CHAR(160),FM$1))+1),"") ->  | FW19: =IFERROR(MID($U19,FIND(CHAR(160),SUBSTITUTE($U19,"{",CHAR(160),FW$1)),FIND(CHAR(160),SUBSTITUTE($U19,"}",CHAR(160),FW$1))-FIND(CHAR(160),SUBSTITUTE($U19,"{",CHAR(160),FW$1))+1),"") ->  | GE19: {Measure:Quantity} | GF19: {Measure:Quantity} | GG19: =IFERROR(MID($V19,FIND(CHAR(160),SUBSTITUTE($V19,"{",CHAR(160),GG$1)),FIND(CHAR(160),SUBSTITUTE($V19,"}",CHAR(160),GG$1))-FIND(CHAR(160),SUBSTITUTE($V19,"{",CHAR(160),GG$1))+1),"") ->  | GO19: {Measure:Quantity} | GP19: {Measure:Quantity} | GQ19: =IFERROR(MID($W19,FIND(CHAR(160),SUBSTITUTE($W19,"{",CHAR(160),GQ$1)),FIND(CHAR(160),SUBSTITUTE($W19,"}",CHAR(160),GQ$1))-FIND(CHAR(160),SUBSTITUTE($W19,"{",CHAR(160),GQ$1))+1),"") ->  | HA19: =IFERROR(MID($X19,FIND(CHAR(160),SUBSTITUTE($X19,"{",CHAR(160),HA$1)),FIND(CHAR(160),SUBSTITUTE($X19,"}",CHAR(160),HA$1))-FIND(CHAR(160),SUBSTITUTE($X19,"{",CHAR(160),HA$1))+1),"") ->  | HK19: =IFERROR(MID($Y19,FIND(CHAR(160),SUBSTITUTE($Y19,"{",CHAR(160),HK$1)),FIND(CHAR(160),SUBSTITUTE($Y19,"}",CHAR(160),HK$1))-FIND(CHAR(160),SUBSTITUTE($Y19,"{",CHAR(160),HK$1))+1),"") ->  | HU19: =IFERROR(MID($Z19,FIND(CHAR(160),SUBSTITUTE($Z19,"{",CHAR(160),HU$1)),FIND(CHAR(160),SUBSTITUTE($Z19,"}",CHAR(160),HU$1))-FIND(CHAR(160),SUBSTITUTE($Z19,"{",CHAR(160),HU$1))+1),"") ->  | IE19: =IFERROR(MID($AA19,FIND(CHAR(160),SUBSTITUTE($AA19,"{",CHAR(160),IE$1)),FIND(CHAR(160),SUBSTITUTE($AA19,"}",CHAR(160),IE$1))-FIND(CHAR(160),SUBSTITUTE($AA19,"{",CHAR(160),IE$1))+1),"") ->  | IO19: =IFERROR(MID($AB19,FIND(CHAR(160),SUBSTITUTE($AB19,"{",CHAR(160),IO$1)),FIND(CHAR(160),SUBSTITUTE($AB19,"}",CHAR(160),IO$1))-FIND(CHAR(160),SUBSTITUTE($AB19,"{",CHAR(160),IO$1))+1),"") ->  | IZ19: 1
A20: Arrearage Management Program | B20: Low Flow Kitchen Aerator Direct Install | C20: LILFKA | D20: 2021-07-01 | E20: 2022-06-30 | F20: Per Measure | G20: 1.77 | H20: 0 | I20: Per Measure | J20: 1.77 | K20: 0 | L20: 2021-07-01 | M20: 2022-06-30 | N20: Calculated | O20: {Measure:Quantity}*if({Measure:Quantity}=0,0,283) | U20: {Measure:Quantity}*if({Measure:Quantity}=0,0,0.043) | V20: {Measure:Quantity}*if({Measure:Quantity}=0,0,0.034) | AB20: if({Measure:Quantity}=0,0,{Measure:Quantity}*2696) | AC20: 2021-07-01 | AD20: 2022-06-30 | AE20: 10 | AF20: 0.012 | AG20: 0.008 | AH20: 0.397 | AI20: 0.268 | AJ20: 0.203 | AK20: 0.131 | AL20: 0.85 | AM20: 1 | AN20: 1 | AO20: 0 | AP20: 0 | AR20: {Measure:Quantity} | AS20: 1 | BL20: =AS20*IF(AS20=0,0,283) -> 283 | BM20: 0 | BN20: 0 | BO20: 0 | BP20: 0 | BQ20: 0 | BR20: =AS20*IF(AS20=0,0,0.043) -> 0.043 | BS20: =AS20*IF(AS20=0,0,0.034) -> 0.034 | BT20: 0 | BU20: 0 | BV20: 0 | BW20: 0 | BX20: 0 | BY20: =IF(AS20=0,0,AS20*2696) -> 2696 | CA20: Res | CB20: Default DR | CC20: =Benefits(BL20,BR20,BS20,BT20,BU20,BV20,BW20,BX20,BY20,BZ20,AE20,AH20,AI20,AJ20,AK20,AL20,AM20,AN20,AO20,AP20,CA20,CB20) -> 232.3677439 | CD20: 135.6924425 | CE20: 0 | CF20: 0 | CG20: 0 | CH20: 0 | CI20: 0 | CJ20: 163.1373225 | CK20: 0 | CL20: =SUMPRODUCT(CC20:CK20,--(CC20:CK20>0)) -> 531.1975089 | CM20: =-SUMPRODUCT(CC20:CK20,--(CC20:CK20<0)) -> 0 | CO20: =1.77 -> 1.77 | CR20: 1.77 | CS20: 1 | CT20: 300.111587 | CU20: 1 | CV20: =1.77 -> 1.77 | CX20: Electric | CY20: y | DA20: X=1.77 | DB20: X=1.77 | DC20: X=AS20*if(AS20=0,0,283) | DD20: 0 | DE20: 0 | DF20: 0 | DG20: 0 | DH20: 0 | DI20: X=AS20*if(AS20=0,0,0.043) | DJ20: X=AS20*if(AS20=0,0,0.034) | DK20: 0 | DL20: 0 | DM20: 0 | DN20: 0 | DO20: 0 | DP20: X=if(AS20=0,0,AS20*2696) | DS20: {Factor:WinterCF} | DT20: {Factor:SummerCF} | DU20: =IFERROR(INDEX($EG20:$IV20,MATCH(0,COUNTIF($DR20:DT20,$EG20:$IV20),0)),"") -> {Measure:Quantity} | DV20: =IFERROR(INDEX($EG20:$IV20,MATCH(0,COUNTIF($DR20:DU20,$EG20:$IV20),0)),"") ->  | DW20: =IFERROR(INDEX($EG20:$IV20,MATCH(0,COUNTIF($DR20:DV20,$EG20:$IV20),0)),"") ->  | DX20: =IFERROR(INDEX($EG20:$IV20,MATCH(0,COUNTIF($DR20:DW20,$EG20:$IV20),0)),"") ->  | DY20: =IFERROR(INDEX($EG20:$IV20,MATCH(0,COUNTIF($DR20:DX20,$EG20:$IV20),0)),"") ->  | DZ20: =IFERROR(INDEX($EG20:$IV20,MATCH(0,COUNTIF($DR20:DY20,$EG20:$IV20),0)),"") ->  | EA20: =IFERROR(INDEX($EG20:$IV20,MATCH(0,COUNTIF($DR20:DZ20,$EG20:$IV20),0)),"") ->  | EB20: =IFERROR(INDEX($EG20:$IV20,MATCH(0,COUNTIF($DR20:EA20,$EG20:$IV20),0)),"") ->  | EC20: =IFERROR(INDEX($EG20:$IV20,MATCH(0,COUNTIF($DR20:EB20,$EG20:$IV20),0)),"") ->  | ED20: =IFERROR(INDEX($EG20:$IV20,MATCH(0,COUNTIF($DR20:EC20,$EG20:$IV20),0)),"") ->  | FK20: {Measure:Quantity} | FL20: {Measure:Quantity} | GE20: {Measure:Quantity} | GF20: {Measure:Quantity} | GO20: {Measure:Quantity} | GP20: {Measure:Quantity} | IZ20: 1
A21: Arrearage Management Program | B21: Low Flow Handheld Shower Head Direct Install | C21: LILHSH | D21: 2021-07-01 | E21: 2022-06-30 | F21: Per Measure | G21: 32.44 | H21: 0 | I21: Per Measure | J21: 32.44 | K21: 0 | L21: 2021-07-01 | M21: 2022-06-30 | N21: Calculated | O21: {Measure:Quantity}*if({Measure:Quantity}=0,0,442) | U21: {Measure:Quantity}*if({Measure:Quantity}=0,0,0.044) | V21: {Measure:Quantity}*if({Measure:Quantity}=0,0,0.035) | AB21: if({Measure:Quantity}=0,0,{Measure:Quantity}*3153) | AC21: 2021-07-01 | AD21: 2022-06-30 | AE21: 10 | AF21: 0.008 | AG21: 0.005 | AH21: 0.355 | AI21: 0.311 | AJ21: 0.181 | AK21: 0.153 | AL21: 0.88 | AM21: 1 | AN21: 1 | AO21: 0 | AP21: 0 | AR21: {Measure:Quantity} | AS21: 1 | BL21: =AS21*IF(AS21=0,0,442) -> 442 | BM21: 0 | BN21: 0 | BO21: 0 | BP21: 0 | BQ21: 0 | BR21: =AS21*IF(AS21=0,0,0.044) -> 0.044 | BS21: =AS21*IF(AS21=0,0,0.035) -> 0.035 | BT21: 0 | BU21: 0 | BV21: 0 | BW21: 0 | BX21: 0 | BY21: =IF(AS21=0,0,AS21*3153) -> 3153 | CA21: Res | CB21: Default DR | CC21: =Benefits(BL21,BR21,BS21,BT21,BU21,BV21,BW21,BX21,BY21,BZ21,AE21,AH21,AI21,AJ21,AK21,AL21,AM21,AN21,AO21,AP21,CA21,CB21) -> 376.9191174 | CD21: 143.9936272 | CE21: 0 | CF21: 0 | CG21: 0 | CH21: 0 | CI21: 0 | CJ21: 190.790793 | CK21: 0 | CL21: =SUMPRODUCT(CC21:CK21,--(CC21:CK21>0)) -> 711.7035377 | CM21: =-SUMPRODUCT(CC21:CK21,--(CC21:CK21<0)) -> 0 | CO21: =32.44 -> 32.44 | CR21: 32.44 | CS21: 1 | CT21: 21.93907329 | CU21: 1 | CV21: =32.44 -> 32.44 | CX21: Electric | CY21: y | DA21: X=32.44 | DB21: X=32.44 | DC21: X=AS21*if(AS21=0,0,442) | DD21: 0 | DE21: 0 | DF21: 0 | DG21: 0 | DH21: 0 | DI21: X=AS21*if(AS21=0,0,0.044) | DJ21: X=AS21*if(AS21=0,0,0.035) | DK21: 0 | DL21: 0 | DM21: 0 | DN21: 0 | DO21: 0 | DP21: X=if(AS21=0,0,AS21*3153) | DS21: {Factor:WinterCF} | DT21: {Factor:SummerCF} | DU21: =IFERROR(INDEX($EG21:$IV21,MATCH(0,COUNTIF($DR21:DT21,$EG21:$IV21),0)),"") -> {Measure:Quantity} | DV21: =IFERROR(INDEX($EG21:$IV21,MATCH(0,COUNTIF($DR21:DU21,$EG21:$IV21),0)),"") ->  | DW21: =IFERROR(INDEX($EG21:$IV21,MATCH(0,COUNTIF($DR21:DV21,$EG21:$IV21),0)),"") ->  | DX21: =IFERROR(INDEX($EG21:$IV21,MATCH(0,COUNTIF($DR21:DW21,$EG21:$IV21),0)),"") ->  | DY21: =IFERROR(INDEX($EG21:$IV21,MATCH(0,COUNTIF($DR21:DX21,$EG21:$IV21),0)),"") ->  | DZ21: =IFERROR(INDEX($EG21:$IV21,MATCH(0,COUNTIF($DR21:DY21,$EG21:$IV21),0)),"") ->  | EA21: =IFERROR(INDEX($EG21:$IV21,MATCH(0,COUNTIF($DR21:DZ21,$EG21:$IV21),0)),"") ->  | EB21: =IFERROR(INDEX($EG21:$IV21,MATCH(0,COUNTIF($DR21:EA21,$EG21:$IV21),0)),"") ->  | EC21: =IFERROR(INDEX($EG21:$IV21,MATCH(0,COUNTIF($DR21:EB21,$EG21:$IV21),0)),"") ->  | ED21: =IFERROR(INDEX($EG21:$IV21,MATCH(0,COUNTIF($DR21:EC21,$EG21:$IV21),0)),"") ->  | FK21: {Measure:Quantity} | FL21: {Measure:Quantity} | GE21: {Measure:Quantity} | GF21: {Measure:Quantity} | GO21: {Measure:Quantity} | GP21: {Measure:Quantity} | IZ21: 1
A22: Arrearage Management Program | B22: Low Flow Wall Mounted Shower Head Direct Install | C22: LILWSH | D22: 2021-07-01 | E22: 2022-06-30 | F22: Per Measure | G22: 26.5 | H22: 0 | I22: Per Measure | J22: 26.5 | K22: 0 | L22: 2021-07-01 | M22: 2022-06-30 | N22: Calculated | O22: {Measure:Quantity}*if({Measure:Quantity}=0,0,442) | U22: {Measure:Quantity}*if({Measure:Quantity}=0,0,0.044) | V22: {Measure:Quantity}*if({Measure:Quantity}=0,0,0.035) | AB22: if({Measure:Quantity}=0,0,{Measure:Quantity}*3153) | AC22: 2021-07-01 | AD22: 2022-06-30 | AE22: 10 | AF22: 0.008 | AG22: 0.005 | AH22: 0.355 | AI22: 0.311 | AJ22: 0.181 | AK22: 0.153 | AL22: 0.88 | AM22: 1 | AN22: 1 | AO22: 0 | AP22: 0 | AR22: {Measure:Quantity} | AS22: 1 | BL22: =AS22*IF(AS22=0,0,442) -> 442 | BM22: 0 | BN22: 0 | BO22: 0 | BP22: 0 | BQ22: 0 | BR22: =AS22*IF(AS22=0,0,0.044) -> 0.044 | BS22: =AS22*IF(AS22=0,0,0.035) -> 0.035 | BT22: 0 | BU22: 0 | BV22: 0 | BW22: 0 | BX22: 0 | BY22: =IF(AS22=0,0,AS22*3153) -> 3153 | CA22: Res | CB22: Default DR | CC22: =Benefits(BL22,BR22,BS22,BT22,BU22,BV22,BW22,BX22,BY22,BZ22,AE22,AH22,AI22,AJ22,AK22,AL22,AM22,AN22,AO22,AP22,CA22,CB22) -> 376.9191174 | CD22: 143.9936272 | CE22: 0 | CF22: 0 | CG22: 0 | CH22: 0 | CI22: 0 | CJ22: 190.790793 | CK22: 0 | CL22: =SUMPRODUCT(CC22:CK22,--(CC22:CK22>0)) -> 711.7035377 | CM22: =-SUMPRODUCT(CC22:CK22,--(CC22:CK22<0)) -> 0 | CO22: =26.5 -> 26.5 | CR22: 26.5 | CS22: 1 | CT22: 26.85673727 | CU22: 1 | CV22: =26.5 -> 26.5 | CX22: Electric | CY22: y | DA22: X=26.5 | DB22: X=26.5 | DC22: X=AS22*if(AS22=0,0,442) | DD22: 0 | DE22: 0 | DF22: 0 | DG22: 0 | DH22: 0 | DI22: X=AS22*if(AS22=0,0,0.044) | DJ22: X=AS22*if(AS22=0,0,0.035) | DK22: 0 | DL22: 0 | DM22: 0 | DN22: 0 | DO22: 0 | DP22: X=if(AS22=0,0,AS22*3153) | DS22: {Factor:WinterCF} | DT22: {Factor:SummerCF} | DU22: =IFERROR(INDEX($EG22:$IV22,MATCH(0,COUNTIF($DR22:DT22,$EG22:$IV22),0)),"") -> {Measure:Quantity} | DV22: =IFERROR(INDEX($EG22:$IV22,MATCH(0,COUNTIF($DR22:DU22,$EG22:$IV22),0)),"") ->  | DW22: =IFERROR(INDEX($EG22:$IV22,MATCH(0,COUNTIF($DR22:DV22,$EG22:$IV22),0)),"") ->  | DX22: =IFERROR(INDEX($EG22:$IV22,MATCH(0,COUNTIF($DR22:DW22,$EG22:$IV22),0)),"") ->  | DY22: =IFERROR(INDEX($EG22:$IV22,MATCH(0,COUNTIF($DR22:DX22,$EG22:$IV22),0)),"") ->  | DZ22: =IFERROR(INDEX($EG22:$IV22,MATCH(0,COUNTIF($DR22:DY22,$EG22:$IV22),0)),"") ->  | EA22: =IFERROR(INDEX($EG22:$IV22,MATCH(0,COUNTIF($DR22:DZ22,$EG22:$IV22),0)),"") ->  | EB22: =IFERROR(INDEX($EG22:$IV22,MATCH(0,COUNTIF($DR22:EA22,$EG22:$IV22),0)),"") ->  | EC22: =IFERROR(INDEX($EG22:$IV22,MATCH(0,COUNTIF($DR22:EB22,$EG22:$IV22),0)),"") ->  | ED22: =IFERROR(INDEX($EG22:$IV22,MATCH(0,COUNTIF($DR22:EC22,$EG22:$IV22),0)),"") ->  | FK22: {Measure:Quantity} | FL22: {Measure:Quantity} | GE22: {Measure:Quantity} | GF22: {Measure:Quantity} | GO22: {Measure:Quantity} | GP22: {Measure:Quantity} | IZ22: 1
A23: C&I Agricultural Solutions | B23: POTATO: Adjustable Speed Drive - 10 HP Ventilation Fan Motor | C23: AASD - ASD10 | D23: 2021-07-01 | E23: 2022-06-30 | F23: Per Measure | G23: 1745 | H23: 0 | I23: Per Measure | J23: 1200 | K23: 0 | L23: 2016-07-01 | M23: 2022-06-30 | N23: Calculated | O23: {Measure:Quantity} * {Fan HP} * 2540 | P23: 0.0001 | R23: {Measure:Quantity} * {Fan HP} * 0.71 | U23: {Measure:Quantity} * {Fan HP} * 0.71 * {Factor:WinterCF} | V23: {Measure:Quantity} * {Fan HP} * 0.71 * {Factor:SummerCF} | AC23: 2020-04-01 | AD23: 2022-06-30 | AE23: 15 | AF23: 0.737 | AG23: 0 | AH23: 0.667 | AI23: 0.333 | AJ23: 0 | AK23: 0 | AL23: 1 | AM23: 1.122 | AN23: 1 | AO23: 0.52 | AP23: 0.016 | AR23: {Measure:Quantity} | AS23: 1 | AT23: {Fan HP} | AU23: 10 | BL23: =AS23 * AU23 * 2540 -> 25400 | BM23: =0.0001 -> 0.0001 | BN23: 0 | BO23: =AS23 * AU23 * 0.71 -> 7.1 | BP23: 0 | BQ23: 0 | BR23: =AS23 * AU23 * 0.71 * AF23 -> 5.2327 | BS23: =AS23 * AU23 * 0.71 * AG23 -> 0 | BT23: 0 | BU23: 0 | BV23: 0 | BW23: 0 | BX23: 0 | BY23: 0 | CA23: Res | CB23: Default DR | CC23: =Benefits(BL23,BR23,BS23,BT23,BU23,BV23,BW23,BX23,BY23,BZ23,AE23,AH23,AI23,AJ23,AK23,AL23,AM23,AN23,AO23,AP23,CA23,CB23) -> 39211.66349 | CD23: 19663.95094 | CE23: 0 | CF23: 0 | CG23: 0 | CH23: 0 | CI23: 0 | CJ23: 0 | CK23: 0 | CL23: =SUMPRODUCT(CC23:CK23,--(CC23:CK23>0)) -> 58875.61443 | CM23: =-SUMPRODUCT(CC23:CK23,--(CC23:CK23<0)) -> 0 | CO23: =1745 -> 1745 | CR23: 1745 | CS23: 1 | CT23: 33.73960713 | CU23: 1 | CV23: =1200 -> 1200 | CX23: Electric | CY23: y | DA23: X=1745 | DB23: X=1200 | DC23: X=AS23 * AU23 * 2540 | DD23: X=0.0001 | DE23: 0 | DF23: X=AS23 * AU23 * 0.71 | DG23: 0 | DH23: 0 | DI23: X=AS23 * AU23 * 0.71 * AF23 | DJ23: X=AS23 * AU23 * 0.71 * AG23 | DK23: 0 | DL23: 0 | DM23: 0 | DN23: 0 | DO23: 0 | DP23: 0 | DS23: {Factor:WinterCF} | DT23: {Factor:SummerCF} | DU23: =IFERROR(INDEX($EG23:$IV23,MATCH(0,COUNTIF($DR23:DT23,$EG23:$IV23),0)),"") -> {Measure:Quantity} | DV23: =IFERROR(INDEX($EG23:$IV23,MATCH(0,COUNTIF($DR23:DU23,$EG23:$IV23),0)),"") -> {Fan HP} | DW23: =IFERROR(INDEX($EG23:$IV23,MATCH(0,COUNTIF($DR23:DV23,$EG23:$IV23),0)),"") ->  | DX23: =IFERROR(INDEX($EG23:$IV23,MATCH(0,COUNTIF($DR23:DW23,$EG23:$IV23),0)),"") ->  | DY23: =IFERROR(INDEX($EG23:$IV23,MATCH(0,COUNTIF($DR23:DX23,$EG23:$IV23),0)),"") ->  | DZ23: =IFERROR(INDEX($EG23:$IV23,MATCH(0,COUNTIF($DR23:DY23,$EG23:$IV23),0)),"") ->  | EA23: =IFERROR(INDEX($EG23:$IV23,MATCH(0,COUNTIF($DR23:DZ23,$EG23:$IV23),0)),"") ->  | EB23: =IFERROR(INDEX($EG23:$IV23,MATCH(0,COUNTIF($DR23:EA23,$EG23:$IV23),0)),"") ->  | EC23: =IFERROR(INDEX($EG23:$IV23,MATCH(0,COUNTIF($DR23:EB23,$EG23:$IV23),0)),"") ->  | ED23: =IFERROR(INDEX($EG23:$IV23,MATCH(0,COUNTIF($DR23:EC23,$EG23:$IV23),0)),"") ->  | FK23: {Measure:Quantity} | FL23: {Fan HP} | FU23: {Measure:Quantity} | FV23: {Fan HP} | FW23: {Factor:WinterCF} | GE23: {Measure:Quantity} | GF23: {Fan HP} | GG23: {Factor:SummerCF} | GO23: {Measure:Quantity} | GP23: {Fan HP} | IZ23: 2
A24: C&I Agricultural Solutions | B24: POTATO: Adjustable Speed Drive - 15 HP Ventilation Fan Motor | C24: AASD - ASD15 | D24: 2021-07-01 | E24: 2022-06-30 | F24: Per Measure | G24: 2525 | H24: 0 | I24: Per Measure | J24: 1800 | K24: 0 | L24: 2016-07-01 | M24: 2022-06-30 | N24: Calculated | O24: {Measure:Quantity} * {Fan HP} * 2540 | P24: 0.0001 | R24: {Measure:Quantity} * {Fan HP} * 0.71 | U24: {Measure:Quantity} * {Fan HP} * 0.71 * {Factor:WinterCF} | V24: {Measure:Quantity} * {Fan HP} * 0.71 * {Factor:SummerCF} | AC24: 2020-04-01 | AD24: 2022-06-30 | AE24: 15 | AF24: 0.737 | AG24: 0 | AH24: 0.667 | AI24: 0.333 | AJ24: 0 | AK24: 0 | AL24: 1 | AM24: 1.122 | AN24: 1 | AO24: 0.52 | AP24: 0.016 | AR24: {Measure:Quantity} | AS24: 1 | AT24: {Fan HP} | AU24: 15 | BL24: =AS24 * AU24 * 2540 -> 38100 | BM24: 0.0001 | BN24: 0 | BO24: =AS24 * AU24 * 0.71 -> 10.65 | BP24: 0 | BQ24: 0 | BR24: =AS24 * AU24 * 0.71 * AF24 -> 7.84905 | BS24: =AS24 * AU24 * 0.71 * AG24 -> 0 | BT24: 0 | BU24: 0 | BV24: 0 | BW24: 0 | BX24: 0 | BY24: 0 | CA24: Res | CB24: Default DR | CC24: =Benefits(BL24,BR24,BS24,BT24,BU24,BV24,BW24,BX24,BY24,BZ24,AE24,AH24,AI24,AJ24,AK24,AL24,AM24,AN24,AO24,AP24,CA24,CB24) -> 58817.49524 | CD24: 29495.92641 | CE24: 0 | CF24: 0 | CG24: 0 | CH24: 0 | CI24: 0 | CJ24: 0 | CK24: 0 | CL24: =SUMPRODUCT(CC24:CK24,--(CC24:CK24>0)) -> 88313.42165 | CM24: =-SUMPRODUCT(CC24:CK24,--(CC24:CK24<0)) -> 0 | CO24: =2525 -> 2525 | CR24: 2525 | CS24: 1 | CT24: 34.97561254 | CU24: 1 | CV24: =1800 -> 1800 | CX24: Electric | CY24: y | DA24: X=2525 | DB24: X=1800 | DC24: X=AS24 * AU24 * 2540 | DD24: X=0.0001 | DE24: 0 | DF24: X=AS24 * AU24 * 0.71 | DG24: 0 | DH24: 0 | DI24: X=AS24 * AU24 * 0.71 * AF24 | DJ24: X=AS24 * AU24 * 0.71 * AG24 | DK24: 0 | DL24: 0 | DM24: 0 | DN24: 0 | DO24: 0 | DP24: 0 | DS24: {Factor:WinterCF} | DT24: {Factor:SummerCF} | DU24: =IFERROR(INDEX($EG24:$IV24,MATCH(0,COUNTIF($DR24:DT24,$EG24:$IV24),0)),"") -> {Measure:Quantity} | DV24: =IFERROR(INDEX($EG24:$IV24,MATCH(0,COUNTIF($DR24:DU24,$EG24:$IV24),0)),"") -> {Fan HP} | DW24: =IFERROR(INDEX($EG24:$IV24,MATCH(0,COUNTIF($DR24:DV24,$EG24:$IV24),0)),"") ->  | DX24: =IFERROR(INDEX($EG24:$IV24,MATCH(0,COUNTIF($DR24:DW24,$EG24:$IV24),0)),"") ->  | DY24: =IFERROR(INDEX($EG24:$IV24,MATCH(0,COUNTIF($DR24:DX24,$EG24:$IV24),0)),"") ->  | DZ24: =IFERROR(INDEX($EG24:$IV24,MATCH(0,COUNTIF($DR24:DY24,$EG24:$IV24),0)),"") ->  | EA24: =IFERROR(INDEX($EG24:$IV24,MATCH(0,COUNTIF($DR24:DZ24,$EG24:$IV24),0)),"") ->  | EB24: =IFERROR(INDEX($EG24:$IV24,MATCH(0,COUNTIF($DR24:EA24,$EG24:$IV24),0)),"") ->  | EC24: =IFERROR(INDEX($EG24:$IV24,MATCH(0,COUNTIF($DR24:EB24,$EG24:$IV24),0)),"") ->  | ED24: =IFERROR(INDEX($EG24:$IV24,MATCH(0,COUNTIF($DR24:EC24,$EG24:$IV24),0)),"") ->  | FK24: {Measure:Quantity} | FL24: {Fan HP} | FU24: {Measure:Quantity} | FV24: {Fan HP} | FW24: {Factor:WinterCF} | GE24: {Measure:Quantity} | GF24: {Fan HP} | GG24: {Factor:SummerCF} | GO24: {Measure:Quantity} | GP24: {Fan HP} | IZ24: 2
A25: C&I Agricultural Solutions | B25: POTATO: Adjustable Speed Drive - 20 HP Ventilation Fan Motor | C25: AASD - ASD20 | D25: 2021-07-01 | E25: 2022-06-30 | F25: Per Measure | G25: 2725 | H25: 0 | I25: Per Measure | J25: 2000 | K25: 0 | L25: 2016-07-01 | M25: 2022-06-30 | N25: Calculated | O25: {Measure:Quantity} * {Fan HP} * 2540 | P25: 0.0001 | R25: {Measure:Quantity} * {Fan HP} * 0.71 | U25: {Measure:Quantity} * {Fan HP} * 0.71 * {Factor:WinterCF} | V25: {Measure:Quantity} * {Fan HP} * 0.71 * {Factor:SummerCF} | AC25: 2020-04-01 | AD25: 2022-06-30 | AE25: 15 | AF25: 0.737 | AG25: 0 | AH25: 0.667 | AI25: 0.333 | AJ25: 0 | AK25: 0 | AL25: 1 | AM25: 1.122 | AN25: 1 | AO25: 0.52 | AP25: 0.016 | AR25: {Measure:Quantity} | AS25: 1 | AT25: {Fan HP} | AU25: 20 | BL25: =AS25 * AU25 * 2540 -> 50800 | BM25: 0.0001 | BN25: 0 | BO25: =AS25 * AU25 * 0.71 -> 14.2 | BP25: 0 | BQ25: 0 | BR25: =AS25 * AU25 * 0.71 * AF25 -> 10.4654 | BS25: =AS25 * AU25 * 0.71 * AG25 -> 0 | BT25: 0 | BU25: 0 | BV25: 0 | BW25: 0 | BX25: 0 | BY25: 0 | CA25: Res | CB25: Default DR | CC25: =Benefits(BL25,BR25,BS25,BT25,BU25,BV25,BW25,BX25,BY25,BZ25,AE25,AH25,AI25,AJ25,AK25,AL25,AM25,AN25,AO25,AP25,CA25,CB25) -> 78423.32699 | CD25: 39327.90188 | CE25: 0 | CF25: 0 | CG25: 0 | CH25: 0 | CI25: 0 | CJ25: 0 | CK25: 0 | CL25: =SUMPRODUCT(CC25:CK25,--(CC25:CK25>0)) -> 117751.2289 | CM25: =-SUMPRODUCT(CC25:CK25,--(CC25:CK25<0)) -> 0 | CO25: =2725 -> 2725 | CR25: 2725 | CS25: 1 | CT25: 43.21146014 | CU25: 1 | CV25: =2000 -> 2000 | CX25: Electric | CY25: y | DA25: X=2725 | DB25: X=2000 | DC25: X=AS25 * AU25 * 2540 | DD25: X=0.0001 | DE25: 0 | DF25: X=AS25 * AU25 * 0.71 | DG25: 0 | DH25: 0 | DI25: X=AS25 * AU25 * 0.71 * AF25 | DJ25: X=AS25 * AU25 * 0.71 * AG25 | DK25: 0 | DL25: 0 | DM25: 0 | DN25: 0 | DO25: 0 | DP25: 0 | DS25: {Factor:WinterCF} | DT25: {Factor:SummerCF} | DU25: =IFERROR(INDEX($EG25:$IV25,MATCH(0,COUNTIF($DR25:DT25,$EG25:$IV25),0)),"") -> {Measure:Quantity} | DV25: =IFERROR(INDEX($EG25:$IV25,MATCH(0,COUNTIF($DR25:DU25,$EG25:$IV25),0)),"") -> {Fan HP} | DW25: =IFERROR(INDEX($EG25:$IV25,MATCH(0,COUNTIF($DR25:DV25,$EG25:$IV25),0)),"") ->  | DX25: =IFERROR(INDEX($EG25:$IV25,MATCH(0,COUNTIF($DR25:DW25,$EG25:$IV25),0)),"") ->  | DY25: =IFERROR(INDEX($EG25:$IV25,MATCH(0,COUNTIF($DR25:DX25,$EG25:$IV25),0)),"") ->  | DZ25: =IFERROR(INDEX($EG25:$IV25,MATCH(0,COUNTIF($DR25:DY25,$EG25:$IV25),0)),"") ->  | EA25: =IFERROR(INDEX($EG25:$IV25,MATCH(0,COUNTIF($DR25:DZ25,$EG25:$IV25),0)),"") ->  | EB25: =IFERROR(INDEX($EG25:$IV25,MATCH(0,COUNTIF($DR25:EA25,$EG25:$IV25),0)),"") ->  | EC25: =IFERROR(INDEX($EG25:$IV25,MATCH(0,COUNTIF($DR25:EB25,$EG25:$IV25),0)),"") ->  | ED25: =IFERROR(INDEX($EG25:$IV25,MATCH(0,COUNTIF($DR25:EC25,$EG25:$IV25),0)),"") ->  | FK25: {Measure:Quantity} | FL25: {Fan HP} | FU25: {Measure:Quantity} | FV25: {Fan HP} | FW25: {Factor:WinterCF} | GE25: {Measure:Quantity} | GF25: {Fan HP} | GG25: {Factor:SummerCF} | GO25: {Measure:Quantity} | GP25: {Fan HP} | IZ25: 2
A26: C&I Agricultural Solutions | B26: POTATO: Adjustable Speed Drive - 3 to 5 HP Ventilation Fan Motor | C26: AASD - ASD3to5 | D26: 2021-07-01 | E26: 2022-06-30 | F26: Calculated | G26: {Measure:Quantity}*if({Fan HP}<5,963,1105) | H26: 0 | I26: Per Measure | J26: 800 | K26: 0 | L26: 2016-07-01 | M26: 2022-06-30 | N26: Calculated | O26: {Measure:Quantity} * {Fan HP} * 2540 | P26: 0.0001 | R26: {Measure:Quantity} * {Fan HP} * 0.71 | U26: {Measure:Quantity} * {Fan HP} * 0.71 * {Factor:WinterCF} | V26: {Measure:Quantity} * {Fan HP} * 0.71 * {Factor:SummerCF} | AC26: 2020-04-01 | AD26: 2022-06-30 | AE26: 15 | AF26: 0.737 | AG26: 0 | AH26: 0.667 | AI26: 0.333 | AJ26: 0 | AK26: 0 | AL26: 1 | AM26: 1.122 | AN26: 1 | AO26: 0.52 | AP26: 0.016 | AR26: {Measure:Quantity} | AS26: 1 | AT26: {Fan HP} | AU26: 4 | BL26: =AS26 * AU26 * 2540 -> 10160 | BM26: 0.0001 | BN26: 0 | BO26: =AS26 * AU26 * 0.71 -> 2.84 | BP26: 0 | BQ26: 0 | BR26: =AS26 * AU26 * 0.71 * AF26 -> 2.09308 | BS26: =AS26 * AU26 * 0.71 * AG26 -> 0 | BT26: 0 | BU26: 0 | BV26: 0 | BW26: 0 | BX26: 0 | BY26: 0 | CA26: Res | CB26: Default DR | CC26: =Benefits(BL26,BR26,BS26,BT26,BU26,BV26,BW26,BX26,BY26,BZ26,AE26,AH26,AI26,AJ26,AK26,AL26,AM26,AN26,AO26,AP26,CA26,CB26) -> 15684.6654 | CD26: 7865.580377 | CE26: 0 | CF26: 0 | CG26: 0 | CH26: 0 | CI26: 0 | CJ26: 0 | CK26: 0 | CL26: =SUMPRODUCT(CC26:CK26,--(CC26:CK26>0)) -> 23550.24577 | CM26: =-SUMPRODUCT(CC26:CK26,--(CC26:CK26<0)) -> 0 | CO26: =AS26*IF(AU26<5,963,1105) -> 963 | CR26: 963 | CS26: 1 | CT26: 24.45508388 | CU26: 1 | CV26: =800 -> 800 | CX26: Electric | CY26: y | DA26: X=AS26*if(AU26<5,963,1105) | DB26: X=800 | DC26: X=AS26 * AU26 * 2540 | DD26: X=0.0001 | DE26: 0 | DF26: X=AS26 * AU26 * 0.71 | DG26: 0 | DH26: 0 | DI26: X=AS26 * AU26 * 0.71 * AF26 | DJ26: X=AS26 * AU26 * 0.71 * AG26 | DK26: 0 | DL26: 0 | DM26: 0 | DN26: 0 | DO26: 0 | DP26: 0 | DS26: {Factor:WinterCF} | DT26: {Factor:SummerCF} | DU26: =IFERROR(INDEX($EG26:$IV26,MATCH(0,COUNTIF($DR26:DT26,$EG26:$IV26),0)),"") -> {Measure:Quantity} | DV26: =IFERROR(INDEX($EG26:$IV26,MATCH(0,COUNTIF($DR26:DU26,$EG26:$IV26),0)),"") -> {Fan HP} | DW26: =IFERROR(INDEX($EG26:$IV26,MATCH(0,COUNTIF($DR26:DV26,$EG26:$IV26),0)),"") ->  | DX26: =IFERROR(INDEX($EG26:$IV26,MATCH(0,COUNTIF($DR26:DW26,$EG26:$IV26),0)),"") ->  | DY26: =IFERROR(INDEX($EG26:$IV26,MATCH(0,COUNTIF($DR26:DX26,$EG26:$IV26),0)),"") ->  | DZ26: =IFERROR(INDEX($EG26:$IV26,MATCH(0,COUNTIF($DR26:DY26,$EG26:$IV26),0)),"") ->  | EA26: =IFERROR(INDEX($EG26:$IV26,MATCH(0,COUNTIF($DR26:DZ26,$EG26:$IV26),0)),"") ->  | EB26: =IFERROR(INDEX($EG26:$IV26,MATCH(0,COUNTIF($DR26:EA26,$EG26:$IV26),0)),"") ->  | EC26: =IFERROR(INDEX($EG26:$IV26,MATCH(0,COUNTIF($DR26:EB26,$EG26:$IV26),0)),"") ->  | ED26: =IFERROR(INDEX($EG26:$IV26,MATCH(0,COUNTIF($DR26:EC26,$EG26:$IV26),0)),"") ->  | EG26: {Measure:Quantity} | EH26: {Fan HP} | FK26: {Measure:Quantity} | FL26: {Fan HP} | FU26: {Measure:Quantity} | FV26: {Fan HP} | FW26: {Factor:WinterCF} | GE26: {Measure:Quantity} | GF26: {Fan HP} | GG26: {Factor:SummerCF} | GO26: {Measure:Quantity} | GP26: {Fan HP} | IZ26: 2
A27: C&I Agricultural Solutions | B27: POTATO: Adjustable Speed Drive - 7.5 HP Ventilation Fan Motor | C27: AASD - ASD7.5 | D27: 2021-07-01 | E27: 2022-06-30 | F27: Per Measure | G27: 1467 | H27: 0 | I27: Per Measure | J27: 1000 | K27: 0 | L27: 2016-07-01 | M27: 2022-06-30 | N27: Calculated | O27: {Measure:Quantity} * {Fan HP} * 2540 | P27: 0.0001 | R27: {Measure:Quantity} * {Fan HP} * 0.71 | U27: {Measure:Quantity} * {Fan HP} * 0.71 * {Factor:WinterCF} | V27: {Measure:Quantity} * {Fan HP} * 0.71 * {Factor:SummerCF} | AC27: 2020-04-01 | AD27: 2022-06-30 | AE27: 15 | AF27: 0.737 | AG27: 0 | AH27: 0.667 | AI27: 0.333 | AJ27: 0 | AK27: 0 | AL27: 1 | AM27: 1.122 | AN27: 1 | AO27: 0.52 | AP27: 0.016 | AR27: {Measure:Quantity} | AS27: 1 | AT27: {Fan HP} | AU27: 7.5 | BL27: =AS27 * AU27 * 2540 -> 19050 | BM27: 0.0001 | BN27: 0 | BO27: =AS27 * AU27 * 0.71 -> 5.325 | BP27: 0 | BQ27: 0 | BR27: =AS27 * AU27 * 0.71 * AF27 -> 3.924525 | BS27: =AS27 * AU27 * 0.71 * AG27 -> 0 | BT27: 0 | BU27: 0 | BV27: 0 | BW27: 0 | BX27: 0 | BY27: 0 | CA27: Res | CB27: Default DR | CC27: =Benefits(BL27,BR27,BS27,BT27,BU27,BV27,BW27,BX27,BY27,BZ27,AE27,AH27,AI27,AJ27,AK27,AL27,AM27,AN27,AO27,AP27,CA27,CB27) -> 29408.74762 | CD27: 14747.96321 | CE27: 0 | CF27: 0 | CG27: 0 | CH27: 0 | CI27: 0 | CJ27: 0 | CK27: 0 | CL27: =SUMPRODUCT(CC27:CK27,--(CC27:CK27>0)) -> 44156.71083 | CM27: =-SUMPRODUCT(CC27:CK27,--(CC27:CK27<0)) -> 0 | CO27: =1467 -> 1467 | CR27: 1467 | CS27: 1 | CT27: 30.10000738 | CU27: 1 | CV27: =1000 -> 1000 | CX27: Electric | CY27: y | DA27: X=1467 | DB27: X=1000 | DC27: X=AS27 * AU27 * 2540 | DD27: X=0.0001 | DE27: 0 | DF27: X=AS27 * AU27 * 0.71 | DG27: 0 | DH27: 0 | DI27: X=AS27 * AU27 * 0.71 * AF27 | DJ27: X=AS27 * AU27 * 0.71 * AG27 | DK27: 0 | DL27: 0 | DM27: 0 | DN27: 0 | DO27: 0 | DP27: 0 | DS27: {Factor:WinterCF} | DT27: {Factor:SummerCF} | DU27: =IFERROR(INDEX($EG27:$IV27,MATCH(0,COUNTIF($DR27:DT27,$EG27:$IV27),0)),"") -> {Measure:Quantity} | DV27: =IFERROR(INDEX($EG27:$IV27,MATCH(0,COUNTIF($DR27:DU27,$EG27:$IV27),0)),"") -> {Fan HP} | DW27: =IFERROR(INDEX($EG27:$IV27,MATCH(0,COUNTIF($DR27:DV27,$EG27:$IV27),0)),"") ->  | DX27: =IFERROR(INDEX($EG27:$IV27,MATCH(0,COUNTIF($DR27:DW27,$EG27:$IV27),0)),"") ->  | DY27: =IFERROR(INDEX($EG27:$IV27,MATCH(0,COUNTIF($DR27:DX27,$EG27:$IV27),0)),"") ->  | DZ27: =IFERROR(INDEX($EG27:$IV27,MATCH(0,COUNTIF($DR27:DY27,$EG27:$IV27),0)),"") ->  | EA27: =IFERROR(INDEX($EG27:$IV27,MATCH(0,COUNTIF($DR27:DZ27,$EG27:$IV27),0)),"") ->  | EB27: =IFERROR(INDEX($EG27:$IV27,MATCH(0,COUNTIF($DR27:EA27,$EG27:$IV27),0)),"") ->  | EC27: =IFERROR(INDEX($EG27:$IV27,MATCH(0,COUNTIF($DR27:EB27,$EG27:$IV27),0)),"") ->  | ED27: =IFERROR(INDEX($EG27:$IV27,MATCH(0,COUNTIF($DR27:EC27,$EG27:$IV27),0)),"") ->  | FK27: {Measure:Quantity} | FL27: {Fan HP} | FU27: {Measure:Quantity} | FV27: {Fan HP} | FW27: {Factor:WinterCF} | GE27: {Measure:Quantity} | GF27: {Fan HP} | GG27: {Factor:SummerCF} | GO27: {Measure:Quantity} | GP27: {Fan HP} | IZ27: 2
A28: C&I Agricultural Solutions | B28: MILK: Scroll Compressor - 10 HP | C28: AMSC - AMSC10 | D28: 2021-07-01 | E28: 2022-06-30 | F28: Per Measure | G28: 2051 | H28: 0 | I28: Per Measure | J28: 1100 | K28: 0 | L28: 2016-07-01 | M28: 2022-06-30 | N28: Calculated | O28: 432 * 10 * {Measure:Quantity} | P28: 0.0001 | R28: ((432 * 10) /2850) * {Measure:Quantity} | U28: (((432 * 10) /2850) * {Measure:Quantity}) *{Factor:WinterCF} | V28: (((432 * 10) /2850) * {Measure:Quantity}) *{Factor:SummerCF} | AC28: 2020-04-01 | AD28: 2022-06-30 | AE28: 15 | AF28: 0.674 | AG28: 0.327 | AH28: 0.436 | AI28: 0.232 | AJ28: 0.217 | AK28: 0.115 | AL28: 1 | AM28: 1.122 | AN28: 1 | AO28: 0.52 | AP28: 0.016 | AR28: {Measure:Quantity} | AS28: 1 | BL28: =432 * 10 * AS28 -> 4320 | BM28: 0.0001 | BN28: 0 | BO28: =((432 * 10) /2850) * AS28 -> 1.515789474 | BP28: 0 | BQ28: 0 | BR28: =(((432 * 10) /2850) * AS28) *AF28 -> 1.021642105 | BS28: =(((432 * 10) /2850) * AS28) *AG28 -> 0.4956631579 | BT28: 0 | BU28: 0 | BV28: 0 | BW28: 0 | BX28: 0 | BY28: 0 | CA28: Res | CB28: Default DR | CC28: =Benefits(BL28,BR28,BS28,BT28,BU28,BV28,BW28,BX28,BY28,BZ28,AE28,AH28,AI28,AJ28,AK28,AL28,AM28,AN28,AO28,AP28,CA28,CB28) -> 6343.714494 | CD28: 4770.552152 | CE28: 0 | CF28: 0 | CG28: 0 | CH28: 0 | CI28: 0 | CJ28: 0 | CK28: 0 | CL28: =SUMPRODUCT(CC28:CK28,--(CC28:CK28>0)) -> 11114.26665 | CM28: =-SUMPRODUCT(CC28:CK28,--(CC28:CK28<0)) -> 0 | CO28: =2051 -> 2051 | CR28: 2051 | CS28: 1 | CT28: 5.418950096 | CU28: 1 | CV28: =1100 -> 1100 | CX28: Electric | CY28: y | DA28: X=2051 | DB28: X=1100 | DC28: X=432 * 10 * AS28 | DD28: X=0.0001 | DE28: 0 | DF28: X=((432 * 10) /2850) * AS28 | DG28: 0 | DH28: 0 | DI28: X=(((432 * 10) /2850) * AS28) *AF28 | DJ28: X=(((432 * 10) /2850) * AS28) *AG28 | DK28: 0 | DL28: 0 | DM28: 0 | DN28: 0 | DO28: 0 | DP28: 0 | DS28: {Factor:WinterCF} | DT28: {Factor:SummerCF} | DU28: =IFERROR(INDEX($EG28:$IV28,MATCH(0,COUNTIF($DR28:DT28,$EG28:$IV28),0)),"") -> {Measure:Quantity} | DV28: =IFERROR(INDEX($EG28:$IV28,MATCH(0,COUNTIF($DR28:DU28,$EG28:$IV28),0)),"") ->  | DW28: =IFERROR(INDEX($EG28:$IV28,MATCH(0,COUNTIF($DR28:DV28,$EG28:$IV28),0)),"") ->  | DX28: =IFERROR(INDEX($EG28:$IV28,MATCH(0,COUNTIF($DR28:DW28,$EG28:$IV28),0)),"") ->  | DY28: =IFERROR(INDEX($EG28:$IV28,MATCH(0,COUNTIF($DR28:DX28,$EG28:$IV28),0)),"") ->  | DZ28: =IFERROR(INDEX($EG28:$IV28,MATCH(0,COUNTIF($DR28:DY28,$EG28:$IV28),0)),"") ->  | EA28: =IFERROR(INDEX($EG28:$IV28,MATCH(0,COUNTIF($DR28:DZ28,$EG28:$IV28),0)),"") ->  | EB28: =IFERROR(INDEX($EG28:$IV28,MATCH(0,COUNTIF($DR28:EA28,$EG28:$IV28),0)),"") ->  | EC28: =IFERROR(INDEX($EG28:$IV28,MATCH(0,COUNTIF($DR28:EB28,$EG28:$IV28),0)),"") ->  | ED28: =IFERROR(INDEX($EG28:$IV28,MATCH(0,COUNTIF($DR28:EC28,$EG28:$IV28),0)),"") ->  | FK28: {Measure:Quantity} | FU28: {Measure:Quantity} | GE28: {Measure:Quantity} | GF28: {Factor:WinterCF} | GO28: {Measure:Quantity} | GP28: {Factor:SummerCF} | IZ28: 1
A29: C&I Agricultural Solutions | B29: MILK: Scroll Compressor - 2 HP | C29: AMSC - AMSC2 | D29: 2021-07-01 | E29: 2022-06-30 | F29: Per Measure | G29: 400 | H29: 0 | I29: Per Measure | J29: 220 | K29: 0 | L29: 2016-07-01 | M29: 2022-06-30 | N29: Calculated | O29: 432 * 2 * {Measure:Quantity} | P29: 0.0001 | R29: ((432 * 2) /2850) * {Measure:Quantity} | U29: (((432 * 2) /2850) * {Measure:Quantity}) *{Factor:WinterCF} | V29: (((432 * 2) /2850) * {Measure:Quantity}) *{Factor:SummerCF} | AC29: 2020-04-01 | AD29: 2022-06-30 | AE29: 15 | AF29: 0.674 | AG29: 0.327 | AH29: 0.436 | AI29: 0.232 | AJ29: 0.217 | AK29: 0.115 | AL29: 1 | AM29: 1.122 | AN29: 1 | AO29: 0.52 | AP29: 0.016 | AR29: {Measure:Quantity} | AS29: 1 | BL29: =432 * 2 * AS29 -> 864 | BM29: 0.0001 | BN29: 0 | BO29: =((432 * 2) /2850) * AS29 -> 0.3031578947 | BP29: 0 | BQ29: 0 | BR29: =(((432 * 2) /2850) * AS29) *AF29 -> 0.2043284211 | BS29: =(((432 * 2) /2850) * AS29) *AG29 -> 0.09913263158 | BT29: 0 | BU29: 0 | BV29: 0 | BW29: 0 | BX29: 0 | BY29: 0 | CA29: Res | CB29: Default DR | CC29: =Benefits(BL29,BR29,BS29,BT29,BU29,BV29,BW29,BX29,BY29,BZ29,AE29,AH29,AI29,AJ29,AK29,AL29,AM29,AN29,AO29,AP29,CA29,CB29) -> 1268.742899 | CD29: 954.1104305 | CE29: 0 | CF29: 0 | CG29: 0 | CH29: 0 | CI29: 0 | CJ29: 0 | CK29: 0 | CL29: =SUMPRODUCT(CC29:CK29,--(CC29:CK29>0)) -> 2222.853329 | CM29: =-SUMPRODUCT(CC29:CK29,--(CC29:CK29<0)) -> 0 | CO29: =400 -> 400 | CR29: 400 | CS29: 1 | CT29: 5.557133323 | CU29: 1 | CV29: =220 -> 220 | CX29: Electric | CY29: y | DA29: X=400 | DB29: X=220 | DC29: X=432 * 2 * AS29 | DD29: X=0.0001 | DE29: 0 | DF29: X=((432 * 2) /2850) * AS29 | DG29: 0 | DH29: 0 | DI29: X=(((432 * 2) /2850) * AS29) *AF29 | DJ29: X=(((432 * 2) /2850) * AS29) *AG29 | DK29: 0 | DL29: 0 | DM29: 0 | DN29: 0 | DO29: 0 | DP29: 0 | DS29: {Factor:WinterCF} | DT29: {Factor:SummerCF} | DU29: =IFERROR(INDEX($EG29:$IV29,MATCH(0,COUNTIF($DR29:DT29,$EG29:$IV29),0)),"") -> {Measure:Quantity} | DV29: =IFERROR(INDEX($EG29:$IV29,MATCH(0,COUNTIF($DR29:DU29,$EG29:$IV29),0)),"") ->  | DW29: =IFERROR(INDEX($EG29:$IV29,MATCH(0,COUNTIF($DR29:DV29,$EG29:$IV29),0)),"") ->  | DX29: =IFERROR(INDEX($EG29:$IV29,MATCH(0,COUNTIF($DR29:DW29,$EG29:$IV29),0)),"") ->  | DY29: =IFERROR(INDEX($EG29:$IV29,MATCH(0,COUNTIF($DR29:DX29,$EG29:$IV29),0)),"") ->  | DZ29: =IFERROR(INDEX($EG29:$IV29,MATCH(0,COUNTIF($DR29:DY29,$EG29:$IV29),0)),"") ->  | EA29: =IFERROR(INDEX($EG29:$IV29,MATCH(0,COUNTIF($DR29:DZ29,$EG29:$IV29),0)),"") ->  | EB29: =IFERROR(INDEX($EG29:$IV29,MATCH(0,COUNTIF($DR29:EA29,$EG29:$IV29),0)),"") ->  | EC29: =IFERROR(INDEX($EG29:$IV29,MATCH(0,COUNTIF($DR29:EB29,$EG29:$IV29),0)),"") ->  | ED29: =IFERROR(INDEX($EG29:$IV29,MATCH(0,COUNTIF($DR29:EC29,$EG29:$IV29),0)),"") ->  | EG29: =IFERROR(MID($G29,FIND(CHAR(160),SUBSTITUTE($G29,"{",CHAR(160),EG$1)),FIND(CHAR(160),SUBSTITUTE($G29,"}",CHAR(160),EG$1))-FIND(CHAR(160),SUBSTITUTE($G29,"{",CHAR(160),EG$1))+1),"") ->  | EQ29: =IFERROR(MID($J29,FIND(CHAR(160),SUBSTITUTE($J29,"{",CHAR(160),EQ$1)),FIND(CHAR(160),SUBSTITUTE($J29,"}",CHAR(160),EQ$1))-FIND(CHAR(160),SUBSTITUTE($J29,"{",CHAR(160),EQ$1))+1),"") ->  | FC29: =IFERROR(MID($O29,FIND(CHAR(160),SUBSTITUTE($O29,"{",CHAR(160),FC$1)),FIND(CHAR(160),SUBSTITUTE($O29,"}",CHAR(160),FC$1))-FIND(CHAR(160),SUBSTITUTE($O29,"{",CHAR(160),FC$1))+1),"") ->  | FK29: {Measure:Quantity} | FM29: =IFERROR(MID($R29,FIND(CHAR(160),SUBSTITUTE($R29,"{",CHAR(160),FM$1)),FIND(CHAR(160),SUBSTITUTE($R29,"}",CHAR(160),FM$1))-FIND(CHAR(160),SUBSTITUTE($R29,"{",CHAR(160),FM$1))+1),"") ->  | FU29: {Measure:Quantity} | FW29: =IFERROR(MID($U29,FIND(CHAR(160),SUBSTITUTE($U29,"{",CHAR(160),FW$1)),FIND(CHAR(160),SUBSTITUTE($U29,"}",CHAR(160),FW$1))-FIND(CHAR(160),SUBSTITUTE($U29,"{",CHAR(160),FW$1))+1),"") ->  | GE29: {Measure:Quantity} | GF29: {Factor:WinterCF} | GG29: =IFERROR(MID($V29,FIND(CHAR(160),SUBSTITUTE($V29,"{",CHAR(160),GG$1)),FIND(CHAR(160),SUBSTITUTE($V29,"}",CHAR(160),GG$1))-FIND(CHAR(160),SUBSTITUTE($V29,"{",CHAR(160),GG$1))+1),"") ->  | GO29: {Measure:Quantity} | GP29: {Factor:SummerCF} | GQ29: =IFERROR(MID($W29,FIND(CHAR(160),SUBSTITUTE($W29,"{",CHAR(160),GQ$1)),FIND(CHAR(160),SUBSTITUTE($W29,"}",CHAR(160),GQ$1))-FIND(CHAR(160),SUBSTITUTE($W29,"{",CHAR(160),GQ$1))+1),"") ->  | HA29: =IFERROR(MID($X29,FIND(CHAR(160),SUBSTITUTE($X29,"{",CHAR(160),HA$1)),FIND(CHAR(160),SUBSTITUTE($X29,"}",CHAR(160),HA$1))-FIND(CHAR(160),SUBSTITUTE($X29,"{",CHAR(160),HA$1))+1),"") ->  | HK29: =IFERROR(MID($Y29,FIND(CHAR(160),SUBSTITUTE($Y29,"{",CHAR(160),HK$1)),FIND(CHAR(160),SUBSTITUTE($Y29,"}",CHAR(160),HK$1))-FIND(CHAR(160),SUBSTITUTE($Y29,"{",CHAR(160),HK$1))+1),"") ->  | HU29: =IFERROR(MID($Z29,FIND(CHAR(160),SUBSTITUTE($Z29,"{",CHAR(160),HU$1)),FIND(CHAR(160),SUBSTITUTE($Z29,"}",CHAR(160),HU$1))-FIND(CHAR(160),SUBSTITUTE($Z29,"{",CHAR(160),HU$1))+1),"") ->  | IE29: =IFERROR(MID($AA29,FIND(CHAR(160),SUBSTITUTE($AA29,"{",CHAR(160),IE$1)),FIND(CHAR(160),SUBSTITUTE($AA29,"}",CHAR(160),IE$1))-FIND(CHAR(160),SUBSTITUTE($AA29,"{",CHAR(160),IE$1))+1),"") ->  | IO29: =IFERROR(MID($AB29,FIND(CHAR(160),SUBSTITUTE($AB29,"{",CHAR(160),IO$1)),FIND(CHAR(160),SUBSTITUTE($AB29,"}",CHAR(160),IO$1))-FIND(CHAR(160),SUBSTITUTE($AB29,"{",CHAR(160),IO$1))+1),"") ->  | IZ29: 1
A30: C&I Agricultural Solutions | B30: MILK: Scroll Compressor - 3 HP | C30: AMSC - AMSC3 | D30: 2021-07-01 | E30: 2022-06-30 | F30: Per Measure | G30: 525 | H30: 0 | I30: Per Measure | J30: 330 | K30: 0 | L30: 2016-07-01 | M30: 2022-06-30 | N30: Calculated | O30: 432 * 3 * {Measure:Quantity} | P30: 0.0001 | R30: ((432 * 3) /2850) * {Measure:Quantity} | U30: (((432 * 3) /2850) * {Measure:Quantity}) *{Factor:WinterCF} | V30: (((432 * 3) /2850) * {Measure:Quantity}) *{Factor:SummerCF} | AC30: 2020-04-01 | AD30: 2022-06-30 | AE30: 15 | AF30: 0.674 | AG30: 0.327 | AH30: 0.436 | AI30: 0.232 | AJ30: 0.217 | AK30: 0.115 | AL30: 1 | AM30: 1.122 | AN30: 1 | AO30: 0.52 | AP30: 0.016 | AR30: {Measure:Quantity} | AS30: 1 | BL30: =432 * 3 * AS30 -> 1296 | BM30: 0.0001 | BN30: 0 | BO30: =((432 * 3) /2850) * AS30 -> 0.4547368421 | BP30: 0 | BQ30: 0 | BR30: =(((432 * 3) /2850) * AS30) *AF30 -> 0.3064926316 | BS30: =(((432 * 3) /2850) * AS30) *AG30 -> 0.1486989474 | BT30: 0 | BU30: 0 | BV30: 0 | BW30: 0 | BX30: 0 | BY30: 0 | CA30: Res | CB30: Default DR | CC30: =Benefits(BL30,BR30,BS30,BT30,BU30,BV30,BW30,BX30,BY30,BZ30,AE30,AH30,AI30,AJ30,AK30,AL30,AM30,AN30,AO30,AP30,CA30,CB30) -> 1903.114348 | CD30: 1431.165646 | CE30: 0 | CF30: 0 | CG30: 0 | CH30: 0 | CI30: 0 | CJ30: 0 | CK30: 0 | CL30: =SUMPRODUCT(CC30:CK30,--(CC30:CK30>0)) -> 3334.279994 | CM30: =-SUMPRODUCT(CC30:CK30,--(CC30:CK30<0)) -> 0 | CO30: =525 -> 525 | CR30: 525 | CS30: 1 | CT30: 6.351009512 | CU30: 1 | CV30: =330 -> 330 | CX30: Electric | CY30: y | DA30: X=525 | DB30: X=330 | DC30: X=432 * 3 * AS30 | DD30: X=0.0001 | DE30: 0 | DF30: X=((432 * 3) /2850) * AS30 | DG30: 0 | DH30: 0 | DI30: X=(((432 * 3) /2850) * AS30) *AF30 | DJ30: X=(((432 * 3) /2850) * AS30) *AG30 | DK30: 0 | DL30: 0 | DM30: 0 | DN30: 0 | DO30: 0 | DP30: 0 | DS30: {Factor:WinterCF} | DT30: {Factor:SummerCF} | DU30: =IFERROR(INDEX($EG30:$IV30,MATCH(0,COUNTIF($DR30:DT30,$EG30:$IV30),0)),"") -> {Measure:Quantity} | DV30: =IFERROR(INDEX($EG30:$IV30,MATCH(0,COUNTIF($DR30:DU30,$EG30:$IV30),0)),"") ->  | DW30: =IFERROR(INDEX($EG30:$IV30,MATCH(0,COUNTIF($DR30:DV30,$EG30:$IV30),0)),"") ->  | DX30: =IFERROR(INDEX($EG30:$IV30,MATCH(0,COUNTIF($DR30:DW30,$EG30:$IV30),0)),"") ->  | DY30: =IFERROR(INDEX($EG30:$IV30,MATCH(0,COUNTIF($DR30:DX30,$EG30:$IV30),0)),"") ->  | DZ30: =IFERROR(INDEX($EG30:$IV30,MATCH(0,COUNTIF($DR30:DY30,$EG30:$IV30),0)),"") ->  | EA30: =IFERROR(INDEX($EG30:$IV30,MATCH(0,COUNTIF($DR30:DZ30,$EG30:$IV30),0)),"") ->  | EB30: =IFERROR(INDEX($EG30:$IV30,MATCH(0,COUNTIF($DR30:EA30,$EG30:$IV30),0)),"") ->  | EC30: =IFERROR(INDEX($EG30:$IV30,MATCH(0,COUNTIF($DR30:EB30,$EG30:$IV30),0)),"") ->  | ED30: =IFERROR(INDEX($EG30:$IV30,MATCH(0,COUNTIF($DR30:EC30,$EG30:$IV30),0)),"") ->  | FK30: {Measure:Quantity} | FU30: {Measure:Quantity} | GE30: {Measure:Quantity} | GF30: {Factor:WinterCF} | GO30: {Measure:Quantity} | GP30: {Factor:SummerCF} | IZ30: 1
A31: C&I Agricultural Solutions | B31: MILK: Scroll Compressor - 5 HP | C31: AMSC - AMSC5 | D31: 2021-07-01 | E31: 2022-06-30 | F31: Per Measure | G31: 1000 | H31: 0 | I31: Per Measure | J31: 550 | K31: 0 | L31: 2016-07-01 | M31: 2022-06-30 | N31: Calculated | O31: 432 * 5 * {Measure:Quantity} | P31: 0.0001 | R31: ((432 * 5) /2850) * {Measure:Quantity} | U31: (((432 * 5) /2850) * {Measure:Quantity}) *{Factor:WinterCF} | V31: (((432 * 5) /2850) * {Measure:Quantity}) *{Factor:SummerCF} | AC31: 2020-04-01 | AD31: 2022-06-30 | AE31: 15 | AF31: 0.674 | AG31: 0.327 | AH31: 0.436 | AI31: 0.232 | AJ31: 0.217 | AK31: 0.115 | AL31: 1 | AM31: 1.122 | AN31: 1 | AO31: 0.52 | AP31: 0.016 | AR31: {Measure:Quantity} | AS31: 1 | BL31: =432 * 5 * AS31 -> 2160 | BM31: 0.0001 | BN31: 0 | BO31: =((432 * 5) /2850) * AS31 -> 0.7578947368 | BP31: 0 | BQ31: 0 | BR31: =(((432 * 5) /2850) * AS31) *AF31 -> 0.5108210526 | BS31: =(((432 * 5) /2850) * AS31) *AG31 -> 0.2478315789 | BT31: 0 | BU31: 0 | BV31: 0 | BW31: 0 | BX31: 0 | BY31: 0 | CA31: Res | CB31: Default DR | CC31: =Benefits(BL31,BR31,BS31,BT31,BU31,BV31,BW31,BX31,BY31,BZ31,AE31,AH31,AI31,AJ31,AK31,AL31,AM31,AN31,AO31,AP31,CA31,CB31) -> 3171.857247 | CD31: 2385.276076 | CE31: 0 | CF31: 0 | CG31: 0 | CH31: 0 | CI31: 0 | CJ31: 0 | CK31: 0 | CL31: =SUMPRODUCT(CC31:CK31,--(CC31:CK31>0)) -> 5557.133323 | CM31: =-SUMPRODUCT(CC31:CK31,--(CC31:CK31<0)) -> 0 | CO31: =1000 -> 1000 | CR31: 1000 | CS31: 1 | CT31: 5.557133323 | CU31: 1 | CV31: =550 -> 550 | CX31: Electric | CY31: y | DA31: X=1000 | DB31: X=550 | DC31: X=432 * 5 * AS31 | DD31: X=0.0001 | DE31: 0 | DF31: X=((432 * 5) /2850) * AS31 | DG31: 0 | DH31: 0 | DI31: X=(((432 * 5) /2850) * AS31) *AF31 | DJ31: X=(((432 * 5) /2850) * AS31) *AG31 | DK31: 0 | DL31: 0 | DM31: 0 | DN31: 0 | DO31: 0 | DP31: 0 | DS31: {Factor:WinterCF} | DT31: {Factor:SummerCF} | DU31: =IFERROR(INDEX($EG31:$IV31,MATCH(0,COUNTIF($DR31:DT31,$EG31:$IV31),0)),"") -> {Measure:Quantity} | DV31: =IFERROR(INDEX($EG31:$IV31,MATCH(0,COUNTIF($DR31:DU31,$EG31:$IV31),0)),"") ->  | DW31: =IFERROR(INDEX($EG31:$IV31,MATCH(0,COUNTIF($DR31:DV31,$EG31:$IV31),0)),"") ->  | DX31: =IFERROR(INDEX($EG31:$IV31,MATCH(0,COUNTIF($DR31:DW31,$EG31:$IV31),0)),"") ->  | DY31: =IFERROR(INDEX($EG31:$IV31,MATCH(0,COUNTIF($DR31:DX31,$EG31:$IV31),0)),"") ->  | DZ31: =IFERROR(INDEX($EG31:$IV31,MATCH(0,COUNTIF($DR31:DY31,$EG31:$IV31),0)),"") ->  | EA31: =IFERROR(INDEX($EG31:$IV31,MATCH(0,COUNTIF($DR31:DZ31,$EG31:$IV31),0)),"") ->  | EB31: =IFERROR(INDEX($EG31:$IV31,MATCH(0,COUNTIF($DR31:EA31,$EG31:$IV31),0)),"") ->  | EC31: =IFERROR(INDEX($EG31:$IV31,MATCH(0,COUNTIF($DR31:EB31,$EG31:$IV31),0)),"") ->  | ED31: =IFERROR(INDEX($EG31:$IV31,MATCH(0,COUNTIF($DR31:EC31,$EG31:$IV31),0)),"") ->  | FK31: {Measure:Quantity} | FU31: {Measure:Quantity} | GE31: {Measure:Quantity} | GF31: {Factor:WinterCF} | GO31: {Measure:Quantity} | GP31: {Factor:SummerCF} | IZ31: 1
A32: C&I Agricultural Solutions | B32: MILK: Scroll Compressor - 6 HP | C32: AMSC - AMSC6 | D32: 2021-07-01 | E32: 2022-06-30 | F32: Per Measure | G32: 1300 | H32: 0 | I32: Per Measure | J32: 660 | K32: 0 | L32: 2016-07-01 | M32: 2022-06-30 | N32: Calculated | O32: 432 * 6 * {Measure:Quantity} | P32: 0.0001 | R32: ((432 * 6) /2850) * {Measure:Quantity} | U32: (((432 * 6) /2850) * {Measure:Quantity}) *{Factor:WinterCF} | V32: (((432 * 6) /2850) * {Measure:Quantity}) *{Factor:SummerCF} | AC32: 2020-04-01 | AD32: 2022-06-30 | AE32: 15 | AF32: 0.674 | AG32: 0.327 | AH32: 0.436 | AI32: 0.232 | AJ32: 0.217 | AK32: 0.115 | AL32: 1 | AM32: 1.122 | AN32: 1 | AO32: 0.52 | AP32: 0.016 | AR32: {Measure:Quantity} | AS32: 1 | BL32: =432 * 6 * AS32 -> 2592 | BM32: 0.0001 | BN32: 0 | BO32: =((432 * 6) /2850) * AS32 -> 0.9094736842 | BP32: 0 | BQ32: 0 | BR32: =(((432 * 6) /2850) * AS32) *AF32 -> 0.6129852632 | BS32: =(((432 * 6) /2850) * AS32) *AG32 -> 0.2973978947 | BT32: 0 | BU32: 0 | BV32: 0 | BW32: 0 | BX32: 0 | BY32: 0 | CA32: Res | CB32: Default DR | CC32: =Benefits(BL32,BR32,BS32,BT32,BU32,BV32,BW32,BX32,BY32,BZ32,AE32,AH32,AI32,AJ32,AK32,AL32,AM32,AN32,AO32,AP32,CA32,CB32) -> 3806.228696 | CD32: 2862.331291 | CE32: 0 | CF32: 0 | CG32: 0 | CH32: 0 | CI32: 0 | CJ32: 0 | CK32: 0 | CL32: =SUMPRODUCT(CC32:CK32,--(CC32:CK32>0)) -> 6668.559988 | CM32: =-SUMPRODUCT(CC32:CK32,--(CC32:CK32<0)) -> 0 | CO32: =1300 -> 1300 | CR32: 1300 | CS32: 1 | CT32: 5.129661529 | CU32: 1 | CV32: =660 -> 660 | CX32: Electric | CY32: y | DA32: X=1300 | DB32: X=660 | DC32: X=432 * 6 * AS32 | DD32: X=0.0001 | DE32: 0 | DF32: X=((432 * 6) /2850) * AS32 | DG32: 0 | DH32: 0 | DI32: X=(((432 * 6) /2850) * AS32) *AF32 | DJ32: X=(((432 * 6) /2850) * AS32) *AG32 | DK32: 0 | DL32: 0 | DM32: 0 | DN32: 0 | DO32: 0 | DP32: 0 | DS32: {Factor:WinterCF} | DT32: {Factor:SummerCF} | DU32: =IFERROR(INDEX($EG32:$IV32,MATCH(0,COUNTIF($DR32:DT32,$EG32:$IV32),0)),"") -> {Measure:Quantity} | DV32: =IFERROR(INDEX($EG32:$IV32,MATCH(0,COUNTIF($DR32:DU32,$EG32:$IV32),0)),"") ->  | DW32: =IFERROR(INDEX($EG32:$IV32,MATCH(0,COUNTIF($DR32:DV32,$EG32:$IV32),0)),"") ->  | DX32: =IFERROR(INDEX($EG32:$IV32,MATCH(0,COUNTIF($DR32:DW32,$EG32:$IV32),0)),"") ->  | DY32: =IFERROR(INDEX($EG32:$IV32,MATCH(0,COUNTIF($DR32:DX32,$EG32:$IV32),0)),"") ->  | DZ32: =IFERROR(INDEX($EG32:$IV32,MATCH(0,COUNTIF($DR32:DY32,$EG32:$IV32),0)),"") ->  | EA32: =IFERROR(INDEX($EG32:$IV32,MATCH(0,COUNTIF($DR32:DZ32,$EG32:$IV32),0)),"") ->  | EB32: =IFERROR(INDEX($EG32:$IV32,MATCH(0,COUNTIF($DR32:EA32,$EG32:$IV32),0)),"") ->  | EC32: =IFERROR(INDEX($EG32:$IV32,MATCH(0,COUNTIF($DR32:EB32,$EG32:$IV32),0)),"") ->  | ED32: =IFERROR(INDEX($EG32:$IV32,MATCH(0,COUNTIF($DR32:EC32,$EG32:$IV32),0)),"") ->  | FK32: {Measure:Quantity} | FU32: {Measure:Quantity} | GE32: {Measure:Quantity} | GF32: {Factor:WinterCF} | GO32: {Measure:Quantity} | GP32: {Factor:SummerCF} | IZ32: 1
A33: C&I Agricultural Solutions | B33: MILK: Scroll Compressor - 7.5 HP | C33: AMSC - AMSC7.5 | D33: 2021-07-01 | E33: 2022-06-30 | F33: Per Measure | G33: 1538 | H33: 0 | I33: Per Measure | J33: 825 | K33: 0 | L33: 2016-07-01 | M33: 2022-06-30 | N33: Calculated | O33: 432 * 7.5 * {Measure:Quantity} | P33: 0.0001 | R33: ((432 * 7.5) /2850) * {Measure:Quantity} | U33: (((432 * 7.5) /2850) * {Measure:Quantity}) *{Factor:WinterCF} | V33: (((432 * 7.5) /2850) * {Measure:Quantity}) *{Factor:SummerCF} | AC33: 2020-04-01 | AD33: 2022-06-30 | AE33: 15 | AF33: 0.674 | AG33: 0.327 | AH33: 0.436 | AI33: 0.232 | AJ33: 0.217 | AK33: 0.115 | AL33: 1 | AM33: 1.122 | AN33: 1 | AO33: 0.52 | AP33: 0.016 | AR33: {Measure:Quantity} | AS33: 1 | BL33: =432 * 7.5 * AS33 -> 3240 | BM33: 0.0001 | BN33: 0 | BO33: =((432 * 7.5) /2850) * AS33 -> 1.136842105 | BP33: 0 | BQ33: 0 | BR33: =(((432 * 7.5) /2850) * AS33) *AF33 -> 0.7662315789 | BS33: =(((432 * 7.5) /2850) * AS33) *AG33 -> 0.3717473684 | BT33: 0 | BU33: 0 | BV33: 0 | BW33: 0 | BX33: 0 | BY33: 0 | CA33: Res | CB33: Default DR | CC33: =Benefits(BL33,BR33,BS33,BT33,BU33,BV33,BW33,BX33,BY33,BZ33,AE33,AH33,AI33,AJ33,AK33,AL33,AM33,AN33,AO33,AP33,CA33,CB33) -> 4757.78587 | CD33: 3577.914114 | CE33: 0 | CF33: 0 | CG33: 0 | CH33: 0 | CI33: 0 | CJ33: 0 | CK33: 0 | CL33: =SUMPRODUCT(CC33:CK33,--(CC33:CK33>0)) -> 8335.699985 | CM33: =-SUMPRODUCT(CC33:CK33,--(CC33:CK33<0)) -> 0 | CO33: =1538 -> 1538 | CR33: 1538 | CS33: 1 | CT33: 5.419830939 | CU33: 1 | CV33: =825 -> 825 | CX33: Electric | CY33: y | DA33: X=1538 | DB33: X=825 | DC33: X=432 * 7.5 * AS33 | DD33: X=0.0001 | DE33: 0 | DF33: X=((432 * 7.5) /2850) * AS33 | DG33: 0 | DH33: 0 | DI33: X=(((432 * 7.5) /2850) * AS33) *AF33 | DJ33: X=(((432 * 7.5) /2850) * AS33) *AG33 | DK33: 0 | DL33: 0 | DM33: 0 | DN33: 0 | DO33: 0 | DP33: 0 | DS33: {Factor:WinterCF} | DT33: {Factor:SummerCF} | DU33: =IFERROR(INDEX($EG33:$IV33,MATCH(0,COUNTIF($DR33:DT33,$EG33:$IV33),0)),"") -> {Measure:Quantity} | DV33: =IFERROR(INDEX($EG33:$IV33,MATCH(0,COUNTIF($DR33:DU33,$EG33:$IV33),0)),"") ->  | DW33: =IFERROR(INDEX($EG33:$IV33,MATCH(0,COUNTIF($DR33:DV33,$EG33:$IV33),0)),"") ->  | DX33: =IFERROR(INDEX($EG33:$IV33,MATCH(0,COUNTIF($DR33:DW33,$EG33:$IV33),0)),"") ->  | DY33: =IFERROR(INDEX($EG33:$IV33,MATCH(0,COUNTIF($DR33:DX33,$EG33:$IV33),0)),"") ->  | DZ33: =IFERROR(INDEX($EG33:$IV33,MATCH(0,COUNTIF($DR33:DY33,$EG33:$IV33),0)),"") ->  | EA33: =IFERROR(INDEX($EG33:$IV33,MATCH(0,COUNTIF($DR33:DZ33,$EG33:$IV33),0)),"") ->  | EB33: =IFERROR(INDEX($EG33:$IV33,MATCH(0,COUNTIF($DR33:EA33,$EG33:$IV33),0)),"") ->  | EC33: =IFERROR(INDEX($EG33:$IV33,MATCH(0,COUNTIF($DR33:EB33,$EG33:$IV33),0)),"") ->  | ED33: =IFERROR(INDEX($EG33:$IV33,MATCH(0,COUNTIF($DR33:EC33,$EG33:$IV33),0)),"") ->  | FK33: {Measure:Quantity} | FU33: {Measure:Quantity} | GE33: {Measure:Quantity} | GF33: {Factor:WinterCF} | GO33: {Measure:Quantity} | GP33: {Factor:SummerCF} | IZ33: 1
A34: C&I Agricultural Solutions | B34: MILK: Vacuum Pump with Adjustable Speed Drive Package - 10 HP | C34: AMVP - VP10 | D34: 2021-07-01 | E34: 2022-06-30 | F34: Per Measure | G34: 5322 | H34: 0 | I34: Per Measure | J34: 2500 | K34: 0 | L34: 2016-07-01 | M34: 2022-06-30 | N34: Calculated | O34: {Measure:Quantity} * (((10*0.746*.75/({Motor Efficiency}/100)) - (.0495*(2*{# of Milking Units})+1.7729))*{Daily Run Time}*365) | P34: 0.0001 | R34: {Measure:Quantity} * ((10*0.746*.75/({Motor Efficiency}/100)) - (.0495*(2*{# of Milking Units})+1.7729)) | U34: ({Measure:Quantity} * ((10*0.746*.75/({Motor Efficiency}/100)) - (.0495*(2*{# of Milking Units})+1.7729)))*{Factor:WinterCF} | V34: ({Measure:Quantity} * ((10*0.746*.75/({Motor Efficiency}/100)) - (.0495*(2*{# of Milking Units})+1.7729)))*{Factor:SummerCF} | AC34: 2020-04-01 | AD34: 2022-06-30 | AE34: 15 | AF34: 0.467 | AG34: 0.275 | AH34: 0.369 | AI34: 0.301 | AJ34: 0.182 | AK34: 0.148 | AL34: 1 | AM34: 1.122 | AN34: 1 | AO34: 0.52 | AP34: 0.016 | AR34: {# of Milking Units} | AS34: 1 | AT34: {Daily Run Time} | AU34: 91.7 | AV34: {Measure:Quantity} | AW34: 10 | AX34: {Motor Efficiency} | AY34: 2 | BL34: =AS34 * (((10*0.746*0.75/(AU34/100)) - (0.0495*(2*AW34)+1.7729))*AY34*365) -> 2437.117896 | BM34: 0.0001 | BN34: 0 | BO34: =AS34 * ((10*0.746*0.75/(AU34/100)) - (0.0495*(2*AW34)+1.7729)) -> 3.338517666 | BP34: 0 | BQ34: 0 | BR34: =(AS34 * ((10*0.746*0.75/(AU34/100)) - (0.0495*(2*AW34)+1.7729)))*AF34 -> 1.55908775 | BS34: =(AS34 * ((10*0.746*0.75/(AU34/100)) - (0.0495*(2*AW34)+1.7729)))*AG34 -> 0.9180923582 | BT34: 0 | BU34: 0 | BV34: 0 | BW34: 0 | BX34: 0 | BY34: 0 | CA34: Res | CB34: Default DR | CC34: =Benefits(BL34,BR34,BS34,BT34,BU34,BV34,BW34,BX34,BY34,BZ34,AE34,AH34,AI34,AJ34,AK34,AL34,AM34,AN34,AO34,AP34,CA34,CB34) -> 3587.270931 | CD34: 7583.940715 | CE34: 0 | CF34: 0 | CG34: 0 | CH34: 0 | CI34: 0 | CJ34: 0 | CK34: 0 | CL34: =SUMPRODUCT(CC34:CK34,--(CC34:CK34>0)) -> 11171.21165 | CM34: =-SUMPRODUCT(CC34:CK34,--(CC34:CK34<0)) -> 0 | CO34: =5322 -> 5322 | CR34: 5322 | CS34: 1 | CT34: 2.099062692 | CU34: 1 | CV34: =2500 -> 2500 | CX34: Electric | CY34: y | DA34: X=5322 | DB34: X=2500 | DC34: X=AW34 * (((10*0.746*.75/(AY34/100)) - (.0495*(2*AS34)+1.7729))*AU34*365) | DD34: X=0.0001 | DE34: 0 | DF34: X=AW34 * ((10*0.746*.75/(AY34/100)) - (.0495*(2*AS34)+1.7729)) | DG34: 0 | DH34: 0 | DI34: X=(AW34 * ((10*0.746*.75/(AY34/100)) - (.0495*(2*AS34)+1.7729)))*AF34 | DJ34: X=(AW34 * ((10*0.746*.75/(AY34/100)) - (.0495*(2*AS34)+1.7729)))*AG34 | DK34: 0 | DL34: 0 | DM34: 0 | DN34: 0 | DO34: 0 | DP34: 0 | DS34: {Factor:WinterCF} | DT34: {Factor:SummerCF} | DU34: =IFERROR(INDEX($EG34:$IV34,MATCH(0,COUNTIF($DR34:DT34,$EG34:$IV34),0)),"") -> {# of Milking Units} | DV34: =IFERROR(INDEX($EG34:$IV34,MATCH(0,COUNTIF($DR34:DU34,$EG34:$IV34),0)),"") -> {Daily Run Time} | DW34: =IFERROR(INDEX($EG34:$IV34,MATCH(0,COUNTIF($DR34:DV34,$EG34:$IV34),0)),"") -> {Measure:Quantity} | DX34: =IFERROR(INDEX($EG34:$IV34,MATCH(0,COUNTIF($DR34:DW34,$EG34:$IV34),0)),"") -> {Motor Efficiency} | DY34: =IFERROR(INDEX($EG34:$IV34,MATCH(0,COUNTIF($DR34:DX34,$EG34:$IV34),0)),"") ->  | DZ34: =IFERROR(INDEX($EG34:$IV34,MATCH(0,COUNTIF($DR34:DY34,$EG34:$IV34),0)),"") ->  | EA34: =IFERROR(INDEX($EG34:$IV34,MATCH(0,COUNTIF($DR34:DZ34,$EG34:$IV34),0)),"") ->  | EB34: =IFERROR(INDEX($EG34:$IV34,MATCH(0,COUNTIF($DR34:EA34,$EG34:$IV34),0)),"") ->  | EC34: =IFERROR(INDEX($EG34:$IV34,MATCH(0,COUNTIF($DR34:EB34,$EG34:$IV34),0)),"") ->  | ED34: =IFERROR(INDEX($EG34:$IV34,MATCH(0,COUNTIF($DR34:EC34,$EG34:$IV34),0)),"") ->  | FC34: {# of Milking Units} | FD34: {Daily Run Time} | FK34: {Measure:Quantity} | FL34: {Motor Efficiency} | FM34: {# of Milking Units} | FU34: {Measure:Quantity} | FV34: {Motor Efficiency} | FW34: {# of Milking Units} | FX34: {Factor:WinterCF} | GE34: {Measure:Quantity} | GF34: {Motor Efficiency} | GG34: {# of Milking Units} | GH34: {Factor:SummerCF} | GO34: {Measure:Quantity} | GP34: {Motor Efficiency} | IZ34: 4
A35: C&I Agricultural Solutions | B35: MILK: Vacuum Pump with Adjustable Speed Drive Package - 15 HP | C35: AMVP - VP15 | D35: 2021-07-01 | E35: 2022-06-30 | F35: Per Measure | G35: 5322 | H35: 0 | I35: Per Measure | J35: 3000 | K35: 0 | L35: 2016-07-01 | M35: 2022-06-30 | N35: Calculated | O35: {Measure:Quantity} * (((15*0.746*.75/({Motor Efficiency}/100)) - (.0495*(2*{# of Milking Units})+1.7729))*{Daily Run Time}*365) | P35: 0.0001 | R35: {Measure:Quantity} * ((15*0.746*.75/({Motor Efficiency}/100)) - (.0495*(2*{# of Milking Units})+1.7729)) | U35: ({Measure:Quantity} * ((15*0.746*.75/({Motor Efficiency}/100)) - (.0495*(2*{# of Milking Units})+1.7729)))*{Factor:WinterCF} | V35: ({Measure:Quantity} * ((15*0.746*.75/({Motor Efficiency}/100)) - (.0495*(2*{# of Milking Units})+1.7729)))*{Factor:SummerCF} | AC35: 2020-04-01 | AD35: 2022-06-30 | AE35: 15 | AF35: 0.467 | AG35: 0.275 | AH35: 0.369 | AI35: 0.301 | AJ35: 0.182 | AK35: 0.148 | AL35: 1 | AM35: 1.122 | AN35: 1 | AO35: 0.52 | AP35: 0.016 | AR35: {# of Milking Units} | AS35: 1 | AT35: {Daily Run Time} | AU35: 93 | AV35: {Measure:Quantity} | AW35: 10 | AX35: {Motor Efficiency} | AY35: 2 | BL35: =AS35 * (((15*0.746*0.75/(AU35/100)) - (0.0495*(2*AW35)+1.7729))*AY35*365) -> 4570.74429 | BM35: 0.0001 | BN35: 0 | BO35: =AS35 * ((15*0.746*0.75/(AU35/100)) - (0.0495*(2*AW35)+1.7729)) -> 6.261293548 | BP35: 0 | BQ35: 0 | BR35: =(AS35 * ((15*0.746*0.75/(AU35/100)) - (0.0495*(2*AW35)+1.7729)))*AF35 -> 2.924024087 | BS35: =(AS35 * ((15*0.746*0.75/(AU35/100)) - (0.0495*(2*AW35)+1.7729)))*AG35 -> 1.721855726 | BT35: 0 | BU35: 0 | BV35: 0 | BW35: 0 | BX35: 0 | BY35: 0 | CA35: Res | CB35: Default DR | CC35: =Benefits(BL35,BR35,BS35,BT35,BU35,BV35,BW35,BX35,BY35,BZ35,AE35,AH35,AI35,AJ35,AK35,AL35,AM35,AN35,AO35,AP35,CA35,CB35) -> 6727.823118 | CD35: 14223.46197 | CE35: 0 | CF35: 0 | CG35: 0 | CH35: 0 | CI35: 0 | CJ35: 0 | CK35: 0 | CL35: =SUMPRODUCT(CC35:CK35,--(CC35:CK35>0)) -> 20951.28509 | CM35: =-SUMPRODUCT(CC35:CK35,--(CC35:CK35<0)) -> 0 | CO35: =5322 -> 5322 | CR35: 5322 | CS35: 1 | CT35: 3.936731509 | CU35: 1 | CV35: =3000 -> 3000 | CX35: Electric | CY35: y | DA35: X=5322 | DB35: X=3000 | DC35: X=AW35 * (((15*0.746*.75/(AY35/100)) - (.0495*(2*AS35)+1.7729))*AU35*365) | DD35: X=0.0001 | DE35: 0 | DF35: X=AW35 * ((15*0.746*.75/(AY35/100)) - (.0495*(2*AS35)+1.7729)) | DG35: 0 | DH35: 0 | DI35: X=(AW35 * ((15*0.746*.75/(AY35/100)) - (.0495*(2*AS35)+1.7729)))*AF35 | DJ35: X=(AW35 * ((15*0.746*.75/(AY35/100)) - (.0495*(2*AS35)+1.7729)))*AG35 | DK35: 0 | DL35: 0 | DM35: 0 | DN35: 0 | DO35: 0 | DP35: 0 | DS35: {Factor:WinterCF} | DT35: {Factor:SummerCF} | DU35: =IFERROR(INDEX($EG35:$IV35,MATCH(0,COUNTIF($DR35:DT35,$EG35:$IV35),0)),"") -> {# of Milking Units} | DV35: =IFERROR(INDEX($EG35:$IV35,MATCH(0,COUNTIF($DR35:DU35,$EG35:$IV35),0)),"") -> {Daily Run Time} | DW35: =IFERROR(INDEX($EG35:$IV35,MATCH(0,COUNTIF($DR35:DV35,$EG35:$IV35),0)),"") -> {Measure:Quantity} | DX35: =IFERROR(INDEX($EG35:$IV35,MATCH(0,COUNTIF($DR35:DW35,$EG35:$IV35),0)),"") -> {Motor Efficiency} | DY35: =IFERROR(INDEX($EG35:$IV35,MATCH(0,COUNTIF($DR35:DX35,$EG35:$IV35),0)),"") ->  | DZ35: =IFERROR(INDEX($EG35:$IV35,MATCH(0,COUNTIF($DR35:DY35,$EG35:$IV35),0)),"") ->  | EA35: =IFERROR(INDEX($EG35:$IV35,MATCH(0,COUNTIF($DR35:DZ35,$EG35:$IV35),0)),"") ->  | EB35: =IFERROR(INDEX($EG35:$IV35,MATCH(0,COUNTIF($DR35:EA35,$EG35:$IV35),0)),"") ->  | EC35: =IFERROR(INDEX($EG35:$IV35,MATCH(0,COUNTIF($DR35:EB35,$EG35:$IV35),0)),"") ->  | ED35: =IFERROR(INDEX($EG35:$IV35,MATCH(0,COUNTIF($DR35:EC35,$EG35:$IV35),0)),"") ->  | FC35: {# of Milking Units} | FD35: {Daily Run Time} | FK35: {Measure:Quantity} | FL35: {Motor Efficiency} | FM35: {# of Milking Units} | FU35: {Measure:Quantity} | FV35: {Motor Efficiency} | FW35: {# of Milking Units} | FX35: {Factor:WinterCF} | GE35: {Measure:Quantity} | GF35: {Motor Efficiency} | GG35: {# of Milking Units} | GH35: {Factor:SummerCF} | GO35: {Measure:Quantity} | GP35: {Motor Efficiency} | IZ35: 4
A36: C&I Agricultural Solutions | B36: MILK: Vacuum Pump with Adjustable Speed Drive Package - 30 HP | C36: AMVP - VP30 | D36: 2021-07-01 | E36: 2022-06-30 | F36: Per Measure | G36: 5322 | H36: 0 | I36: Per Measure | J36: 6000 | K36: 0 | L36: 2016-07-01 | M36: 2022-06-30 | N36: Calculated | O36: {Measure:Quantity} * (((30*0.746*.75/({Motor Efficiency}/100)) - (.0495*(2*{# of Milking Units})+1.7729))*{Daily Run Time}*365) | P36: 0.0001 | R36: {Measure:Quantity} * ((30*0.746*.75/({Motor Efficiency}/100)) - (.0495*(2*{# of Milking Units})+1.7729)) | U36: ({Measure:Quantity} * ((30*0.746*.75/({Motor Efficiency}/100)) - (.0495*(2*{# of Milking Units})+1.7729)))*{Factor:WinterCF} | V36: ({Measure:Quantity} * ((30*0.746*.75/({Motor Efficiency}/100)) - (.0495*(2*{# of Milking Units})+1.7729)))*{Factor:SummerCF} | AC36: 2020-04-01 | AD36: 2022-06-30 | AE36: 15 | AF36: 0.467 | AG36: 0.275 | AH36: 0.369 | AI36: 0.301 | AJ36: 0.182 | AK36: 0.148 | AL36: 1 | AM36: 1.122 | AN36: 1 | AO36: 0.52 | AP36: 0.016 | AR36: {# of Milking Units} | AS36: 1 | AT36: {Daily Run Time} | AU36: 94.1 | AV36: {Measure:Quantity} | AW36: 10 | AX36: {Motor Efficiency} | AY36: 2 | BL36: =AS36 * (((30*0.746*0.75/(AU36/100)) - (0.0495*(2*AW36)+1.7729))*AY36*365) -> 11004.39012 | BM36: 0.0001 | BN36: 0 | BO36: =AS36 * ((30*0.746*0.75/(AU36/100)) - (0.0495*(2*AW36)+1.7729)) -> 15.07450701 | BP36: 0 | BQ36: 0 | BR36: =(AS36 * ((30*0.746*0.75/(AU36/100)) - (0.0495*(2*AW36)+1.7729)))*AF36 -> 7.039794775 | BS36: =(AS36 * ((30*0.746*0.75/(AU36/100)) - (0.0495*(2*AW36)+1.7729)))*AG36 -> 4.145489429 | BT36: 0 | BU36: 0 | BV36: 0 | BW36: 0 | BX36: 0 | BY36: 0 | CA36: Res | CB36: Default DR | CC36: =Benefits(BL36,BR36,BS36,BT36,BU36,BV36,BW36,BX36,BY36,BZ36,AE36,AH36,AI36,AJ36,AK36,AL36,AM36,AN36,AO36,AP36,CA36,CB36) -> 16197.70994 | CD36: 34243.99057 | CE36: 0 | CF36: 0 | CG36: 0 | CH36: 0 | CI36: 0 | CJ36: 0 | CK36: 0 | CL36: =SUMPRODUCT(CC36:CK36,--(CC36:CK36>0)) -> 50441.70052 | CM36: =-SUMPRODUCT(CC36:CK36,--(CC36:CK36<0)) -> 0 | CO36: =5322 -> 5322 | CR36: 5322 | CS36: 1 | CT36: 8.406950086 | CU36: 1 | CV36: =6000 -> 6000 | CX36: Electric | CY36: y | DA36: X=5322 | DB36: X=6000 | DC36: X=AW36 * (((30*0.746*.75/(AY36/100)) - (.0495*(2*AS36)+1.7729))*AU36*365) | DD36: X=0.0001 | DE36: 0 | DF36: X=AW36 * ((30*0.746*.75/(AY36/100)) - (.0495*(2*AS36)+1.7729)) | DG36: 0 | DH36: 0 | DI36: X=(AW36 * ((30*0.746*.75/(AY36/100)) - (.0495*(2*AS36)+1.7729)))*AF36 | DJ36: X=(AW36 * ((30*0.746*.75/(AY36/100)) - (.0495*(2*AS36)+1.7729)))*AG36 | DK36: 0 | DL36: 0 | DM36: 0 | DN36: 0 | DO36: 0 | DP36: 0 | DS36: {Factor:WinterCF} | DT36: {Factor:SummerCF} | DU36: =IFERROR(INDEX($EG36:$IV36,MATCH(0,COUNTIF($DR36:DT36,$EG36:$IV36),0)),"") -> {# of Milking Units} | DV36: =IFERROR(INDEX($EG36:$IV36,MATCH(0,COUNTIF($DR36:DU36,$EG36:$IV36),0)),"") -> {Daily Run Time} | DW36: =IFERROR(INDEX($EG36:$IV36,MATCH(0,COUNTIF($DR36:DV36,$EG36:$IV36),0)),"") -> {Measure:Quantity} | DX36: =IFERROR(INDEX($EG36:$IV36,MATCH(0,COUNTIF($DR36:DW36,$EG36:$IV36),0)),"") -> {Motor Efficiency} | DY36: =IFERROR(INDEX($EG36:$IV36,MATCH(0,COUNTIF($DR36:DX36,$EG36:$IV36),0)),"") ->  | DZ36: =IFERROR(INDEX($EG36:$IV36,MATCH(0,COUNTIF($DR36:DY36,$EG36:$IV36),0)),"") ->  | EA36: =IFERROR(INDEX($EG36:$IV36,MATCH(0,COUNTIF($DR36:DZ36,$EG36:$IV36),0)),"") ->  | EB36: =IFERROR(INDEX($EG36:$IV36,MATCH(0,COUNTIF($DR36:EA36,$EG36:$IV36),0)),"") ->  | EC36: =IFERROR(INDEX($EG36:$IV36,MATCH(0,COUNTIF($DR36:EB36,$EG36:$IV36),0)),"") ->  | ED36: =IFERROR(INDEX($EG36:$IV36,MATCH(0,COUNTIF($DR36:EC36,$EG36:$IV36),0)),"") ->  | FC36: {# of Milking Units} | FD36: {Daily Run Time} | FK36: {Measure:Quantity} | FL36: {Motor Efficiency} | FM36: {# of Milking Units} | FU36: {Measure:Quantity} | FV36: {Motor Efficiency} | FW36: {# of Milking Units} | FX36: {Factor:WinterCF} | GE36: {Measure:Quantity} | GF36: {Motor Efficiency} | GG36: {# of Milking Units} | GH36: {Factor:SummerCF} | GO36: {Measure:Quantity} | GP36: {Motor Efficiency} | IZ36: 4
A37: C&I Agricultural Solutions | B37: MILK: Vacuum Pump with Adjustable Speed Drive Package - 7.5 HP | C37: AMVP - VP7.5 | D37: 2021-07-01 | E37: 2022-06-30 | F37: Per Measure | G37: 5322 | H37: 0 | I37: Per Measure | J37: 2000 | K37: 0 | L37: 2016-07-01 | M37: 2022-06-30 | N37: Calculated | O37: {Measure:Quantity} * (((7.5*0.746*.75/({Motor Efficiency}/100)) - (.0495*(2*{# of Milking Units})+1.7729))*{Daily Run Time}*365) | P37: 0.0001 | R37: {Measure:Quantity} * ((7.5*0.746*.75/({Motor Efficiency}/100)) - (.0495*(2*{# of Milking Units})+1.7729)) | U37: ({Measure:Quantity} * ((7.5*0.746*.75/({Motor Efficiency}/100)) - (.0495*(2*{# of Milking Units})+1.7729)))*{Factor:WinterCF} | V37: ({Measure:Quantity} * ((7.5*0.746*.75/({Motor Efficiency}/100)) - (.0495*(2*{# of Milking Units})+1.7729)))*{Factor:SummerCF} | AC37: 2020-04-01 | AD37: 2022-06-30 | AE37: 15 | AF37: 0.467 | AG37: 0.275 | AH37: 0.369 | AI37: 0.301 | AJ37: 0.182 | AK37: 0.148 | AL37: 1 | AM37: 1.122 | AN37: 1 | AO37: 0.52 | AP37: 0.016 | AR37: {# of Milking Units} | AS37: 1 | AT37: {Daily Run Time} | AU37: 91.7 | AV37: {Measure:Quantity} | AW37: 10 | AX37: {Motor Efficiency} | AY37: 2 | BL37: =AS37 * (((7.5*0.746*0.75/(AU37/100)) - (0.0495*(2*AW37)+1.7729))*AY37*365) -> 1323.609172 | BM37: 0.0001 | BN37: 0 | BO37: =AS37 * ((7.5*0.746*0.75/(AU37/100)) - (0.0495*(2*AW37)+1.7729)) -> 1.81316325 | BP37: 0 | BQ37: 0 | BR37: =(AS37 * ((7.5*0.746*0.75/(AU37/100)) - (0.0495*(2*AW37)+1.7729)))*AF37 -> 0.8467472376 | BS37: =(AS37 * ((7.5*0.746*0.75/(AU37/100)) - (0.0495*(2*AW37)+1.7729)))*AG37 -> 0.4986198937 | BT37: 0 | BU37: 0 | BV37: 0 | BW37: 0 | BX37: 0 | BY37: 0 | CA37: Res | CB37: Default DR | CC37: =Benefits(BL37,BR37,BS37,BT37,BU37,BV37,BW37,BX37,BY37,BZ37,AE37,AH37,AI37,AJ37,AK37,AL37,AM37,AN37,AO37,AP37,CA37,CB37) -> 1948.262213 | CD37: 4118.870699 | CE37: 0 | CF37: 0 | CG37: 0 | CH37: 0 | CI37: 0 | CJ37: 0 | CK37: 0 | CL37: =SUMPRODUCT(CC37:CK37,--(CC37:CK37>0)) -> 6067.132912 | CM37: =-SUMPRODUCT(CC37:CK37,--(CC37:CK37<0)) -> 0 | CO37: =5322 -> 5322 | CR37: 5322 | CS37: 1 | CT37: 1.140009942 | CU37: 1 | CV37: =2000 -> 2000 | CX37: Electric | CY37: y | DA37: X=5322 | DB37: X=2000 | DC37: X=AW37 * (((7.5*0.746*.75/(AY37/100)) - (.0495*(2*AS37)+1.7729))*AU37*365) | DD37: X=0.0001 | DE37: 0 | DF37: X=AW37 * ((7.5*0.746*.75/(AY37/100)) - (.0495*(2*AS37)+1.7729)) | DG37: 0 | DH37: 0 | DI37: X=(AW37 * ((7.5*0.746*.75/(AY37/100)) - (.0495*(2*AS37)+1.7729)))*AF37 | DJ37: X=(AW37 * ((7.5*0.746*.75/(AY37/100)) - (.0495*(2*AS37)+1.7729)))*AG37 | DK37: 0 | DL37: 0 | DM37: 0 | DN37: 0 | DO37: 0 | DP37: 0 | DS37: {Factor:WinterCF} | DT37: {Factor:SummerCF} | DU37: =IFERROR(INDEX($EG37:$IV37,MATCH(0,COUNTIF($DR37:DT37,$EG37:$IV37),0)),"") -> {# of Milking Units} | DV37: =IFERROR(INDEX($EG37:$IV37,MATCH(0,COUNTIF($DR37:DU37,$EG37:$IV37),0)),"") -> {Daily Run Time} | DW37: =IFERROR(INDEX($EG37:$IV37,MATCH(0,COUNTIF($DR37:DV37,$EG37:$IV37),0)),"") -> {Measure:Quantity} | DX37: =IFERROR(INDEX($EG37:$IV37,MATCH(0,COUNTIF($DR37:DW37,$EG37:$IV37),0)),"") -> {Motor Efficiency} | DY37: =IFERROR(INDEX($EG37:$IV37,MATCH(0,COUNTIF($DR37:DX37,$EG37:$IV37),0)),"") ->  | DZ37: =IFERROR(INDEX($EG37:$IV37,MATCH(0,COUNTIF($DR37:DY37,$EG37:$IV37),0)),"") ->  | EA37: =IFERROR(INDEX($EG37:$IV37,MATCH(0,COUNTIF($DR37:DZ37,$EG37:$IV37),0)),"") ->  | EB37: =IFERROR(INDEX($EG37:$IV37,MATCH(0,COUNTIF($DR37:EA37,$EG37:$IV37),0)),"") ->  | EC37: =IFERROR(INDEX($EG37:$IV37,MATCH(0,COUNTIF($DR37:EB37,$EG37:$IV37),0)),"") ->  | ED37: =IFERROR(INDEX($EG37:$IV37,MATCH(0,COUNTIF($DR37:EC37,$EG37:$IV37),0)),"") ->  | FC37: {# of Milking Units} | FD37: {Daily Run Time} | FK37: {Measure:Quantity} | FL37: {Motor Efficiency} | FM37: {# of Milking Units} | FU37: {Measure:Quantity} | FV37: {Motor Efficiency} | FW37: {# of Milking Units} | FX37: {Factor:WinterCF} | GE37: {Measure:Quantity} | GF37: {Motor Efficiency} | GG37: {# of Milking Units} | GH37: {Factor:SummerCF} | GO37: {Measure:Quantity} | GP37: {Motor Efficiency} | IZ37: 4
A38: C&I Agricultural Solutions | B38: OTHER: High Volume Low Speed Fans (14,16,18, 20 & 24 foot diameters) | C38: AOLSF | D38: 2021-07-01 | E38: 2022-06-30 | F38: Per Measure | G38: 1165 | H38: 0 | I38: Per Measure | J38: 1000 | K38: 0 | L38: 2016-07-01 | M38: 2022-06-30 | N38: Calculated | O38: {Measure:Quantity} * (({Existing Fan HP} / 0.80 - {Fan HP} / ({Motor Efficiency}/100) ) * 0.746 * 0.80) * 3660 | P38: 0.0001 | R38: {Measure:Quantity} * (({Existing Fan HP} / 0.80 - {Fan HP} / ({Motor Efficiency}/100) ) * 0.746 * 0.80) | U38: {Measure:Quantity} * (({Existing Fan HP} / 0.80 - {Fan HP} / ({Motor Efficiency}/100) ) * 0.746 * 0.80) * {Factor:WinterCF} | V38: {Measure:Quantity} * (({Existing Fan HP} / 0.80 - {Fan HP} / ({Motor Efficiency}/100) ) * 0.746 * 0.80) *{Factor:SummerCF} | AC38: 2020-04-01 | AD38: 2022-06-30 | AE38: 15 | AF38: 0.674 | AG38: 0.326 | AH38: 0.436 | AI38: 0.232 | AJ38: 0.217 | AK38: 0.115 | AL38: 1 | AM38: 1.122 | AN38: 1 | AO38: 0.52 | AP38: 0.016 | AR38: {Fan HP} | AS38: 1 | AT38: {Motor Efficiency} | AU38: 5 | AV38: {Measure:Quantity} | AW38: 3 | AX38: {Existing Fan HP} | AY38: 90 | BL38: =AS38 * ((AU38 / 0.8 - AW38 / (AY38/100) ) * 0.746 * 0.8) * 3660 -> 6370.84 | BM38: 0.0001 | BN38: 0 | BO38: =AS38 * ((AU38 / 0.8 - AW38 / (AY38/100) ) * 0.746 * 0.8) -> 1.740666667 | BP38: 0 | BQ38: 0 | BR38: =AS38 * ((AU38 / 0.8 - AW38 / (AY38/100) ) * 0.746 * 0.8) * AF38 -> 1.173209333 | BS38: =AS38 * ((AU38 / 0.8 - AW38 / (AY38/100) ) * 0.746 * 0.8) *AG38 -> 0.5674573333 | BT38: 0 | BU38: 0 | BV38: 0 | BW38: 0 | BX38: 0 | BY38: 0 | CA38: Res | CB38: Default DR | CC38: =Benefits(BL38,BR38,BS38,BT38,BU38,BV38,BW38,BX38,BY38,BZ38,AE38,AH38,AI38,AJ38,AK38,AL38,AM38,AN38,AO38,AP38,CA38,CB38) -> 9355.275473 | CD38: 5475.023861 | CE38: 0 | CF38: 0 | CG38: 0 | CH38: 0 | CI38: 0 | CJ38: 0 | CK38: 0 | CL38: =SUMPRODUCT(CC38:CK38,--(CC38:CK38>0)) -> 14830.29933 | CM38: =-SUMPRODUCT(CC38:CK38,--(CC38:CK38<0)) -> 0 | CO38: =1165 -> 1165 | CR38: 1165 | CS38: 1 | CT38: 12.72987067 | CU38: 1 | CV38: =1000 -> 1000 | CX38: Electric | CY38: y | DA38: X=1165 | DB38: X=1000 | DC38: X=AW38 * ((AY38 / 0.80 - AS38 / (AU38/100) ) * 0.746 * 0.80) * 3660 | DD38: X=0.0001 | DE38: 0 | DF38: X=AW38 * ((AY38 / 0.80 - AS38 / (AU38/100) ) * 0.746 * 0.80) | DG38: 0 | DH38: 0 | DI38: X=AW38 * ((AY38 / 0.80 - AS38 / (AU38/100) ) * 0.746 * 0.80) * AF38 | DJ38: X=AW38 * ((AY38 / 0.80 - AS38 / (AU38/100) ) * 0.746 * 0.80) *AG38 | DK38: 0 | DL38: 0 | DM38: 0 | DN38: 0 | DO38: 0 | DP38: 0 | DS38: {Factor:WinterCF} | DT38: {Factor:SummerCF} | DU38: =IFERROR(INDEX($EG38:$IV38,MATCH(0,COUNTIF($DR38:DT38,$EG38:$IV38),0)),"") -> {Fan HP} | DV38: =IFERROR(INDEX($EG38:$IV38,MATCH(0,COUNTIF($DR38:DU38,$EG38:$IV38),0)),"") -> {Motor Efficiency} | DW38: =IFERROR(INDEX($EG38:$IV38,MATCH(0,COUNTIF($DR38:DV38,$EG38:$IV38),0)),"") -> {Measure:Quantity} | DX38: =IFERROR(INDEX($EG38:$IV38,MATCH(0,COUNTIF($DR38:DW38,$EG38:$IV38),0)),"") -> {Existing Fan HP} | DY38: =IFERROR(INDEX($EG38:$IV38,MATCH(0,COUNTIF($DR38:DX38,$EG38:$IV38),0)),"") ->  | DZ38: =IFERROR(INDEX($EG38:$IV38,MATCH(0,COUNTIF($DR38:DY38,$EG38:$IV38),0)),"") ->  | EA38: =IFERROR(INDEX($EG38:$IV38,MATCH(0,COUNTIF($DR38:DZ38,$EG38:$IV38),0)),"") ->  | EB38: =IFERROR(INDEX($EG38:$IV38,MATCH(0,COUNTIF($DR38:EA38,$EG38:$IV38),0)),"") ->  | EC38: =IFERROR(INDEX($EG38:$IV38,MATCH(0,COUNTIF($DR38:EB38,$EG38:$IV38),0)),"") ->  | ED38: =IFERROR(INDEX($EG38:$IV38,MATCH(0,COUNTIF($DR38:EC38,$EG38:$IV38),0)),"") ->  | FC38: {Fan HP} | FD38: {Motor Efficiency} | FK38: {Measure:Quantity} | FL38: {Existing Fan HP} | FM38: {Fan HP} | FN38: {Motor Efficiency} | FU38: {Measure:Quantity} | FV38: {Existing Fan HP} | FW38: {Fan HP} | FX38: {Motor Efficiency} | FY38: {Factor:WinterCF} | GE38: {Measure:Quantity} | GF38: {Existing Fan HP} | GG38: {Fan HP} | GH38: {Motor Efficiency} | GI38: {Factor:SummerCF} | GO38: {Measure:Quantity} | GP38: {Existing Fan HP} | IZ38: 4
A39: C&I Do It Yourself | B39: High Efficiency Pre-Rinse Spray Valves | C39: HPSV | D39: 2021-07-01 | E39: 2022-06-30 | F39: Manual Entry | G39: 0 | H39: 0 | I39: Manual Entry | J39: 0 | K39: 0 | L39: 2018-07-01 | M39: 2022-06-30 | N39: Calculated | O39: if({Measure:Quantity}=0,0,if({Fuel}=6,if({Location}=1,1774.94,5324.83),0))*({Measure:Quantity}) | P39: 0 | Q39: 1 | W39: if({Measure:Quantity}=0,0,if({Fuel}=1,if({Location}=1,7.42,22.26),0))*10*({Measure:Quantity}) | X39: if({Measure:Quantity}=0,0,if({Fuel}=2,if({Location}=1,7.42,22.26),0))*({Measure:Quantity}) | Y39: if({Measure:Quantity}=0,0,if({Fuel}=3,if({Location}=1,7.42,22.26),0))*({Measure:Quantity}) | AB39: if({Measure:Quantity}=0,0,if({Location}=1,10296,30888))*{Measure:Quantity} | AC39: 2017-01-01 | AD39: 2022-06-30 | AE39: 5 | AF39: 0 | AG39: 0 | AH39: 1 | AI39: 0 | AJ39: 0 | AK39: 0 | AL39: 1 | AM39: 1 | AN39: 0 | AO39: 0.25 | AP39: 0 | AR39: {Location} | AS39: 1 | AT39: {Measure:Quantity} | AU39: 6 | AV39: {Fuel} | AW39: 1 | BL39: =IF(AS39=0,0,IF(AU39=6,IF(AW39=1,1774.94,5324.83),0))*(AS39) -> 1774.94 | BM39: =0 -> 0 | BN39: =1 -> 1 | BO39: 0 | BP39: 0 | BQ39: 0 | BR39: 0 | BS39: 0 | BT39: =IF(AS39=0,0,IF(AU39=1,IF(AW39=1,7.42,22.26),0))*10*(AS39) -> 0 | BU39: =IF(AS39=0,0,IF(AU39=2,IF(AW39=1,7.42,22.26),0))*(AS39) -> 0 | BV39: =IF(AS39=0,0,IF(AU39=3,IF(AW39=1,7.42,22.26),0))*(AS39) -> 0 | BW39: 0 | BX39: 0 | BY39: =IF(AS39=0,0,IF(AW39=1,10296,30888))*AS39 -> 10296 | CA39: Res | CB39: Default DR | CC39: =Benefits(BL39,BR39,BS39,BT39,BU39,BV39,BW39,BX39,BY39,BZ39,AE39,AH39,AI39,AJ39,AK39,AL39,AM39,AN39,AO39,AP39,CA39,CB39) -> 993.6166096 | CD39: 0 | CE39: 0 | CF39: 0 | CG39: 0 | CH39: 0 | CI39: 0 | CJ39: 318.4819414 | CK39: 0 | CL39: =SUMPRODUCT(CC39:CK39,--(CC39:CK39>0)) -> 1312.098551 | CM39: =-SUMPRODUCT(CC39:CK39,--(CC39:CK39<0)) -> 0 | CO39: 40 | CR39: 40 | CS39: 1 | CT39: =(SUMPRODUCT(CC39:CJ39,--(CC39:CJ39>0))+CN39)*CS39/((-SUMPRODUCT(CC39:CJ39,--(CC39:CJ39<0))+MAX(CO39,CV39)+CP39+CQ39)*CS39+IF(FRIncentives="Yes",CV39*(1-CS39),0)) -> 32.71250439 | CU39: 1 | CV39: 40.11 | CX39: Electric | CY39: y | DA39: Manual | DB39: Manual | DC39: X=if(AU39=0,0,if(AW39=6,if(AS39=1,1774.94,5324.83),0))*(AU39) | DD39: X=0 | DE39: X=1 | DF39: 0 | DG39: 0 | DH39: 0 | DI39: 0 | DJ39: 0 | DK39: X=if(AU39=0,0,if(AW39=1,if(AS39=1,7.42,22.26),0))*10*(AU39) | DL39: X=if(AU39=0,0,if(AW39=2,if(AS39=1,7.42,22.26),0))*(AU39) | DM39: X=if(AU39=0,0,if(AW39=3,if(AS39=1,7.42,22.26),0))*(AU39) | DN39: 0 | DO39: 0 | DP39: X=if(AU39=0,0,if(AS39=1,10296,30888))*AU39 | DS39: {Factor:WinterCF} | DT39: {Factor:SummerCF} | DU39: =IFERROR(INDEX($EG39:$IV39,MATCH(0,COUNTIF($DR39:DT39,$EG39:$IV39),0)),"") -> {Location} | DV39: =IFERROR(INDEX($EG39:$IV39,MATCH(0,COUNTIF($DR39:DU39,$EG39:$IV39),0)),"") -> {Measure:Quantity} | DW39: =IFERROR(INDEX($EG39:$IV39,MATCH(0,COUNTIF($DR39:DV39,$EG39:$IV39),0)),"") -> {Fuel} | DX39: =IFERROR(INDEX($EG39:$IV39,MATCH(0,COUNTIF($DR39:DW39,$EG39:$IV39),0)),"") ->  | DY39: =IFERROR(INDEX($EG39:$IV39,MATCH(0,COUNTIF($DR39:DX39,$EG39:$IV39),0)),"") ->  | DZ39: =IFERROR(INDEX($EG39:$IV39,MATCH(0,COUNTIF($DR39:DY39,$EG39:$IV39),0)),"") ->  | EA39: =IFERROR(INDEX($EG39:$IV39,MATCH(0,COUNTIF($DR39:DZ39,$EG39:$IV39),0)),"") ->  | EB39: =IFERROR(INDEX($EG39:$IV39,MATCH(0,COUNTIF($DR39:EA39,$EG39:$IV39),0)),"") ->  | EC39: =IFERROR(INDEX($EG39:$IV39,MATCH(0,COUNTIF($DR39:EB39,$EG39:$IV39),0)),"") ->  | ED39: =IFERROR(INDEX($EG39:$IV39,MATCH(0,COUNTIF($DR39:EC39,$EG39:$IV39),0)),"") ->  | EG39: =IFERROR(MID($G39,FIND(CHAR(160),SUBSTITUTE($G39,"{",CHAR(160),EG$1)),FIND(CHAR(160),SUBSTITUTE($G39,"}",CHAR(160),EG$1))-FIND(CHAR(160),SUBSTITUTE($G39,"{",CHAR(160),EG$1))+1),"") ->  | EQ39: =IFERROR(MID($J39,FIND(CHAR(160),SUBSTITUTE($J39,"{",CHAR(160),EQ$1)),FIND(CHAR(160),SUBSTITUTE($J39,"}",CHAR(160),EQ$1))-FIND(CHAR(160),SUBSTITUTE($J39,"{",CHAR(160),EQ$1))+1),"") ->  | FC39: =IFERROR(MID($O39,FIND(CHAR(160),SUBSTITUTE($O39,"{",CHAR(160),FC$1)),FIND(CHAR(160),SUBSTITUTE($O39,"}",CHAR(160),FC$1))-FIND(CHAR(160),SUBSTITUTE($O39,"{",CHAR(160),FC$1))+1),"") -> {Location} | FD39: {Measure:Quantity} | FK39: {Measure:Quantity} | FL39: {Fuel} | FM39: =IFERROR(MID($R39,FIND(CHAR(160),SUBSTITUTE($R39,"{",CHAR(160),FM$1)),FIND(CHAR(160),SUBSTITUTE($R39,"}",CHAR(160),FM$1))-FIND(CHAR(160),SUBSTITUTE($R39,"{",CHAR(160),FM$1))+1),"") ->  | FW39: =IFERROR(MID($U39,FIND(CHAR(160),SUBSTITUTE($U39,"{",CHAR(160),FW$1)),FIND(CHAR(160),SUBSTITUTE($U39,"}",CHAR(160),FW$1))-FIND(CHAR(160),SUBSTITUTE($U39,"{",CHAR(160),FW$1))+1),"") ->  | GG39: =IFERROR(MID($V39,FIND(CHAR(160),SUBSTITUTE($V39,"{",CHAR(160),GG$1)),FIND(CHAR(160),SUBSTITUTE($V39,"}",CHAR(160),GG$1))-FIND(CHAR(160),SUBSTITUTE($V39,"{",CHAR(160),GG$1))+1),"") ->  | GQ39: =IFERROR(MID($W39,FIND(CHAR(160),SUBSTITUTE($W39,"{",CHAR(160),GQ$1)),FIND(CHAR(160),SUBSTITUTE($W39,"}",CHAR(160),GQ$1))-FIND(CHAR(160),SUBSTITUTE($W39,"{",CHAR(160),GQ$1))+1),"") -> {Location} | GR39: {Measure:Quantity} | GY39: {Measure:Quantity} | GZ39: {Fuel} | HA39: =IFERROR(MID($X39,FIND(CHAR(160),SUBSTITUTE($X39,"{",CHAR(160),HA$1)),FIND(CHAR(160),SUBSTITUTE($X39,"}",CHAR(160),HA$1))-FIND(CHAR(160),SUBSTITUTE($X39,"{",CHAR(160),HA$1))+1),"") -> {Location} | HB39: {Measure:Quantity} | HI39: {Measure:Quantity} | HJ39: {Fuel} | HK39: =IFERROR(MID($Y39,FIND(CHAR(160),SUBSTITUTE($Y39,"{",CHAR(160),HK$1)),FIND(CHAR(160),SUBSTITUTE($Y39,"}",CHAR(160),HK$1))-FIND(CHAR(160),SUBSTITUTE($Y39,"{",CHAR(160),HK$1))+1),"") -> {Location} | HL39: {Measure:Quantity} | HS39: {Measure:Quantity} | HT39: {Fuel} | HU39: =IFERROR(MID($Z39,FIND(CHAR(160),SUBSTITUTE($Z39,"{",CHAR(160),HU$1)),FIND(CHAR(160),SUBSTITUTE($Z39,"}",CHAR(160),HU$1))-FIND(CHAR(160),SUBSTITUTE($Z39,"{",CHAR(160),HU$1))+1),"") ->  | IE39: =IFERROR(MID($AA39,FIND(CHAR(160),SUBSTITUTE($AA39,"{",CHAR(160),IE$1)),FIND(CHAR(160),SUBSTITUTE($AA39,"}",CHAR(160),IE$1))-FIND(CHAR(160),SUBSTITUTE($AA39,"{",CHAR(160),IE$1))+1),"") ->  | IO39: =IFERROR(MID($AB39,FIND(CHAR(160),SUBSTITUTE($AB39,"{",CHAR(160),IO$1)),FIND(CHAR(160),SUBSTITUTE($AB39,"}",CHAR(160),IO$1))-FIND(CHAR(160),SUBSTITUTE($AB39,"{",CHAR(160),IO$1))+1),"") -> {Measure:Quantity} | IZ39: 3
A40: C&I HVAC - Electric | B40: Programmable Thermostat | C40: AF6 | D40: 2021-07-01 | E40: 2021-09-09 | F40: Per Measure | G40: 157 | H40: 0 | I40: Calculated | J40: {Measure:Quantity}*100 | K40: 0 | L40: 2021-07-01 | M40: 2022-06-30 | N40: Calculated | O40: {Measure:Quantity} * ({Capacity (MBTUH)} * 1565 *0.068) / 1000 /0.003412 | AC40: 2021-05-25 | AD40: 2022-06-30 | AE40: 8 | AF40: 1 | AG40: 1 | AH40: 0.39 | AI40: 0.305 | AJ40: 0.216 | AK40: 0.089 | AL40: 1 | AM40: 1 | AN40: 0 | AO40: 0.52 | AP40: 0.016 | AR40: {Measure:Quantity} | AS40: 1 | AT40: {Capacity (MBTUH)} | AU40: 90 | BL40: =AS40 * (AU40 * 1565 *0.068) / 1000 /0.003412 -> 2807.092614 | BM40: 0 | BN40: 0 | BO40: 0 | BP40: 0 | BQ40: 0 | BR40: 0 | BS40: 0 | BT40: 0 | BU40: 0 | BV40: 0 | BW40: 0 | BX40: 0 | BY40: 0 | CA40: Res | CB40: Default DR | CC40: =Benefits(BL40,BR40,BS40,BT40,BU40,BV40,BW40,BX40,BY40,BZ40,AE40,AH40,AI40,AJ40,AK40,AL40,AM40,AN40,AO40,AP40,CA40,CB40) -> 2269.440632 | CD40: 0 | CE40: 0 | CF40: 0 | CG40: 0 | CH40: 0 | CI40: 0 | CJ40: 0 | CK40: 0 | CL40: =SUMPRODUCT(CC40:CK40,--(CC40:CK40>0)) -> 2269.440632 | CM40: =-SUMPRODUCT(CC40:CK40,--(CC40:CK40<0)) -> 0 | CO40: =157 -> 157 | CR40: 157 | CS40: 1 | CT40: =(SUMPRODUCT(CC40:CJ40,--(CC40:CJ40>0))+CN40)*CS40/((-SUMPRODUCT(CC40:CJ40,--(CC40:CJ40<0))+MAX(CO40,CV40)+CP40+CQ40)*CS40+IF(FRIncentives="Yes",CV40*(1-CS40),0)) -> 14.45503588 | CU40: 1 | CV40: =AS40*100 -> 100 | CX40: Electric | CY40: y | DA40: X=157 | DB40: X=AS40*100 | DC40: X=AS40 * (AU40 * 1565 *0.068) / 1000 /0.003412 | DD40: 0 | DE40: 0 | DF40: 0 | DG40: 0 | DH40: 0 | DI40: 0 | DJ40: 0 | DK40: 0 | DL40: 0 | DM40: 0 | DN40: 0 | DO40: 0 | DP40: 0 | DS40: {Factor:WinterCF} | DT40: {Factor:SummerCF} | DU40: =IFERROR(INDEX($EG40:$IV40,MATCH(0,COUNTIF($DR40:DT40,$EG40:$IV40),0)),"") -> {Measure:Quantity} | DV40: =IFERROR(INDEX($EG40:$IV40,MATCH(0,COUNTIF($DR40:DU40,$EG40:$IV40),0)),"") -> {Capacity (MBTUH)} | DW40: =IFERROR(INDEX($EG40:$IV40,MATCH(0,COUNTIF($DR40:DV40,$EG40:$IV40),0)),"") ->  | DX40: =IFERROR(INDEX($EG40:$IV40,MATCH(0,COUNTIF($DR40:DW40,$EG40:$IV40),0)),"") ->  | DY40: =IFERROR(INDEX($EG40:$IV40,MATCH(0,COUNTIF($DR40:DX40,$EG40:$IV40),0)),"") ->  | DZ40: =IFERROR(INDEX($EG40:$IV40,MATCH(0,COUNTIF($DR40:DY40,$EG40:$IV40),0)),"") ->  | EA40: =IFERROR(INDEX($EG40:$IV40,MATCH(0,COUNTIF($DR40:DZ40,$EG40:$IV40),0)),"") ->  | EB40: =IFERROR(INDEX($EG40:$IV40,MATCH(0,COUNTIF($DR40:EA40,$EG40:$IV40),0)),"") ->  | EC40: =IFERROR(INDEX($EG40:$IV40,MATCH(0,COUNTIF($DR40:EB40,$EG40:$IV40),0)),"") ->  | ED40: =IFERROR(INDEX($EG40:$IV40,MATCH(0,COUNTIF($DR40:EC40,$EG40:$IV40),0)),"") ->  | EQ40: {Measure:Quantity} | FA40: {Measure:Quantity} | FK40: {Measure:Quantity} | FL40: {Capacity (MBTUH)} | IZ40: 2
A41: C&I HVAC - Electric | B41: HVAC AIR-TO-AIR HEAT PUMP: < 5.4 Split | C41: AH1 | D41: 2021-07-01 | E41: 2021-09-09 | F41: Calculated | G41: {Measure:Quantity}*{Unit Size - Tons}*100.0 | H41: 0 | I41: Calculated | J41: {Measure:Quantity}*{Unit Size - Tons}*50 | K41: 0 | L41: 2021-07-01 | M41: 2022-06-30 | N41: Calculated | O41: {Measure:Quantity} * ((12 * {Unit Size - Tons} * (1/14.0 - 1/{SEER}) * 829) + ({Heating BTUH}/1000 * (1/8.2 - 1/{HSPF}) * 2200)) | P41: 0.0001 | R41: {Measure:Quantity} * 12 * {Unit Size - Tons} * (1/14.0 - 1/{SEER}) | U41: {Measure:Quantity} * {Heating BTUH}/1000 * (1/8.2 - 1/{HSPF}) * {Factor:WinterCF} | V41: {Measure:Quantity} * 12 * {Unit Size - Tons} * (1/14.0 - 1/{SEER}) * {Factor:SummerCF} | AC41: 2021-05-25 | AD41: 2022-06-30 | AE41: 15 | AF41: 0.42 | AG41: 0.357 | AH41: 0.17 | AI41: 0.03 | AJ41: 0.62 | AK41: 0.18 | AL41: 1 | AM41: 1.122 | AN41: 1 | AO41: 0.52 | AP41: 0.016 | AR41: =DU41 -> {Measure:Quantity} | AS41: 1 | AT41: =DV41 -> {Unit Size - Tons} | AU41: 5 | AV41: =DW41 -> {SEER} | AW41: 16 | AX41: =DX41 -> {Heating BTUH} | AY41: 56500 | AZ41: =DY41 -> {HSPF} | BA41: 9 | BB41: =DZ41 ->  | BD41: =EA41 ->  | BF41: =EB41 ->  | BH41: =EC41 ->  | BJ41: =ED41 ->  | BL41: =AS41 * ((12 * AU41 * (1/14 - 1/AW41) * 829) + (AY41/1000 * (1/8.2 - 1/BA41) * 2200)) -> 1791.532617 | BM41: =0.0001 -> 0.0001 | BN41: 0 | BO41: =AS41 * 12 * AU41 * (1/14 - 1/AW41) -> 0.5357142857 | BP41: 0 | BQ41: 0 | BR41: =AS41 * AY41/1000 * (1/8.2 - 1/BA41) * AF41 -> 0.2572357724 | BS41: =AS41 * 12 * AU41 * (1/14 - 1/AW41) * AG41 -> 0.19125 | BT41: 0 | BU41: 0 | BV41: 0 | BW41: 0 | BX41: 0 | BY41: 0 | CA41: Res | CB41: Default DR | CC41: =Benefits(BL41,BR41,BS41,BT41,BU41,BV41,BW41,BX41,BY41,BZ41,AE41,AH41,AI41,AJ41,AK41,AL41,AM41,AN41,AO41,AP41,CA41,CB41) -> 2431.668778 | CD41: 1326.014661 | CE41: 0 | CF41: 0 | CG41: 0 | CH41: 0 | CI41: 0 | CJ41: 0 | CK41: 0 | CL41: =SUMPRODUCT(CC41:CK41,--(CC41:CK41>0)) -> 3757.683439 | CM41: =-SUMPRODUCT(CC41:CK41,--(CC41:CK41<0)) -> 0 | CO41: =AS41*AU41*100 -> 500 | CR41: 500 | CS41: 1 | CT41: 7.515366878 | CU41: 1 | CV41: =AS41*AU41*50 -> 250 | CX41: Electric | CY41: y | DA41: X=AS41*AU41*100.0 | DB41: X=AS41*AU41*50 | DC41: X=AS41 * ((12 * AU41 * (1/14.0 - 1/AW41) * 829) + (AY41/1000 * (1/8.2 - 1/BA41) * 2200)) | DD41: X=0.0001 | DE41: 0 | DF41: X=AS41 * 12 * AU41 * (1/14.0 - 1/AW41) | DG41: 0 | DH41: 0 | DI41: X=AS41 * AY41/1000 * (1/8.2 - 1/BA41) * AF41 | DJ41: X=AS41 * 12 * AU41 * (1/14.0 - 1/AW41) * AG41 | DK41: 0 | DL41: 0 | DM41: 0 | DN41: 0 | DO41: 0 | DP41: 0 | DS41: {Factor:WinterCF} | DT41: {Factor:SummerCF} | DU41: =IFERROR(INDEX($EG41:$IV41,MATCH(0,COUNTIF($DR41:DT41,$EG41:$IV41),0)),"") -> {Measure:Quantity} | DV41: =IFERROR(INDEX($EG41:$IV41,MATCH(0,COUNTIF($DR41:DU41,$EG41:$IV41),0)),"") -> {Unit Size - Tons} | DW41: =IFERROR(INDEX($EG41:$IV41,MATCH(0,COUNTIF($DR41:DV41,$EG41:$IV41),0)),"") -> {SEER} | DX41: =IFERROR(INDEX($EG41:$IV41,MATCH(0,COUNTIF($DR41:DW41,$EG41:$IV41),0)),"") -> {Heating BTUH} | DY41: =IFERROR(INDEX($EG41:$IV41,MATCH(0,COUNTIF($DR41:DX41,$EG41:$IV41),0)),"") -> {HSPF} | DZ41: =IFERROR(INDEX($EG41:$IV41,MATCH(0,COUNTIF($DR41:DY41,$EG41:$IV41),0)),"") ->  | EA41: =IFERROR(INDEX($EG41:$IV41,MATCH(0,COUNTIF($DR41:DZ41,$EG41:$IV41),0)),"") ->  | EB41: =IFERROR(INDEX($EG41:$IV41,MATCH(0,COUNTIF($DR41:EA41,$EG41:$IV41),0)),"") ->  | EC41: =IFERROR(INDEX($EG41:$IV41,MATCH(0,COUNTIF($DR41:EB41,$EG41:$IV41),0)),"") ->  | ED41: =IFERROR(INDEX($EG41:$IV41,MATCH(0,COUNTIF($DR41:EC41,$EG41:$IV41),0)),"") ->  | EG41: {Measure:Quantity} | EH41: {Unit Size - Tons} | EQ41: {Measure:Quantity} | ER41: {Unit Size - Tons} | FA41: {Measure:Quantity} | FB41: {Unit Size - Tons} | FC41: {SEER} | FD41: {Heating BTUH} | FE41: {HSPF} | FK41: {Measure:Quantity} | FL41: {Unit Size - Tons} | FM41: {SEER} | FU41: {Measure:Quantity} | FV41: {Unit Size - Tons} | FW41: {HSPF} | FX41: {Factor:WinterCF} | GE41: {Measure:Quantity} | GF41: {Heating BTUH} | GG41: {SEER} | GH41: {Factor:SummerCF} | GO41: {Measure:Quantity} | GP41: {Unit Size - Tons} | IZ41: 5
A42: C&I HVAC - Electric | B42: HVAC AIR-TO-AIR HEAT PUMP: < 5.4 Packaged | C42: AH2 | D42: 2021-07-01 | E42: 2021-09-09 | F42: Calculated | G42: {Measure:Quantity}*{Unit Size - Tons}*100.0 | H42: 0 | I42: Calculated | J42: {Measure:Quantity}*{Unit Size - Tons}*50 | K42: 0 | L42: 2021-07-01 | M42: 2022-06-30 | N42: Calculated | O42: {Measure:Quantity} * ((12 * {Unit Size - Tons} * (1/14.0 - 1/{SEER}) * 829) + ({Heating BTUH}/1000 * (1/8 - 1/{HSPF}) * 2200)) | P42: 0.0001 | R42: {Measure:Quantity} * 12 * {Unit Size - Tons} * (1/14.0 - 1/{SEER}) | U42: {Measure:Quantity} * {Heating BTUH}/1000 * (1/8 - 1/{HSPF}) * {Factor:WinterCF} | V42: {Measure:Quantity} * 12 * {Unit Size - Tons} * (1/14.0 - 1/{SEER}) * {Factor:SummerCF} | AC42: 2021-05-25 | AD42: 2022-06-30 | AE42: 15 | AF42: 0.42 | AG42: 0.357 | AH42: 0.17 | AI42: 0.03 | AJ42: 0.62 | AK42: 0.18 | AL42: 1 | AM42: 1.122 | AN42: 1 | AO42: 0.52 | AP42: 0.016 | AR42: {Measure:Quantity} | AS42: 1 | AT42: {Unit Size - Tons} | AU42: 5 | AV42: {SEER} | AW42: 16 | AX42: {Heating BTUH} | AY42: 56500 | AZ42: {HSPF} | BA42: 9 | BL42: =AS42 * ((12 * AU42 * (1/14 - 1/AW42) * 829) + (AY42/1000 * (1/8 - 1/BA42) * 2200)) -> 2170.496032 | BM42: =0.0001 -> 0.0001 | BN42: 0 | BO42: =AS42 * 12 * AU42 * (1/14 - 1/AW42) -> 0.5357142857 | BP42: 0 | BQ42: 0 | BR42: =AS42 * AY42/1000 * (1/8 - 1/BA42) * AF42 -> 0.3295833333 | BS42: =AS42 * 12 * AU42 * (1/14 - 1/AW42) * AG42 -> 0.19125 | BT42: 0 | BU42: 0 | BV42: 0 | BW42: 0 | BX42: 0 | BY42: 0 | CA42: Res | CB42: Default DR | CC42: =Benefits(BL42,BR42,BS42,BT42,BU42,BV42,BW42,BX42,BY42,BZ42,AE42,AH42,AI42,AJ42,AK42,AL42,AM42,AN42,AO42,AP42,CA42,CB42) -> 2946.040381 | CD42: 1597.889389 | CE42: 0 | CF42: 0 | CG42: 0 | CH42: 0 | CI42: 0 | CJ42: 0 | CK42: 0 | CL42: =SUMPRODUCT(CC42:CK42,--(CC42:CK42>0)) -> 4543.92977 | CM42: =-SUMPRODUCT(CC42:CK42,--(CC42:CK42<0)) -> 0 | CO42: =AS42*AU42*100 -> 500 | CR42: 500 | CS42: 1 | CT42: 9.08785954 | CU42: 1 | CV42: =AS42*AU42*50 -> 250 | CX42: Electric | CY42: y | DA42: X=AS42*AU42*100.0 | DB42: X=AS42*AU42*50 | DC42: X=AS42 * ((12 * AU42 * (1/14.0 - 1/AW42) * 829) + (AY42/1000 * (1/8 - 1/BA42) * 2200)) | DD42: X=0.0001 | DE42: 0 | DF42: X=AS42 * 12 * AU42 * (1/14.0 - 1/AW42) | DG42: 0 | DH42: 0 | DI42: X=AS42 * AY42/1000 * (1/8 - 1/BA42) * AF42 | DJ42: X=AS42 * 12 * AU42 * (1/14.0 - 1/AW42) * AG42 | DK42: 0 | DL42: 0 | DM42: 0 | DN42: 0 | DO42: 0 | DP42: 0 | DS42: {Factor:WinterCF} | DT42: {Factor:SummerCF} | DU42: =IFERROR(INDEX($EG42:$IV42,MATCH(0,COUNTIF($DR42:DT42,$EG42:$IV42),0)),"") -> {Measure:Quantity} | DV42: =IFERROR(INDEX($EG42:$IV42,MATCH(0,COUNTIF($DR42:DU42,$EG42:$IV42),0)),"") -> {Unit Size - Tons} | DW42: =IFERROR(INDEX($EG42:$IV42,MATCH(0,COUNTIF($DR42:DV42,$EG42:$IV42),0)),"") -> {SEER} | DX42: =IFERROR(INDEX($EG42:$IV42,MATCH(0,COUNTIF($DR42:DW42,$EG42:$IV42),0)),"") -> {Heating BTUH} | DY42: =IFERROR(INDEX($EG42:$IV42,MATCH(0,COUNTIF($DR42:DX42,$EG42:$IV42),0)),"") -> {HSPF} | DZ42: =IFERROR(INDEX($EG42:$IV42,MATCH(0,COUNTIF($DR42:DY42,$EG42:$IV42),0)),"") ->  | EA42: =IFERROR(INDEX($EG42:$IV42,MATCH(0,COUNTIF($DR42:DZ42,$EG42:$IV42),0)),"") ->  | EB42: =IFERROR(INDEX($EG42:$IV42,MATCH(0,COUNTIF($DR42:EA42,$EG42:$IV42),0)),"") ->  | EC42: =IFERROR(INDEX($EG42:$IV42,MATCH(0,COUNTIF($DR42:EB42,$EG42:$IV42),0)),"") ->  | ED42: =IFERROR(INDEX($EG42:$IV42,MATCH(0,COUNTIF($DR42:EC42,$EG42:$IV42),0)),"") ->  | EG42: {Measure:Quantity} | EH42: {Unit Size - Tons} | EQ42: {Measure:Quantity} | ER42: {Unit Size - Tons} | FA42: {Measure:Quantity} | FB42: {Unit Size - Tons} | FC42: {SEER} | FD42: {Heating BTUH} | FE42: {HSPF} | FK42: {Measure:Quantity} | FL42: {Unit Size - Tons} | FM42: {SEER} | FU42: {Measure:Quantity} | FV42: {Unit Size - Tons} | FW42: {HSPF} | FX42: {Factor:WinterCF} | GE42: {Measure:Quantity} | GF42: {Heating BTUH} | GG42: {SEER} | GH42: {Factor:SummerCF} | GO42: {Measure:Quantity} | GP42: {Unit Size - Tons} | IZ42: 5
A43: C&I HVAC - Electric | B43: HVAC AIR-TO-AIR HEAT PUMP: > = 5.4 to < 11.25 | C43: AH3 | D43: 2021-07-01 | E43: 2021-09-09 | F43: Calculated | G43: {Measure:Quantity}*{Unit Size - Tons}*100.0 | H43: 0 | I43: Calculated | J43: {Measure:Quantity}*{Unit Size - Tons}*50 | K43: 0 | L43: 2021-07-01 | M43: 2022-06-30 | N43: Calculated | O43: {Measure:Quantity} * ((12 * {Unit Size - Tons} * (1/11.0 - 1/{EER}) * 829) + ({Heating BTUH}/1000 * (1/3.3 - 1/{COP}) * 1600 / 3.412)) | P43: 0.0001 | R43: {Measure:Quantity} * 12 * {Unit Size - Tons} * (1/11.0 - 1/{EER}) | U43: {Measure:Quantity} * {Heating BTUH}/1000 * (1/3.3 - 1/{COP}) / 3.412 * {Factor:WinterCF} | V43: {Measure:Quantity} * 12 * {Unit Size - Tons} * (1/11.0 - 1/{EER}) * {Factor:SummerCF} | AC43: 2021-05-25 | AD43: 2022-06-30 | AE43: 15 | AF43: 0.42 | AG43: 0.357 | AH43: 0.17 | AI43: 0.03 | AJ43: 0.62 | AK43: 0.18 | AL43: 1 | AM43: 1.122 | AN43: 1 | AO43: 0.52 | AP43: 0.016 | AR43: {Measure:Quantity} | AS43: 1 | AT43: {Unit Size - Tons} | AU43: 8 | AV43: {EER} | AW43: 12 | AX43: {Heating BTUH} | AY43: 92000 | AZ43: {COP} | BA43: 4 | BL43: =AS43 * ((12 * AU43 * (1/11 - 1/AW43) * 829) + (AY43/1000 * (1/3.3 - 1/BA43) * 1600 / 3.412)) -> 2890.734591 | BM43: =0.0001 -> 0.0001 | BN43: 0 | BO43: =AS43 * 12 * AU43 * (1/11 - 1/AW43) -> 0.7272727273 | BP43: 0 | BQ43: 0 | BR43: =AS43 * AY43/1000 * (1/3.3 - 1/BA43) / 3.412 * AF43 -> 0.6005541938 | BS43: =AS43 * 12 * AU43 * (1/11 - 1/AW43) * AG43 -> 0.2596363636 | BT43: 0 | BU43: 0 | BV43: 0 | BW43: 0 | BX43: 0 | BY43: 0 | CA43: Res | CB43: Default DR | CC43: =Benefits(BL43,BR43,BS43,BT43,BU43,BV43,BW43,BX43,BY43,BZ43,AE43,AH43,AI43,AJ43,AK43,AL43,AM43,AN43,AO43,AP43,CA43,CB43) -> 3923.628844 | CD43: 2744.664621 | CE43: 0 | CF43: 0 | CG43: 0 | CH43: 0 | CI43: 0 | CJ43: 0 | CK43: 0 | CL43: =SUMPRODUCT(CC43:CK43,--(CC43:CK43>0)) -> 6668.293465 | CM43: =-SUMPRODUCT(CC43:CK43,--(CC43:CK43<0)) -> 0 | CO43: =AS43*AU43*100 -> 800 | CR43: 800 | CS43: 1 | CT43: 8.335366831 | CU43: 1 | CV43: =AS43*AU43*50 -> 400 | CX43: Electric | CY43: y | DA43: X=AS43*AU43*100.0 | DB43: X=AS43*AU43*50 | DC43: X=AS43 * ((12 * AU43 * (1/11.0 - 1/AW43) * 829) + (AY43/1000 * (1/3.3 - 1/BA43) * 1600 / 3.412)) | DD43: X=0.0001 | DE43: 0 | DF43: X=AS43 * 12 * AU43 * (1/11.0 - 1/AW43) | DG43: 0 | DH43: 0 | DI43: X=AS43 * AY43/1000 * (1/3.3 - 1/BA43) / 3.412 * AF43 | DJ43: X=AS43 * 12 * AU43 * (1/11.0 - 1/AW43) * AG43 | DK43: 0 | DL43: 0 | DM43: 0 | DN43: 0 | DO43: 0 | DP43: 0 | DS43: {Factor:WinterCF} | DT43: {Factor:SummerCF} | DU43: =IFERROR(INDEX($EG43:$IV43,MATCH(0,COUNTIF($DR43:DT43,$EG43:$IV43),0)),"") -> {Measure:Quantity} | DV43: =IFERROR(INDEX($EG43:$IV43,MATCH(0,COUNTIF($DR43:DU43,$EG43:$IV43),0)),"") -> {Unit Size - Tons} | DW43: =IFERROR(INDEX($EG43:$IV43,MATCH(0,COUNTIF($DR43:DV43,$EG43:$IV43),0)),"") -> {EER} | DX43: =IFERROR(INDEX($EG43:$IV43,MATCH(0,COUNTIF($DR43:DW43,$EG43:$IV43),0)),"") -> {Heating BTUH} | DY43: =IFERROR(INDEX($EG43:$IV43,MATCH(0,COUNTIF($DR43:DX43,$EG43:$IV43),0)),"") -> {COP} | DZ43: =IFERROR(INDEX($EG43:$IV43,MATCH(0,COUNTIF($DR43:DY43,$EG43:$IV43),0)),"") ->  | EA43: =IFERROR(INDEX($EG43:$IV43,MATCH(0,COUNTIF($DR43:DZ43,$EG43:$IV43),0)),"") ->  | EB43: =IFERROR(INDEX($EG43:$IV43,MATCH(0,COUNTIF($DR43:EA43,$EG43:$IV43),0)),"") ->  | EC43: =IFERROR(INDEX($EG43:$IV43,MATCH(0,COUNTIF($DR43:EB43,$EG43:$IV43),0)),"") ->  | ED43: =IFERROR(INDEX($EG43:$IV43,MATCH(0,COUNTIF($DR43:EC43,$EG43:$IV43),0)),"") ->  | EG43: {Measure:Quantity} | EH43: {Unit Size - Tons} | EQ43: {Measure:Quantity} | ER43: {Unit Size - Tons} | FA43: {Measure:Quantity} | FB43: {Unit Size - Tons} | FC43: {EER} | FD43: {Heating BTUH} | FE43: {COP} | FK43: {Measure:Quantity} | FL43: {Unit Size - Tons} | FM43: {EER} | FU43: {Measure:Quantity} | FV43: {Unit Size - Tons} | FW43: {COP} | FX43: {Factor:WinterCF} | GE43: {Measure:Quantity} | GF43: {Heating BTUH} | GG43: {EER} | GH43: {Factor:SummerCF} | GO43: {Measure:Quantity} | GP43: {Unit Size - Tons} | IZ43: 5
A44: C&I HVAC - Electric | B44: VFD: Building Exhaust Fan | C44: BEF | D44: 2021-07-01 | E44: 2021-09-09 | F44: Calculated | G44: {Measure:Quantity}*if({Motor HP}=5,2425,if({Motor HP}=7.5,2648,if({Motor HP}=10,2871,if({Motor HP}=15,3317,if({Motor HP}=20,3763,if({Motor HP}=25,4209,if({Motor HP}=30,4655,0))))))) | H44: 0 | I44: Calculated | J44: {Measure:Quantity}*if({Motor HP}=5,400,if({Motor HP}=7.5,650,if({Motor HP}=10,1400,if({Motor HP}=15,1650,if({Motor HP}=20,1850,if({Motor HP}=25,2000,if({Motor HP}=30,2300,0))))))) | K44: 0 | L44: 2021-07-01 | M44: 2022-06-30 | N44: Calculated | O44: {Measure:Quantity}*{Motor HP}*755 | R44: {Measure:Quantity}*{Motor HP}*.120 | U44: {Measure:Quantity}*{Factor:WinterCF}*{Motor HP}*.120 | V44: {Measure:Quantity}*{Factor:SummerCF}*{Motor HP}*.120 | AC44: 2021-05-25 | AD44: 2022-06-30 | AE44: 13 | AF44: 0.737 | AG44: 0.355 | AH44: 0.444 | AI44: 0.222 | AJ44: 0.16 | AK44: 0.174 | AL44: 1 | AM44: 1.122 | AN44: 1 | AO44: 0.52 | AP44: 0.016 | AR44: {Measure:Quantity} | AS44: 1 | AT44: {Motor HP} | AU44: 5 | BL44: =AS44*AU44*755 -> 3775 | BM44: 0 | BN44: 0 | BO44: =AS44*AU44*0.12 -> 0.6 | BP44: 0 | BQ44: 0 | BR44: =AS44*AF44*AU44*0.12 -> 0.4422 | BS44: =AS44*AG44*AU44*0.12 -> 0.213 | BT44: 0 | BU44: 0 | BV44: 0 | BW44: 0 | BX44: 0 | BY44: 0 | CA44: Res | CB44: Default DR | CC44: =Benefits(BL44,BR44,BS44,BT44,BU44,BV44,BW44,BX44,BY44,BZ44,AE44,AH44,AI44,AJ44,AK44,AL44,AM44,AN44,AO44,AP44,CA44,CB44) -> 4994.112087 | CD44: 1832.881912 | CE44: 0 | CF44: 0 | CG44: 0 | CH44: 0 | CI44: 0 | CJ44: 0 | CK44: 0 | CL44: =SUMPRODUCT(CC44:CK44,--(CC44:CK44>0)) -> 6826.993999 | CM44: =-SUMPRODUCT(CC44:CK44,--(CC44:CK44<0)) -> 0 | CO44: =AS44*IF(AU44=5,2425,IF(AU44=7.5,2648,IF(AU44=10,2871,IF(AU44=15,3317,IF(AU44=20,3763,IF(AU44=25,4209,IF(AU44=30,4655,0))))))) -> 2425 | CR44: 2425 | CS44: 1 | CT44: 2.815255257 | CU44: 1 | CV44: =AS44*IF(AU44=5,400,IF(AU44=7.5,650,IF(AU44=10,1400,IF(AU44=15,1650,IF(AU44=20,1850,IF(AU44=25,2000,IF(AU44=30,2300,0))))))) -> 400 | CX44: Electric | CY44: y | DA44: X=AS44*if(AU44=5,2425,if(AU44=7.5,2648,if(AU44=10,2871,if(AU44=15,3317,if(AU44=20,3763,if(AU44=25,4209,if(AU44=30,4655,0))))))) | DB44: X=AS44*if(AU44=5,400,if(AU44=7.5,650,if(AU44=10,1400,if(AU44=15,1650,if(AU44=20,1850,if(AU44=25,2000,if(AU44=30,2300,0))))))) | DC44: X=AS44*AU44*755 | DD44: 0 | DE44: 0 | DF44: X=AS44*AU44*.120 | DG44: 0 | DH44: 0 | DI44: X=AS44*AF44*AU44*.120 | DJ44: X=AS44*AG44*AU44*.120 | DK44: 0 | DL44: 0 | DM44: 0 | DN44: 0 | DO44: 0 | DP44: 0 | DS44: {Factor:WinterCF} | DT44: {Factor:SummerCF} | DU44: =IFERROR(INDEX($EG44:$IV44,MATCH(0,COUNTIF($DR44:DT44,$EG44:$IV44),0)),"") -> {Measure:Quantity} | DV44: =IFERROR(INDEX($EG44:$IV44,MATCH(0,COUNTIF($DR44:DU44,$EG44:$IV44),0)),"") -> {Motor HP} | DW44: =IFERROR(INDEX($EG44:$IV44,MATCH(0,COUNTIF($DR44:DV44,$EG44:$IV44),0)),"") ->  | DX44: =IFERROR(INDEX($EG44:$IV44,MATCH(0,COUNTIF($DR44:DW44,$EG44:$IV44),0)),"") ->  | DY44: =IFERROR(INDEX($EG44:$IV44,MATCH(0,COUNTIF($DR44:DX44,$EG44:$IV44),0)),"") ->  | DZ44: =IFERROR(INDEX($EG44:$IV44,MATCH(0,COUNTIF($DR44:DY44,$EG44:$IV44),0)),"") ->  | EA44: =IFERROR(INDEX($EG44:$IV44,MATCH(0,COUNTIF($DR44:DZ44,$EG44:$IV44),0)),"") ->  | EB44: =IFERROR(INDEX($EG44:$IV44,MATCH(0,COUNTIF($DR44:EA44,$EG44:$IV44),0)),"") ->  | EC44: =IFERROR(INDEX($EG44:$IV44,MATCH(0,COUNTIF($DR44:EB44,$EG44:$IV44),0)),"") ->  | ED44: =IFERROR(INDEX($EG44:$IV44,MATCH(0,COUNTIF($DR44:EC44,$EG44:$IV44),0)),"") ->  | EG44: {Measure:Quantity} | EH44: {Motor HP} | EI44: {Motor HP} | EJ44: {Motor HP} | EK44: {Motor HP} | EL44: {Motor HP} | EM44: {Motor HP} | EN44: {Motor HP} | EQ44: {Measure:Quantity} | ER44: {Motor HP} | ES44: {Motor HP} | ET44: {Motor HP} | EU44: {Motor HP} | EV44: {Motor HP} | EW44: {Motor HP} | EX44: {Motor HP} | FA44: {Measure:Quantity} | FB44: {Motor HP} | FK44: {Measure:Quantity} | FL44: {Motor HP} | FU44: {Measure:Quantity} | FV44: {Motor HP} | FW44: {Motor HP} | GE44: {Measure:Quantity} | GF44: {Factor:WinterCF} | GG44: {Motor HP} | GO44: {Measure:Quantity} | GP44: {Factor:SummerCF} | IZ44: 2
A45: C&I HVAC - Electric | B45: VFD: Chilled Water Pumps | C45: CWP | D45: 2021-07-01 | E45: 2021-09-09 | F45: Calculated | G45: {Measure:Quantity}*if({Motor HP}=5,2425,if({Motor HP}=7.5,2648,if({Motor HP}=10,2871,if({Motor HP}=15,3317,if({Motor HP}=20,3763,if({Motor HP}=25,4209,if({Motor HP}=30,4655,0))))))) | H45: 0 | I45: Calculated | J45: {Measure:Quantity}*if({Motor HP}=5,400,if({Motor HP}=7.5,650,if({Motor HP}=10,1400,if({Motor HP}=15,1650,if({Motor HP}=20,1850,if({Motor HP}=25,2000,if({Motor HP}=30,2300,0))))))) | K45: 0 | L45: 2021-07-01 | M45: 2022-06-30 | N45: Calculated | O45: {Measure:Quantity}*{Motor HP}*1633 | R45: {Measure:Quantity}*{Motor HP}*.183 | U45: {Measure:Quantity}*{Factor:WinterCF}*{Motor HP}*.183 | V45: {Measure:Quantity}*{Factor:SummerCF}*{Motor HP}*.183 | AC45: 2021-05-25 | AD45: 2022-06-30 | AE45: 13 | AF45: 0 | AG45: 0.865 | AH45: 0.309 | AI45: 0.181 | AJ45: 0.359 | AK45: 0.151 | AL45: 1 | AM45: 1.122 | AN45: 1 | AO45: 0.52 | AP45: 0.016 | AR45: {Measure:Quantity} | AS45: 1 | AT45: {Motor HP} | AU45: 5 | BL45: =AS45*AU45*1633 -> 8165 | BM45: 0 | BN45: 0 | BO45: =AS45*AU45*0.183 -> 0.915 | BP45: 0 | BQ45: 0 | BR45: =AS45*AF45*AU45*0.183 -> 0 | BS45: =AS45*AG45*AU45*0.183 -> 0.791475 | BT45: 0 | BU45: 0 | BV45: 0 | BW45: 0 | BX45: 0 | BY45: 0 | CA45: Res | CB45: Default DR | CC45: =Benefits(BL45,BR45,BS45,BT45,BU45,BV45,BW45,BX45,BY45,BZ45,AE45,AH45,AI45,AJ45,AK45,AL45,AM45,AN45,AO45,AP45,CA45,CB45) -> 10482.62645 | CD45: 1321.924741 | CE45: 0 | CF45: 0 | CG45: 0 | CH45: 0 | CI45: 0 | CJ45: 0 | CK45: 0 | CL45: =SUMPRODUCT(CC45:CK45,--(CC45:CK45>0)) -> 11804.55119 | CM45: =-SUMPRODUCT(CC45:CK45,--(CC45:CK45<0)) -> 0 | CO45: =AS45*IF(AU45=5,2425,IF(AU45=7.5,2648,IF(AU45=10,2871,IF(AU45=15,3317,IF(AU45=20,3763,IF(AU45=25,4209,IF(AU45=30,4655,0))))))) -> 2425 | CR45: 2425 | CS45: 1 | CT45: 4.86785616 | CU45: 1 | CV45: =AS45*IF(AU45=5,400,IF(AU45=7.5,650,IF(AU45=10,1400,IF(AU45=15,1650,IF(AU45=20,1850,IF(AU45=25,2000,IF(AU45=30,2300,0))))))) -> 400 | CX45: Electric | CY45: y | DA45: X=AS45*if(AU45=5,2425,if(AU45=7.5,2648,if(AU45=10,2871,if(AU45=15,3317,if(AU45=20,3763,if(AU45=25,4209,if(AU45=30,4655,0))))))) | DB45: X=AS45*if(AU45=5,400,if(AU45=7.5,650,if(AU45=10,1400,if(AU45=15,1650,if(AU45=20,1850,if(AU45=25,2000,if(AU45=30,2300,0))))))) | DC45: X=AS45*AU45*1633 | DD45: 0 | DE45: 0 | DF45: X=AS45*AU45*.183 | DG45: 0 | DH45: 0 | DI45: X=AS45*AF45*AU45*.183 | DJ45: X=AS45*AG45*AU45*.183 | DK45: 0 | DL45: 0 | DM45: 0 | DN45: 0 | DO45: 0 | DP45: 0 | DS45: {Factor:WinterCF} | DT45: {Factor:SummerCF} | DU45: =IFERROR(INDEX($EG45:$IV45,MATCH(0,COUNTIF($DR45:DT45,$EG45:$IV45),0)),"") -> {Measure:Quantity} | DV45: =IFERROR(INDEX($EG45:$IV45,MATCH(0,COUNTIF($DR45:DU45,$EG45:$IV45),0)),"") -> {Motor HP} | DW45: =IFERROR(INDEX($EG45:$IV45,MATCH(0,COUNTIF($DR45:DV45,$EG45:$IV45),0)),"") ->  | DX45: =IFERROR(INDEX($EG45:$IV45,MATCH(0,COUNTIF($DR45:DW45,$EG45:$IV45),0)),"") ->  | DY45: =IFERROR(INDEX($EG45:$IV45,MATCH(0,COUNTIF($DR45:DX45,$EG45:$IV45),0)),"") ->  | DZ45: =IFERROR(INDEX($EG45:$IV45,MATCH(0,COUNTIF($DR45:DY45,$EG45:$IV45),0)),"") ->  | EA45: =IFERROR(INDEX($EG45:$IV45,MATCH(0,COUNTIF($DR45:DZ45,$EG45:$IV45),0)),"") ->  | EB45: =IFERROR(INDEX($EG45:$IV45,MATCH(0,COUNTIF($DR45:EA45,$EG45:$IV45),0)),"") ->  | EC45: =IFERROR(INDEX($EG45:$IV45,MATCH(0,COUNTIF($DR45:EB45,$EG45:$IV45),0)),"") ->  | ED45: =IFERROR(INDEX($EG45:$IV45,MATCH(0,COUNTIF($DR45:EC45,$EG45:$IV45),0)),"") ->  | EG45: {Measure:Quantity} | EH45: {Motor HP} | EI45: {Motor HP} | EJ45: {Motor HP} | EK45: {Motor HP} | EL45: {Motor HP} | EM45: {Motor HP} | EN45: {Motor HP} | EQ45: {Measure:Quantity} | ER45: {Motor HP} | ES45: {Motor HP} | ET45: {Motor HP} | EU45: {Motor HP} | EV45: {Motor HP} | EW45: {Motor HP} | EX45: {Motor HP} | FA45: {Measure:Quantity} | FB45: {Motor HP} | FK45: {Measure:Quantity} | FL45: {Motor HP} | FU45: {Measure:Quantity} | FV45: {Motor HP} | FW45: {Motor HP} | GE45: {Measure:Quantity} | GF45: {Factor:WinterCF} | GG45: {Motor HP} | GO45: {Measure:Quantity} | GP45: {Factor:SummerCF} | IZ45: 2
A46: C&I HVAC - Electric | B46: Demand Control Ventilation - Existing Equipment Install | C46: DCV - DCVE | D46: 2021-07-01 | E46: 2021-09-09 | F46: Per Measure | G46: 2100 | H46: 0 | I46: Per Measure | J46: 500 | K46: 0 | L46: 2021-07-01 | M46: 2022-06-30 | N46: Calculated | O46: {Measure:Quantity} * {Area Sq. Ft} * {Space Type} * 0.000433 * (12/ {EER}) * 719 | P46: 0.0001 | R46: {Measure:Quantity} * {Area Sq. Ft} * {Space Type} * 0.000433 * 12/ {EER} | U46: {Measure:Quantity} * {Area Sq. Ft} * {Space Type} * 0.000433 * 12/ {EER} * {Factor:WinterCF} | V46: {Measure:Quantity} * {Area Sq. Ft} * {Space Type} * 0.000433 * 12/ {EER} * {Factor:SummerCF} | AC46: 2021-05-25 | AD46: 2022-06-30 | AE46: 10 | AF46: 0.015 | AG46: 0.777 | AH46: 0.17 | AI46: 0.03 | AJ46: 0.62 | AK46: 0.18 | AL46: 1 | AM46: 1.122 | AN46: 1 | AO46: 0.52 | AP46: 0.016 | AR46: {Space Type} | AS46: 1 | AT46: {EER} | AU46: 8400 | AV46: {Measure:Quantity} | AW46: 0.37 | AX46: {Area Sq. Ft} | AY46: 10 | BL46: =AS46 * AU46 * AW46 * 0.000433 * (12/ AY46) * 719 -> 1161.125179 | BM46: =0.0001 -> 0.0001 | BN46: 0 | BO46: =AS46 * AU46 * AW46 * 0.000433 * 12/ AY46 -> 1.6149168 | BP46: 0 | BQ46: 0 | BR46: =AS46 * AU46 * AW46 * 0.000433 * 12/ AY46 * AF46 -> 0.024223752 | BS46: =AS46 * AU46 * AW46 * 0.000433 * 12/ AY46 * AG46 -> 1.254790354 | BT46: 0 | BU46: 0 | BV46: 0 | BW46: 0 | BX46: 0 | BY46: 0 | CA46: Res | CB46: Default DR | CC46: =Benefits(BL46,BR46,BS46,BT46,BU46,BV46,BW46,BX46,BY46,BZ46,AE46,AH46,AI46,AJ46,AK46,AL46,AM46,AN46,AO46,AP46,CA46,CB46) -> 1157.047749 | CD46: 1733.720863 | CE46: 0 | CF46: 0 | CG46: 0 | CH46: 0 | CI46: 0 | CJ46: 0 | CK46: 0 | CL46: =SUMPRODUCT(CC46:CK46,--(CC46:CK46>0)) -> 2890.768613 | CM46: =-SUMPRODUCT(CC46:CK46,--(CC46:CK46<0)) -> 0 | CO46: =2100 -> 2100 | CR46: 2100 | CS46: 1 | CT46: 1.376556482 | CU46: 0 | CV46: =500 -> 500 | CX46: Electric | CY46: y | CZ46: 0 | DA46: X=2100 | DB46: X=500 | DC46: X=AW46 * AY46 * AS46 * 0.000433 * (12/ AU46) * 719 | DD46: X=0.0001 | DE46: 0 | DF46: X=AW46 * AY46 * AS46 * 0.000433 * 12/ AU46 | DG46: 0 | DH46: 0 | DI46: X=AW46 * AY46 * AS46 * 0.000433 * 12/ AU46 * AF46 | DJ46: X=AW46 * AY46 * AS46 * 0.000433 * 12/ AU46 * AG46 | DK46: 0 | DL46: 0 | DM46: 0 | DN46: 0 | DO46: 0 | DP46: 0 | DS46: {Factor:WinterCF} | DT46: {Factor:SummerCF} | DU46: =IFERROR(INDEX($EG46:$IV46,MATCH(0,COUNTIF($DR46:DT46,$EG46:$IV46),0)),"") -> {Space Type} | DV46: =IFERROR(INDEX($EG46:$IV46,MATCH(0,COUNTIF($DR46:DU46,$EG46:$IV46),0)),"") -> {EER} | DW46: =IFERROR(INDEX($EG46:$IV46,MATCH(0,COUNTIF($DR46:DV46,$EG46:$IV46),0)),"") -> {Measure:Quantity} | DX46: =IFERROR(INDEX($EG46:$IV46,MATCH(0,COUNTIF($DR46:DW46,$EG46:$IV46),0)),"") -> {Area Sq. Ft} | DY46: =IFERROR(INDEX($EG46:$IV46,MATCH(0,COUNTIF($DR46:DX46,$EG46:$IV46),0)),"") ->  | DZ46: =IFERROR(INDEX($EG46:$IV46,MATCH(0,COUNTIF($DR46:DY46,$EG46:$IV46),0)),"") ->  | EA46: =IFERROR(INDEX($EG46:$IV46,MATCH(0,COUNTIF($DR46:DZ46,$EG46:$IV46),0)),"") ->  | EB46: =IFERROR(INDEX($EG46:$IV46,MATCH(0,COUNTIF($DR46:EA46,$EG46:$IV46),0)),"") ->  | EC46: =IFERROR(INDEX($EG46:$IV46,MATCH(0,COUNTIF($DR46:EB46,$EG46:$IV46),0)),"") ->  | ED46: =IFERROR(INDEX($EG46:$IV46,MATCH(0,COUNTIF($DR46:EC46,$EG46:$IV46),0)),"") ->  | FC46: {Space Type} | FD46: {EER} | FK46: {Measure:Quantity} | FL46: {Area Sq. Ft} | FM46: {Space Type} | FN46: {EER} | FU46: {Measure:Quantity} | FV46: {Area Sq. Ft} | FW46: {Space Type} | FX46: {EER} | FY46: {Factor:WinterCF} | GE46: {Measure:Quantity} | GF46: {Area Sq. Ft} | GG46: {Space Type} | GH46: {EER} | GI46: {Factor:SummerCF} | GO46: {Measure:Quantity} | GP46: {Area Sq. Ft} | IZ46: 4
A47: C&I HVAC - Electric | B47: Demand Control Ventilation - New Equipment Install | C47: DCV - DCVN | D47: 2021-07-01 | E47: 2021-09-09 | F47: Per Measure | G47: 850 | H47: 0 | I47: Per Measure | J47: 500 | K47: 0 | L47: 2021-07-01 | M47: 2022-06-30 | N47: Calculated | O47: {Measure:Quantity} * {Area Sq. Ft} * {Space Type} * 0.000433 * 12/ {EER} * 719 | P47: 0.0001 | R47: {Measure:Quantity} * {Area Sq. Ft} * {Space Type} * 0.000433 * 12/ {EER} | U47: {Measure:Quantity} * {Area Sq. Ft} * {Space Type} * 0.000433 * 12/ {EER} * {Factor:WinterCF} | V47: {Measure:Quantity} * {Area Sq. Ft} * {Space Type} * 0.000433 * 12/ {EER} * {Factor:SummerCF} | AC47: 2021-05-25 | AD47: 2022-06-30 | AE47: 10 | AF47: 0.015 | AG47: 0.777 | AH47: 0.17 | AI47: 0.03 | AJ47: 0.62 | AK47: 0.18 | AL47: 1 | AM47: 1.122 | AN47: 1 | AO47: 0.52 | AP47: 0.016 | AR47: {Space Type} | AS47: 1 | AT47: {EER} | AU47: 8400 | AV47: {Measure:Quantity} | AW47: 0.37 | AX47: {Area Sq. Ft} | AY47: 10 | BL47: =AS47 * AU47 * AW47 * 0.000433 * 12/ AY47 * 719 -> 1161.125179 | BM47: =0.0001 -> 0.0001 | BN47: 0 | BO47: =AS47 * AU47 * AW47 * 0.000433 * 12/ AY47 -> 1.6149168 | BP47: 0 | BQ47: 0 | BR47: =AS47 * AU47 * AW47 * 0.000433 * 12/ AY47 * AF47 -> 0.024223752 | BS47: =AS47 * AU47 * AW47 * 0.000433 * 12/ AY47 * AG47 -> 1.254790354 | BT47: 0 | BU47: 0 | BV47: 0 | BW47: 0 | BX47: 0 | BY47: 0 | CA47: Res | CB47: Default DR | CC47: =Benefits(BL47,BR47,BS47,BT47,BU47,BV47,BW47,BX47,BY47,BZ47,AE47,AH47,AI47,AJ47,AK47,AL47,AM47,AN47,AO47,AP47,CA47,CB47) -> 1157.047749 | CD47: 1733.720863 | CE47: 0 | CF47: 0 | CG47: 0 | CH47: 0 | CI47: 0 | CJ47: 0 | CK47: 0 | CL47: =SUMPRODUCT(CC47:CK47,--(CC47:CK47>0)) -> 2890.768613 | CM47: =-SUMPRODUCT(CC47:CK47,--(CC47:CK47<0)) -> 0 | CO47: =850 -> 850 | CR47: 850 | CS47: 1 | CT47: 3.40090425 | CU47: 1 | CV47: =500 -> 500 | CX47: Electric | CY47: y | DA47: X=850 | DB47: X=500 | DC47: X=AW47 * AY47 * AS47 * 0.000433 * 12/ AU47 * 719 | DD47: X=0.0001 | DE47: 0 | DF47: X=AW47 * AY47 * AS47 * 0.000433 * 12/ AU47 | DG47: 0 | DH47: 0 | DI47: X=AW47 * AY47 * AS47 * 0.000433 * 12/ AU47 * AF47 | DJ47: X=AW47 * AY47 * AS47 * 0.000433 * 12/ AU47 * AG47 | DK47: 0 | DL47: 0 | DM47: 0 | DN47: 0 | DO47: 0 | DP47: 0 | DS47: {Factor:WinterCF} | DT47: {Factor:SummerCF} | DU47: =IFERROR(INDEX($EG47:$IV47,MATCH(0,COUNTIF($DR47:DT47,$EG47:$IV47),0)),"") -> {Space Type} | DV47: =IFERROR(INDEX($EG47:$IV47,MATCH(0,COUNTIF($DR47:DU47,$EG47:$IV47),0)),"") -> {EER} | DW47: =IFERROR(INDEX($EG47:$IV47,MATCH(0,COUNTIF($DR47:DV47,$EG47:$IV47),0)),"") -> {Measure:Quantity} | DX47: =IFERROR(INDEX($EG47:$IV47,MATCH(0,COUNTIF($DR47:DW47,$EG47:$IV47),0)),"") -> {Area Sq. Ft} | DY47: =IFERROR(INDEX($EG47:$IV47,MATCH(0,COUNTIF($DR47:DX47,$EG47:$IV47),0)),"") ->  | DZ47: =IFERROR(INDEX($EG47:$IV47,MATCH(0,COUNTIF($DR47:DY47,$EG47:$IV47),0)),"") ->  | EA47: =IFERROR(INDEX($EG47:$IV47,MATCH(0,COUNTIF($DR47:DZ47,$EG47:$IV47),0)),"") ->  | EB47: =IFERROR(INDEX($EG47:$IV47,MATCH(0,COUNTIF($DR47:EA47,$EG47:$IV47),0)),"") ->  | EC47: =IFERROR(INDEX($EG47:$IV47,MATCH(0,COUNTIF($DR47:EB47,$EG47:$IV47),0)),"") ->  | ED47: =IFERROR(INDEX($EG47:$IV47,MATCH(0,COUNTIF($DR47:EC47,$EG47:$IV47),0)),"") ->  | FC47: {Space Type} | FD47: {EER} | FK47: {Measure:Quantity} | FL47: {Area Sq. Ft} | FM47: {Space Type} | FN47: {EER} | FU47: {Measure:Quantity} | FV47: {Area Sq. Ft} | FW47: {Space Type} | FX47: {EER} | FY47: {Factor:WinterCF} | GE47: {Measure:Quantity} | GF47: {Area Sq. Ft} | GG47: {Space Type} | GH47: {EER} | GI47: {Factor:SummerCF} | GO47: {Measure:Quantity} | GP47: {Area Sq. Ft} | IZ47: 4
A48: C&I HVAC - Electric | B48: Energy Recovery Ventilator | C48: ERV | D48: 2021-07-01 | E48: 2021-09-09 | F48: Calculated | G48: {Measure:Quantity}*{Ventilation Air Rate}*3.75 | H48: 0 | I48: Calculated | J48: {Measure:Quantity}*{Ventilation Air Rate}*if({Eff Heating} < 0.65, 2.25, if({Eff Heating} < 0.75, 2.50, if({Eff Heating} < 0.85, 2.75, 3.00))) | K48: 0 | L48: 2021-07-01 | M48: 2022-06-30 | N48: Calculated | O48: {Measure:Quantity} *(0.0075*60*{Ventilation Air Rate}*{Eff Cooling}*(31.1-28.3)/{SEER}/1000*932*.77-{Ventilation Air Rate}*{Calculated Pressure Drop}/((33013/5.202)*0.67*0.70)*0.746*8760*.77+if({Heating Fuel Type} >=6, 1.08*{Ventilation Air Rate}*(68-36.5)*{Eff Heating}*6492*.77/1000000/{AFUE}/0.003412,0)) | R48: {Measure:Quantity} *(0.0075*60*{Ventilation Air Rate}*{Eff Cooling}*(31.1-28.3)/{SEER}/1000-{Ventilation Air Rate}*{Calculated Pressure Drop}/((33013/5.202)*0.67*0.70)*0.746) | U48: {Measure:Quantity}*-{Ventilation Air Rate}*{Calculated Pressure Drop}/((33013/5.202)*0.67*0.70)*0.746*{Factor:WinterCF} | V48: {Measure:Quantity} *(0.0075*60*{Ventilation Air Rate}*{Eff Cooling}*(31.1-28.3)/{SEER}/1000-{Ventilation Air Rate}*{Calculated Pressure Drop}/((33013/5.202)*0.67*0.70)*0.746)*{Factor:SummerCF} | W48: {Measure:Quantity}*if({Heating Fuel Type} =1, 1.08*{Ventilation Air Rate}*(68-36.5)*{Eff Heating}*6492*.77/1000000/{AFUE},0)*10 | X48: {Measure:Quantity}*if({Heating Fuel Type} =2, 1.08*{Ventilation Air Rate}*(68-36.5)*{Eff Heating}*6492*.77/1000000/{AFUE},0) | Y48: {Measure:Quantity}*if({Heating Fuel Type} =3, 1.08*{Ventilation Air Rate}*(68-36.5)*{Eff Heating}*6492*.77/1000000/{AFUE},0) | Z48: {Measure:Quantity}*if({Heating Fuel Type} =4, 1.08*{Ventilation Air Rate}*(68-36.5)*{Eff Heating}*6492*.77/1000000/{AFUE},0) | AA48: {Measure:Quantity}*if({Heating Fuel Type} =5, 1.08*{Ventilation Air Rate}*(68-36.5)*{Eff Heating}*6492*.77/1000000/{AFUE},0) | AC48: 2021-05-25 | AD48: 2022-06-30 | AE48: 15 | AF48: 0.7 | AG48: 1 | AH48: 0.4094 | AI48: 0.2569 | AJ48: 0.2084 | AK48: 0.1253 | AL48: 1 | AM48: 1 | AN48: 1 | AO48: 0.25 | AP48: 0 | AR48: {Measure:Quantity} | AS48: 1 | AT48: {Ventilation Air Rate} | AU48: 7200 | AV48: {Eff Heating} | AW48: 0.68 | AX48: {Eff Cooling} | AY48: 0.65 | AZ48: {SEER} | BA48: 18 | BB48: {Calculated Pressure Drop} | BC48: 1 | BD48: {Heating Fuel Type} | BE48: 6 | BF48: {AFUE} | BG48: 1 | BL48: =AS48 *(0.0075*60*AU48*AY48*(31.1-28.3)/BA48/1000*932*0.77-AU48*BC48/((33013/5.202)*0.67*0.7)*0.746*8760*0.77+IF(BE48 >=6, 1.08*AU48*(68-36.5)*AW48*6492*0.77/1000000/BG48/0.003412,0)) -> 232088.5352 | BM48: 0 | BN48: 0 | BO48: =AS48 *(0.0075*60*AU48*AY48*(31.1-28.3)/BA48/1000-AU48*BC48/((33013/5.202)*0.67*0.7)*0.746) -> -1.477011984 | BP48: 0 | BQ48: 0 | BR48: =AS48*-AU48*BC48/((33013/5.202)*0.67*0.7)*0.746*AF48 -> -1.263228389 | BS48: =AS48 *(0.0075*60*AU48*AY48*(31.1-28.3)/BA48/1000-AU48*BC48/((33013/5.202)*0.67*0.7)*0.746)*AG48 -> -1.477011984 | BT48: =AS48*IF(BE48 =1, 1.08*AU48*(68-36.5)*AW48*6492*0.77/1000000/BG48,0)*10 -> 0 | BU48: =AS48*IF(BE48 =2, 1.08*AU48*(68-36.5)*AW48*6492*0.77/1000000/BG48,0) -> 0 | BV48: =AS48*IF(BE48 =3, 1.08*AU48*(68-36.5)*AW48*6492*0.77/1000000/BG48,0) -> 0 | BW48: =AS48*IF(BE48 =4, 1.08*AU48*(68-36.5)*AW48*6492*0.77/1000000/BG48,0) -> 0 | BX48: =AS48*IF(BE48 =5, 1.08*AU48*(68-36.5)*AW48*6492*0.77/1000000/BG48,0) -> 0 | BY48: 0 | CA48: Res | CB48: Default DR | CC48: =Benefits(BL48,BR48,BS48,BT48,BU48,BV48,BW48,BX48,BY48,BZ48,AE48,AH48,AI48,AJ48,AK48,AL48,AM48,AN48,AO48,AP48,CA48,CB48) -> 303885.8491 | CD48: -7522.312892 | CE48: 0 | CF48: 0 | CG48: 0 | CH48: 0 | CI48: 0 | CJ48: 0 | CK48: 0 | CL48: =SUMPRODUCT(CC48:CK48,--(CC48:CK48>0)) -> 303885.8491 | CM48: =-SUMPRODUCT(CC48:CK48,--(CC48:CK48<0)) -> 7522.312892 | CO48: =AS48*AU48*3.75 -> 27000 | CR48: 34522.31289 | CS48: 1 | CT48: 8.802592402 | CU48: 1 | CV48: =AS48*AU48*IF(AW48 < 0.65, 2.25, IF(AW48 < 0.75, 2.5, IF(AW48 < 0.85, 2.75, 3))) -> 18000 | CX48: Electric | CY48: y | DA48: X=AS48*AU48*3.75 | DB48: X=AS48*AU48*if(AW48 < 0.65, 2.25, if(AW48 < 0.75, 2.50, if(AW48 < 0.85, 2.75, 3.00))) | DC48: X=AS48 *(0.0075*60*AU48*AY48*(31.1-28.3)/BA48/1000*932*.77-AU48*BC48/((33013/5.202)*0.67*0.70)*0.746*8760*.77+if(BE48 >=6, 1.08*AU48*(68-36.5)*AW48*6492*.77/1000000/BG48/0.003412,0)) | DD48: 0 | DE48: 0 | DF48: X=AS48 *(0.0075*60*AU48*AY48*(31.1-28.3)/BA48/1000-AU48*BC48/((33013/5.202)*0.67*0.70)*0.746) | DG48: 0 | DH48: 0 | DI48: X=AS48*-AU48*BC48/((33013/5.202)*0.67*0.70)*0.746*AF48 | DJ48: X=AS48 *(0.0075*60*AU48*AY48*(31.1-28.3)/BA48/1000-AU48*BC48/((33013/5.202)*0.67*0.70)*0.746)*AG48 | DK48: X=AS48*if(BE48 =1, 1.08*AU48*(68-36.5)*AW48*6492*.77/1000000/BG48,0)*10 | DL48: X=AS48*if(BE48 =2, 1.08*AU48*(68-36.5)*AW48*6492*.77/1000000/BG48,0) | DM48: X=AS48*if(BE48 =3, 1.08*AU48*(68-36.5)*AW48*6492*.77/1000000/BG48,0) | DN48: X=AS48*if(BE48 =4, 1.08*AU48*(68-36.5)*AW48*6492*.77/1000000/BG48,0) | DO48: X=AS48*if(BE48 =5, 1.08*AU48*(68-36.5)*AW48*6492*.77/1000000/BG48,0) | DP48: 0 | DS48: {Factor:WinterCF} | DT48: {Factor:SummerCF} | DU48: =IFERROR(INDEX($EG48:$IV48,MATCH(0,COUNTIF($DR48:DT48,$EG48:$IV48),0)),"") -> {Measure:Quantity} | DV48: =IFERROR(INDEX($EG48:$IV48,MATCH(0,COUNTIF($DR48:DU48,$EG48:$IV48),0)),"") -> {Ventilation Air Rate} | DW48: =IFERROR(INDEX($EG48:$IV48,MATCH(0,COUNTIF($DR48:DV48,$EG48:$IV48),0)),"") -> {Eff Heating} | DX48: =IFERROR(INDEX($EG48:$IV48,MATCH(0,COUNTIF($DR48:DW48,$EG48:$IV48),0)),"") -> {Eff Cooling} | DY48: =IFERROR(INDEX($EG48:$IV48,MATCH(0,COUNTIF($DR48:DX48,$EG48:$IV48),0)),"") -> {SEER} | DZ48: =IFERROR(INDEX($EG48:$IV48,MATCH(0,COUNTIF($DR48:DY48,$EG48:$IV48),0)),"") -> {Calculated Pressure Drop} | EA48: =IFERROR(INDEX($EG48:$IV48,MATCH(0,COUNTIF($DR48:DZ48,$EG48:$IV48),0)),"") -> {Heating Fuel Type} | EB48: =IFERROR(INDEX($EG48:$IV48,MATCH(0,COUNTIF($DR48:EA48,$EG48:$IV48),0)),"") -> {AFUE} | EC48: =IFERROR(INDEX($EG48:$IV48,MATCH(0,COUNTIF($DR48:EB48,$EG48:$IV48),0)),"") ->  | ED48: =IFERROR(INDEX($EG48:$IV48,MATCH(0,COUNTIF($DR48:EC48,$EG48:$IV48),0)),"") ->  | EG48: {Measure:Quantity} | EH48: {Ventilation Air Rate} | EQ48: {Measure:Quantity} | ER48: {Ventilation Air Rate} | ES48: {Eff Heating} | ET48: {Eff Heating} | EU48: {Eff Heating} | FA48: {Measure:Quantity} | FB48: {Ventilation Air Rate} | FC48: {Eff Cooling} | FD48: {SEER} | FE48: {Ventilation Air Rate} | FF48: {Calculated Pressure Drop} | FG48: {Heating Fuel Type} | FH48: {Ventilation Air Rate} | FI48: {Eff Heating} | FJ48: {AFUE} | FK48: {Measure:Quantity} | FL48: {Ventilation Air Rate} | FM48: {Eff Cooling} | FN48: {SEER} | FO48: {Ventilation Air Rate} | FP48: {Calculated Pressure Drop} | FU48: {Measure:Quantity} | FV48: {Ventilation Air Rate} | FW48: {Calculated Pressure Drop} | FX48: {Factor:WinterCF} | GE48: {Measure:Quantity} | GF48: {Ventilation Air Rate} | GG48: {Eff Cooling} | GH48: {SEER} | GI48: {Ventilation Air Rate} | GJ48: {Calculated Pressure Drop} | GK48: {Factor:SummerCF} | GO48: {Measure:Quantity} | GP48: {Ventilation Air Rate} | GQ48: {Ventilation Air Rate} | GR48: {Eff Heating} | GS48: {AFUE} | GY48: {Measure:Quantity} | GZ48: {Heating Fuel Type} | HA48: {Ventilation Air Rate} | HB48: {Eff Heating} | HC48: {AFUE} | HI48: {Measure:Quantity} | HJ48: {Heating Fuel Type} | HK48: {Ventilation Air Rate} | HL48: {Eff Heating} | HM48: {AFUE} | HS48: {Measure:Quantity} | HT48: {Heating Fuel Type} | HU48: {Ventilation Air Rate} | HV48: {Eff Heating} | HW48: {AFUE} | IC48: {Measure:Quantity} | ID48: {Heating Fuel Type} | IE48: {Ventilation Air Rate} | IF48: {Eff Heating} | IG48: {AFUE} | IM48: {Measure:Quantity} | IN48: {Heating Fuel Type} | IZ48: 8
A49: C&I HVAC - Electric | B49: VFD: Heating Hot Water Circulation Pump | C49: HHWP | D49: 2021-07-01 | E49: 2021-09-09 | F49: Calculated | G49: {Measure:Quantity}*if({Motor HP}=5,2425,if({Motor HP}=7.5,2648,if({Motor HP}=10,2871,if({Motor HP}=15,3317,if({Motor HP}=20,3763,if({Motor HP}=25,4209,if({Motor HP}=30,4655,0))))))) | H49: 0 | I49: Calculated | J49: {Measure:Quantity}*if({Motor HP}=5,400,if({Motor HP}=7.5,650,if({Motor HP}=10,1400,if({Motor HP}=15,1650,if({Motor HP}=20,1850,if({Motor HP}=25,2000,if({Motor HP}=30,2300,0))))))) | K49: 0 | L49: 2021-07-01 | M49: 2022-06-30 | N49: Calculated | O49: {Measure:Quantity}*{Motor HP}*1548 | R49: {Measure:Quantity}*{Motor HP}*.096 | U49: {Measure:Quantity}*{Factor:WinterCF}*{Motor HP}*.096 | V49: {Measure:Quantity}*{Factor:SummerCF}*{Motor HP}*.096 | AC49: 2021-05-25 | AD49: 2022-06-30 | AE49: 13 | AF49: 0.737 | AG49: 0 | AH49: 0.536 | AI49: 0.463 | AJ49: 0 | AK49: 0.001 | AL49: 1 | AM49: 1.122 | AN49: 1 | AO49: 0.52 | AP49: 0.016 | AR49: {Measure:Quantity} | AS49: 1 | AT49: {Motor HP} | AU49: 5 | BL49: =AS49*AU49*1548 -> 7740 | BM49: 0 | BN49: 0 | BO49: =AS49*AU49*0.096 -> 0.48 | BP49: 0 | BQ49: 0 | BR49: =AS49*AF49*AU49*0.096 -> 0.35376 | BS49: =AS49*AG49*AU49*0.096 -> 0 | BT49: 0 | BU49: 0 | BV49: 0 | BW49: 0 | BX49: 0 | BY49: 0 | CA49: Res | CB49: Default DR | CC49: =Benefits(BL49,BR49,BS49,BT49,BU49,BV49,BW49,BX49,BY49,BZ49,AE49,AH49,AI49,AJ49,AK49,AL49,AM49,AN49,AO49,AP49,CA49,CB49) -> 10781.95163 | CD49: 1181.702761 | CE49: 0 | CF49: 0 | CG49: 0 | CH49: 0 | CI49: 0 | CJ49: 0 | CK49: 0 | CL49: =SUMPRODUCT(CC49:CK49,--(CC49:CK49>0)) -> 11963.65439 | CM49: =-SUMPRODUCT(CC49:CK49,--(CC49:CK49<0)) -> 0 | CO49: =AS49*IF(AU49=5,2425,IF(AU49=7.5,2648,IF(AU49=10,2871,IF(AU49=15,3317,IF(AU49=20,3763,IF(AU49=25,4209,IF(AU49=30,4655,0))))))) -> 2425 | CR49: 2425 | CS49: 1 | CT49: 4.933465726 | CU49: 1 | CV49: =AS49*IF(AU49=5,400,IF(AU49=7.5,650,IF(AU49=10,1400,IF(AU49=15,1650,IF(AU49=20,1850,IF(AU49=25,2000,IF(AU49=30,2300,0))))))) -> 400 | CX49: Electric | CY49: y | DA49: X=AS49*if(AU49=5,2425,if(AU49=7.5,2648,if(AU49=10,2871,if(AU49=15,3317,if(AU49=20,3763,if(AU49=25,4209,if(AU49=30,4655,0))))))) | DB49: X=AS49*if(AU49=5,400,if(AU49=7.5,650,if(AU49=10,1400,if(AU49=15,1650,if(AU49=20,1850,if(AU49=25,2000,if(AU49=30,2300,0))))))) | DC49: X=AS49*AU49*1548 | DD49: 0 | DE49: 0 | DF49: X=AS49*AU49*.096 | DG49: 0 | DH49: 0 | DI49: X=AS49*AF49*AU49*.096 | DJ49: X=AS49*AG49*AU49*.096 | DK49: 0 | DL49: 0 | DM49: 0 | DN49: 0 | DO49: 0 | DP49: 0 | DS49: {Factor:WinterCF} | DT49: {Factor:SummerCF} | DU49: =IFERROR(INDEX($EG49:$IV49,MATCH(0,COUNTIF($DR49:DT49,$EG49:$IV49),0)),"") -> {Measure:Quantity} | DV49: =IFERROR(INDEX($EG49:$IV49,MATCH(0,COUNTIF($DR49:DU49,$EG49:$IV49),0)),"") -> {Motor HP} | DW49: =IFERROR(INDEX($EG49:$IV49,MATCH(0,COUNTIF($DR49:DV49,$EG49:$IV49),0)),"") ->  | DX49: =IFERROR(INDEX($EG49:$IV49,MATCH(0,COUNTIF($DR49:DW49,$EG49:$IV49),0)),"") ->  | DY49: =IFERROR(INDEX($EG49:$IV49,MATCH(0,COUNTIF($DR49:DX49,$EG49:$IV49),0)),"") ->  | DZ49: =IFERROR(INDEX($EG49:$IV49,MATCH(0,COUNTIF($DR49:DY49,$EG49:$IV49),0)),"") ->  | EA49: =IFERROR(INDEX($EG49:$IV49,MATCH(0,COUNTIF($DR49:DZ49,$EG49:$IV49),0)),"") ->  | EB49: =IFERROR(INDEX($EG49:$IV49,MATCH(0,COUNTIF($DR49:EA49,$EG49:$IV49),0)),"") ->  | EC49: =IFERROR(INDEX($EG49:$IV49,MATCH(0,COUNTIF($DR49:EB49,$EG49:$IV49),0)),"") ->  | ED49: =IFERROR(INDEX($EG49:$IV49,MATCH(0,COUNTIF($DR49:EC49,$EG49:$IV49),0)),"") ->  | EG49: =IFERROR(MID($G49,FIND(CHAR(160),SUBSTITUTE($G49,"{",CHAR(160),EG$1)),FIND(CHAR(160),SUBSTITUTE($G49,"}",CHAR(160),EG$1))-FIND(CHAR(160),SUBSTITUTE($G49,"{",CHAR(160),EG$1))+1),"") -> {Measure:Quantity} | EH49: {Motor HP} | EI49: {Motor HP} | EJ49: {Motor HP} | EK49: {Motor HP} | EL49: {Motor HP} | EM49: {Motor HP} | EN49: {Motor HP} | EQ49: =IFERROR(MID($J49,FIND(CHAR(160),SUBSTITUTE($J49,"{",CHAR(160),EQ$1)),FIND(CHAR(160),SUBSTITUTE($J49,"}",CHAR(160),EQ$1))-FIND(CHAR(160),SUBSTITUTE($J49,"{",CHAR(160),EQ$1))+1),"") -> {Measure:Quantity} | ER49: {Motor HP} | ES49: {Motor HP} | ET49: {Motor HP} | EU49: {Motor HP} | EV49: {Motor HP} | EW49: {Motor HP} | EX49: {Motor HP} | FA49: {Measure:Quantity} | FB49: {Motor HP} | FC49: =IFERROR(MID($O49,FIND(CHAR(160),SUBSTITUTE($O49,"{",CHAR(160),FC$1)),FIND(CHAR(160),SUBSTITUTE($O49,"}",CHAR(160),FC$1))-FIND(CHAR(160),SUBSTITUTE($O49,"{",CHAR(160),FC$1))+1),"") ->  | FK49: {Measure:Quantity} | FL49: {Motor HP} | FM49: =IFERROR(MID($R49,FIND(CHAR(160),SUBSTITUTE($R49,"{",CHAR(160),FM$1)),FIND(CHAR(160),SUBSTITUTE($R49,"}",CHAR(160),FM$1))-FIND(CHAR(160),SUBSTITUTE($R49,"{",CHAR(160),FM$1))+1),"") ->  | FU49: {Measure:Quantity} | FV49: {Motor HP} | FW49: =IFERROR(MID($U49,FIND(CHAR(160),SUBSTITUTE($U49,"{",CHAR(160),FW$1)),FIND(CHAR(160),SUBSTITUTE($U49,"}",CHAR(160),FW$1))-FIND(CHAR(160),SUBSTITUTE($U49,"{",CHAR(160),FW$1))+1),"") -> {Motor HP} | GE49: {Measure:Quantity} | GF49: {Factor:WinterCF} | GG49: =IFERROR(MID($V49,FIND(CHAR(160),SUBSTITUTE($V49,"{",CHAR(160),GG$1)),FIND(CHAR(160),SUBSTITUTE($V49,"}",CHAR(160),GG$1))-FIND(CHAR(160),SUBSTITUTE($V49,"{",CHAR(160),GG$1))+1),"") -> {Motor HP} | GO49: {Measure:Quantity} | GP49: {Factor:SummerCF} | GQ49: =IFERROR(MID($W49,FIND(CHAR(160),SUBSTITUTE($W49,"{",CHAR(160),GQ$1)),FIND(CHAR(160),SUBSTITUTE($W49,"}",CHAR(160),GQ$1))-FIND(CHAR(160),SUBSTITUTE($W49,"{",CHAR(160),GQ$1))+1),"") ->  | HA49: =IFERROR(MID($X49,FIND(CHAR(160),SUBSTITUTE($X49,"{",CHAR(160),HA$1)),FIND(CHAR(160),SUBSTITUTE($X49,"}",CHAR(160),HA$1))-FIND(CHAR(160),SUBSTITUTE($X49,"{",CHAR(160),HA$1))+1),"") ->  | HK49: =IFERROR(MID($Y49,FIND(CHAR(160),SUBSTITUTE($Y49,"{",CHAR(160),HK$1)),FIND(CHAR(160),SUBSTITUTE($Y49,"}",CHAR(160),HK$1))-FIND(CHAR(160),SUBSTITUTE($Y49,"{",CHAR(160),HK$1))+1),"") ->  | HU49: =IFERROR(MID($Z49,FIND(CHAR(160),SUBSTITUTE($Z49,"{",CHAR(160),HU$1)),FIND(CHAR(160),SUBSTITUTE($Z49,"}",CHAR(160),HU$1))-FIND(CHAR(160),SUBSTITUTE($Z49,"{",CHAR(160),HU$1))+1),"") ->  | IE49: =IFERROR(MID($AA49,FIND(CHAR(160),SUBSTITUTE($AA49,"{",CHAR(160),IE$1)),FIND(CHAR(160),SUBSTITUTE($AA49,"}",CHAR(160),IE$1))-FIND(CHAR(160),SUBSTITUTE($AA49,"{",CHAR(160),IE$1))+1),"") ->  | IO49: =IFERROR(MID($AB49,FIND(CHAR(160),SUBSTITUTE($AB49,"{",CHAR(160),IO$1)),FIND(CHAR(160),SUBSTITUTE($AB49,"}",CHAR(160),IO$1))-FIND(CHAR(160),SUBSTITUTE($AB49,"{",CHAR(160),IO$1))+1),"") ->  | IZ49: 2
A50: C&I HVAC - Electric | B50: Packaged Terminal Heat Pump Retrofit | C50: PTHPR | D50: 2021-07-01 | E50: 2021-09-09 | F50: Calculated | G50: ({Supplier Price for Materials}+{Labor Cost}) | H50: 0 | I50: Calculated | J50: {Measure:Quantity}*if({Cooling Capacity (Btu/h)}<7000,430,if({Cooling Capacity (Btu/h)}<=15000,450,480)) | K50: 0 | L50: 2021-07-01 | M50: 2022-06-30 | N50: Calculated | O50: {Measure:Quantity} * ({Cooling Capacity (Btu/h)}/1000*(1/{EER_base}-1/{EER})*829*if({Operation Jun-Oct}=0,0,1)+{Heating Capacity (Btu/h)}/1000/3.412*(1/{COP_base}-1/{COP})*2200*({Operation Jun-Oct}+{Operation Nov}+{Operation Dec-Mar}+{Operation Apr}+{Operation May})/100) | R50: {Measure:Quantity} *Max(if({Operation Dec-Mar}=0,0,{Heating Capacity (Btu/h)}/1000/3.412*(1/{COP_base}-1/{COP})),if({Operation Jun-Oct}=0,0,{Cooling Capacity (Btu/h)}/1000*(1/{EER_base}-1/{EER}))) | U50: if({Operation Dec-Mar}=0,0,{Measure:Quantity} * ({Heating Capacity (Btu/h)}/1000/3.412*(1/{COP_base}-1/{COP})*{Factor:WinterCF})) | V50: if({Operation Jun-Oct}=0,0,{Measure:Quantity} * ({Cooling Capacity (Btu/h)}/1000*(1/{EER_base}-1/{EER})*{Factor:SummerCF})) | AC50: 2021-05-25 | AD50: 2022-06-30 | AE50: 15 | AF50: 0.57 | AG50: 0.372 | AH50: 0.17 | AI50: 0.03 | AJ50: 0.62 | AK50: 0.18 | AL50: 1 | AM50: 1 | AN50: 1 | AO50: 0.25 | AP50: 0 | AR50: {Supplier Price for Materials} | AS50: 800 | AT50: {Labor Cost} | AU50: 100 | AV50: {Measure:Quantity} | AW50: 1 | AX50: {Cooling Capacity (Btu/h)} | AY50: 7000 | AZ50: {EER_base} | BA50: 11.9 | BB50: {EER} | BC50: 13 | BD50: {Operation Jun-Oct} | BE50: 11 | BF50: {Heating Capacity (Btu/h)} | BG50: 7000 | BH50: {COP_base} | BI50: 1 | BJ50: {COP} | BK50: 4 | BL50: =AW50 * (AY50/1000*(1/BA50-1/BC50)*829*IF(BE50=0,0,1)+BG50/1000/3.412*(1/BI50-1/BK50)*2200*(BE50+11+66+8+4)/100) -> 3426.373815 | BM50: 0 | BN50: 0 | BO50: =AW50 *MAX(IF(11=0,0,BG50/1000/3.412*(1/BI50-1/BK50)),IF(BE50=0,0,AY50/1000*(1/BA50-1/BC50))) -> 1.538686987 | BP50: 0 | BQ50: 0 | BR50: =IF(11=0,0,AW50 * (BG50/1000/3.412*(1/BI50-1/BK50)*AF50)) -> 0.8770515826 | BS50: =IF(BE50=0,0,AW50 * (AY50/1000*(1/BA50-1/BC50)*AG50)) -> 0.0185158371 | BT50: 0 | BU50: 0 | BV50: 0 | BW50: 0 | BX50: 0 | BY50: 0 | CA50: Com | CB50: Default DR | CC50: =Benefits(BL50,BR50,BS50,BT50,BU50,BV50,BW50,BX50,BY50,BZ50,AE50,AH50,AI50,AJ50,AK50,AL50,AM50,AN50,AO50,AP50,CA50,CB50) -> 4144.971843 | CD50: 3330.660376 | CE50: 0 | CF50: 0 | CG50: 0 | CH50: 0 | CI50: 0 | CJ50: 0 | CK50: 0 | CL50: =SUMPRODUCT(CC50:CK50,--(CC50:CK50>0)) -> 7475.632219 | CM50: =-SUMPRODUCT(CC50:CK50,--(CC50:CK50<0)) -> 0 | CO50: =(AS50+AU50) -> 900 | CR50: 900 | CS50: 1 | CT50: 8.306258021 | CU50: 1 | CV50: =AW50*IF(AY50<7000,430,IF(AY50<=15000,450,480)) -> 450 | CX50: RGGI | CY50: y | DA50: X=(AS50+AU50) | DB50: X=AW50*if(AY50<7000,430,if(AY50<=15000,450,480)) | DC50: X=AW50 * (AY50/1000*(1/BA50-1/BC50)*829*if(BE50=0,0,1)+BG50/1000/3.412*(1/BI50-1/BK50)*2200*(BE50+{Operation Nov}+{Operation Dec-Mar}+{Operation Apr}+{Operation May})/100) | DD50: 0 | DE50: 0 | DF50: X=AW50 *Max(if({Operation Dec-Mar}=0,0,BG50/1000/3.412*(1/BI50-1/BK50)),if(BE50=0,0,AY50/1000*(1/BA50-1/BC50))) | DG50: 0 | DH50: 0 | DI50: X=if({Operation Dec-Mar}=0,0,AW50 * (BG50/1000/3.412*(1/BI50-1/BK50)*AF50)) | DJ50: X=if(BE50=0,0,AW50 * (AY50/1000*(1/BA50-1/BC50)*AG50)) | DK50: 0 | DL50: 0 | DM50: 0 | DN50: 0 | DO50: 0 | DP50: 0 | DS50: {Factor:WinterCF} | DT50: {Factor:SummerCF} | DU50: =IFERROR(INDEX($EG50:$IV50,MATCH(0,COUNTIF($DR50:DT50,$EG50:$IV50),0)),"") -> {Supplier Price for Materials} | DV50: =IFERROR(INDEX($EG50:$IV50,MATCH(0,COUNTIF($DR50:DU50,$EG50:$IV50),0)),"") -> {Labor Cost} | DW50: =IFERROR(INDEX($EG50:$IV50,MATCH(0,COUNTIF($DR50:DV50,$EG50:$IV50),0)),"") -> {Measure:Quantity} | DX50: =IFERROR(INDEX($EG50:$IV50,MATCH(0,COUNTIF($DR50:DW50,$EG50:$IV50),0)),"") -> {Cooling Capacity (Btu/h)} | DY50: =IFERROR(INDEX($EG50:$IV50,MATCH(0,COUNTIF($DR50:DX50,$EG50:$IV50),0)),"") -> {EER_base} | DZ50: =IFERROR(INDEX($EG50:$IV50,MATCH(0,COUNTIF($DR50:DY50,$EG50:$IV50),0)),"") -> {EER} | EA50: =IFERROR(INDEX($EG50:$IV50,MATCH(0,COUNTIF($DR50:DZ50,$EG50:$IV50),0)),"") -> {Operation Jun-Oct} | EB50: =IFERROR(INDEX($EG50:$IV50,MATCH(0,COUNTIF($DR50:EA50,$EG50:$IV50),0)),"") -> {Heating Capacity (Btu/h)} | EC50: =IFERROR(INDEX($EG50:$IV50,MATCH(0,COUNTIF($DR50:EB50,$EG50:$IV50),0)),"") -> {COP_base} | ED50: =IFERROR(INDEX($EG50:$IV50,MATCH(0,COUNTIF($DR50:EC50,$EG50:$IV50),0)),"") -> {COP} | EG50: {Supplier Price for Materials} | EH50: {Labor Cost} | EQ50: {Measure:Quantity} | ER50: {Cooling Capacity (Btu/h)} | ES50: {Cooling Capacity (Btu/h)} | FA50: {Measure:Quantity} | FB50: {Cooling Capacity (Btu/h)} | FC50: {EER_base} | FD50: {EER} | FE50: {Operation Jun-Oct} | FF50: {Heating Capacity (Btu/h)} | FG50: {COP_base} | FH50: {COP} | FI50: {Operation Jun-Oct} | FJ50: {Operation Nov} | FK50: {Measure:Quantity} | FL50: {Cooling Capacity (Btu/h)} | FM50: {Heating Capacity (Btu/h)} | FN50: {COP_base} | FO50: {COP} | FP50: {Operation Jun-Oct} | FQ50: {Cooling Capacity (Btu/h)} | FR50: {EER_base} | FS50: {EER} | FU50: {Measure:Quantity} | FV50: {Operation Dec-Mar} | FW50: {Heating Capacity (Btu/h)} | FX50: {COP_base} | FY50: {COP} | FZ50: {Factor:WinterCF} | GE50: {Operation Dec-Mar} | GF50: {Measure:Quantity} | GG50: {Cooling Capacity (Btu/h)} | GH50: {EER_base} | GI50: {EER} | GJ50: {Factor:SummerCF} | GO50: {Operation Jun-Oct} | GP50: {Measure:Quantity} | IZ50: 10
A51: C&I HVAC - Electric | B51: VFD: Return Fan on VAV Air Handler | C51: RFA | D51: 2021-07-01 | E51: 2021-09-09 | F51: Calculated | G51: {Measure:Quantity}*if({Motor HP}=5,2425,if({Motor HP}=7.5,2648,if({Motor HP}=10,2871,if({Motor HP}=15,3317,if({Motor HP}=20,3763,if({Motor HP}=25,4209,if({Motor HP}=30,4655,0))))))) | H51: 0 | I51: Calculated | J51: {Measure:Quantity}*if({Motor HP}=5,400,if({Motor HP}=7.5,650,if({Motor HP}=10,1400,if({Motor HP}=15,1650,if({Motor HP}=20,1850,if({Motor HP}=25,2000,if({Motor HP}=30,2300,0))))))) | K51: 0 | L51: 2021-07-01 | M51: 2022-06-30 | N51: Calculated | O51: {Measure:Quantity}*{Motor HP}*1788 | R51: {Measure:Quantity}*{Motor HP}*.302 | U51: {Measure:Quantity}*{Factor:WinterCF}*{Motor HP}*.302 | V51: {Measure:Quantity}*{Factor:SummerCF}*{Motor HP}*.302 | AC51: 2021-05-25 | AD51: 2022-06-30 | AE51: 13 | AF51: 0.21 | AG51: 0.683 | AH51: 0.39 | AI51: 0.308 | AJ51: 0.214 | AK51: 0.088 | AL51: 1 | AM51: 1.122 | AN51: 1 | AO51: 0.52 | AP51: 0.016 | AR51: {Measure:Quantity} | AS51: 1 | AT51: {Motor HP} | AU51: 5 | BL51: =AS51*AU51*1788 -> 8940 | BM51: 0 | BN51: 0 | BO51: =AS51*AU51*0.302 -> 1.51 | BP51: 0 | BQ51: 0 | BR51: =AS51*AF51*AU51*0.302 -> 0.3171 | BS51: =AS51*AG51*AU51*0.302 -> 1.03133 | BT51: 0 | BU51: 0 | BV51: 0 | BW51: 0 | BX51: 0 | BY51: 0 | CA51: Res | CB51: Default DR | CC51: =Benefits(BL51,BR51,BS51,BT51,BU51,BV51,BW51,BX51,BY51,BZ51,AE51,AH51,AI51,AJ51,AK51,AL51,AM51,AN51,AO51,AP51,CA51,CB51) -> 11878.85539 | CD51: 2781.774932 | CE51: 0 | CF51: 0 | CG51: 0 | CH51: 0 | CI51: 0 | CJ51: 0 | CK51: 0 | CL51: =SUMPRODUCT(CC51:CK51,--(CC51:CK51>0)) -> 14660.63033 | CM51: =-SUMPRODUCT(CC51:CK51,--(CC51:CK51<0)) -> 0 | CO51: =AS51*IF(AU51=5,2425,IF(AU51=7.5,2648,IF(AU51=10,2871,IF(AU51=15,3317,IF(AU51=20,3763,IF(AU51=25,4209,IF(AU51=30,4655,0))))))) -> 2425 | CR51: 2425 | CS51: 1 | CT51: 6.045620753 | CU51: 1 | CV51: =AS51*IF(AU51=5,400,IF(AU51=7.5,650,IF(AU51=10,1400,IF(AU51=15,1650,IF(AU51=20,1850,IF(AU51=25,2000,IF(AU51=30,2300,0))))))) -> 400 | CX51: Electric | CY51: y | DA51: X=AS51*if(AU51=5,2425,if(AU51=7.5,2648,if(AU51=10,2871,if(AU51=15,3317,if(AU51=20,3763,if(AU51=25,4209,if(AU51=30,4655,0))))))) | DB51: X=AS51*if(AU51=5,400,if(AU51=7.5,650,if(AU51=10,1400,if(AU51=15,1650,if(AU51=20,1850,if(AU51=25,2000,if(AU51=30,2300,0))))))) | DC51: X=AS51*AU51*1788 | DD51: 0 | DE51: 0 | DF51: X=AS51*AU51*.302 | DG51: 0 | DH51: 0 | DI51: X=AS51*AF51*AU51*.302 | DJ51: X=AS51*AG51*AU51*.302 | DK51: 0 | DL51: 0 | DM51: 0 | DN51: 0 | DO51: 0 | DP51: 0 | DS51: {Factor:WinterCF} | DT51: {Factor:SummerCF} | DU51: =IFERROR(INDEX($EG51:$IV51,MATCH(0,COUNTIF($DR51:DT51,$EG51:$IV51),0)),"") -> {Measure:Quantity} | DV51: =IFERROR(INDEX($EG51:$IV51,MATCH(0,COUNTIF($DR51:DU51,$EG51:$IV51),0)),"") -> {Motor HP} | DW51: =IFERROR(INDEX($EG51:$IV51,MATCH(0,COUNTIF($DR51:DV51,$EG51:$IV51),0)),"") ->  | DX51: =IFERROR(INDEX($EG51:$IV51,MATCH(0,COUNTIF($DR51:DW51,$EG51:$IV51),0)),"") ->  | DY51: =IFERROR(INDEX($EG51:$IV51,MATCH(0,COUNTIF($DR51:DX51,$EG51:$IV51),0)),"") ->  | DZ51: =IFERROR(INDEX($EG51:$IV51,MATCH(0,COUNTIF($DR51:DY51,$EG51:$IV51),0)),"") ->  | EA51: =IFERROR(INDEX($EG51:$IV51,MATCH(0,COUNTIF($DR51:DZ51,$EG51:$IV51),0)),"") ->  | EB51: =IFERROR(INDEX($EG51:$IV51,MATCH(0,COUNTIF($DR51:EA51,$EG51:$IV51),0)),"") ->  | EC51: =IFERROR(INDEX($EG51:$IV51,MATCH(0,COUNTIF($DR51:EB51,$EG51:$IV51),0)),"") ->  | ED51: =IFERROR(INDEX($EG51:$IV51,MATCH(0,COUNTIF($DR51:EC51,$EG51:$IV51),0)),"") ->  | EG51: {Measure:Quantity} | EH51: {Motor HP} | EI51: {Motor HP} | EJ51: {Motor HP} | EK51: {Motor HP} | EL51: {Motor HP} | EM51: {Motor HP} | EN51: {Motor HP} | EQ51: {Measure:Quantity} | ER51: {Motor HP} | ES51: {Motor HP} | ET51: {Motor HP} | EU51: {Motor HP} | EV51: {Motor HP} | EW51: {Motor HP} | EX51: {Motor HP} | FA51: {Measure:Quantity} | FB51: {Motor HP} | FK51: {Measure:Quantity} | FL51: {Motor HP} | FU51: {Measure:Quantity} | FV51: {Motor HP} | FW51: {Motor HP} | GE51: {Measure:Quantity} | GF51: {Factor:WinterCF} | GG51: {Motor HP} | GO51: {Measure:Quantity} | GP51: {Factor:SummerCF} | IZ51: 2
A52: C&I HVAC - Electric | B52: VFD: Return Fan on VAV Packaged or Rooftop HVAC Unit | C52: RFP | D52: 2021-07-01 | E52: 2021-09-09 | F52: Calculated | G52: {Measure:Quantity}*if({Motor HP}=5,2425,if({Motor HP}=7.5,2648,if({Motor HP}=10,2871,if({Motor HP}=15,3317,if({Motor HP}=20,3763,if({Motor HP}=25,4209,if({Motor HP}=30,4655,0))))))) | H52: 0 | I52: Calculated | J52: {Measure:Quantity}*if({Motor HP}=5,400,if({Motor HP}=7.5,650,if({Motor HP}=10,1400,if({Motor HP}=15,1650,if({Motor HP}=20,1850,if({Motor HP}=25,2000,if({Motor HP}=30,2300,0))))))) | K52: 0 | L52: 2021-07-01 | M52: 2022-06-30 | N52: Calculated | O52: {Measure:Quantity}*{Motor HP}*1788 | R52: {Measure:Quantity}*{Motor HP}*.302 | U52: {Measure:Quantity}*{Factor:WinterCF}*{Motor HP}*.302 | V52: {Measure:Quantity}*{Factor:SummerCF}*{Motor HP}*.302 | AC52: 2021-05-25 | AD52: 2022-06-30 | AE52: 13 | AF52: 0.21 | AG52: 0.683 | AH52: 0.39 | AI52: 0.308 | AJ52: 0.214 | AK52: 0.088 | AL52: 1 | AM52: 1.122 | AN52: 1 | AO52: 0.52 | AP52: 0.016 | AR52: {Measure:Quantity} | AS52: 1 | AT52: {Motor HP} | AU52: 5 | BL52: =AS52*AU52*1788 -> 8940 | BM52: 0 | BN52: 0 | BO52: =AS52*AU52*0.302 -> 1.51 | BP52: 0 | BQ52: 0 | BR52: =AS52*AF52*AU52*0.302 -> 0.3171 | BS52: =AS52*AG52*AU52*0.302 -> 1.03133 | BT52: 0 | BU52: 0 | BV52: 0 | BW52: 0 | BX52: 0 | BY52: 0 | CA52: Res | CB52: Default DR | CC52: =Benefits(BL52,BR52,BS52,BT52,BU52,BV52,BW52,BX52,BY52,BZ52,AE52,AH52,AI52,AJ52,AK52,AL52,AM52,AN52,AO52,AP52,CA52,CB52) -> 11878.85539 | CD52: 2781.774932 | CE52: 0 | CF52: 0 | CG52: 0 | CH52: 0 | CI52: 0 | CJ52: 0 | CK52: 0 | CL52: =SUMPRODUCT(CC52:CK52,--(CC52:CK52>0)) -> 14660.63033 | CM52: =-SUMPRODUCT(CC52:CK52,--(CC52:CK52<0)) -> 0 | CO52: =AS52*IF(AU52=5,2425,IF(AU52=7.5,2648,IF(AU52=10,2871,IF(AU52=15,3317,IF(AU52=20,3763,IF(AU52=25,4209,IF(AU52=30,4655,0))))))) -> 2425 | CR52: 2425 | CS52: 1 | CT52: 6.045620753 | CU52: 1 | CV52: =AS52*IF(AU52=5,400,IF(AU52=7.5,650,IF(AU52=10,1400,IF(AU52=15,1650,IF(AU52=20,1850,IF(AU52=25,2000,IF(AU52=30,2300,0))))))) -> 400 | CX52: Electric | CY52: y | DA52: X=AS52*if(AU52=5,2425,if(AU52=7.5,2648,if(AU52=10,2871,if(AU52=15,3317,if(AU52=20,3763,if(AU52=25,4209,if(AU52=30,4655,0))))))) | DB52: X=AS52*if(AU52=5,400,if(AU52=7.5,650,if(AU52=10,1400,if(AU52=15,1650,if(AU52=20,1850,if(AU52=25,2000,if(AU52=30,2300,0))))))) | DC52: X=AS52*AU52*1788 | DD52: 0 | DE52: 0 | DF52: X=AS52*AU52*.302 | DG52: 0 | DH52: 0 | DI52: X=AS52*AF52*AU52*.302 | DJ52: X=AS52*AG52*AU52*.302 | DK52: 0 | DL52: 0 | DM52: 0 | DN52: 0 | DO52: 0 | DP52: 0 | DS52: {Factor:WinterCF} | DT52: {Factor:SummerCF} | DU52: =IFERROR(INDEX($EG52:$IV52,MATCH(0,COUNTIF($DR52:DT52,$EG52:$IV52),0)),"") -> {Measure:Quantity} | DV52: =IFERROR(INDEX($EG52:$IV52,MATCH(0,COUNTIF($DR52:DU52,$EG52:$IV52),0)),"") -> {Motor HP} | DW52: =IFERROR(INDEX($EG52:$IV52,MATCH(0,COUNTIF($DR52:DV52,$EG52:$IV52),0)),"") ->  | DX52: =IFERROR(INDEX($EG52:$IV52,MATCH(0,COUNTIF($DR52:DW52,$EG52:$IV52),0)),"") ->  | DY52: =IFERROR(INDEX($EG52:$IV52,MATCH(0,COUNTIF($DR52:DX52,$EG52:$IV52),0)),"") ->  | DZ52: =IFERROR(INDEX($EG52:$IV52,MATCH(0,COUNTIF($DR52:DY52,$EG52:$IV52),0)),"") ->  | EA52: =IFERROR(INDEX($EG52:$IV52,MATCH(0,COUNTIF($DR52:DZ52,$EG52:$IV52),0)),"") ->  | EB52: =IFERROR(INDEX($EG52:$IV52,MATCH(0,COUNTIF($DR52:EA52,$EG52:$IV52),0)),"") ->  | EC52: =IFERROR(INDEX($EG52:$IV52,MATCH(0,COUNTIF($DR52:EB52,$EG52:$IV52),0)),"") ->  | ED52: =IFERROR(INDEX($EG52:$IV52,MATCH(0,COUNTIF($DR52:EC52,$EG52:$IV52),0)),"") ->  | EG52: {Measure:Quantity} | EH52: {Motor HP} | EI52: {Motor HP} | EJ52: {Motor HP} | EK52: {Motor HP} | EL52: {Motor HP} | EM52: {Motor HP} | EN52: {Motor HP} | EQ52: {Measure:Quantity} | ER52: {Motor HP} | ES52: {Motor HP} | ET52: {Motor HP} | EU52: {Motor HP} | EV52: {Motor HP} | EW52: {Motor HP} | EX52: {Motor HP} | FA52: {Measure:Quantity} | FB52: {Motor HP} | FK52: {Measure:Quantity} | FL52: {Motor HP} | FU52: {Measure:Quantity} | FV52: {Motor HP} | FW52: {Motor HP} | GE52: {Measure:Quantity} | GF52: {Factor:WinterCF} | GG52: {Motor HP} | GO52: {Measure:Quantity} | GP52: {Factor:SummerCF} | IZ52: 2
A53: C&I HVAC - Electric | B53: VFD: Supply Fan on VAV Air Handler | C53: SFA | D53: 2021-07-01 | E53: 2021-09-09 | F53: Calculated | G53: {Measure:Quantity}*if({Motor HP}=5,2425,if({Motor HP}=7.5,2648,if({Motor HP}=10,2871,if({Motor HP}=15,3317,if({Motor HP}=20,3763,if({Motor HP}=25,4209,if({Motor HP}=30,4655,0))))))) | H53: 0 | I53: Calculated | J53: {Measure:Quantity}*if({Motor HP}=5,400,if({Motor HP}=7.5,650,if({Motor HP}=10,1400,if({Motor HP}=15,1650,if({Motor HP}=20,1850,if({Motor HP}=25,2000,if({Motor HP}=30,2300,0))))))) | K53: 0 | L53: 2021-07-01 | M53: 2022-06-30 | N53: Calculated | O53: {Measure:Quantity}*{Motor HP}*2033 | R53: {Measure:Quantity}*{Motor HP}*.288 | U53: {Measure:Quantity}*{Factor:WinterCF}*{Motor HP}*.288 | V53: {Measure:Quantity}*{Factor:SummerCF}*{Motor HP}*.288 | AC53: 2021-05-25 | AD53: 2022-06-30 | AE53: 13 | AF53: 0.146 | AG53: 0.487 | AH53: 0.39 | AI53: 0.305 | AJ53: 0.216 | AK53: 0.089 | AL53: 1 | AM53: 1.122 | AN53: 1 | AO53: 0.52 | AP53: 0.016 | AR53: {Measure:Quantity} | AS53: 1 | AT53: {Motor HP} | AU53: 5 | BL53: =AS53*AU53*2033 -> 10165 | BM53: 0 | BN53: 0 | BO53: =AS53*AU53*0.288 -> 1.44 | BP53: 0 | BQ53: 0 | BR53: =AS53*AF53*AU53*0.288 -> 0.21024 | BS53: =AS53*AG53*AU53*0.288 -> 0.70128 | BT53: 0 | BU53: 0 | BV53: 0 | BW53: 0 | BX53: 0 | BY53: 0 | CA53: Res | CB53: Default DR | CC53: =Benefits(BL53,BR53,BS53,BT53,BU53,BV53,BW53,BX53,BY53,BZ53,AE53,AH53,AI53,AJ53,AK53,AL53,AM53,AN53,AO53,AP53,CA53,CB53) -> 13499.66548 | CD53: 1873.568082 | CE53: 0 | CF53: 0 | CG53: 0 | CH53: 0 | CI53: 0 | CJ53: 0 | CK53: 0 | CL53: =SUMPRODUCT(CC53:CK53,--(CC53:CK53>0)) -> 15373.23356 | CM53: =-SUMPRODUCT(CC53:CK53,--(CC53:CK53<0)) -> 0 | CO53: =AS53*IF(AU53=5,2425,IF(AU53=7.5,2648,IF(AU53=10,2871,IF(AU53=15,3317,IF(AU53=20,3763,IF(AU53=25,4209,IF(AU53=30,4655,0))))))) -> 2425 | CR53: 2425 | CS53: 1 | CT53: 6.339477759 | CU53: 1 | CV53: =AS53*IF(AU53=5,400,IF(AU53=7.5,650,IF(AU53=10,1400,IF(AU53=15,1650,IF(AU53=20,1850,IF(AU53=25,2000,IF(AU53=30,2300,0))))))) -> 400 | CX53: Electric | CY53: y | DA53: X=AS53*if(AU53=5,2425,if(AU53=7.5,2648,if(AU53=10,2871,if(AU53=15,3317,if(AU53=20,3763,if(AU53=25,4209,if(AU53=30,4655,0))))))) | DB53: X=AS53*if(AU53=5,400,if(AU53=7.5,650,if(AU53=10,1400,if(AU53=15,1650,if(AU53=20,1850,if(AU53=25,2000,if(AU53=30,2300,0))))))) | DC53: X=AS53*AU53*2033 | DD53: 0 | DE53: 0 | DF53: X=AS53*AU53*.288 | DG53: 0 | DH53: 0 | DI53: X=AS53*AF53*AU53*.288 | DJ53: X=AS53*AG53*AU53*.288 | DK53: 0 | DL53: 0 | DM53: 0 | DN53: 0 | DO53: 0 | DP53: 0 | DS53: {Factor:WinterCF} | DT53: {Factor:SummerCF} | DU53: =IFERROR(INDEX($EG53:$IV53,MATCH(0,COUNTIF($DR53:DT53,$EG53:$IV53),0)),"") -> {Measure:Quantity} | DV53: =IFERROR(INDEX($EG53:$IV53,MATCH(0,COUNTIF($DR53:DU53,$EG53:$IV53),0)),"") -> {Motor HP} | DW53: =IFERROR(INDEX($EG53:$IV53,MATCH(0,COUNTIF($DR53:DV53,$EG53:$IV53),0)),"") ->  | DX53: =IFERROR(INDEX($EG53:$IV53,MATCH(0,COUNTIF($DR53:DW53,$EG53:$IV53),0)),"") ->  | DY53: =IFERROR(INDEX($EG53:$IV53,MATCH(0,COUNTIF($DR53:DX53,$EG53:$IV53),0)),"") ->  | DZ53: =IFERROR(INDEX($EG53:$IV53,MATCH(0,COUNTIF($DR53:DY53,$EG53:$IV53),0)),"") ->  | EA53: =IFERROR(INDEX($EG53:$IV53,MATCH(0,COUNTIF($DR53:DZ53,$EG53:$IV53),0)),"") ->  | EB53: =IFERROR(INDEX($EG53:$IV53,MATCH(0,COUNTIF($DR53:EA53,$EG53:$IV53),0)),"") ->  | EC53: =IFERROR(INDEX($EG53:$IV53,MATCH(0,COUNTIF($DR53:EB53,$EG53:$IV53),0)),"") ->  | ED53: =IFERROR(INDEX($EG53:$IV53,MATCH(0,COUNTIF($DR53:EC53,$EG53:$IV53),0)),"") ->  | EG53: {Measure:Quantity} | EH53: {Motor HP} | EI53: {Motor HP} | EJ53: {Motor HP} | EK53: {Motor HP} | EL53: {Motor HP} | EM53: {Motor HP} | EN53: {Motor HP} | EQ53: {Measure:Quantity} | ER53: {Motor HP} | ES53: {Motor HP} | ET53: {Motor HP} | EU53: {Motor HP} | EV53: {Motor HP} | EW53: {Motor HP} | EX53: {Motor HP} | FA53: {Measure:Quantity} | FB53: {Motor HP} | FK53: {Measure:Quantity} | FL53: {Motor HP} | FU53: {Measure:Quantity} | FV53: {Motor HP} | FW53: {Motor HP} | GE53: {Measure:Quantity} | GF53: {Factor:WinterCF} | GG53: {Motor HP} | GO53: {Measure:Quantity} | GP53: {Factor:SummerCF} | IZ53: 2
A54: C&I HVAC - Electric | B54: VFD: Supply Fan on VAV Packaged or Rooftop HVAC Unit | C54: SFP | D54: 2021-07-01 | E54: 2021-09-09 | F54: Calculated | G54: {Measure:Quantity}*if({Motor HP}=5,2425,if({Motor HP}=7.5,2648,if({Motor HP}=10,2871,if({Motor HP}=15,3317,if({Motor HP}=20,3763,if({Motor HP}=25,4209,if({Motor HP}=30,4655,0))))))) | H54: 0 | I54: Calculated | J54: {Measure:Quantity}*if({Motor HP}=5,400,if({Motor HP}=7.5,650,if({Motor HP}=10,1400,if({Motor HP}=15,1650,if({Motor HP}=20,1850,if({Motor HP}=25,2000,if({Motor HP}=30,2300,0))))))) | K54: 0 | L54: 2021-07-01 | M54: 2022-06-30 | N54: Calculated | O54: {Measure:Quantity}*{Motor HP}*2033 | R54: {Measure:Quantity}*{Motor HP}*.288 | U54: {Measure:Quantity}*{Factor:WinterCF}*{Motor HP}*.288 | V54: {Measure:Quantity}*{Factor:SummerCF}*{Motor HP}*.288 | AC54: 2021-05-25 | AD54: 2022-06-30 | AE54: 13 | AF54: 0.146 | AG54: 0.487 | AH54: 0.39 | AI54: 0.305 | AJ54: 0.216 | AK54: 0.089 | AL54: 1 | AM54: 1.122 | AN54: 1 | AO54: 0.52 | AP54: 0.016 | AR54: {Measure:Quantity} | AS54: 1 | AT54: {Motor HP} | AU54: 5 | BL54: =AS54*AU54*2033 -> 10165 | BM54: 0 | BN54: 0 | BO54: =AS54*AU54*0.288 -> 1.44 | BP54: 0 | BQ54: 0 | BR54: =AS54*AF54*AU54*0.288 -> 0.21024 | BS54: =AS54*AG54*AU54*0.288 -> 0.70128 | BT54: 0 | BU54: 0 | BV54: 0 | BW54: 0 | BX54: 0 | BY54: 0 | CA54: Res | CB54: Default DR | CC54: =Benefits(BL54,BR54,BS54,BT54,BU54,BV54,BW54,BX54,BY54,BZ54,AE54,AH54,AI54,AJ54,AK54,AL54,AM54,AN54,AO54,AP54,CA54,CB54) -> 13499.66548 | CD54: 1873.568082 | CE54: 0 | CF54: 0 | CG54: 0 | CH54: 0 | CI54: 0 | CJ54: 0 | CK54: 0 | CL54: =SUMPRODUCT(CC54:CK54,--(CC54:CK54>0)) -> 15373.23356 | CM54: =-SUMPRODUCT(CC54:CK54,--(CC54:CK54<0)) -> 0 | CO54: =AS54*IF(AU54=5,2425,IF(AU54=7.5,2648,IF(AU54=10,2871,IF(AU54=15,3317,IF(AU54=20,3763,IF(AU54=25,4209,IF(AU54=30,4655,0))))))) -> 2425 | CR54: 2425 | CS54: 1 | CT54: 6.339477759 | CU54: 1 | CV54: =AS54*IF(AU54=5,400,IF(AU54=7.5,650,IF(AU54=10,1400,IF(AU54=15,1650,IF(AU54=20,1850,IF(AU54=25,2000,IF(AU54=30,2300,0))))))) -> 400 | CX54: Electric | CY54: y | DA54: X=AS54*if(AU54=5,2425,if(AU54=7.5,2648,if(AU54=10,2871,if(AU54=15,3317,if(AU54=20,3763,if(AU54=25,4209,if(AU54=30,4655,0))))))) | DB54: X=AS54*if(AU54=5,400,if(AU54=7.5,650,if(AU54=10,1400,if(AU54=15,1650,if(AU54=20,1850,if(AU54=25,2000,if(AU54=30,2300,0))))))) | DC54: X=AS54*AU54*2033 | DD54: 0 | DE54: 0 | DF54: X=AS54*AU54*.288 | DG54: 0 | DH54: 0 | DI54: X=AS54*AF54*AU54*.288 | DJ54: X=AS54*AG54*AU54*.288 | DK54: 0 | DL54: 0 | DM54: 0 | DN54: 0 | DO54: 0 | DP54: 0 | DS54: {Factor:WinterCF} | DT54: {Factor:SummerCF} | DU54: =IFERROR(INDEX($EG54:$IV54,MATCH(0,COUNTIF($DR54:DT54,$EG54:$IV54),0)),"") -> {Measure:Quantity} | DV54: =IFERROR(INDEX($EG54:$IV54,MATCH(0,COUNTIF($DR54:DU54,$EG54:$IV54),0)),"") -> {Motor HP} | DW54: =IFERROR(INDEX($EG54:$IV54,MATCH(0,COUNTIF($DR54:DV54,$EG54:$IV54),0)),"") ->  | DX54: =IFERROR(INDEX($EG54:$IV54,MATCH(0,COUNTIF($DR54:DW54,$EG54:$IV54),0)),"") ->  | DY54: =IFERROR(INDEX($EG54:$IV54,MATCH(0,COUNTIF($DR54:DX54,$EG54:$IV54),0)),"") ->  | DZ54: =IFERROR(INDEX($EG54:$IV54,MATCH(0,COUNTIF($DR54:DY54,$EG54:$IV54),0)),"") ->  | EA54: =IFERROR(INDEX($EG54:$IV54,MATCH(0,COUNTIF($DR54:DZ54,$EG54:$IV54),0)),"") ->  | EB54: =IFERROR(INDEX($EG54:$IV54,MATCH(0,COUNTIF($DR54:EA54,$EG54:$IV54),0)),"") ->  | EC54: =IFERROR(INDEX($EG54:$IV54,MATCH(0,COUNTIF($DR54:EB54,$EG54:$IV54),0)),"") ->  | ED54: =IFERROR(INDEX($EG54:$IV54,MATCH(0,COUNTIF($DR54:EC54,$EG54:$IV54),0)),"") ->  | EG54: {Measure:Quantity} | EH54: {Motor HP} | EI54: {Motor HP} | EJ54: {Motor HP} | EK54: {Motor HP} | EL54: {Motor HP} | EM54: {Motor HP} | EN54: {Motor HP} | EQ54: {Measure:Quantity} | ER54: {Motor HP} | ES54: {Motor HP} | ET54: {Motor HP} | EU54: {Motor HP} | EV54: {Motor HP} | EW54: {Motor HP} | EX54: {Motor HP} | FA54: {Measure:Quantity} | FB54: {Motor HP} | FK54: {Measure:Quantity} | FL54: {Motor HP} | FU54: {Measure:Quantity} | FV54: {Motor HP} | FW54: {Motor HP} | GE54: {Measure:Quantity} | GF54: {Factor:WinterCF} | GG54: {Motor HP} | GO54: {Measure:Quantity} | GP54: {Factor:SummerCF} | IZ54: 2
A55: C&I HVAC - Electric | B55: Vertical Packaged Terminal Heat Pump Retrofit | C55: VPTHPR | D55: 2021-07-01 | E55: 2021-09-09 | F55: Calculated | G55: ({Supplier Price for Materials}+{Labor Cost}) | H55: 0 | I55: Calculated | J55: {Measure:Quantity}*if({Cooling Capacity (Btu/h)}<7000,1100,if({Cooling Capacity (Btu/h)}<=15000,1350,1600)) | K55: 0 | N55: Calculated | O55: {Measure:Quantity} * ({Cooling Capacity (Btu/h)}/1000*(1/{EER_base}-1/{EER})*829*if({Operation Jun-Oct}=0,0,1)+{Heating Capacity (Btu/h)}/1000/3.412*(1/{COP_base}-1/{COP})*2200*({Operation Jun-Oct}+{Operation Nov}+{Operation Dec-Mar}+{Operation Apr}+{Operation May})/100) | R55: {Measure:Quantity} *Max(if({Operation Dec-Mar}=0,0,{Heating Capacity (Btu/h)}/1000/3.412*(1/{COP_base}-1/{COP})),if({Operation Jun-Oct}=0,0,{Cooling Capacity (Btu/h)}/1000*(1/{EER_base}-1/{EER}))) | U55: if({Operation Dec-Mar}=0,0,{Measure:Quantity} * ({Heating Capacity (Btu/h)}/1000/3.412*(1/{COP_base}-1/{COP})*{Factor:WinterCF})) | V55: if({Operation Jun-Oct}=0,0,{Measure:Quantity} * ({Cooling Capacity (Btu/h)}/1000*(1/{EER_base}-1/{EER})*{Factor:SummerCF})) | AC55: 2021-05-25 | AD55: 2022-06-30 | AE55: 15 | AF55: 0.57 | AG55: 0.372 | AH55: 0.17 | AI55: 0.03 | AJ55: 0.62 | AK55: 0.18 | AL55: 1 | AM55: 1 | AN55: 1 | AO55: 0.25 | AP55: 0 | AR55: {Supplier Price for Materials} | AS55: 800 | AT55: {Labor Cost} | AU55: 500 | AV55: {Measure:Quantity} | AW55: 1 | AX55: {Cooling Capacity (Btu/h)} | AY55: 20000 | AZ55: {EER_base} | BA55: 11.9 | BB55: {EER} | BC55: 13 | BD55: {Operation Jun-Oct} | BE55: 11 | BF55: {Heating Capacity (Btu/h)} | BG55: 7000 | BH55: {COP_base} | BI55: 1 | BJ55: {COP} | BK55: 4 | BL55: =AW55 * (AY55/1000*(1/BA55-1/BC55)*829*IF(BE55=0,0,1)+BG55/1000/3.412*(1/BI55-1/BK55)*2200*(BE55+11+66+8+4)/100) -> 3503.004067 | BM55: 0 | BN55: 0 | BO55: =AW55 *MAX(IF(11=0,0,BG55/1000/3.412*(1/BI55-1/BK55)),IF(BE55=0,0,AY55/1000*(1/BA55-1/BC55))) -> 1.538686987 | BP55: 0 | BQ55: 0 | BR55: =IF(11=0,0,AW55 * (BG55/1000/3.412*(1/BI55-1/BK55)*AF55)) -> 0.8770515826 | BS55: =IF(BE55=0,0,AW55 * (AY55/1000*(1/BA55-1/BC55)*AG55)) -> 0.05290239173 | BT55: 0 | BU55: 0 | BV55: 0 | BW55: 0 | BX55: 0 | BY55: 0 | CA55: Com | CB55: Default DR | CC55: =Benefits(BL55,BR55,BS55,BT55,BU55,BV55,BW55,BX55,BY55,BZ55,AE55,AH55,AI55,AJ55,AK55,AL55,AM55,AN55,AO55,AP55,CA55,CB55) -> 4237.673414 | CD55: 3395.270952 | CE55: 0 | CF55: 0 | CG55: 0 | CH55: 0 | CI55: 0 | CJ55: 0 | CK55: 0 | CL55: =SUMPRODUCT(CC55:CK55,--(CC55:CK55>0)) -> 7632.944367 | CM55: =-SUMPRODUCT(CC55:CK55,--(CC55:CK55<0)) -> 0 | CO55: =(AS55+AU55) -> 1300 | CR55: 1300 | CS55: 1 | CT55: 4.770590229 | CU55: 1 | CV55: =AW55*IF(AY55<7000,1100,IF(AY55<=15000,1350,1600)) -> 1600 | CX55: RGGI | CY55: y | DA55: X=(AS55+AU55) | DB55: X=AW55*if(AY55<7000,1100,if(AY55<=15000,1350,1600)) | DC55: X=AW55 * (AY55/1000*(1/BA55-1/BC55)*829*if(BE55=0,0,1)+BG55/1000/3.412*(1/BI55-1/BK55)*2200*(BE55+{Operation Nov}+{Operation Dec-Mar}+{Operation Apr}+{Operation May})/100) | DD55: 0 | DE55: 0 | DF55: X=AW55 *Max(if({Operation Dec-Mar}=0,0,BG55/1000/3.412*(1/BI55-1/BK55)),if(BE55=0,0,AY55/1000*(1/BA55-1/BC55))) | DG55: 0 | DH55: 0 | DI55: X=if({Operation Dec-Mar}=0,0,AW55 * (BG55/1000/3.412*(1/BI55-1/BK55)*AF55)) | DJ55: X=if(BE55=0,0,AW55 * (AY55/1000*(1/BA55-1/BC55)*AG55)) | DK55: 0 | DL55: 0 | DM55: 0 | DN55: 0 | DO55: 0 | DP55: 0 | DS55: {Factor:WinterCF} | DT55: {Factor:SummerCF} | DU55: =IFERROR(INDEX($EG55:$IV55,MATCH(0,COUNTIF($DR55:DT55,$EG55:$IV55),0)),"") -> {Supplier Price for Materials} | DV55: =IFERROR(INDEX($EG55:$IV55,MATCH(0,COUNTIF($DR55:DU55,$EG55:$IV55),0)),"") -> {Labor Cost} | DW55: =IFERROR(INDEX($EG55:$IV55,MATCH(0,COUNTIF($DR55:DV55,$EG55:$IV55),0)),"") -> {Measure:Quantity} | DX55: =IFERROR(INDEX($EG55:$IV55,MATCH(0,COUNTIF($DR55:DW55,$EG55:$IV55),0)),"") -> {Cooling Capacity (Btu/h)} | DY55: =IFERROR(INDEX($EG55:$IV55,MATCH(0,COUNTIF($DR55:DX55,$EG55:$IV55),0)),"") -> {EER_base} | DZ55: =IFERROR(INDEX($EG55:$IV55,MATCH(0,COUNTIF($DR55:DY55,$EG55:$IV55),0)),"") -> {EER} | EA55: =IFERROR(INDEX($EG55:$IV55,MATCH(0,COUNTIF($DR55:DZ55,$EG55:$IV55),0)),"") -> {Operation Jun-Oct} | EB55: =IFERROR(INDEX($EG55:$IV55,MATCH(0,COUNTIF($DR55:EA55,$EG55:$IV55),0)),"") -> {Heating Capacity (Btu/h)} | EC55: =IFERROR(INDEX($EG55:$IV55,MATCH(0,COUNTIF($DR55:EB55,$EG55:$IV55),0)),"") -> {COP_base} | ED55: =IFERROR(INDEX($EG55:$IV55,MATCH(0,COUNTIF($DR55:EC55,$EG55:$IV55),0)),"") -> {COP} | EG55: {Supplier Price for Materials} | EH55: {Labor Cost} | EQ55: {Measure:Quantity} | ER55: {Cooling Capacity (Btu/h)} | ES55: {Cooling Capacity (Btu/h)} | FA55: {Measure:Quantity} | FB55: {Cooling Capacity (Btu/h)} | FC55: {EER_base} | FD55: {EER} | FE55: {Operation Jun-Oct} | FF55: {Heating Capacity (Btu/h)} | FG55: {COP_base} | FH55: {COP} | FI55: {Operation Jun-Oct} | FJ55: {Operation Nov} | FK55: {Measure:Quantity} | FL55: {Cooling Capacity (Btu/h)} | FM55: {Heating Capacity (Btu/h)} | FN55: {COP_base} | FO55: {COP} | FP55: {Operation Jun-Oct} | FQ55: {Cooling Capacity (Btu/h)} | FR55: {EER_base} | FS55: {EER} | FU55: {Measure:Quantity} | FV55: {Operation Dec-Mar} | FW55: {Heating Capacity (Btu/h)} | FX55: {COP_base} | FY55: {COP} | FZ55: {Factor:WinterCF} | GE55: {Operation Dec-Mar} | GF55: {Measure:Quantity} | GG55: {Cooling Capacity (Btu/h)} | GH55: {EER_base} | GI55: {EER} | GJ55: {Factor:SummerCF} | GO55: {Operation Jun-Oct} | GP55: {Measure:Quantity} | IZ55: 10
A56: C&I HVAC - Electric | B56: Variable Refrigerant Flow - Single Phase | C56: VRFSP | D56: 2021-07-01 | E56: 2021-09-09 | F56: Calculated | G56: {Measure:Quantity}*{Square Feet Served}*{Incremental Cost per SQFT} | H56: 0 | I56: Calculated | J56: {Measure:Quantity}*{Square Feet Served}*2.75 | K56: 0 | L56: 2021-07-01 | M56: 2022-06-30 | N56: Calculated | O56: {Measure:Quantity} * ({Cooling Capacity (Btu/h)}/1000*(1/{SEER_base}-1/{SEER})*829+{Square Feet Served}*47.4/3.412*(if({Alternate Heating Fuel}<>6,0,1/{COP_base})-3.412/{HSPF})) | R56: {Measure:Quantity} *Max({Square Feet Served}*47.4/3.412*(if({Alternate Heating Fuel}<>6,0,1/{COP_base})-3.412/{HSPF})/1600,{Cooling Capacity (Btu/h)}/1000*(1/{SEER_base}-1/{SEER})) | U56: {Measure:Quantity} * ({Square Feet Served}*47.4/3.412*(if({Alternate Heating Fuel}<>6,0,1/{COP_base})-3.412/{HSPF})/1600*{Factor:WinterCF}) | V56: {Measure:Quantity} * ({Cooling Capacity (Btu/h)}/1000*(1/{SEER_base}-1/{SEER})*{Factor:SummerCF}) | W56: if({Alternate Heating Fuel}=1,{Measure:Quantity} * {Square Feet Served}*47.4/1000*1/{COP_base},0)*10 | X56: if({Alternate Heating Fuel}=2,{Measure:Quantity} * {Square Feet Served}*47.4/1000*1/{COP_base},0) | Y56: if({Alternate Heating Fuel}=3,{Measure:Quantity} * {Square Feet Served}*47.4/1000*1/{COP_base},0) | Z56: if({Alternate Heating Fuel}=4,{Measure:Quantity} * {Square Feet Served}*47.4/1000*1/{COP_base},0) | AA56: if({Alternate Heating Fuel}=5,{Measure:Quantity} * {Square Feet Served}*47.4/1000*1/{COP_base},0) | AC56: 2021-05-25 | AD56: 2022-06-30 | AE56: 20 | AF56: 0.42 | AG56: 0.357 | AH56: 0.17 | AI56: 0.03 | AJ56: 0.62 | AK56: 0.18 | AL56: 1 | AM56: 1.122 | AN56: 1 | AO56: 0.25 | AP56: 0 | AR56: {Measure:Quantity} | AS56: 1 | AT56: {Square Feet Served} | AU56: 2000 | AV56: {Incremental Cost per SQFT} | AW56: 1.55 | AX56: {SEER_base} | AY56: 50000 | AZ56: {SEER} | BA56: 12.5 | BB56: {Alternate Heating Fuel} | BC56: 17 | BD56: {COP_base} | BE56: 6 | BF56: {HSPF} | BG56: 1 | BH56: {Cooling Capacity (Btu/h)} | BI56: 10 | BL56: =AS56 * (AY56/1000*(1/BA56-1/BC56)*829+AU56*47.4/3.412*(IF(BE56<>6,0,1/BG56)-3.412/BI56)) -> 19182.05544 | BM56: 0 | BN56: 0 | BO56: =AS56 *MAX(AU56*47.4/3.412*(IF(BE56<>6,0,1/BG56)-3.412/BI56)/1600,AY56/1000*(1/BA56-1/BC56)) -> 11.44018171 | BP56: 0 | BQ56: 0 | BR56: =AS56 * (AU56*47.4/3.412*(IF(BE56<>6,0,1/BG56)-3.412/BI56)/1600*AF56) -> 4.804876319 | BS56: =AS56 * (AY56/1000*(1/BA56-1/BC56)*AG56) -> 0.378 | BT56: =IF(BE56=1,AS56 * AU56*47.4/1000*1/BG56,0)*10 -> 0 | BU56: =IF(BE56=2,AS56 * AU56*47.4/1000*1/BG56,0) -> 0 | BV56: =IF(BE56=3,AS56 * AU56*47.4/1000*1/BG56,0) -> 0 | BW56: =IF(BE56=4,AS56 * AU56*47.4/1000*1/BG56,0) -> 0 | BX56: =IF(BE56=5,AS56 * AU56*47.4/1000*1/BG56,0) -> 0 | BY56: 0 | CA56: Com | CB56: Default DR | CC56: =Benefits(BL56,BR56,BS56,BT56,BU56,BV56,BW56,BX56,BY56,BZ56,AE56,AH56,AI56,AJ56,AK56,AL56,AM56,AN56,AO56,AP56,CA56,CB56) -> 31919.45552 | CD56: 23538.09866 | CE56: 0 | CF56: 0 | CG56: 0 | CH56: 0 | CI56: 0 | CJ56: 0 | CK56: 0 | CL56: =SUMPRODUCT(CC56:CK56,--(CC56:CK56>0)) -> 55457.55418 | CM56: =-SUMPRODUCT(CC56:CK56,--(CC56:CK56<0)) -> 0 | CO56: =AS56*AU56*AW56 -> 3100 | CR56: 3100 | CS56: 1 | CT56: 10.08319167 | CU56: 1 | CV56: =AS56*AU56*2.75 -> 5500 | CX56: RGGI | CY56: y | DA56: X=AS56*AU56*AW56 | DB56: X=AS56*AU56*2.75 | DC56: X=AS56 * (BI56/1000*(1/AY56-1/BA56)*829+AU56*47.4/3.412*(if(BC56<>6,0,1/BE56)-3.412/BG56)) | DD56: 0 | DE56: 0 | DF56: X=AS56 *Max(AU56*47.4/3.412*(if(BC56<>6,0,1/BE56)-3.412/BG56)/1600,BI56/1000*(1/AY56-1/BA56)) | DG56: 0 | DH56: 0 | DI56: X=AS56 * (AU56*47.4/3.412*(if(BC56<>6,0,1/BE56)-3.412/BG56)/1600*AF56) | DJ56: X=AS56 * (BI56/1000*(1/AY56-1/BA56)*AG56) | DK56: X=if(BC56=1,AS56 * AU56*47.4/1000*1/BE56,0)*10 | DL56: X=if(BC56=2,AS56 * AU56*47.4/1000*1/BE56,0) | DM56: X=if(BC56=3,AS56 * AU56*47.4/1000*1/BE56,0) | DN56: X=if(BC56=4,AS56 * AU56*47.4/1000*1/BE56,0) | DO56: X=if(BC56=5,AS56 * AU56*47.4/1000*1/BE56,0) | DP56: 0 | DS56: {Factor:WinterCF} | DT56: {Factor:SummerCF} | DU56: =IFERROR(INDEX($EG56:$IV56,MATCH(0,COUNTIF($DR56:DT56,$EG56:$IV56),0)),"") -> {Measure:Quantity} | DV56: =IFERROR(INDEX($EG56:$IV56,MATCH(0,COUNTIF($DR56:DU56,$EG56:$IV56),0)),"") -> {Square Feet Served} | DW56: =IFERROR(INDEX($EG56:$IV56,MATCH(0,COUNTIF($DR56:DV56,$EG56:$IV56),0)),"") -> {Incremental Cost per SQFT} | DX56: =IFERROR(INDEX($EG56:$IV56,MATCH(0,COUNTIF($DR56:DW56,$EG56:$IV56),0)),"") -> {SEER_base} | DY56: =IFERROR(INDEX($EG56:$IV56,MATCH(0,COUNTIF($DR56:DX56,$EG56:$IV56),0)),"") -> {SEER} | DZ56: =IFERROR(INDEX($EG56:$IV56,MATCH(0,COUNTIF($DR56:DY56,$EG56:$IV56),0)),"") -> {Alternate Heating Fuel} | EA56: =IFERROR(INDEX($EG56:$IV56,MATCH(0,COUNTIF($DR56:DZ56,$EG56:$IV56),0)),"") -> {COP_base} | EB56: =IFERROR(INDEX($EG56:$IV56,MATCH(0,COUNTIF($DR56:EA56,$EG56:$IV56),0)),"") -> {HSPF} | EC56: =IFERROR(INDEX($EG56:$IV56,MATCH(0,COUNTIF($DR56:EB56,$EG56:$IV56),0)),"") -> {Cooling Capacity (Btu/h)} | ED56: =IFERROR(INDEX($EG56:$IV56,MATCH(0,COUNTIF($DR56:EC56,$EG56:$IV56),0)),"") ->  | EG56: {Measure:Quantity} | EH56: {Square Feet Served} | EI56: {Incremental Cost per SQFT} | EQ56: {Measure:Quantity} | ER56: {Square Feet Served} | FA56: {Measure:Quantity} | FB56: {Square Feet Served} | FC56: {SEER_base} | FD56: {SEER} | FE56: {Square Feet Served} | FF56: {Alternate Heating Fuel} | FG56: {COP_base} | FH56: {HSPF} | FK56: {Measure:Quantity} | FL56: {Cooling Capacity (Btu/h)} | FM56: {Alternate Heating Fuel} | FN56: {COP_base} | FO56: {HSPF} | FP56: {Cooling Capacity (Btu/h)} | FQ56: {SEER_base} | FR56: {SEER} | FU56: {Measure:Quantity} | FV56: {Square Feet Served} | FW56: {Alternate Heating Fuel} | FX56: {COP_base} | FY56: {HSPF} | FZ56: {Factor:WinterCF} | GE56: {Measure:Quantity} | GF56: {Square Feet Served} | GG56: {SEER_base} | GH56: {SEER} | GI56: {Factor:SummerCF} | GO56: {Measure:Quantity} | GP56: {Cooling Capacity (Btu/h)} | GQ56: {Square Feet Served} | GR56: {COP_base} | GY56: {Alternate Heating Fuel} | GZ56: {Measure:Quantity} | HA56: {Square Feet Served} | HB56: {COP_base} | HI56: {Alternate Heating Fuel} | HJ56: {Measure:Quantity} | HK56: {Square Feet Served} | HL56: {COP_base} | HS56: {Alternate Heating Fuel} | HT56: {Measure:Quantity} | HU56: {Square Feet Served} | HV56: {COP_base} | IC56: {Alternate Heating Fuel} | ID56: {Measure:Quantity} | IE56: {Square Feet Served} | IF56: {COP_base} | IM56: {Alternate Heating Fuel} | IN56: {Measure:Quantity} | IZ56: 9
A57: C&I HVAC - Electric | B57: Variable Refrigerant Flow - With Heat Recovery | C57: VRFWHR | D57: 2021-07-01 | E57: 2021-09-09 | F57: Calculated | G57: {Measure:Quantity}*{Square Feet Served}*{Incremental Cost per SQFT} | H57: 0 | I57: Calculated | J57: {Measure:Quantity}*{Square Feet Served}*3.25 | K57: 0 | L57: 2021-07-01 | M57: 2022-06-30 | N57: Calculated | O57: {Measure:Quantity} * ({Cooling Capacity (Btu/h)}/1000*(1/{IEER_base}-1/{IEER})*829+{Square Feet Served}*47.4/3.412*(if({Alternate Heating Fuel}<>6,0,1/{COP_base})-1/{COP})) | R57: {Measure:Quantity} *Max({Square Feet Served}*47.4/3.412*(if({Alternate Heating Fuel}<>6,0,1/{COP_base})-1/{COP})/1600,{Cooling Capacity (Btu/h)}/1000*(1/{IEER_base}-1/{IEER})) | U57: {Measure:Quantity} * ({Square Feet Served}*47.4/3.412*(if({Alternate Heating Fuel}<>6,0,1/{COP_base})-1/{COP})/1600*{Factor:WinterCF}) | V57: {Measure:Quantity} * ({Cooling Capacity (Btu/h)}/1000*(1/{IEER_base}-1/{IEER})*{Factor:SummerCF}) | W57: if({Alternate Heating Fuel}=1,{Measure:Quantity} * {Square Feet Served}*47.4/1000*1/{COP_base},0)*10 | X57: if({Alternate Heating Fuel}=2,{Measure:Quantity} * {Square Feet Served}*47.4/1000*1/{COP_base},0) | Y57: if({Alternate Heating Fuel}=3,{Measure:Quantity} * {Square Feet Served}*47.4/1000*1/{COP_base},0) | Z57: if({Alternate Heating Fuel}=4,{Measure:Quantity} * {Square Feet Served}*47.4/1000*1/{COP_base},0) | AA57: if({Alternate Heating Fuel}=5,{Measure:Quantity} * {Square Feet Served}*47.4/1000*1/{COP_base},0) | AC57: 2021-05-25 | AD57: 2022-06-30 | AE57: 20 | AF57: 0.42 | AG57: 0.357 | AH57: 0.17 | AI57: 0.03 | AJ57: 0.62 | AK57: 0.18 | AL57: 1 | AM57: 1.122 | AN57: 1 | AO57: 0.52 | AP57: 0.016 | AR57: {Measure:Quantity} | AS57: 1 | AT57: {Square Feet Served} | AU57: 6330 | AV57: {Incremental Cost per SQFT} | AW57: 1.77 | AX57: {IEER_base} | AY57: 141000 | AZ57: {IEER} | BA57: 13 | BB57: {Alternate Heating Fuel} | BC57: 21 | BD57: {COP_base} | BE57: 3 | BF57: {COP} | BG57: 0.82 | BH57: {Cooling Capacity (Btu/h)} | BI57: 3.78 | BL57: =AS57 * (AY57/1000*(1/BA57-1/BC57)*829+AU57*47.4/3.412*(IF(BE57<>6,0,1/BG57)-1/BI57)) -> -19838.51206 | BM57: 0 | BN57: 0 | BO57: =AS57 *MAX(AU57*47.4/3.412*(IF(BE57<>6,0,1/BG57)-1/BI57)/1600,AY57/1000*(1/BA57-1/BC57)) -> 4.131868132 | BP57: 0 | BQ57: 0 | BR57: =AS57 * (AU57*47.4/3.412*(IF(BE57<>6,0,1/BG57)-1/BI57)/1600*AF57) -> -6.106755569 | BS57: =AS57 * (AY57/1000*(1/BA57-1/BC57)*AG57) -> 1.475076923 | BT57: =IF(BE57=1,AS57 * AU57*47.4/1000*1/BG57,0)*10 -> 0 | BU57: =IF(BE57=2,AS57 * AU57*47.4/1000*1/BG57,0) -> 0 | BV57: =IF(BE57=3,AS57 * AU57*47.4/1000*1/BG57,0) -> 365.904878 | BW57: =IF(BE57=4,AS57 * AU57*47.4/1000*1/BG57,0) -> 0 | BX57: =IF(BE57=5,AS57 * AU57*47.4/1000*1/BG57,0) -> 0 | BY57: 0 | CA57: Com | CB57: Default DR | CC57: =Benefits(BL57,BR57,BS57,BT57,BU57,BV57,BW57,BX57,BY57,BZ57,AE57,AH57,AI57,AJ57,AK57,AL57,AM57,AN57,AO57,AP57,CA57,CB57) -> -33011.81696 | CD57: -25307.22708 | CE57: 0 | CF57: 198545.6527 | CG57: 0 | CH57: 0 | CI57: 0 | CJ57: 0 | CK57: 0 | CL57: =SUMPRODUCT(CC57:CK57,--(CC57:CK57>0)) -> 198545.6527 | CM57: =-SUMPRODUCT(CC57:CK57,--(CC57:CK57<0)) -> 58319.04403 | CO57: =AS57*AU57*AW57 -> 11204.1 | CR57: 69523.14403 | CS57: 1 | CT57: 2.516691176 | CU57: 1 | CV57: =AS57*AU57*3.25 -> 20572.5 | CX57: RGGI | CY57: y | DA57: X=AS57*AU57*AW57 | DB57: X=AS57*AU57*3.25 | DC57: X=AS57 * (BI57/1000*(1/AY57-1/BA57)*829+AU57*47.4/3.412*(if(BC57<>6,0,1/BE57)-1/BG57)) | DD57: 0 | DE57: 0 | DF57: X=AS57 *Max(AU57*47.4/3.412*(if(BC57<>6,0,1/BE57)-1/BG57)/1600,BI57/1000*(1/AY57-1/BA57)) | DG57: 0 | DH57: 0 | DI57: X=AS57 * (AU57*47.4/3.412*(if(BC57<>6,0,1/BE57)-1/BG57)/1600*AF57) | DJ57: X=AS57 * (BI57/1000*(1/AY57-1/BA57)*AG57) | DK57: X=if(BC57=1,AS57 * AU57*47.4/1000*1/BE57,0)*10 | DL57: X=if(BC57=2,AS57 * AU57*47.4/1000*1/BE57,0) | DM57: X=if(BC57=3,AS57 * AU57*47.4/1000*1/BE57,0) | DN57: X=if(BC57=4,AS57 * AU57*47.4/1000*1/BE57,0) | DO57: X=if(BC57=5,AS57 * AU57*47.4/1000*1/BE57,0) | DP57: 0 | DS57: {Factor:WinterCF} | DT57: {Factor:SummerCF} | DU57: =IFERROR(INDEX($EG57:$IV57,MATCH(0,COUNTIF($DR57:DT57,$EG57:$IV57),0)),"") -> {Measure:Quantity} | DV57: =IFERROR(INDEX($EG57:$IV57,MATCH(0,COUNTIF($DR57:DU57,$EG57:$IV57),0)),"") -> {Square Feet Served} | DW57: =IFERROR(INDEX($EG57:$IV57,MATCH(0,COUNTIF($DR57:DV57,$EG57:$IV57),0)),"") -> {Incremental Cost per SQFT} | DX57: =IFERROR(INDEX($EG57:$IV57,MATCH(0,COUNTIF($DR57:DW57,$EG57:$IV57),0)),"") -> {IEER_base} | DY57: =IFERROR(INDEX($EG57:$IV57,MATCH(0,COUNTIF($DR57:DX57,$EG57:$IV57),0)),"") -> {IEER} | DZ57: =IFERROR(INDEX($EG57:$IV57,MATCH(0,COUNTIF($DR57:DY57,$EG57:$IV57),0)),"") -> {Alternate Heating Fuel} | EA57: =IFERROR(INDEX($EG57:$IV57,MATCH(0,COUNTIF($DR57:DZ57,$EG57:$IV57),0)),"") -> {COP_base} | EB57: =IFERROR(INDEX($EG57:$IV57,MATCH(0,COUNTIF($DR57:EA57,$EG57:$IV57),0)),"") -> {COP} | EC57: =IFERROR(INDEX($EG57:$IV57,MATCH(0,COUNTIF($DR57:EB57,$EG57:$IV57),0)),"") -> {Cooling Capacity (Btu/h)} | ED57: =IFERROR(INDEX($EG57:$IV57,MATCH(0,COUNTIF($DR57:EC57,$EG57:$IV57),0)),"") ->  | EG57: {Measure:Quantity} | EH57: {Square Feet Served} | EI57: {Incremental Cost per SQFT} | EQ57: {Measure:Quantity} | ER57: {Square Feet Served} | FA57: {Measure:Quantity} | FB57: {Square Feet Served} | FC57: {IEER_base} | FD57: {IEER} | FE57: {Square Feet Served} | FF57: {Alternate Heating Fuel} | FG57: {COP_base} | FH57: {COP} | FK57: {Measure:Quantity} | FL57: {Cooling Capacity (Btu/h)} | FM57: {Alternate Heating Fuel} | FN57: {COP_base} | FO57: {COP} | FP57: {Cooling Capacity (Btu/h)} | FQ57: {IEER_base} | FR57: {IEER} | FU57: {Measure:Quantity} | FV57: {Square Feet Served} | FW57: {Alternate Heating Fuel} | FX57: {COP_base} | FY57: {COP} | FZ57: {Factor:WinterCF} | GE57: {Measure:Quantity} | GF57: {Square Feet Served} | GG57: {IEER_base} | GH57: {IEER} | GI57: {Factor:SummerCF} | GO57: {Measure:Quantity} | GP57: {Cooling Capacity (Btu/h)} | GQ57: {Square Feet Served} | GR57: {COP_base} | GY57: {Alternate Heating Fuel} | GZ57: {Measure:Quantity} | HA57: {Square Feet Served} | HB57: {COP_base} | HI57: {Alternate Heating Fuel} | HJ57: {Measure:Quantity} | HK57: {Square Feet Served} | HL57: {COP_base} | HS57: {Alternate Heating Fuel} | HT57: {Measure:Quantity} | HU57: {Square Feet Served} | HV57: {COP_base} | IC57: {Alternate Heating Fuel} | ID57: {Measure:Quantity} | IE57: {Square Feet Served} | IF57: {COP_base} | IM57: {Alternate Heating Fuel} | IN57: {Measure:Quantity} | IZ57: 9
A58: C&I HVAC - Electric | B58: Variable Refrigerant Flow - Without Heat Recovery | C58: VRFWOHR | D58: 2021-07-01 | E58: 2021-09-09 | F58: Calculated | G58: {Measure:Quantity}*{Square Feet Served}*{Incremental Cost per SQFT} | H58: 0 | I58: Calculated | J58: {Measure:Quantity}*{Square Feet Served}*2.75 | K58: 0 | L58: 2021-07-01 | M58: 2022-06-30 | N58: Calculated | O58: {Measure:Quantity} * ({Cooling Capacity (Btu/h)}/1000*(1/{IEER_base}-1/{IEER})*829+{Square Feet Served}*47.4/3.412*(if({Alternate Heating Fuel}<>6,0,1/{COP_base})-1/{COP})) | R58: {Measure:Quantity} *Max({Square Feet Served}*47.4/3.412*(if({Alternate Heating Fuel}<>6,0,1/{COP_base})-1/{COP})/1600,{Cooling Capacity (Btu/h)}/1000*(1/{IEER_base}-1/{IEER})) | U58: {Measure:Quantity} * ({Square Feet Served}*47.4/3.412*(if({Alternate Heating Fuel}<>6,0,1/{COP_base})-1/{COP})/1600*{Factor:WinterCF}) | V58: {Measure:Quantity} * ({Cooling Capacity (Btu/h)}/1000*(1/{IEER_base}-1/{IEER})*{Factor:SummerCF}) | W58: if({Alternate Heating Fuel}=1,{Measure:Quantity} * {Square Feet Served}*47.4/1000*1/{COP_base},0)*10 | X58: if({Alternate Heating Fuel}=2,{Measure:Quantity} * {Square Feet Served}*47.4/1000*1/{COP_base},0) | Y58: if({Alternate Heating Fuel}=3,{Measure:Quantity} * {Square Feet Served}*47.4/1000*1/{COP_base},0) | Z58: if({Alternate Heating Fuel}=4,{Measure:Quantity} * {Square Feet Served}*47.4/1000*1/{COP_base},0) | AA58: if({Alternate Heating Fuel}=5,{Measure:Quantity} * {Square Feet Served}*47.4/1000*1/{COP_base},0) | AC58: 2021-05-25 | AD58: 2022-06-30 | AE58: 20 | AF58: 0.42 | AG58: 0.357 | AH58: 0.17 | AI58: 0.03 | AJ58: 0.62 | AK58: 0.18 | AL58: 1 | AM58: 1.122 | AN58: 1 | AO58: 0.52 | AP58: 0.016 | AR58: {Measure:Quantity} | AS58: 1 | AT58: {Square Feet Served} | AU58: 6330 | AV58: {Incremental Cost per SQFT} | AW58: 2.08 | AX58: {IEER_base} | AY58: 141000 | AZ58: {IEER} | BA58: 13 | BB58: {Alternate Heating Fuel} | BC58: 21 | BD58: {COP_base} | BE58: 3 | BF58: {COP} | BG58: 0.82 | BH58: {Cooling Capacity (Btu/h)} | BI58: 3.78 | BL58: =AS58 * (AY58/1000*(1/BA58-1/BC58)*829+AU58*47.4/3.412*(IF(BE58<>6,0,1/BG58)-1/BI58)) -> -19838.51206 | BM58: 0 | BN58: 0 | BO58: =AS58 *MAX(AU58*47.4/3.412*(IF(BE58<>6,0,1/BG58)-1/BI58)/1600,AY58/1000*(1/BA58-1/BC58)) -> 4.131868132 | BP58: 0 | BQ58: 0 | BR58: =AS58 * (AU58*47.4/3.412*(IF(BE58<>6,0,1/BG58)-1/BI58)/1600*AF58) -> -6.106755569 | BS58: =AS58 * (AY58/1000*(1/BA58-1/BC58)*AG58) -> 1.475076923 | BT58: =IF(BE58=1,AS58 * AU58*47.4/1000*1/BG58,0)*10 -> 0 | BU58: =IF(BE58=2,AS58 * AU58*47.4/1000*1/BG58,0) -> 0 | BV58: =IF(BE58=3,AS58 * AU58*47.4/1000*1/BG58,0) -> 365.904878 | BW58: =IF(BE58=4,AS58 * AU58*47.4/1000*1/BG58,0) -> 0 | BX58: =IF(BE58=5,AS58 * AU58*47.4/1000*1/BG58,0) -> 0 | BY58: 0 | CA58: Com | CB58: Default DR | CC58: =Benefits(BL58,BR58,BS58,BT58,BU58,BV58,BW58,BX58,BY58,BZ58,AE58,AH58,AI58,AJ58,AK58,AL58,AM58,AN58,AO58,AP58,CA58,CB58) -> -33011.81696 | CD58: -25307.22708 | CE58: 0 | CF58: 198545.6527 | CG58: 0 | CH58: 0 | CI58: 0 | CJ58: 0 | CK58: 0 | CL58: =SUMPRODUCT(CC58:CK58,--(CC58:CK58>0)) -> 198545.6527 | CM58: =-SUMPRODUCT(CC58:CK58,--(CC58:CK58<0)) -> 58319.04403 | CO58: =AS58*AU58*AW58 -> 13166.4 | CR58: 71485.44403 | CS58: 1 | CT58: 2.621876586 | CU58: 1 | CV58: =AS58*AU58*2.75 -> 17407.5 | CX58: RGGI | CY58: y | DA58: X=AS58*AU58*AW58 | DB58: X=AS58*AU58*2.75 | DC58: X=AS58 * (BI58/1000*(1/AY58-1/BA58)*829+AU58*47.4/3.412*(if(BC58<>6,0,1/BE58)-1/BG58)) | DD58: 0 | DE58: 0 | DF58: X=AS58 *Max(AU58*47.4/3.412*(if(BC58<>6,0,1/BE58)-1/BG58)/1600,BI58/1000*(1/AY58-1/BA58)) | DG58: 0 | DH58: 0 | DI58: X=AS58 * (AU58*47.4/3.412*(if(BC58<>6,0,1/BE58)-1/BG58)/1600*AF58) | DJ58: X=AS58 * (BI58/1000*(1/AY58-1/BA58)*AG58) | DK58: X=if(BC58=1,AS58 * AU58*47.4/1000*1/BE58,0)*10 | DL58: X=if(BC58=2,AS58 * AU58*47.4/1000*1/BE58,0) | DM58: X=if(BC58=3,AS58 * AU58*47.4/1000*1/BE58,0) | DN58: X=if(BC58=4,AS58 * AU58*47.4/1000*1/BE58,0) | DO58: X=if(BC58=5,AS58 * AU58*47.4/1000*1/BE58,0) | DP58: 0 | DS58: {Factor:WinterCF} | DT58: {Factor:SummerCF} | DU58: =IFERROR(INDEX($EG58:$IV58,MATCH(0,COUNTIF($DR58:DT58,$EG58:$IV58),0)),"") -> {Measure:Quantity} | DV58: =IFERROR(INDEX($EG58:$IV58,MATCH(0,COUNTIF($DR58:DU58,$EG58:$IV58),0)),"") -> {Square Feet Served} | DW58: =IFERROR(INDEX($EG58:$IV58,MATCH(0,COUNTIF($DR58:DV58,$EG58:$IV58),0)),"") -> {Incremental Cost per SQFT} | DX58: =IFERROR(INDEX($EG58:$IV58,MATCH(0,COUNTIF($DR58:DW58,$EG58:$IV58),0)),"") -> {IEER_base} | DY58: =IFERROR(INDEX($EG58:$IV58,MATCH(0,COUNTIF($DR58:DX58,$EG58:$IV58),0)),"") -> {IEER} | DZ58: =IFERROR(INDEX($EG58:$IV58,MATCH(0,COUNTIF($DR58:DY58,$EG58:$IV58),0)),"") -> {Alternate Heating Fuel} | EA58: =IFERROR(INDEX($EG58:$IV58,MATCH(0,COUNTIF($DR58:DZ58,$EG58:$IV58),0)),"") -> {COP_base} | EB58: =IFERROR(INDEX($EG58:$IV58,MATCH(0,COUNTIF($DR58:EA58,$EG58:$IV58),0)),"") -> {COP} | EC58: =IFERROR(INDEX($EG58:$IV58,MATCH(0,COUNTIF($DR58:EB58,$EG58:$IV58),0)),"") -> {Cooling Capacity (Btu/h)} | ED58: =IFERROR(INDEX($EG58:$IV58,MATCH(0,COUNTIF($DR58:EC58,$EG58:$IV58),0)),"") ->  | EG58: {Measure:Quantity} | EH58: {Square Feet Served} | EI58: {Incremental Cost per SQFT} | EQ58: {Measure:Quantity} | ER58: {Square Feet Served} | FA58: {Measure:Quantity} | FB58: {Square Feet Served} | FC58: {IEER_base} | FD58: {IEER} | FE58: {Square Feet Served} | FF58: {Alternate Heating Fuel} | FG58: {COP_base} | FH58: {COP} | FK58: {Measure:Quantity} | FL58: {Cooling Capacity (Btu/h)} | FM58: {Alternate Heating Fuel} | FN58: {COP_base} | FO58: {COP} | FP58: {Cooling Capacity (Btu/h)} | FQ58: {IEER_base} | FR58: {IEER} | FU58: {Measure:Quantity} | FV58: {Square Feet Served} | FW58: {Alternate Heating Fuel} | FX58: {COP_base} | FY58: {COP} | FZ58: {Factor:WinterCF} | GE58: {Measure:Quantity} | GF58: {Square Feet Served} | GG58: {IEER_base} | GH58: {IEER} | GI58: {Factor:SummerCF} | GO58: {Measure:Quantity} | GP58: {Cooling Capacity (Btu/h)} | GQ58: {Square Feet Served} | GR58: {COP_base} | GY58: {Alternate Heating Fuel} | GZ58: {Measure:Quantity} | HA58: {Square Feet Served} | HB58: {COP_base} | HI58: {Alternate Heating Fuel} | HJ58: {Measure:Quantity} | HK58: {Square Feet Served} | HL58: {COP_base} | HS58: {Alternate Heating Fuel} | HT58: {Measure:Quantity} | HU58: {Square Feet Served} | HV58: {COP_base} | IC58: {Alternate Heating Fuel} | ID58: {Measure:Quantity} | IE58: {Square Feet Served} | IF58: {COP_base} | IM58: {Alternate Heating Fuel} | IN58: {Measure:Quantity} | IZ58: 9
A59: C&I HVAC - Electric | B59: HVAC WATER SOURCE HEAT PUMP: < 11.25 | C59: WH | D59: 2021-07-01 | E59: 2021-09-09 | F59: Calculated | G59: {Measure:Quantity}*{Unit Size - Tons}*100.0 | H59: 0 | I59: Calculated | J59: {Measure:Quantity}*{Unit Size - Tons}*100 | K59: 0 | L59: 2021-07-01 | M59: 2022-06-30 | N59: Calculated | O59: {Measure:Quantity} * ((12 * {Unit Size - Tons} * (1/13.0 - 1/{EER}) * 829) + ({Heating BTUH}/1000 * (1/4.3 - 1/{COP}) * 1600 / 3.412)) | P59: 0.0001 | R59: {Measure:Quantity} * 12 * {Unit Size - Tons} * (1/13.0 - 1/{EER}) | U59: {Measure:Quantity} * {Heating BTUH}/1000 * (1/4.3 - 1/{COP}) / 3.412 * {Factor:WinterCF} | V59: {Measure:Quantity} * 12 * {Unit Size - Tons} * (1/13.0 - 1/{EER}) * {Factor:SummerCF} | AC59: 2021-05-25 | AD59: 2022-06-30 | AE59: 15 | AF59: 0.42 | AG59: 0.357 | AH59: 0.17 | AI59: 0.03 | AJ59: 0.62 | AK59: 0.18 | AL59: 1 | AM59: 1.122 | AN59: 1 | AO59: 0.52 | AP59: 0.016 | AR59: {Measure:Quantity} | AS59: 1 | AT59: {Unit Size - Tons} | AU59: 3 | AV59: {EER} | AW59: 16 | AX59: {Heating BTUH} | AY59: 37538 | AZ59: {COP} | BA59: 4.4 | BL59: =AS59 * ((12 * AU59 * (1/13 - 1/AW59) * 829) + (AY59/1000 * (1/4.3 - 1/BA59) * 1600 / 3.412)) -> 523.4804345 | BM59: =0.0001 -> 0.0001 | BN59: 0 | BO59: =AS59 * 12 * AU59 * (1/13 - 1/AW59) -> 0.5192307692 | BP59: 0 | BQ59: 0 | BR59: =AS59 * AY59/1000 * (1/4.3 - 1/BA59) / 3.412 * AF59 -> 0.0244225083 | BS59: =AS59 * 12 * AU59 * (1/13 - 1/AW59) * AG59 -> 0.1853653846 | BT59: 0 | BU59: 0 | BV59: 0 | BW59: 0 | BX59: 0 | BY59: 0 | CA59: Res | CB59: Default DR | CC59: =Benefits(BL59,BR59,BS59,BT59,BU59,BV59,BW59,BX59,BY59,BZ59,AE59,AH59,AI59,AJ59,AK59,AL59,AM59,AN59,AO59,AP59,CA59,CB59) -> 710.5262927 | CD59: 440.0693561 | CE59: 0 | CF59: 0 | CG59: 0 | CH59: 0 | CI59: 0 | CJ59: 0 | CK59: 0 | CL59: =SUMPRODUCT(CC59:CK59,--(CC59:CK59>0)) -> 1150.595649 | CM59: =-SUMPRODUCT(CC59:CK59,--(CC59:CK59<0)) -> 0 | CO59: =AS59*AU59*100 -> 300 | CR59: 300 | CS59: 1 | CT59: 3.835318829 | CU59: 1 | CV59: =AS59*AU59*100 -> 300 | CX59: Electric | CY59: y | DA59: X=AS59*AU59*100.0 | DB59: X=AS59*AU59*100 | DC59: X=AS59 * ((12 * AU59 * (1/13.0 - 1/AW59) * 829) + (AY59/1000 * (1/4.3 - 1/BA59) * 1600 / 3.412)) | DD59: X=0.0001 | DE59: 0 | DF59: X=AS59 * 12 * AU59 * (1/13.0 - 1/AW59) | DG59: 0 | DH59: 0 | DI59: X=AS59 * AY59/1000 * (1/4.3 - 1/BA59) / 3.412 * AF59 | DJ59: X=AS59 * 12 * AU59 * (1/13.0 - 1/AW59) * AG59 | DK59: 0 | DL59: 0 | DM59: 0 | DN59: 0 | DO59: 0 | DP59: 0 | DS59: {Factor:WinterCF} | DT59: {Factor:SummerCF} | DU59: =IFERROR(INDEX($EG59:$IV59,MATCH(0,COUNTIF($DR59:DT59,$EG59:$IV59),0)),"") -> {Measure:Quantity} | DV59: =IFERROR(INDEX($EG59:$IV59,MATCH(0,COUNTIF($DR59:DU59,$EG59:$IV59),0)),"") -> {Unit Size - Tons} | DW59: =IFERROR(INDEX($EG59:$IV59,MATCH(0,COUNTIF($DR59:DV59,$EG59:$IV59),0)),"") -> {EER} | DX59: =IFERROR(INDEX($EG59:$IV59,MATCH(0,COUNTIF($DR59:DW59,$EG59:$IV59),0)),"") -> {Heating BTUH} | DY59: =IFERROR(INDEX($EG59:$IV59,MATCH(0,COUNTIF($DR59:DX59,$EG59:$IV59),0)),"") -> {COP} | DZ59: =IFERROR(INDEX($EG59:$IV59,MATCH(0,COUNTIF($DR59:DY59,$EG59:$IV59),0)),"") ->  | EA59: =IFERROR(INDEX($EG59:$IV59,MATCH(0,COUNTIF($DR59:DZ59,$EG59:$IV59),0)),"") ->  | EB59: =IFERROR(INDEX($EG59:$IV59,MATCH(0,COUNTIF($DR59:EA59,$EG59:$IV59),0)),"") ->  | EC59: =IFERROR(INDEX($EG59:$IV59,MATCH(0,COUNTIF($DR59:EB59,$EG59:$IV59),0)),"") ->  | ED59: =IFERROR(INDEX($EG59:$IV59,MATCH(0,COUNTIF($DR59:EC59,$EG59:$IV59),0)),"") ->  | EG59: =IFERROR(MID($G59,FIND(CHAR(160),SUBSTITUTE($G59,"{",CHAR(160),EG$1)),FIND(CHAR(160),SUBSTITUTE($G59,"}",CHAR(160),EG$1))-FIND(CHAR(160),SUBSTITUTE($G59,"{",CHAR(160),EG$1))+1),"") -> {Measure:Quantity} | EH59: {Unit Size - Tons} | EQ59: =IFERROR(MID($J59,FIND(CHAR(160),SUBSTITUTE($J59,"{",CHAR(160),EQ$1)),FIND(CHAR(160),SUBSTITUTE($J59,"}",CHAR(160),EQ$1))-FIND(CHAR(160),SUBSTITUTE($J59,"{",CHAR(160),EQ$1))+1),"") -> {Measure:Quantity} | ER59: {Unit Size - Tons} | FA59: {Measure:Quantity} | FB59: {Unit Size - Tons} | FC59: =IFERROR(MID($O59,FIND(CHAR(160),SUBSTITUTE($O59,"{",CHAR(160),FC$1)),FIND(CHAR(160),SUBSTITUTE($O59,"}",CHAR(160),FC$1))-FIND(CHAR(160),SUBSTITUTE($O59,"{",CHAR(160),FC$1))+1),"") -> {EER} | FD59: {Heating BTUH} | FE59: {COP} | FK59: {Measure:Quantity} | FL59: {Unit Size - Tons} | FM59: =IFERROR(MID($R59,FIND(CHAR(160),SUBSTITUTE($R59,"{",CHAR(160),FM$1)),FIND(CHAR(160),SUBSTITUTE($R59,"}",CHAR(160),FM$1))-FIND(CHAR(160),SUBSTITUTE($R59,"{",CHAR(160),FM$1))+1),"") -> {EER} | FU59: {Measure:Quantity} | FV59: {Unit Size - Tons} | FW59: =IFERROR(MID($U59,FIND(CHAR(160),SUBSTITUTE($U59,"{",CHAR(160),FW$1)),FIND(CHAR(160),SUBSTITUTE($U59,"}",CHAR(160),FW$1))-FIND(CHAR(160),SUBSTITUTE($U59,"{",CHAR(160),FW$1))+1),"") -> {COP} | FX59: {Factor:WinterCF} | GE59: {Measure:Quantity} | GF59: {Heating BTUH} | GG59: =IFERROR(MID($V59,FIND(CHAR(160),SUBSTITUTE($V59,"{",CHAR(160),GG$1)),FIND(CHAR(160),SUBSTITUTE($V59,"}",CHAR(160),GG$1))-FIND(CHAR(160),SUBSTITUTE($V59,"{",CHAR(160),GG$1))+1),"") -> {EER} | GH59: {Factor:SummerCF} | GO59: {Measure:Quantity} | GP59: {Unit Size - Tons} | GQ59: =IFERROR(MID($W59,FIND(CHAR(160),SUBSTITUTE($W59,"{",CHAR(160),GQ$1)),FIND(CHAR(160),SUBSTITUTE($W59,"}",CHAR(160),GQ$1))-FIND(CHAR(160),SUBSTITUTE($W59,"{",CHAR(160),GQ$1))+1),"") ->  | HA59: =IFERROR(MID($X59,FIND(CHAR(160),SUBSTITUTE($X59,"{",CHAR(160),HA$1)),FIND(CHAR(160),SUBSTITUTE($X59,"}",CHAR(160),HA$1))-FIND(CHAR(160),SUBSTITUTE($X59,"{",CHAR(160),HA$1))+1),"") ->  | HK59: =IFERROR(MID($Y59,FIND(CHAR(160),SUBSTITUTE($Y59,"{",CHAR(160),HK$1)),FIND(CHAR(160),SUBSTITUTE($Y59,"}",CHAR(160),HK$1))-FIND(CHAR(160),SUBSTITUTE($Y59,"{",CHAR(160),HK$1))+1),"") ->  | HU59: =IFERROR(MID($Z59,FIND(CHAR(160),SUBSTITUTE($Z59,"{",CHAR(160),HU$1)),FIND(CHAR(160),SUBSTITUTE($Z59,"}",CHAR(160),HU$1))-FIND(CHAR(160),SUBSTITUTE($Z59,"{",CHAR(160),HU$1))+1),"") ->  | IE59: =IFERROR(MID($AA59,FIND(CHAR(160),SUBSTITUTE($AA59,"{",CHAR(160),IE$1)),FIND(CHAR(160),SUBSTITUTE($AA59,"}",CHAR(160),IE$1))-FIND(CHAR(160),SUBSTITUTE($AA59,"{",CHAR(160),IE$1))+1),"") ->  | IO59: =IFERROR(MID($AB59,FIND(CHAR(160),SUBSTITUTE($AB59,"{",CHAR(160),IO$1)),FIND(CHAR(160),SUBSTITUTE($AB59,"}",CHAR(160),IO$1))-FIND(CHAR(160),SUBSTITUTE($AB59,"{",CHAR(160),IO$1))+1),"") ->  | IZ59: 5
A60: C&I HVAC - Heat Pump Retrofits for Small Business | B60: Ductless Heat Pump Retrofit | C60: DHPCR | D60: 2021-07-01 | E60: 2022-06-30 | F60: Per Measure | G60: 2605 | H60: 0 | I60: Calculated | J60: if({Existing Heating System Fuel}=1,0,Min(Min({Measure:Quantity},3),{Number of existing zones/thermostats})*(1600+{SBI Active Region}*400)*{SGS/General Service Customer}) | K60: 0 | L60: 2021-07-01 | M60: 2022-06-30 | N60: Calculated | O60: if({Existing Heating System Fuel}=6,6169,-3197)+if({Existing Heating System Fuel}=0,1768,0)+({Measure:Quantity}-1)*(if({Existing Heating System Fuel}=6,2998,-1681)+if({Existing Heating System Fuel}=0,916,0)) | U60: if({Existing Heating System Fuel}=6,1.214,-0.725)+({Measure:Quantity}-1)*if({Existing Heating System Fuel}=6,0.629,-0.403) | V60: 0.133+(1*{Measure:Quantity}-1)*0.053 | W60: 10*if({Existing Heating System Fuel}=1,1,if({Existing Heating System Fuel}=0,0.29,0))*37.71+(1*{Measure:Quantity}-1)*if({Existing Heating System Fuel}=1,1,if({Existing Heating System Fuel}=0,0.29,0))*19.53 | X60: if({Existing Heating System Fuel}=2,1,if({Existing Heating System Fuel}=0,0.13,0))*37.71+(1*{Measure:Quantity}-1)*if({Existing Heating System Fuel}=2,1,if({Existing Heating System Fuel}=0,0.13,0))*19.53 | Y60: if({Existing Heating System Fuel}=3,1,if({Existing Heating System Fuel}=0,0.41,0))*37.71+(1*{Measure:Quantity}-1)*if({Existing Heating System Fuel}=3,1,if({Existing Heating System Fuel}=0,0.41,0))*19.53 | Z60: if({Existing Heating System Fuel}=4,1,if({Existing Heating System Fuel}=0,0,0))*37.71+(1*{Measure:Quantity}-1)*if({Existing Heating System Fuel}=4,1,if({Existing Heating System Fuel}=0,0,0))*19.53 | AA60: if({Existing Heating System Fuel}=5,1,if({Existing Heating System Fuel}=0,0.01,0))*37.71+(1*{Measure:Quantity}-1)*if({Existing Heating System Fuel}=5,1,if({Existing Heating System Fuel}=0,0.01,0))*19.53 | AC60: 2020-07-16 | AD60: 2022-06-30 | AE60: 15 | AF60: 1 | AG60: 1 | AH60: 0.3796 | AI60: 0.5329 | AJ60: 0.0457 | AK60: 0.0415 | AL60: 1 | AM60: 1 | AN60: 1 | AO60: 0.25 | AP60: 0.016 | AR60: {Existing Heating System Fuel} | AS60: 0 | AT60: {Measure:Quantity} | AU60: 1 | AV60: {Number of existing zones/thermostats} | AW60: 1 | AX60: {SBI Active Region} | AY60: 0 | AZ60: {SGS/General Service Customer} | BA60: 1 | BI60: 2.6 | BL60: =IF(AS60=6,6169,-3197)+IF(AS60=0,1768,0)+(AU60-1)*(IF(AS60=6,2998,-1681)+IF(AS60=0,916,0)) -> -1429 | BM60: 0 | BN60: 0 | BO60: 0 | BP60: 0 | BQ60: 0 | BR60: =IF(AS60=6,1.214,-0.725)+(AU60-1)*IF(AS60=6,0.629,-0.403) -> -0.725 | BS60: =0.133+(1*AU60-1)*0.053 -> 0.133 | BT60: =10*IF(AS60=1,1,IF(AS60=0,0.29,0))*37.71+(1*AU60-1)*IF(AS60=1,1,IF(AS60=0,0.29,0))*19.53 -> 109.359 | BU60: =IF(AS60=2,1,IF(AS60=0,0.13,0))*37.71+(1*AU60-1)*IF(AS60=2,1,IF(AS60=0,0.13,0))*19.53 -> 4.9023 | BV60: =IF(AS60=3,1,IF(AS60=0,0.41,0))*37.71+(1*AU60-1)*IF(AS60=3,1,IF(AS60=0,0.41,0))*19.53 -> 15.4611 | BW60: =IF(AS60=4,1,IF(AS60=0,0,0))*37.71+(1*AU60-1)*IF(AS60=4,1,IF(AS60=0,0,0))*19.53 -> 0 | BX60: =IF(AS60=5,1,IF(AS60=0,0.01,0))*37.71+(1*AU60-1)*IF(AS60=5,1,IF(AS60=0,0.01,0))*19.53 -> 0.3771 | BY60: 0 | CA60: Res | CB60: Default DR | CC60: =Benefits(BL60,BR60,BS60,BT60,BU60,BV60,BW60,BX60,BY60,BZ60,AE60,AH60,AI60,AJ60,AK60,AL60,AM60,AN60,AO60,AP60,CA60,CB60) -> -1948.740614 | CD60: -2474.575591 | CE60: 2112.428137 | CF60: 6527.392009 | CG60: 0 | CH60: 2894.351914 | CI60: 101.5096242 | CJ60: 0 | CK60: 0 | CL60: =SUMPRODUCT(CC60:CK60,--(CC60:CK60>0)) -> 11635.68168 | CM60: =-SUMPRODUCT(CC60:CK60,--(CC60:CK60<0)) -> 4423.316205 | CO60: =2605 -> 2605 | CR60: 7028.316205 | CS60: 1 | CT60: 1.655543283 | CU60: 1 | CV60: =IF(AS60=1,0,MIN(MIN(AU60,3),AW60)*(1600+AY60*400)*BA60) -> 1600 | CX60: Electric | CY60: y | DA60: X=2605 | DB60: X=if(AS60=1,0,Min(Min(AU60,3),AW60)*(1600+AY60*400)*BA60) | DC60: X=if(AS60=6,6169,-3197)+if(AS60=0,1768,0)+(AU60-1)*(if(AS60=6,2998,-1681)+if(AS60=0,916,0)) | DD60: 0 | DE60: 0 | DF60: 0 | DG60: 0 | DH60: 0 | DI60: X=if(AS60=6,1.214,-0.725)+(AU60-1)*if(AS60=6,0.629,-0.403) | DJ60: X=0.133+(1*AU60-1)*0.053 | DK60: X=10*if(AS60=1,1,if(AS60=0,0.29,0))*37.71+(1*AU60-1)*if(AS60=1,1,if(AS60=0,0.29,0))*19.53 | DL60: X=if(AS60=2,1,if(AS60=0,0.13,0))*37.71+(1*AU60-1)*if(AS60=2,1,if(AS60=0,0.13,0))*19.53 | DM60: X=if(AS60=3,1,if(AS60=0,0.41,0))*37.71+(1*AU60-1)*if(AS60=3,1,if(AS60=0,0.41,0))*19.53 | DN60: X=if(AS60=4,1,if(AS60=0,0,0))*37.71+(1*AU60-1)*if(AS60=4,1,if(AS60=0,0,0))*19.53 | DO60: X=if(AS60=5,1,if(AS60=0,0.01,0))*37.71+(1*AU60-1)*if(AS60=5,1,if(AS60=0,0.01,0))*19.53 | DP60: 0 | DS60: {Factor:WinterCF} | DT60: {Factor:SummerCF} | DU60: =IFERROR(INDEX($EG60:$IV60,MATCH(0,COUNTIF($DR60:DT60,$EG60:$IV60),0)),"") -> {Existing Heating System Fuel} | DV60: =IFERROR(INDEX($EG60:$IV60,MATCH(0,COUNTIF($DR60:DU60,$EG60:$IV60),0)),"") -> {Measure:Quantity} | DW60: =IFERROR(INDEX($EG60:$IV60,MATCH(0,COUNTIF($DR60:DV60,$EG60:$IV60),0)),"") -> {Number of existing zones/thermostats} | DX60: =IFERROR(INDEX($EG60:$IV60,MATCH(0,COUNTIF($DR60:DW60,$EG60:$IV60),0)),"") -> {SBI Active Region} | DY60: =IFERROR(INDEX($EG60:$IV60,MATCH(0,COUNTIF($DR60:DX60,$EG60:$IV60),0)),"") -> {SGS/General Service Customer} | DZ60: =IFERROR(INDEX($EG60:$IV60,MATCH(0,COUNTIF($DR60:DY60,$EG60:$IV60),0)),"") ->  | EA60: =IFERROR(INDEX($EG60:$IV60,MATCH(0,COUNTIF($DR60:DZ60,$EG60:$IV60),0)),"") ->  | EB60: =IFERROR(INDEX($EG60:$IV60,MATCH(0,COUNTIF($DR60:EA60,$EG60:$IV60),0)),"") ->  | EC60: =IFERROR(INDEX($EG60:$IV60,MATCH(0,COUNTIF($DR60:EB60,$EG60:$IV60),0)),"") ->  | ED60: =IFERROR(INDEX($EG60:$IV60,MATCH(0,COUNTIF($DR60:EC60,$EG60:$IV60),0)),"") ->  | EQ60: {Existing Heating System Fuel} | ER60: {Measure:Quantity} | ES60: {Number of existing zones/thermostats} | ET60: {SBI Active Region} | EU60: {SGS/General Service Customer} | FA60: {Existing Heating System Fuel} | FB60: {Measure:Quantity} | FC60: {Measure:Quantity} | FD60: {Existing Heating System Fuel} | FE60: {Existing Heating System Fuel} | FK60: {Existing Heating System Fuel} | FL60: {Existing Heating System Fuel} | FW60: {Existing Heating System Fuel} | GE60: {Existing Heating System Fuel} | GF60: {Measure:Quantity} | GO60: {Measure:Quantity} | GQ60: {Measure:Quantity} | GR60: {Existing Heating System Fuel} | GS60: {Existing Heating System Fuel} | GY60: {Existing Heating System Fuel} | GZ60: {Existing Heating System Fuel} | HA60: {Measure:Quantity} | HB60: {Existing Heating System Fuel} | HC60: {Existing Heating System Fuel} | HI60: {Existing Heating System Fuel} | HJ60: {Existing Heating System Fuel} | HK60: {Measure:Quantity} | HL60: {Existing Heating System Fuel} | HM60: {Existing Heating System Fuel} | HS60: {Existing Heating System Fuel} | HT60: {Existing Heating System Fuel} | HU60: {Measure:Quantity} | HV60: {Existing Heating System Fuel} | HW60: {Existing Heating System Fuel} | IC60: {Existing Heating System Fuel} | ID60: {Existing Heating System Fuel} | IE60: {Measure:Quantity} | IF60: {Existing Heating System Fuel} | IG60: {Existing Heating System Fuel} | IM60: {Existing Heating System Fuel} | IN60: {Existing Heating System Fuel} | IZ60: 5
A61: C&I HVAC - High Performance Heat Pumps | B61: DHP Lost Opportunity Single Zone | C61: DHP1L | D61: 2021-07-01 | E61: 2022-06-30 | F61: Per Measure | G61: 682 | H61: 0 | I61: Per Measure | J61: 500 | K61: 0 | L61: 2021-07-01 | M61: 2022-06-30 | N61: Calculated | O61: if({Backup Heating System Fuel}=6,717,165)+if({Backup Heating System Fuel}=0,108,0)+({Measure:Quantity}-1)*(if({Backup Heating System Fuel}=6,302,113)+if({Backup Heating System Fuel}=0,38,0)) | U61: if({Backup Heating System Fuel}=6,0.031,0.011)+({Measure:Quantity}-1)*if({Backup Heating System Fuel}=6,-0.004,-0.016) | V61: 0.222+(1*{Measure:Quantity}-1)*0.089 | W61: 10*if({Backup Heating System Fuel}=1,1,if({Backup Heating System Fuel}=0,0.29,0))*2.3+(1*{Measure:Quantity}-1)*if({Backup Heating System Fuel}=1,1,if({Backup Heating System Fuel}=0,0.29,0))*0.82 | X61: if({Backup Heating System Fuel}=2,1,if({Backup Heating System Fuel}=0,0.13,0))*2.3+(1*{Measure:Quantity}-1)*if({Backup Heating System Fuel}=2,1,if({Backup Heating System Fuel}=0,0.13,0))*0.82 | Y61: if({Backup Heating System Fuel}=3,1,if({Backup Heating System Fuel}=0,0.41,0))*2.3+(1*{Measure:Quantity}-1)*if({Backup Heating System Fuel}=3,1,if({Backup Heating System Fuel}=0,0.41,0))*0.82 | Z61: if({Backup Heating System Fuel}=4,1,if({Backup Heating System Fuel}=0,0,0))*2.3+(1*{Measure:Quantity}-1)*if({Backup Heating System Fuel}=4,1,if({Backup Heating System Fuel}=0,0,0))*0.82 | AA61: if({Backup Heating System Fuel}=5,1,if({Backup Heating System Fuel}=0,0.01,0))*2.3+(1*{Measure:Quantity}-1)*if({Backup Heating System Fuel}=5,1,if({Backup Heating System Fuel}=0,0.01,0))*0.82 | AC61: 2021-07-01 | AD61: 2022-06-30 | AE61: 18 | AF61: 1 | AG61: 1 | AH61: 0.369 | AI61: 0.512 | AJ61: 0.066 | AK61: 0.052 | AL61: 1 | AM61: 1 | AN61: 1 | AO61: 0.33 | AP61: 0.016 | AR61: {Measure:Quantity} | AS61: 0 | AT61: {Backup Heating System Fuel} | AU61: 1 | BI61: 2.6 | BL61: =IF(AS61=6,717,165)+IF(AS61=0,108,0)+(AU61-1)*(IF(AS61=6,302,113)+IF(AS61=0,38,0)) -> 273 | BM61: 0 | BN61: 0 | BO61: 0 | BP61: 0 | BQ61: 0 | BR61: =IF(AS61=6,0.031,0.011)+(AU61-1)*IF(AS61=6,-0.004,-0.016) -> 0.011 | BS61: =0.222+(1*AU61-1)*0.089 -> 0.222 | BT61: =10*IF(AS61=1,1,IF(AS61=0,0.29,0))*2.3+(1*AU61-1)*IF(AS61=1,1,IF(AS61=0,0.29,0))*0.82 -> 6.67 | BU61: =IF(AS61=2,1,IF(AS61=0,0.13,0))*2.3+(1*AU61-1)*IF(AS61=2,1,IF(AS61=0,0.13,0))*0.82 -> 0.299 | BV61: =IF(AS61=3,1,IF(AS61=0,0.41,0))*2.3+(1*AU61-1)*IF(AS61=3,1,IF(AS61=0,0.41,0))*0.82 -> 0.943 | BW61: =IF(AS61=4,1,IF(AS61=0,0,0))*2.3+(1*AU61-1)*IF(AS61=4,1,IF(AS61=0,0,0))*0.82 -> 0 | BX61: =IF(AS61=5,1,IF(AS61=0,0.01,0))*2.3+(1*AU61-1)*IF(AS61=5,1,IF(AS61=0,0.01,0))*0.82 -> 0.023 | BY61: 0 | CA61: Res | CB61: Default DR | CC61: =Benefits(BL61,BR61,BS61,BT61,BU61,BV61,BW61,BX61,BY61,BZ61,AE61,AH61,AI61,AJ61,AK61,AL61,AM61,AN61,AO61,AP61,CA61,CB61) -> 421.0175179 | CD61: 530.169694 | CE61: 144.7388487 | CF61: 455.4344845 | CG61: 0 | CH61: 202.8598787 | CI61: 7.237032946 | CJ61: 0 | CK61: 0 | CL61: =SUMPRODUCT(CC61:CK61,--(CC61:CK61>0)) -> 1761.457457 | CM61: =-SUMPRODUCT(CC61:CK61,--(CC61:CK61<0)) -> 0 | CO61: =682 -> 682 | CR61: 682 | CS61: 1 | CT61: 2.582782195 | CU61: 1 | CV61: =500 -> 500 | CX61: Electric | CY61: y | DA61: X=682 | DB61: X=500 | DC61: X=if(AU61=6,717,165)+if(AU61=0,108,0)+(AS61-1)*(if(AU61=6,302,113)+if(AU61=0,38,0)) | DD61: 0 | DE61: 0 | DF61: 0 | DG61: 0 | DH61: 0 | DI61: X=if(AU61=6,0.031,0.011)+(AS61-1)*if(AU61=6,-0.004,-0.016) | DJ61: X=0.222+(1*AS61-1)*0.089 | DK61: X=10*if(AU61=1,1,if(AU61=0,0.29,0))*2.3+(1*AS61-1)*if(AU61=1,1,if(AU61=0,0.29,0))*0.82 | DL61: X=if(AU61=2,1,if(AU61=0,0.13,0))*2.3+(1*AS61-1)*if(AU61=2,1,if(AU61=0,0.13,0))*0.82 | DM61: X=if(AU61=3,1,if(AU61=0,0.41,0))*2.3+(1*AS61-1)*if(AU61=3,1,if(AU61=0,0.41,0))*0.82 | DN61: X=if(AU61=4,1,if(AU61=0,0,0))*2.3+(1*AS61-1)*if(AU61=4,1,if(AU61=0,0,0))*0.82 | DO61: X=if(AU61=5,1,if(AU61=0,0.01,0))*2.3+(1*AS61-1)*if(AU61=5,1,if(AU61=0,0.01,0))*0.82 | DP61: 0 | DS61: {Factor:WinterCF} | DT61: {Factor:SummerCF} | DU61: =IFERROR(INDEX($EG61:$IV61,MATCH(0,COUNTIF($DR61:DT61,$EG61:$IV61),0)),"") -> {Measure:Quantity} | DV61: =IFERROR(INDEX($EG61:$IV61,MATCH(0,COUNTIF($DR61:DU61,$EG61:$IV61),0)),"") -> {Backup Heating System Fuel} | DW61: =IFERROR(INDEX($EG61:$IV61,MATCH(0,COUNTIF($DR61:DV61,$EG61:$IV61),0)),"") ->  | DX61: =IFERROR(INDEX($EG61:$IV61,MATCH(0,COUNTIF($DR61:DW61,$EG61:$IV61),0)),"") ->  | DY61: =IFERROR(INDEX($EG61:$IV61,MATCH(0,COUNTIF($DR61:DX61,$EG61:$IV61),0)),"") ->  | DZ61: =IFERROR(INDEX($EG61:$IV61,MATCH(0,COUNTIF($DR61:DY61,$EG61:$IV61),0)),"") ->  | EA61: =IFERROR(INDEX($EG61:$IV61,MATCH(0,COUNTIF($DR61:DZ61,$EG61:$IV61),0)),"") ->  | EB61: =IFERROR(INDEX($EG61:$IV61,MATCH(0,COUNTIF($DR61:EA61,$EG61:$IV61),0)),"") ->  | EC61: =IFERROR(INDEX($EG61:$IV61,MATCH(0,COUNTIF($DR61:EB61,$EG61:$IV61),0)),"") ->  | ED61: =IFERROR(INDEX($EG61:$IV61,MATCH(0,COUNTIF($DR61:EC61,$EG61:$IV61),0)),"") ->  | FC61: {Measure:Quantity} | FD61: {Backup Heating System Fuel} | FE61: {Backup Heating System Fuel} | FK61: {Backup Heating System Fuel} | FL61: {Backup Heating System Fuel} | FW61: {Backup Heating System Fuel} | GE61: {Backup Heating System Fuel} | GF61: {Measure:Quantity} | GO61: {Measure:Quantity} | GQ61: {Measure:Quantity} | GR61: {Backup Heating System Fuel} | GS61: {Backup Heating System Fuel} | GY61: {Backup Heating System Fuel} | GZ61: {Backup Heating System Fuel} | HA61: {Measure:Quantity} | HB61: {Backup Heating System Fuel} | HC61: {Backup Heating System Fuel} | HI61: {Backup Heating System Fuel} | HJ61: {Backup Heating System Fuel} | HK61: {Measure:Quantity} | HL61: {Backup Heating System Fuel} | HM61: {Backup Heating System Fuel} | HS61: {Backup Heating System Fuel} | HT61: {Backup Heating System Fuel} | HU61: {Measure:Quantity} | HV61: {Backup Heating System Fuel} | HW61: {Backup Heating System Fuel} | IC61: {Backup Heating System Fuel} | ID61: {Backup Heating System Fuel} | IE61: {Measure:Quantity} | IF61: {Backup Heating System Fuel} | IG61: {Backup Heating System Fuel} | IM61: {Backup Heating System Fuel} | IN61: {Backup Heating System Fuel} | IZ61: 2
A62: C&I HVAC - High Performance Heat Pumps | B62: DHP Lost Opportunity 2 Zones | C62: DHP2L | D62: 2021-07-01 | E62: 2022-06-30 | F62: Per Measure | G62: 682 | H62: 0 | I62: Per Measure | J62: 750 | K62: 0 | L62: 2021-07-01 | M62: 2022-06-30 | N62: Calculated | O62: if({Backup Heating System Fuel}=6,717,165)+if({Backup Heating System Fuel}=0,108,0)+(2*{Measure:Quantity}-1)*(if({Backup Heating System Fuel}=6,302,113)+if({Backup Heating System Fuel}=0,38,0)) | U62: if({Backup Heating System Fuel}=6,0.031,0.011)+(2*{Measure:Quantity}-1)*if({Backup Heating System Fuel}=6,-0.004,-0.016) | V62: 0.222+(2*{Measure:Quantity}-1)*0.089 | W62: 10*if({Backup Heating System Fuel}=1,1,if({Backup Heating System Fuel}=0,0.29,0))*2.3+(2*{Measure:Quantity}-1)*if({Backup Heating System Fuel}=1,1,if({Backup Heating System Fuel}=0,0.29,0))*0.82 | X62: if({Backup Heating System Fuel}=2,1,if({Backup Heating System Fuel}=0,0.13,0))*2.3+(2*{Measure:Quantity}-1)*if({Backup Heating System Fuel}=2,1,if({Backup Heating System Fuel}=0,0.13,0))*0.82 | Y62: if({Backup Heating System Fuel}=3,1,if({Backup Heating System Fuel}=0,0.41,0))*2.3+(2*{Measure:Quantity}-1)*if({Backup Heating System Fuel}=3,1,if({Backup Heating System Fuel}=0,0.41,0))*0.82 | Z62: if({Backup Heating System Fuel}=4,1,if({Backup Heating System Fuel}=0,0,0))*2.3+(2*{Measure:Quantity}-1)*if({Backup Heating System Fuel}=4,1,if({Backup Heating System Fuel}=0,0,0))*0.82 | AA62: if({Backup Heating System Fuel}=5,1,if({Backup Heating System Fuel}=0,0.01,0))*2.3+(2*{Measure:Quantity}-1)*if({Backup Heating System Fuel}=5,1,if({Backup Heating System Fuel}=0,0.01,0))*0.82 | AC62: 2021-07-01 | AD62: 2022-06-30 | AE62: 18 | AF62: 1 | AG62: 1 | AH62: 0.369 | AI62: 0.512 | AJ62: 0.066 | AK62: 0.052 | AL62: 1 | AM62: 1 | AN62: 1 | AO62: 0.33 | AP62: 0.016 | AR62: {Measure:Quantity} | AS62: 0 | AT62: {Backup Heating System Fuel} | AU62: 1 | BL62: =IF(AS62=6,717,165)+IF(AS62=0,108,0)+(2*AU62-1)*(IF(AS62=6,302,113)+IF(AS62=0,38,0)) -> 424 | BM62: 0 | BN62: 0 | BO62: 0 | BP62: 0 | BQ62: 0 | BR62: =IF(AS62=6,0.031,0.011)+(2*AU62-1)*IF(AS62=6,-0.004,-0.016) -> -0.005 | BS62: =0.222+(2*AU62-1)*0.089 -> 0.311 | BT62: =10*IF(AS62=1,1,IF(AS62=0,0.29,0))*2.3+(2*AU62-1)*IF(AS62=1,1,IF(AS62=0,0.29,0))*0.82 -> 6.9078 | BU62: =IF(AS62=2,1,IF(AS62=0,0.13,0))*2.3+(2*AU62-1)*IF(AS62=2,1,IF(AS62=0,0.13,0))*0.82 -> 0.4056 | BV62: =IF(AS62=3,1,IF(AS62=0,0.41,0))*2.3+(2*AU62-1)*IF(AS62=3,1,IF(AS62=0,0.41,0))*0.82 -> 1.2792 | BW62: =IF(AS62=4,1,IF(AS62=0,0,0))*2.3+(2*AU62-1)*IF(AS62=4,1,IF(AS62=0,0,0))*0.82 -> 0 | BX62: =IF(AS62=5,1,IF(AS62=0,0.01,0))*2.3+(2*AU62-1)*IF(AS62=5,1,IF(AS62=0,0.01,0))*0.82 -> 0.0312 | BY62: 0 | CA62: Res | CB62: Default DR | CC62: =Benefits(BL62,BR62,BS62,BT62,BU62,BV62,BW62,BX62,BY62,BZ62,AE62,AH62,AI62,AJ62,AK62,AL62,AM62,AN62,AO62,AP62,CA62,CB62) -> 653.8880131 | CD62: 654.0208111 | CE62: 149.8991034 | CF62: 617.806779 | CG62: 0 | CH62: 275.1838354 | CI62: 9.817192518 | CJ62: 0 | CK62: 0 | CL62: =SUMPRODUCT(CC62:CK62,--(CC62:CK62>0)) -> 2360.615734 | CM62: =-SUMPRODUCT(CC62:CK62,--(CC62:CK62<0)) -> 0 | CO62: =682 -> 682 | CR62: 682 | CS62: 1 | CT62: 3.147487646 | CU62: 1 | CV62: =750 -> 750 | CX62: Electric | CY62: y | DA62: X=682 | DB62: X=750 | DC62: X=if(AU62=6,717,165)+if(AU62=0,108,0)+(2*AS62-1)*(if(AU62=6,302,113)+if(AU62=0,38,0)) | DD62: 0 | DE62: 0 | DF62: 0 | DG62: 0 | DH62: 0 | DI62: X=if(AU62=6,0.031,0.011)+(2*AS62-1)*if(AU62=6,-0.004,-0.016) | DJ62: X=0.222+(2*AS62-1)*0.089 | DK62: X=10*if(AU62=1,1,if(AU62=0,0.29,0))*2.3+(2*AS62-1)*if(AU62=1,1,if(AU62=0,0.29,0))*0.82 | DL62: X=if(AU62=2,1,if(AU62=0,0.13,0))*2.3+(2*AS62-1)*if(AU62=2,1,if(AU62=0,0.13,0))*0.82 | DM62: X=if(AU62=3,1,if(AU62=0,0.41,0))*2.3+(2*AS62-1)*if(AU62=3,1,if(AU62=0,0.41,0))*0.82 | DN62: X=if(AU62=4,1,if(AU62=0,0,0))*2.3+(2*AS62-1)*if(AU62=4,1,if(AU62=0,0,0))*0.82 | DO62: X=if(AU62=5,1,if(AU62=0,0.01,0))*2.3+(2*AS62-1)*if(AU62=5,1,if(AU62=0,0.01,0))*0.82 | DP62: 0 | DS62: {Factor:WinterCF} | DT62: {Factor:SummerCF} | DU62: =IFERROR(INDEX($EG62:$IV62,MATCH(0,COUNTIF($DR62:DT62,$EG62:$IV62),0)),"") -> {Measure:Quantity} | DV62: =IFERROR(INDEX($EG62:$IV62,MATCH(0,COUNTIF($DR62:DU62,$EG62:$IV62),0)),"") -> {Backup Heating System Fuel} | DW62: =IFERROR(INDEX($EG62:$IV62,MATCH(0,COUNTIF($DR62:DV62,$EG62:$IV62),0)),"") ->  | DX62: =IFERROR(INDEX($EG62:$IV62,MATCH(0,COUNTIF($DR62:DW62,$EG62:$IV62),0)),"") ->  | DY62: =IFERROR(INDEX($EG62:$IV62,MATCH(0,COUNTIF($DR62:DX62,$EG62:$IV62),0)),"") ->  | DZ62: =IFERROR(INDEX($EG62:$IV62,MATCH(0,COUNTIF($DR62:DY62,$EG62:$IV62),0)),"") ->  | EA62: =IFERROR(INDEX($EG62:$IV62,MATCH(0,COUNTIF($DR62:DZ62,$EG62:$IV62),0)),"") ->  | EB62: =IFERROR(INDEX($EG62:$IV62,MATCH(0,COUNTIF($DR62:EA62,$EG62:$IV62),0)),"") ->  | EC62: =IFERROR(INDEX($EG62:$IV62,MATCH(0,COUNTIF($DR62:EB62,$EG62:$IV62),0)),"") ->  | ED62: =IFERROR(INDEX($EG62:$IV62,MATCH(0,COUNTIF($DR62:EC62,$EG62:$IV62),0)),"") ->  | FC62: {Measure:Quantity} | FD62: {Backup Heating System Fuel} | FE62: {Backup Heating System Fuel} | FK62: {Backup Heating System Fuel} | FL62: {Backup Heating System Fuel} | FW62: {Backup Heating System Fuel} | GE62: {Backup Heating System Fuel} | GF62: {Measure:Quantity} | GO62: {Measure:Quantity} | GQ62: {Measure:Quantity} | GR62: {Backup Heating System Fuel} | GS62: {Backup Heating System Fuel} | GY62: {Backup Heating System Fuel} | GZ62: {Backup Heating System Fuel} | HA62: {Measure:Quantity} | HB62: {Backup Heating System Fuel} | HC62: {Backup Heating System Fuel} | HI62: {Backup Heating System Fuel} | HJ62: {Backup Heating System Fuel} | HK62: {Measure:Quantity} | HL62: {Backup Heating System Fuel} | HM62: {Backup Heating System Fuel} | HS62: {Backup Heating System Fuel} | HT62: {Backup Heating System Fuel} | HU62: {Measure:Quantity} | HV62: {Backup Heating System Fuel} | HW62: {Backup Heating System Fuel} | IC62: {Backup Heating System Fuel} | ID62: {Backup Heating System Fuel} | IE62: {Measure:Quantity} | IF62: {Backup Heating System Fuel} | IG62: {Backup Heating System Fuel} | IM62: {Backup Heating System Fuel} | IN62: {Backup Heating System Fuel} | IZ62: 2
A63: C&I HVAC - High Performance Heat Pumps | B63: DHP Lost Opportunity 3 Zones | C63: DHP3L | D63: 2021-07-01 | E63: 2022-06-30 | F63: Per Measure | G63: 682 | H63: 0 | I63: Per Measure | J63: 1000 | K63: 0 | L63: 2021-07-01 | M63: 2022-06-30 | N63: Calculated | O63: if({Backup Heating System Fuel}=6,717,165)+if({Backup Heating System Fuel}=0,108,0)+(3*{Measure:Quantity}-1)*(if({Backup Heating System Fuel}=6,302,113)+if({Backup Heating System Fuel}=0,38,0)) | U63: if({Backup Heating System Fuel}=6,0.031,0.011)+(3*{Measure:Quantity}-1)*if({Backup Heating System Fuel}=6,-0.004,-0.016) | V63: 0.222+(3*{Measure:Quantity}-1)*0.089 | W63: 10*if({Backup Heating System Fuel}=1,1,if({Backup Heating System Fuel}=0,0.29,0))*2.3+(3*{Measure:Quantity}-1)*if({Backup Heating System Fuel}=1,1,if({Backup Heating System Fuel}=0,0.29,0))*0.82 | X63: if({Backup Heating System Fuel}=2,1,if({Backup Heating System Fuel}=0,0.13,0))*2.3+(3*{Measure:Quantity}-1)*if({Backup Heating System Fuel}=2,1,if({Backup Heating System Fuel}=0,0.13,0))*0.82 | Y63: if({Backup Heating System Fuel}=3,1,if({Backup Heating System Fuel}=0,0.41,0))*2.3+(3*{Measure:Quantity}-1)*if({Backup Heating System Fuel}=3,1,if({Backup Heating System Fuel}=0,0.41,0))*0.82 | Z63: if({Backup Heating System Fuel}=4,1,if({Backup Heating System Fuel}=0,0,0))*2.3+(3*{Measure:Quantity}-1)*if({Backup Heating System Fuel}=4,1,if({Backup Heating System Fuel}=0,0,0))*0.82 | AA63: if({Backup Heating System Fuel}=5,1,if({Backup Heating System Fuel}=0,0.01,0))*2.3+(3*{Measure:Quantity}-1)*if({Backup Heating System Fuel}=5,1,if({Backup Heating System Fuel}=0,0.01,0))*0.82 | AC63: 2021-07-01 | AD63: 2022-06-30 | AE63: 18 | AF63: 1 | AG63: 1 | AH63: 0.369 | AI63: 0.512 | AJ63: 0.066 | AK63: 0.052 | AL63: 1 | AM63: 1 | AN63: 1 | AO63: 0.33 | AP63: 0.016 | AR63: {Measure:Quantity} | AS63: 0 | AT63: {Backup Heating System Fuel} | AU63: 1 | BL63: =IF(AS63=6,717,165)+IF(AS63=0,108,0)+(3*AU63-1)*(IF(AS63=6,302,113)+IF(AS63=0,38,0)) -> 575 | BM63: 0 | BN63: 0 | BO63: 0 | BP63: 0 | BQ63: 0 | BR63: =IF(AS63=6,0.031,0.011)+(3*AU63-1)*IF(AS63=6,-0.004,-0.016) -> -0.021 | BS63: =0.222+(3*AU63-1)*0.089 -> 0.4 | BT63: =10*IF(AS63=1,1,IF(AS63=0,0.29,0))*2.3+(3*AU63-1)*IF(AS63=1,1,IF(AS63=0,0.29,0))*0.82 -> 7.1456 | BU63: =IF(AS63=2,1,IF(AS63=0,0.13,0))*2.3+(3*AU63-1)*IF(AS63=2,1,IF(AS63=0,0.13,0))*0.82 -> 0.5122 | BV63: =IF(AS63=3,1,IF(AS63=0,0.41,0))*2.3+(3*AU63-1)*IF(AS63=3,1,IF(AS63=0,0.41,0))*0.82 -> 1.6154 | BW63: =IF(AS63=4,1,IF(AS63=0,0,0))*2.3+(3*AU63-1)*IF(AS63=4,1,IF(AS63=0,0,0))*0.82 -> 0 | BX63: =IF(AS63=5,1,IF(AS63=0,0.01,0))*2.3+(3*AU63-1)*IF(AS63=5,1,IF(AS63=0,0.01,0))*0.82 -> 0.0394 | BY63: 0 | CA63: Res | CB63: Default DR | CC63: =Benefits(BL63,BR63,BS63,BT63,BU63,BV63,BW63,BX63,BY63,BZ63,AE63,AH63,AI63,AJ63,AK63,AL63,AM63,AN63,AO63,AP63,CA63,CB63) -> 886.7585084 | CD63: 777.8719281 | CE63: 155.059358 | CF63: 780.1790735 | CG63: 0 | CH63: 347.5077921 | CI63: 12.39735209 | CJ63: 0 | CK63: 0 | CL63: =SUMPRODUCT(CC63:CK63,--(CC63:CK63>0)) -> 2959.774012 | CM63: =-SUMPRODUCT(CC63:CK63,--(CC63:CK63<0)) -> 0 | CO63: =682 -> 682 | CR63: 682 | CS63: 1 | CT63: 2.959774012 | CU63: 1 | CV63: =1000 -> 1000 | CX63: Electric | CY63: y | DA63: X=682 | DB63: X=1000 | DC63: X=if(AU63=6,717,165)+if(AU63=0,108,0)+(3*AS63-1)*(if(AU63=6,302,113)+if(AU63=0,38,0)) | DD63: 0 | DE63: 0 | DF63: 0 | DG63: 0 | DH63: 0 | DI63: X=if(AU63=6,0.031,0.011)+(3*AS63-1)*if(AU63=6,-0.004,-0.016) | DJ63: X=0.222+(3*AS63-1)*0.089 | DK63: X=10*if(AU63=1,1,if(AU63=0,0.29,0))*2.3+(3*AS63-1)*if(AU63=1,1,if(AU63=0,0.29,0))*0.82 | DL63: X=if(AU63=2,1,if(AU63=0,0.13,0))*2.3+(3*AS63-1)*if(AU63=2,1,if(AU63=0,0.13,0))*0.82 | DM63: X=if(AU63=3,1,if(AU63=0,0.41,0))*2.3+(3*AS63-1)*if(AU63=3,1,if(AU63=0,0.41,0))*0.82 | DN63: X=if(AU63=4,1,if(AU63=0,0,0))*2.3+(3*AS63-1)*if(AU63=4,1,if(AU63=0,0,0))*0.82 | DO63: X=if(AU63=5,1,if(AU63=0,0.01,0))*2.3+(3*AS63-1)*if(AU63=5,1,if(AU63=0,0.01,0))*0.82 | DP63: 0 | DS63: {Factor:WinterCF} | DT63: {Factor:SummerCF} | DU63: =IFERROR(INDEX($EG63:$IV63,MATCH(0,COUNTIF($DR63:DT63,$EG63:$IV63),0)),"") -> {Measure:Quantity} | DV63: =IFERROR(INDEX($EG63:$IV63,MATCH(0,COUNTIF($DR63:DU63,$EG63:$IV63),0)),"") -> {Backup Heating System Fuel} | DW63: =IFERROR(INDEX($EG63:$IV63,MATCH(0,COUNTIF($DR63:DV63,$EG63:$IV63),0)),"") ->  | DX63: =IFERROR(INDEX($EG63:$IV63,MATCH(0,COUNTIF($DR63:DW63,$EG63:$IV63),0)),"") ->  | DY63: =IFERROR(INDEX($EG63:$IV63,MATCH(0,COUNTIF($DR63:DX63,$EG63:$IV63),0)),"") ->  | DZ63: =IFERROR(INDEX($EG63:$IV63,MATCH(0,COUNTIF($DR63:DY63,$EG63:$IV63),0)),"") ->  | EA63: =IFERROR(INDEX($EG63:$IV63,MATCH(0,COUNTIF($DR63:DZ63,$EG63:$IV63),0)),"") ->  | EB63: =IFERROR(INDEX($EG63:$IV63,MATCH(0,COUNTIF($DR63:EA63,$EG63:$IV63),0)),"") ->  | EC63: =IFERROR(INDEX($EG63:$IV63,MATCH(0,COUNTIF($DR63:EB63,$EG63:$IV63),0)),"") ->  | ED63: =IFERROR(INDEX($EG63:$IV63,MATCH(0,COUNTIF($DR63:EC63,$EG63:$IV63),0)),"") ->  | FC63: {Measure:Quantity} | FD63: {Backup Heating System Fuel} | FE63: {Backup Heating System Fuel} | FK63: {Backup Heating System Fuel} | FL63: {Backup Heating System Fuel} | FW63: {Backup Heating System Fuel} | GE63: {Backup Heating System Fuel} | GF63: {Measure:Quantity} | GO63: {Measure:Quantity} | GQ63: {Measure:Quantity} | GR63: {Backup Heating System Fuel} | GS63: {Backup Heating System Fuel} | GY63: {Backup Heating System Fuel} | GZ63: {Backup Heating System Fuel} | HA63: {Measure:Quantity} | HB63: {Backup Heating System Fuel} | HC63: {Backup Heating System Fuel} | HI63: {Backup Heating System Fuel} | HJ63: {Backup Heating System Fuel} | HK63: {Measure:Quantity} | HL63: {Backup Heating System Fuel} | HM63: {Backup Heating System Fuel} | HS63: {Backup Heating System Fuel} | HT63: {Backup Heating System Fuel} | HU63: {Measure:Quantity} | HV63: {Backup Heating System Fuel} | HW63: {Backup Heating System Fuel} | IC63: {Backup Heating System Fuel} | ID63: {Backup Heating System Fuel} | IE63: {Measure:Quantity} | IF63: {Backup Heating System Fuel} | IG63: {Backup Heating System Fuel} | IM63: {Backup Heating System Fuel} | IN63: {Backup Heating System Fuel} | IZ63: 2
A64: C&I HVAC - High Performance Heat Pumps | B64: DHP Lost Opportunity 4 Zones | C64: DHP4L | D64: 2021-07-01 | E64: 2022-06-30 | F64: Per Measure | G64: 682 | H64: 0 | I64: Per Measure | J64: 1250 | K64: 0 | L64: 2021-07-01 | M64: 2022-06-30 | N64: Calculated | O64: if({Backup Heating System Fuel}=6,717,165)+if({Backup Heating System Fuel}=0,108,0)+(4*{Measure:Quantity}-1)*(if({Backup Heating System Fuel}=6,302,113)+if({Backup Heating System Fuel}=0,38,0)) | U64: if({Backup Heating System Fuel}=6,0.031,0.011)+(4*{Measure:Quantity}-1)*if({Backup Heating System Fuel}=6,-0.004,-0.016) | V64: 0.222+(4*{Measure:Quantity}-1)*0.089 | W64: 10*if({Backup Heating System Fuel}=1,1,if({Backup Heating System Fuel}=0,0.29,0))*2.3+(4*{Measure:Quantity}-1)*if({Backup Heating System Fuel}=1,1,if({Backup Heating System Fuel}=0,0.29,0))*0.82 | X64: if({Backup Heating System Fuel}=2,1,if({Backup Heating System Fuel}=0,0.13,0))*2.3+(4*{Measure:Quantity}-1)*if({Backup Heating System Fuel}=2,1,if({Backup Heating System Fuel}=0,0.13,0))*0.82 | Y64: if({Backup Heating System Fuel}=3,1,if({Backup Heating System Fuel}=0,0.41,0))*2.3+(4*{Measure:Quantity}-1)*if({Backup Heating System Fuel}=3,1,if({Backup Heating System Fuel}=0,0.41,0))*0.82 | Z64: if({Backup Heating System Fuel}=4,1,if({Backup Heating System Fuel}=0,0,0))*2.3+(4*{Measure:Quantity}-1)*if({Backup Heating System Fuel}=4,1,if({Backup Heating System Fuel}=0,0,0))*0.82 | AA64: if({Backup Heating System Fuel}=5,1,if({Backup Heating System Fuel}=0,0.01,0))*2.3+(4*{Measure:Quantity}-1)*if({Backup Heating System Fuel}=5,1,if({Backup Heating System Fuel}=0,0.01,0))*0.82 | AC64: 2021-07-01 | AD64: 2022-06-30 | AE64: 18 | AF64: 1 | AG64: 1 | AH64: 0.369 | AI64: 0.512 | AJ64: 0.066 | AK64: 0.052 | AL64: 1 | AM64: 1 | AN64: 1 | AO64: 0.33 | AP64: 0.016 | AR64: {Measure:Quantity} | AS64: 0 | AT64: {Backup Heating System Fuel} | AU64: 1 | BL64: =IF(AS64=6,717,165)+IF(AS64=0,108,0)+(4*AU64-1)*(IF(AS64=6,302,113)+IF(AS64=0,38,0)) -> 726 | BM64: 0 | BN64: 0 | BO64: 0 | BP64: 0 | BQ64: 0 | BR64: =IF(AS64=6,0.031,0.011)+(4*AU64-1)*IF(AS64=6,-0.004,-0.016) -> -0.037 | BS64: =0.222+(4*AU64-1)*0.089 -> 0.489 | BT64: =10*IF(AS64=1,1,IF(AS64=0,0.29,0))*2.3+(4*AU64-1)*IF(AS64=1,1,IF(AS64=0,0.29,0))*0.82 -> 7.3834 | BU64: =IF(AS64=2,1,IF(AS64=0,0.13,0))*2.3+(4*AU64-1)*IF(AS64=2,1,IF(AS64=0,0.13,0))*0.82 -> 0.6188 | BV64: =IF(AS64=3,1,IF(AS64=0,0.41,0))*2.3+(4*AU64-1)*IF(AS64=3,1,IF(AS64=0,0.41,0))*0.82 -> 1.9516 | BW64: =IF(AS64=4,1,IF(AS64=0,0,0))*2.3+(4*AU64-1)*IF(AS64=4,1,IF(AS64=0,0,0))*0.82 -> 0 | BX64: =IF(AS64=5,1,IF(AS64=0,0.01,0))*2.3+(4*AU64-1)*IF(AS64=5,1,IF(AS64=0,0.01,0))*0.82 -> 0.0476 | BY64: 0 | CA64: Res | CB64: Default DR | CC64: =Benefits(BL64,BR64,BS64,BT64,BU64,BV64,BW64,BX64,BY64,BZ64,AE64,AH64,AI64,AJ64,AK64,AL64,AM64,AN64,AO64,AP64,CA64,CB64) -> 1119.629004 | CD64: 901.7230452 | CE64: 160.2196126 | CF64: 942.551368 | CG64: 0 | CH64: 419.8317489 | CI64: 14.97751166 | CJ64: 0 | CK64: 0 | CL64: =SUMPRODUCT(CC64:CK64,--(CC64:CK64>0)) -> 3558.93229 | CM64: =-SUMPRODUCT(CC64:CK64,--(CC64:CK64<0)) -> 0 | CO64: =682 -> 682 | CR64: 682 | CS64: 1 | CT64: 2.847145832 | CU64: 1 | CV64: =1250 -> 1250 | CX64: Electric | CY64: y | DA64: X=682 | DB64: X=1250 | DC64: X=if(AU64=6,717,165)+if(AU64=0,108,0)+(4*AS64-1)*(if(AU64=6,302,113)+if(AU64=0,38,0)) | DD64: 0 | DE64: 0 | DF64: 0 | DG64: 0 | DH64: 0 | DI64: X=if(AU64=6,0.031,0.011)+(4*AS64-1)*if(AU64=6,-0.004,-0.016) | DJ64: X=0.222+(4*AS64-1)*0.089 | DK64: X=10*if(AU64=1,1,if(AU64=0,0.29,0))*2.3+(4*AS64-1)*if(AU64=1,1,if(AU64=0,0.29,0))*0.82 | DL64: X=if(AU64=2,1,if(AU64=0,0.13,0))*2.3+(4*AS64-1)*if(AU64=2,1,if(AU64=0,0.13,0))*0.82 | DM64: X=if(AU64=3,1,if(AU64=0,0.41,0))*2.3+(4*AS64-1)*if(AU64=3,1,if(AU64=0,0.41,0))*0.82 | DN64: X=if(AU64=4,1,if(AU64=0,0,0))*2.3+(4*AS64-1)*if(AU64=4,1,if(AU64=0,0,0))*0.82 | DO64: X=if(AU64=5,1,if(AU64=0,0.01,0))*2.3+(4*AS64-1)*if(AU64=5,1,if(AU64=0,0.01,0))*0.82 | DP64: 0 | DS64: {Factor:WinterCF} | DT64: {Factor:SummerCF} | DU64: =IFERROR(INDEX($EG64:$IV64,MATCH(0,COUNTIF($DR64:DT64,$EG64:$IV64),0)),"") -> {Measure:Quantity} | DV64: =IFERROR(INDEX($EG64:$IV64,MATCH(0,COUNTIF($DR64:DU64,$EG64:$IV64),0)),"") -> {Backup Heating System Fuel} | DW64: =IFERROR(INDEX($EG64:$IV64,MATCH(0,COUNTIF($DR64:DV64,$EG64:$IV64),0)),"") ->  | DX64: =IFERROR(INDEX($EG64:$IV64,MATCH(0,COUNTIF($DR64:DW64,$EG64:$IV64),0)),"") ->  | DY64: =IFERROR(INDEX($EG64:$IV64,MATCH(0,COUNTIF($DR64:DX64,$EG64:$IV64),0)),"") ->  | DZ64: =IFERROR(INDEX($EG64:$IV64,MATCH(0,COUNTIF($DR64:DY64,$EG64:$IV64),0)),"") ->  | EA64: =IFERROR(INDEX($EG64:$IV64,MATCH(0,COUNTIF($DR64:DZ64,$EG64:$IV64),0)),"") ->  | EB64: =IFERROR(INDEX($EG64:$IV64,MATCH(0,COUNTIF($DR64:EA64,$EG64:$IV64),0)),"") ->  | EC64: =IFERROR(INDEX($EG64:$IV64,MATCH(0,COUNTIF($DR64:EB64,$EG64:$IV64),0)),"") ->  | ED64: =IFERROR(INDEX($EG64:$IV64,MATCH(0,COUNTIF($DR64:EC64,$EG64:$IV64),0)),"") ->  | FC64: {Measure:Quantity} | FD64: {Backup Heating System Fuel} | FE64: {Backup Heating System Fuel} | FK64: {Backup Heating System Fuel} | FL64: {Backup Heating System Fuel} | FW64: {Backup Heating System Fuel} | GE64: {Backup Heating System Fuel} | GF64: {Measure:Quantity} | GO64: {Measure:Quantity} | GQ64: {Measure:Quantity} | GR64: {Backup Heating System Fuel} | GS64: {Backup Heating System Fuel} | GY64: {Backup Heating System Fuel} | GZ64: {Backup Heating System Fuel} | HA64: {Measure:Quantity} | HB64: {Backup Heating System Fuel} | HC64: {Backup Heating System Fuel} | HI64: {Backup Heating System Fuel} | HJ64: {Backup Heating System Fuel} | HK64: {Measure:Quantity} | HL64: {Backup Heating System Fuel} | HM64: {Backup Heating System Fuel} | HS64: {Backup Heating System Fuel} | HT64: {Backup Heating System Fuel} | HU64: {Measure:Quantity} | HV64: {Backup Heating System Fuel} | HW64: {Backup Heating System Fuel} | IC64: {Backup Heating System Fuel} | ID64: {Backup Heating System Fuel} | IE64: {Measure:Quantity} | IF64: {Backup Heating System Fuel} | IG64: {Backup Heating System Fuel} | IM64: {Backup Heating System Fuel} | IN64: {Backup Heating System Fuel} | IZ64: 2
A65: C&I HVAC - High Performance Heat Pumps | B65: Ductless Heat Pump Multi-Family | C65: MPDHPNC | D65: 2021-07-01 | E65: 2022-06-30 | F65: Per Measure | G65: 682 | H65: 0 | I65: Calculated | J65: {Measure:Quantity}*(500+({Number of Zones}-1)*250) | K65: 0 | L65: 2021-07-01 | M65: 2022-06-30 | N65: Calculated | O65: if({Backup Heating System Fuel}=6,354,178)+if({Backup Heating System Fuel}=0,35,0)+({Number of Zones}*{Measure:Quantity}-1)*(if({Backup Heating System Fuel}=6,302,113)+if({Backup Heating System Fuel}=0,38,0)) | U65: if({Backup Heating System Fuel}=6,0.013,0.001)+({Number of Zones}*{Measure:Quantity}-1)*if({Backup Heating System Fuel}=6,-0.004,-0.016) | V65: 0.111+({Number of Zones}*{Measure:Quantity}-1)*0.089 | W65: 10*if({Backup Heating System Fuel}=1,1,if({Backup Heating System Fuel}=0,0.11,0))*0.75+({Number of Zones}*{Measure:Quantity}-1)*if({Backup Heating System Fuel}=1,1,if({Backup Heating System Fuel}=0,0.11,0))*0.82 | X65: if({Backup Heating System Fuel}=2,1,if({Backup Heating System Fuel}=0,0.17,0))*0.75+({Number of Zones}*{Measure:Quantity}-1)*if({Backup Heating System Fuel}=2,1,if({Backup Heating System Fuel}=0,0.17,0))*0.82 | Y65: if({Backup Heating System Fuel}=3,1,if({Backup Heating System Fuel}=0,0.68,0))*0.75+({Number of Zones}*{Measure:Quantity}-1)*if({Backup Heating System Fuel}=3,1,if({Backup Heating System Fuel}=0,0.68,0))*0.82 | Z65: if({Backup Heating System Fuel}=4,1,if({Backup Heating System Fuel}=0,0.01,0))*0.75+({Number of Zones}*{Measure:Quantity}-1)*if({Backup Heating System Fuel}=4,1,if({Backup Heating System Fuel}=0,0.01,0))*0.82 | AA65: if({Backup Heating System Fuel}=5,1,if({Backup Heating System Fuel}=0,0.02,0))*0.75+({Number of Zones}*{Measure:Quantity}-1)*if({Backup Heating System Fuel}=5,1,if({Backup Heating System Fuel}=0,0.02,0))*0.82 | AC65: 2021-07-01 | AD65: 2022-06-30 | AE65: 18 | AF65: 1 | AG65: 1 | AH65: 0.387 | AI65: 0.53 | AJ65: 0.046 | AK65: 0.037 | AL65: 1 | AM65: 1 | AN65: 1 | AO65: 0.11 | AP65: 0.01 | AR65: {Measure:Quantity} | AS65: 1 | AT65: {Number of Zones} | AU65: 1 | AV65: {Backup Heating System Fuel} | AW65: 0 | BL65: =IF(AW65=6,354,178)+IF(AW65=0,35,0)+(AU65*AS65-1)*(IF(AW65=6,302,113)+IF(AW65=0,38,0)) -> 213 | BM65: 0 | BN65: 0 | BO65: 0 | BP65: 0 | BQ65: 0 | BR65: =IF(AW65=6,0.013,0.001)+(AU65*AS65-1)*IF(AW65=6,-0.004,-0.016) -> 0.001 | BS65: =0.111+(AU65*AS65-1)*0.089 -> 0.111 | BT65: =10*IF(AW65=1,1,IF(AW65=0,0.11,0))*0.75+(AU65*AS65-1)*IF(AW65=1,1,IF(AW65=0,0.11,0))*0.82 -> 0.825 | BU65: =IF(AW65=2,1,IF(AW65=0,0.17,0))*0.75+(AU65*AS65-1)*IF(AW65=2,1,IF(AW65=0,0.17,0))*0.82 -> 0.1275 | BV65: =IF(AW65=3,1,IF(AW65=0,0.68,0))*0.75+(AU65*AS65-1)*IF(AW65=3,1,IF(AW65=0,0.68,0))*0.82 -> 0.51 | BW65: =IF(AW65=4,1,IF(AW65=0,0.01,0))*0.75+(AU65*AS65-1)*IF(AW65=4,1,IF(AW65=0,0.01,0))*0.82 -> 0.0075 | BX65: =IF(AW65=5,1,IF(AW65=0,0.02,0))*0.75+(AU65*AS65-1)*IF(AW65=5,1,IF(AW65=0,0.02,0))*0.82 -> 0.015 | BY65: 0 | CA65: Res | CB65: Default DR | CC65: =Benefits(BL65,BR65,BS65,BT65,BU65,BV65,BW65,BX65,BY65,BZ65,AE65,AH65,AI65,AJ65,AK65,AL65,AM65,AN65,AO65,AP65,CA65,CB65) -> 330.5524689 | CD65: 245.5294075 | CE65: 17.90248129 | CF65: 246.3113331 | CG65: 4.238390744 | CH65: 86.50379441 | CI65: 4.719804095 | CJ65: 0 | CK65: 0 | CL65: =SUMPRODUCT(CC65:CK65,--(CC65:CK65>0)) -> 935.75768 | CM65: =-SUMPRODUCT(CC65:CK65,--(CC65:CK65<0)) -> 0 | CO65: =682 -> 682 | CR65: 682 | CS65: 1 | CT65: 1.37207871 | CU65: 1 | CV65: =AS65*(500+(AU65-1)*250) -> 500 | CX65: Electric | CY65: y | DA65: X=682 | DB65: X=AS65*(500+(AU65-1)*250) | DC65: X=if(AW65=6,354,178)+if(AW65=0,35,0)+(AU65*AS65-1)*(if(AW65=6,302,113)+if(AW65=0,38,0)) | DD65: 0 | DE65: 0 | DF65: 0 | DG65: 0 | DH65: 0 | DI65: X=if(AW65=6,0.013,0.001)+(AU65*AS65-1)*if(AW65=6,-0.004,-0.016) | DJ65: X=0.111+(AU65*AS65-1)*0.089 | DK65: X=10*if(AW65=1,1,if(AW65=0,0.11,0))*0.75+(AU65*AS65-1)*if(AW65=1,1,if(AW65=0,0.11,0))*0.82 | DL65: X=if(AW65=2,1,if(AW65=0,0.17,0))*0.75+(AU65*AS65-1)*if(AW65=2,1,if(AW65=0,0.17,0))*0.82 | DM65: X=if(AW65=3,1,if(AW65=0,0.68,0))*0.75+(AU65*AS65-1)*if(AW65=3,1,if(AW65=0,0.68,0))*0.82 | DN65: X=if(AW65=4,1,if(AW65=0,0.01,0))*0.75+(AU65*AS65-1)*if(AW65=4,1,if(AW65=0,0.01,0))*0.82 | DO65: X=if(AW65=5,1,if(AW65=0,0.02,0))*0.75+(AU65*AS65-1)*if(AW65=5,1,if(AW65=0,0.02,0))*0.82 | DP65: 0 | DS65: {Factor:WinterCF} | DT65: {Factor:SummerCF} | DU65: =IFERROR(INDEX($EG65:$IV65,MATCH(0,COUNTIF($DR65:DT65,$EG65:$IV65),0)),"") -> {Measure:Quantity} | DV65: =IFERROR(INDEX($EG65:$IV65,MATCH(0,COUNTIF($DR65:DU65,$EG65:$IV65),0)),"") -> {Number of Zones} | DW65: =IFERROR(INDEX($EG65:$IV65,MATCH(0,COUNTIF($DR65:DV65,$EG65:$IV65),0)),"") -> {Backup Heating System Fuel} | DX65: =IFERROR(INDEX($EG65:$IV65,MATCH(0,COUNTIF($DR65:DW65,$EG65:$IV65),0)),"") ->  | DY65: =IFERROR(INDEX($EG65:$IV65,MATCH(0,COUNTIF($DR65:DX65,$EG65:$IV65),0)),"") ->  | DZ65: =IFERROR(INDEX($EG65:$IV65,MATCH(0,COUNTIF($DR65:DY65,$EG65:$IV65),0)),"") ->  | EA65: =IFERROR(INDEX($EG65:$IV65,MATCH(0,COUNTIF($DR65:DZ65,$EG65:$IV65),0)),"") ->  | EB65: =IFERROR(INDEX($EG65:$IV65,MATCH(0,COUNTIF($DR65:EA65,$EG65:$IV65),0)),"") ->  | EC65: =IFERROR(INDEX($EG65:$IV65,MATCH(0,COUNTIF($DR65:EB65,$EG65:$IV65),0)),"") ->  | ED65: =IFERROR(INDEX($EG65:$IV65,MATCH(0,COUNTIF($DR65:EC65,$EG65:$IV65),0)),"") ->  | EQ65: {Measure:Quantity} | ER65: {Number of Zones} | FA65: {Measure:Quantity} | FB65: {Number of Zones} | FC65: {Number of Zones} | FD65: {Measure:Quantity} | FE65: {Backup Heating System Fuel} | FF65: {Backup Heating System Fuel} | FK65: {Backup Heating System Fuel} | FL65: {Backup Heating System Fuel} | FW65: {Measure:Quantity} | FX65: {Backup Heating System Fuel} | GE65: {Backup Heating System Fuel} | GF65: {Number of Zones} | GO65: {Number of Zones} | GP65: {Measure:Quantity} | GQ65: {Number of Zones} | GR65: {Measure:Quantity} | GS65: {Backup Heating System Fuel} | GT65: {Backup Heating System Fuel} | GY65: {Backup Heating System Fuel} | GZ65: {Backup Heating System Fuel} | HA65: {Number of Zones} | HB65: {Measure:Quantity} | HC65: {Backup Heating System Fuel} | HD65: {Backup Heating System Fuel} | HI65: {Backup Heating System Fuel} | HJ65: {Backup Heating System Fuel} | HK65: {Number of Zones} | HL65: {Measure:Quantity} | HM65: {Backup Heating System Fuel} | HN65: {Backup Heating System Fuel} | HS65: {Backup Heating System Fuel} | HT65: {Backup Heating System Fuel} | HU65: {Number of Zones} | HV65: {Measure:Quantity} | HW65: {Backup Heating System Fuel} | HX65: {Backup Heating System Fuel} | IC65: {Backup Heating System Fuel} | ID65: {Backup Heating System Fuel} | IE65: {Number of Zones} | IF65: {Measure:Quantity} | IG65: {Backup Heating System Fuel} | IH65: {Backup Heating System Fuel} | IM65: {Backup Heating System Fuel} | IN65: {Backup Heating System Fuel} | IZ65: 3
A66: C&I HVAC - High Performance VRF Retrofits | B66: Variable Refrigerant Flow - Single Phase Retrofit | C66: VRFSPR | D66: 2021-07-01 | E66: 2022-06-30 | F66: Calculated | G66: {Measure:Quantity}*{Square Feet Served}*{Cost per SQFT} | H66: 0 | I66: Calculated | J66: {Measure:Quantity}*{Square Feet Served}*4 | K66: 0 | L66: 2020-07-01 | M66: 2022-06-30 | N66: Calculated | O66: {Measure:Quantity} * ({Cooling Capacity (Btu/h)}/1000*(1/{SEER_base}-1/{SEER})*829+{Square Feet Served}*47.4/3.412*(if({Existing Heating Fuel}<>6,0,1/{COP_base})-3.412/{HSPF})) | R66: {Measure:Quantity} *Max({Square Feet Served}*47.4/3.412*(if({Existing Heating Fuel}<>6,0,1/{COP_base})-3.412/{HSPF})/1600,{Cooling Capacity (Btu/h)}/1000*(1/{SEER_base}-1/{SEER})) | U66: {Measure:Quantity} * ({Square Feet Served}*47.4/3.412*(if({Existing Heating Fuel}<>6,0,1/{COP_base})-3.412/{HSPF})/1600*{Factor:WinterCF}) | V66: {Measure:Quantity} * ({Cooling Capacity (Btu/h)}/1000*(1/{SEER_base}-1/{SEER})*{Factor:SummerCF}) | W66: if({Existing Heating Fuel}=1,{Measure:Quantity} * {Square Feet Served}*47.4/1000*1/{COP_base},0)*10 | X66: if({Existing Heating Fuel}=2,{Measure:Quantity} * {Square Feet Served}*47.4/1000*1/{COP_base},0) | Y66: if({Existing Heating Fuel}=3,{Measure:Quantity} * {Square Feet Served}*47.4/1000*1/{COP_base},0) | Z66: if({Existing Heating Fuel}=4,{Measure:Quantity} * {Square Feet Served}*47.4/1000*1/{COP_base},0) | AA66: if({Existing Heating Fuel}=5,{Measure:Quantity} * {Square Feet Served}*47.4/1000*1/{COP_base},0) | AC66: 2020-07-01 | AD66: 2022-06-30 | AE66: 20 | AF66: 0.42 | AG66: 0.357 | AH66: 0.17 | AI66: 0.03 | AJ66: 0.62 | AK66: 0.18 | AL66: 1 | AM66: 1.122 | AN66: 1 | AO66: 0.25 | AP66: 0 | AR66: {Measure:Quantity} | AS66: 1 | AT66: {Square Feet Served} | AU66: 2000 | AV66: {Cost per SQFT} | AW66: 11.33 | AX66: {SEER_base} | AY66: 50000 | AZ66: {SEER} | BA66: 12.5 | BB66: {Existing Heating Fuel} | BC66: 17 | BD66: {COP_base} | BE66: 6 | BF66: {HSPF} | BG66: 1 | BH66: {Cooling Capacity (Btu/h)} | BI66: 10 | BL66: =AS66 * (AY66/1000*(1/BA66-1/BC66)*829+AU66*47.4/3.412*(IF(BE66<>6,0,1/BG66)-3.412/BI66)) -> 19182.05544 | BM66: 0 | BN66: 0 | BO66: =AS66 *MAX(AU66*47.4/3.412*(IF(BE66<>6,0,1/BG66)-3.412/BI66)/1600,AY66/1000*(1/BA66-1/BC66)) -> 11.44018171 | BP66: 0 | BQ66: 0 | BR66: =AS66 * (AU66*47.4/3.412*(IF(BE66<>6,0,1/BG66)-3.412/BI66)/1600*AF66) -> 4.804876319 | BS66: =AS66 * (AY66/1000*(1/BA66-1/BC66)*AG66) -> 0.378 | BT66: =IF(BE66=1,AS66 * AU66*47.4/1000*1/BG66,0)*10 -> 0 | BU66: =IF(BE66=2,AS66 * AU66*47.4/1000*1/BG66,0) -> 0 | BV66: =IF(BE66=3,AS66 * AU66*47.4/1000*1/BG66,0) -> 0 | BW66: =IF(BE66=4,AS66 * AU66*47.4/1000*1/BG66,0) -> 0 | BX66: =IF(BE66=5,AS66 * AU66*47.4/1000*1/BG66,0) -> 0 | BY66: 0 | CA66: Com | CB66: Default DR | CC66: =Benefits(BL66,BR66,BS66,BT66,BU66,BV66,BW66,BX66,BY66,BZ66,AE66,AH66,AI66,AJ66,AK66,AL66,AM66,AN66,AO66,AP66,CA66,CB66) -> 31919.45552 | CD66: 23538.09866 | CE66: 0 | CF66: 0 | CG66: 0 | CH66: 0 | CI66: 0 | CJ66: 0 | CK66: 0 | CL66: =SUMPRODUCT(CC66:CK66,--(CC66:CK66>0)) -> 55457.55418 | CM66: =-SUMPRODUCT(CC66:CK66,--(CC66:CK66<0)) -> 0 | CO66: =AS66*AU66*AW66 -> 22660 | CR66: 22660 | CS66: 1 | CT66: 2.447376619 | CU66: 1 | CV66: =AS66*AU66*4 -> 8000 | CX66: RGGI | CY66: y | DA66: X=AS66*AU66*AW66 | DB66: X=AS66*AU66*4 | DC66: X=AS66 * (BI66/1000*(1/AY66-1/BA66)*829+AU66*47.4/3.412*(if(BC66<>6,0,1/BE66)-3.412/BG66)) | DD66: 0 | DE66: 0 | DF66: X=AS66 *Max(AU66*47.4/3.412*(if(BC66<>6,0,1/BE66)-3.412/BG66)/1600,BI66/1000*(1/AY66-1/BA66)) | DG66: 0 | DH66: 0 | DI66: X=AS66 * (AU66*47.4/3.412*(if(BC66<>6,0,1/BE66)-3.412/BG66)/1600*AF66) | DJ66: X=AS66 * (BI66/1000*(1/AY66-1/BA66)*AG66) | DK66: X=if(BC66=1,AS66 * AU66*47.4/1000*1/BE66,0)*10 | DL66: X=if(BC66=2,AS66 * AU66*47.4/1000*1/BE66,0) | DM66: X=if(BC66=3,AS66 * AU66*47.4/1000*1/BE66,0) | DN66: X=if(BC66=4,AS66 * AU66*47.4/1000*1/BE66,0) | DO66: X=if(BC66=5,AS66 * AU66*47.4/1000*1/BE66,0) | DP66: 0 | DS66: {Factor:WinterCF} | DT66: {Factor:SummerCF} | DU66: =IFERROR(INDEX($EG66:$IV66,MATCH(0,COUNTIF($DR66:DT66,$EG66:$IV66),0)),"") -> {Measure:Quantity} | DV66: =IFERROR(INDEX($EG66:$IV66,MATCH(0,COUNTIF($DR66:DU66,$EG66:$IV66),0)),"") -> {Square Feet Served} | DW66: =IFERROR(INDEX($EG66:$IV66,MATCH(0,COUNTIF($DR66:DV66,$EG66:$IV66),0)),"") -> {Cost per SQFT} | DX66: =IFERROR(INDEX($EG66:$IV66,MATCH(0,COUNTIF($DR66:DW66,$EG66:$IV66),0)),"") -> {SEER_base} | DY66: =IFERROR(INDEX($EG66:$IV66,MATCH(0,COUNTIF($DR66:DX66,$EG66:$IV66),0)),"") -> {SEER} | DZ66: =IFERROR(INDEX($EG66:$IV66,MATCH(0,COUNTIF($DR66:DY66,$EG66:$IV66),0)),"") -> {Existing Heating Fuel} | EA66: =IFERROR(INDEX($EG66:$IV66,MATCH(0,COUNTIF($DR66:DZ66,$EG66:$IV66),0)),"") -> {COP_base} | EB66: =IFERROR(INDEX($EG66:$IV66,MATCH(0,COUNTIF($DR66:EA66,$EG66:$IV66),0)),"") -> {HSPF} | EC66: =IFERROR(INDEX($EG66:$IV66,MATCH(0,COUNTIF($DR66:EB66,$EG66:$IV66),0)),"") -> {Cooling Capacity (Btu/h)} | ED66: =IFERROR(INDEX($EG66:$IV66,MATCH(0,COUNTIF($DR66:EC66,$EG66:$IV66),0)),"") ->  | EG66: {Measure:Quantity} | EH66: {Square Feet Served} | EI66: {Cost per SQFT} | EQ66: {Measure:Quantity} | ER66: {Square Feet Served} | FA66: {Measure:Quantity} | FB66: {Square Feet Served} | FC66: {SEER_base} | FD66: {SEER} | FE66: {Square Feet Served} | FF66: {Existing Heating Fuel} | FG66: {COP_base} | FH66: {HSPF} | FK66: {Measure:Quantity} | FL66: {Cooling Capacity (Btu/h)} | FM66: {Existing Heating Fuel} | FN66: {COP_base} | FO66: {HSPF} | FP66: {Cooling Capacity (Btu/h)} | FQ66: {SEER_base} | FR66: {SEER} | FU66: {Measure:Quantity} | FV66: {Square Feet Served} | FW66: {Existing Heating Fuel} | FX66: {COP_base} | FY66: {HSPF} | FZ66: {Factor:WinterCF} | GE66: {Measure:Quantity} | GF66: {Square Feet Served} | GG66: {SEER_base} | GH66: {SEER} | GI66: {Factor:SummerCF} | GO66: {Measure:Quantity} | GP66: {Cooling Capacity (Btu/h)} | GQ66: {Square Feet Served} | GR66: {COP_base} | GY66: {Existing Heating Fuel} | GZ66: {Measure:Quantity} | HA66: {Square Feet Served} | HB66: {COP_base} | HI66: {Existing Heating Fuel} | HJ66: {Measure:Quantity} | HK66: {Square Feet Served} | HL66: {COP_base} | HS66: {Existing Heating Fuel} | HT66: {Measure:Quantity} | HU66: {Square Feet Served} | HV66: {COP_base} | IC66: {Existing Heating Fuel} | ID66: {Measure:Quantity} | IE66: {Square Feet Served} | IF66: {COP_base} | IM66: {Existing Heating Fuel} | IN66: {Measure:Quantity} | IZ66: 9
